Workbook

Sheet Home
E3: Controls Navigator: Home
D5: =INDEX(Language!$B$2:$M$250,69,Language!$A$1) -> Select your application | F5: =INDEX(Language!$B$2:$M$400,350,Language!$A$1) -> Open Technical Bulletins | I5: =INDEX(Language!$B$2:$M$400,351,Language!$A$1) -> Open Operating Instructions
D7: =INDEX(Language!$B$2:$M$250,87,Language!$A$1) -> Electrical control valves
D9: =INDEX(Language!$B$2:$M$250,55,Language!$A$1)&" + "&INDEX(Language!$B$2:$M$250,77,Language!$A$1) -> Expansion valve + Liquid Injection valve
D11: =INDEX(Language!$B$2:$M$299,256,Language!$A$1) -> Valves for R744 transcritical applications
D13: =INDEX(Language!$B$2:$M$250,56,Language!$A$1) -> Hot gas bypass duty | F13: USB | G13: www | I13: USB | J13: www
D15: =INDEX(Language!$B$2:$M$250,57,Language!$A$1) -> Suction duty
D17: =INDEX(Language!$B$2:$M$250,58,Language!$A$1) -> Liquid and head pressure duty
D19: =INDEX(Language!$B$2:$M$400,353,Language!$A$1) -> Heat reclaim
D21: =INDEX(Language!$B$2:$M$250,19,Language!$A$1) -> Controller for ECV | F21: USB | G21: www | I21: USB | J21: www
D22: =INDEX(Language!$B$2:$M$400,269,Language!$A$1)&", "&INDEX(Language!$B$2:$M$400,276,Language!$A$1) -> Fan speed controllers, Soft starters for 1-ph compressors | F22: USB | G22: www | I22: USB | J22: www
D25: =INDEX(Language!$B$2:$M$250,55,Language!$A$1)&" "&INDEX(Language!$B$2:$M$250,83,Language!$A$1) -> Expansion valve Modular design
D27: =INDEX(Language!$B$2:$M$250,55,Language!$A$1)&" "&INDEX(Language!$B$2:$M$250,82,Language!$A$1) -> Expansion valve Hermetic design | F27: USB | G27: www | I27: USB | J27: www
D29: =INDEX(Language!$B$2:$M$250,77,Language!$A$1) -> Liquid Injection valve
D31: =INDEX(Language!$B$2:$M$250,89,Language!$A$1) -> Solenoid valves | F31: USB | G31: www | I31: USB | J31: www
D33: =INDEX(Language!$B$2:$M$250,92,Language!$A$1) -> Oil management components | F33: USB | G33: www | I33: USB | J33: www
D35: =INDEX(Language!$B$2:$M$250,90,Language!$A$1) -> Pressure controls and thermostats | F35: USB | G35: www | I35: USB | J35: www
D37: =INDEX(Language!$B$2:$M$250,91,Language!$A$1)&" & "&INDEX(Language!$B$2:$M$250,219,Language!$A$1) -> System protectors & Moisture liquid indicators | F37: USB | G37: www | I37: USB | J37: www
D39: =INDEX(Language!$B$2:$M$250,71,Language!$A$1)&" + "&INDEX(Language!$B$2:$M$250,72,Language!$A$1) -> Evaporator pressure regulator + Crankcase regulator | F39: USB | G39: www | I39: USB | J39: www
D40: =INDEX(Language!$B$2:$M$250,56,Language!$A$1) -> Hot gas bypass duty
D42: =INDEX(Language!$B$2:$M$250,220,Language!$A$1)&" & "&INDEX(Language!$B$2:$M$250,93,Language!$A$1) -> Ball valves & Other products | F42: USB | G42: www | I42: USB | J42: www
D43: ="Rev.: "&TEXT('Edit List'!B1,"TT.MM.JJJJ") -> 

Sheet E-Expans
B1: =INDEX(Language!$B$2:$M$41,2,Language!$A$1) -> Instruction: Select refrigerant and fill yellow fields with operating conditions.
B2: =INDEX(Language!$B$2:$M$41,3,Language!$A$1) -> #N/A error message: operating conditions, refrigerant or product out of range/specification.
D4: =INDEX(Language!$B$2:$M$41,4,Language!$A$1) -> Project:
D5: =INDEX(Language!$B$2:$M$299,87,Language!$A$1) -> Electrical control valves
D6: =INDEX(Language!$B$2:$M$61,55,Language!$A$1) -> Expansion valve
B7: =CONCATENATE(INDEX(Language!$B$2:$M$41,5,Language!$A$1),": ",'E-EX-Fun'!$G$31) -> Refrigerant: R410A
B8: =INDEX(Language!$B$2:$M$41,6,Language!$A$1) -> Evaporating temperature | D8: 4 | E8: =INDEX('E-EX-Fun'!$N$5:$P$15,2,'E-EX-Fun'!$D$19) -> °C | G8: Tc = | H8: =D10 -> 38 | I8: =E10 -> °C
G9: PC= | H9: =('E-EX-Fun'!E41)*INDEX('E-EX-Fun'!$N$5:$P$15,9,'E-EX-Fun'!$D$19) -> 23.02519795 | I9: =INDEX('E-EX-Fun'!$N$5:$P$15,10,'E-EX-Fun'!$D$19) -> bara
B10: =INDEX(Language!$B$2:$M$41,7,Language!$A$1) -> Condensing temperature | D10: 38 | E10: =INDEX('E-EX-Fun'!$N$5:$P$15,2,'E-EX-Fun'!$D$19) -> °C
G11: =" "&'E-EX-Fun'!$G$31 -> R410A
B12: =INDEX(Language!$B$2:$M$41,8,Language!$A$1) -> Subcooling | D12: 0 | E12: =INDEX('E-EX-Fun'!$N$5:$P$15,3,'E-EX-Fun'!$D$19) -> K
B13: =INDEX(Language!$B$2:$M$41,11,Language!$A$1) -> System cooling capacity | D13: 35 | E13: =INDEX('E-EX-Fun'!$N$5:$P$15,4,'E-EX-Fun'!$D$19) -> kW | I13: Q0 = | J13: =D13&" "&E13 -> 35 kW
B15: =INDEX(Language!$B$2:$M$41,12,Language!$A$1) -> Pressure drop * | D15: 0 | E15: =INDEX('E-EX-Fun'!$N$5:$P$15,5,'E-EX-Fun'!$D$19) -> bar
B16: =INDEX(Language!$B$2:$M$41,13,Language!$A$1) -> *) Liquid line, filter drier, solenoid valve, sight glass, liquid distributor and evaporator
G19: Tliquid = | H19: =$D$10-$D$12&INDEX('E-EX-Fun'!$N$5:$P$15,2,'E-EX-Fun'!$D$19) -> 38°C | K19: To = | L19: =D8 -> 4 | M19: =E8 -> °C
G20: Dp = | H20: =H9-(L20+D15) -> 13.99599596 | I20: =INDEX('E-EX-Fun'!$N$5:$P$15,5,'E-EX-Fun'!$D$19) -> bar | K20: P0 = | L20: =('E-EX-Fun'!E37)*INDEX('E-EX-Fun'!$N$5:$P$15,9,'E-EX-Fun'!$D$19) -> 9.029201991 | M20: =INDEX('E-EX-Fun'!$N$5:$P$15,10,'E-EX-Fun'!$D$19) -> bara
B22: =INDEX(Language!$B$2:$M$41,17,Language!$A$1) -> High performance stepper motor ECV
L23: =CONCATENATE(INDEX(Language!$B$2:$M$41,23,Language!$A$1),$E$13,")") -> Maximum valve capacity at selected conditions (kW)
D25: =INDEX(Language!$B$2:$M$41,15,Language!$A$1) -> Type | F25: =INDEX(Language!$B$2:$M$41,18,Language!$A$1) -> Part No. | G25: MWP | I25: =INDEX(Language!$B$2:$M$41,16,Language!$A$1) -> Ratio | L25: =INDEX(Language!$B$2:$M$41,15,Language!$A$1) -> Type | O25: ='E-EX-Fun'!$G$31 -> R410A
D26: =INDEX('E-EX-Dat'!D10:D14,'E-EX-Fun'!D56) -> EX5-U21 | F26: =INDEX('E-EX-Dat'!$E$10:$E$14,'E-EX-Fun'!$D$56,1) -> 800 618 | G26: =INDEX('E-EX-Dat'!AD10:AD14,'E-EX-Fun'!D56)*INDEX('E-EX-Fun'!$N$5:$P$15,9,'E-EX-Fun'!$D$19) -> 60 | H26: =INDEX('E-EX-Fun'!$N$5:$P$15,5,'E-EX-Fun'!$D$19) -> bar | I26: =TEXT('E-EX-Fun'!E56,"0%")&" "&IF('E-EX-Fun'!E56>10%,"OK",INDEX(Language!$B$2:$M$41,36,Language!$A$1)) -> 60% OK | L26: ='E-EX-Dat'!D10 -> EX8-M21 | O26: =IF('E-EX-Dat'!B10="-","-",'E-EX-Dat'!B10*INDEX('E-EX-Fun'!$N$5:$P$15,8,'E-EX-Fun'!$D$19)) -> 1027.971449
D27: =INDEX('E-EX-Dat'!AB10:AB14,'E-EX-Fun'!D56) -> EX5-U31 | F27: =INDEX('E-EX-Dat'!$AC$10:$AC$14,'E-EX-Fun'!$D$56,1) -> 800 619 | G27: =INDEX('E-EX-Dat'!$AD$10:$AD$14,'E-EX-Fun'!$D$56)*INDEX('E-EX-Fun'!$N$5:$P$15,9,'E-EX-Fun'!$D$19) -> 60 | H27: =INDEX('E-EX-Fun'!$N$5:$P$15,5,'E-EX-Fun'!$D$19) -> bar | L27: ='E-EX-Dat'!D11 -> EX7-M21 | O27: =IF('E-EX-Dat'!B11="-","-",'E-EX-Dat'!B11*INDEX('E-EX-Fun'!$N$5:$P$15,8,'E-EX-Fun'!$D$19)) -> 385.3641751
L28: ='E-EX-Dat'!D12 -> EX6-M21 | O28: =IF('E-EX-Dat'!B12="-","-",'E-EX-Dat'!B12*INDEX('E-EX-Fun'!$N$5:$P$15,8,'E-EX-Fun'!$D$19)) -> 140.1324273
L29: ='E-EX-Dat'!D13 -> EX5-U21 | O29: =IF('E-EX-Dat'!B13="-","-",'E-EX-Dat'!B13*INDEX('E-EX-Fun'!$N$5:$P$15,8,'E-EX-Fun'!$D$19)) -> 58.05486275
L30: ='E-EX-Dat'!D14 -> EX4-M21 | O30: =IF('E-EX-Dat'!B14="-","-",'E-EX-Dat'!B14*INDEX('E-EX-Fun'!$N$5:$P$15,8,'E-EX-Fun'!$D$19)) -> 19.31825605
B31: =INDEX(Language!$B$2:$M$41,20,Language!$A$1) -> Standard stepper motor EXV (To > -35°C)
D32: =INDEX(Language!$B$2:$M$41,15,Language!$A$1) -> Type | F32: =INDEX(Language!$B$2:$M$41,18,Language!$A$1) -> Part No. | G32: MWP | I32: =INDEX(Language!$B$2:$M$41,16,Language!$A$1) -> Ratio | L32: =INDEX(Language!$B$2:$M$41,15,Language!$A$1) -> Type | O32: ='E-EX-Fun'!$G$31 -> R410A
D33: =INDEX('E-EX-Dat'!D15:D21,'E-EX-Fun'!D57) -> FX5-U07 | F33: =INDEX('E-EX-Dat'!E15:E21,'E-EX-Fun'!D57) -> 801 336 | G33: =INDEX('E-EX-Dat'!$AD$15:$AD$21,'E-EX-Fun'!$D$57)*INDEX('E-EX-Fun'!$N$5:$P$15,9,'E-EX-Fun'!$D$19) -> 46 | H33: =INDEX('E-EX-Fun'!$N$5:$P$15,5,'E-EX-Fun'!$D$19) -> bar | I33: =TEXT('E-EX-Fun'!E57,"0%")&" "&IF('E-EX-Fun'!E57>10%,"OK",INDEX(Language!$B$2:$M$41,36,Language!$A$1)) -> 58% OK | L33: ='E-EX-Dat'!D15 -> FX9-U17 | O33: =IF('E-EX-Dat'!B15="-","-",'E-EX-Dat'!B15*INDEX('E-EX-Fun'!$N$5:$P$15,8,'E-EX-Fun'!$D$19)) -> -
D34: =INDEX('E-EX-Dat'!AB15:AB21,'E-EX-Fun'!D57) -> - | F34: =INDEX('E-EX-Dat'!AC15:AC21,'E-EX-Fun'!D57) -> - | G34: =INDEX('E-EX-Dat'!$AD$15:$AD$21,'E-EX-Fun'!$D$57)*INDEX('E-EX-Fun'!$N$5:$P$15,9,'E-EX-Fun'!$D$19) -> 46 | H34: =INDEX('E-EX-Fun'!$N$5:$P$15,5,'E-EX-Fun'!$D$19) -> bar | L34: ='E-EX-Dat'!D16 -> FX8-M42 | O34: =IF('E-EX-Dat'!B16="-","-",'E-EX-Dat'!B16*INDEX('E-EX-Fun'!$N$5:$P$15,8,'E-EX-Fun'!$D$19)) -> 1101.0405
L35: ='E-EX-Dat'!D17 -> FX7.5-U11 | O35: =IF('E-EX-Dat'!B17="-","-",'E-EX-Dat'!B17*INDEX('E-EX-Fun'!$N$5:$P$15,8,'E-EX-Fun'!$D$19)) -> 700.6621366
L36: ='E-EX-Dat'!D18 -> FX7-U11 | O36: =IF('E-EX-Dat'!B18="-","-",'E-EX-Dat'!B18*INDEX('E-EX-Fun'!$N$5:$P$15,8,'E-EX-Fun'!$D$19)) -> 450.4256593
L37: ='E-EX-Dat'!D19 -> FX6.5-M28 | O37: =IF('E-EX-Dat'!B19="-","-",'E-EX-Dat'!B19*INDEX('E-EX-Fun'!$N$5:$P$15,8,'E-EX-Fun'!$D$19)) -> 220.2081001
L38: ='E-EX-Dat'!D20 -> FX6-M28 | O38: =IF('E-EX-Dat'!B20="-","-",'E-EX-Dat'!B20*INDEX('E-EX-Fun'!$N$5:$P$15,8,'E-EX-Fun'!$D$19)) -> 136.1286437
L39: ='E-EX-Dat'!D21 -> FX5-U07 | O39: =IF('E-EX-Dat'!B21="-","-",'E-EX-Dat'!B21*INDEX('E-EX-Fun'!$N$5:$P$15,8,'E-EX-Fun'!$D$19)) -> 60.05675457
B40: =INDEX(Language!$B$2:$M$400,20,Language!$A$1) -> Standard stepper motor EXV (To > -35°C)
D41: =INDEX(Language!$B$2:$M$41,15,Language!$A$1) -> Type | F41: =INDEX(Language!$B$2:$M$41,18,Language!$A$1) -> Part No. | G41: MWP | I41: =INDEX(Language!$B$2:$M$41,16,Language!$A$1) -> Ratio | L41: =INDEX(Language!$B$2:$M$41,15,Language!$A$1) -> Type | O41: ='E-EX-Fun'!$G$31 -> R410A
I42: =TEXT('E-EX-Fun'!E58,"0%")&" "&IF('E-EX-Fun'!E58>10%,"OK",INDEX(Language!$B$2:$M$41,36,Language!$A$1)) ->  | L42: ='E-EX-Dat'!D22 -> EXL-B1G | O42: =IF('E-EX-Dat'!B22="-","-",'E-EX-Dat'!B22*INDEX('E-EX-Fun'!$N$5:$P$15,8,'E-EX-Fun'!$D$19)) -> 23.02175592
D43: =INDEX('E-EX-Dat'!D22:D27,'E-EX-Fun'!D58) ->  | F43: =INDEX('E-EX-Dat'!E22:E27,'E-EX-Fun'!D58) ->  | G43: =INDEX('E-EX-Dat'!$AD$22:$AD$27,'E-EX-Fun'!$D$58)*INDEX('E-EX-Fun'!$N$5:$P$15,9,'E-EX-Fun'!$D$19) ->  | H43: =INDEX('E-EX-Fun'!$N$5:$P$15,5,'E-EX-Fun'!$D$19) -> bar | L43: ='E-EX-Dat'!D23 -> EXL-B1F | O43: =IF('E-EX-Dat'!B23="-","-",'E-EX-Dat'!B23*INDEX('E-EX-Fun'!$N$5:$P$15,8,'E-EX-Fun'!$D$19)) -> 17.01608046
L44: ='E-EX-Dat'!D24 -> EXM-B0E | O44: =IF('E-EX-Dat'!B24="-","-",'E-EX-Dat'!B24*INDEX('E-EX-Fun'!$N$5:$P$15,8,'E-EX-Fun'!$D$19)) -> 13.71295896
L45: ='E-EX-Dat'!D25 -> EXM-B0D | O45: =IF('E-EX-Dat'!B25="-","-",'E-EX-Dat'!B25*INDEX('E-EX-Fun'!$N$5:$P$15,8,'E-EX-Fun'!$D$19)) -> 11.61097255
L46: ='E-EX-Dat'!D26 -> EXM-B0B | O46: =IF('E-EX-Dat'!B26="-","-",'E-EX-Dat'!B26*INDEX('E-EX-Fun'!$N$5:$P$15,8,'E-EX-Fun'!$D$19)) -> 5.505202502
L47: ='E-EX-Dat'!D27 -> EXM-B0A | O47: =IF('E-EX-Dat'!B27="-","-",'E-EX-Dat'!B27*INDEX('E-EX-Fun'!$N$5:$P$15,8,'E-EX-Fun'!$D$19)) -> 1.801702637
B48: =INDEX(Language!$B$2:$M$41,21,Language!$A$1) -> PWM driven EXV
D49: =INDEX(Language!$B$2:$M$41,15,Language!$A$1) -> Type | F49: =INDEX(Language!$B$2:$M$41,18,Language!$A$1) -> Part No. | G49: MWP | I49: =INDEX(Language!$B$2:$M$41,16,Language!$A$1)&"*" -> Ratio * | L49: =INDEX(Language!$B$2:$M$41,15,Language!$A$1) -> Type | O49: ='E-EX-Fun'!$G$31 -> R410A
D50: ='E-EX-Dat'!$D$28 -> EX2-M00 | F50: ='E-EX-Dat'!E28 -> 801 091 | G50: ='E-EX-Dat'!$AD$28 -> 40 | H50: =INDEX('E-EX-Fun'!$N$5:$P$15,5,'E-EX-Fun'!$D$19) -> bar | N50: 1 | O50: 80% *
D51: ='E-EX-Dat'!$AB$28 -> EX2-I00 | F51: ='E-EX-Dat'!AC28 -> 801 090 | G51: ='E-EX-Dat'!$AD$28 -> 40 | H51: =INDEX('E-EX-Fun'!$N$5:$P$15,5,'E-EX-Fun'!$D$19) -> bar | L51: ='E-EX-Dat'!$D$37 -> EX2/CX2-I00/M00 | N51: =IF('E-EX-Dat'!B28="-","-",'E-EX-Dat'!B28*INDEX('E-EX-Fun'!$N$5:$P$15,8,'E-EX-Fun'!$D$19)) -> - | O51: =IF(N51="-","-",N51*0.8) -> -
D52: ='E-EX-Dat'!$D$39 -> CX2-I00 | F52: ='E-EX-Dat'!E39 -> 801 095 | G52: ='E-EX-Dat'!$AD$39 -> 90 | H52: =INDEX('E-EX-Fun'!$N$5:$P$15,5,'E-EX-Fun'!$D$19) -> bar | M52: ='E-EX-Dat'!$D29 -> EXO-004 | N52: =IF('E-EX-Dat'!B29="-","-",'E-EX-Dat'!B29*INDEX('E-EX-Fun'!$N$5:$P$15,8,'E-EX-Fun'!$D$19)) -> - | O52: =IF(N52="-","-",N52*0.8) -> -
C53: =INDEX(Language!$B$2:$M$41,37,Language!$A$1) -> Orifice | M53: ='E-EX-Dat'!$D30 -> EXO-003 | N53: =IF('E-EX-Dat'!B30="-","-",'E-EX-Dat'!B30*INDEX('E-EX-Fun'!$N$5:$P$15,8,'E-EX-Fun'!$D$19)) -> - | O53: -
I54: =TEXT('E-EX-Fun'!E59,"0%")&" "&IF('E-EX-Fun'!E59>10%,"OK",INDEX(Language!$B$2:$M$41,36,Language!$A$1)) ->  | M54: ='E-EX-Dat'!$D31 -> EXO-002 | N54: =IF('E-EX-Dat'!B31="-","-",'E-EX-Dat'!B31*INDEX('E-EX-Fun'!$N$5:$P$15,8,'E-EX-Fun'!$D$19)) -> - | O54: -
D55: =IF(INDEX('E-EX-Dat'!D28:D34,'E-EX-Fun'!D59)=D50,INDEX(Language!$B$2:$M$250,54,Language!$A$1),INDEX('E-EX-Dat'!D28:D34,'E-EX-Fun'!D59)) ->  | F55: =IF(INDEX('E-EX-Dat'!D28:D34,'E-EX-Fun'!D59)=D50,"-",INDEX('E-EX-Dat'!E28:E34,'E-EX-Fun'!D59)) ->  | M55: ='E-EX-Dat'!$D32 -> EXO-001 | N55: =IF('E-EX-Dat'!B32="-","-",'E-EX-Dat'!B32*INDEX('E-EX-Fun'!$N$5:$P$15,8,'E-EX-Fun'!$D$19)) -> - | O55: -
M56: ='E-EX-Dat'!$D33 -> EXO-000 | N56: =IF('E-EX-Dat'!B33="-","-",'E-EX-Dat'!B33*INDEX('E-EX-Fun'!$N$5:$P$15,8,'E-EX-Fun'!$D$19)) -> - | O56: -
B57: =INDEX(Language!$B$2:$M$250,28,Language!$A$1) -> ASC3 Coil | M57: ='E-EX-Dat'!$D34 -> EXO-00X | N57: =IF('E-EX-Dat'!B34="-","-",'E-EX-Dat'!B34*INDEX('E-EX-Fun'!$N$5:$P$15,8,'E-EX-Fun'!$D$19)) -> - | O57: -
E58: =INDEX(Language!$B$2:$M$41,15,Language!$A$1) -> Type | G58: =INDEX(Language!$B$2:$M$41,18,Language!$A$1) -> Part No. | L58: =INDEX(Language!$B$2:$M$400,324,Language!$A$1) -> * 20% overrsized valve for PWM function at highest load
D59: ='E-EX-Dat'!D35 -> ASC3-24V 50Hz | G59: ='E-EX-Dat'!E35 -> 801 079
D60: ='E-EX-Dat'!D36 -> ASC3-230V 50Hz | G60: ='E-EX-Dat'!E36 -> 801 077
B61: =Home!$D$43 -> 
B62: =INDEX(Language!$B$2:$M$251,250,Language!$A$1) -> The Controls Navigator is provided by Emerson Climate Technologies Europe to assist with the selection of mechanical and electronic controls. Emerson Climate Technologies cannot be held liable for issues arising from application of controls using information provided by this software.

Sheet E-EX-Fun (hidden)
A1: Functions, Formulas, Codes
B3: Languages | E3: Refrigerant Selection | M3: Convert to °C-bar-kW
B4: 1 | C4: =Language!B$2 -> English | E4: =INDEX(E5:E26,$G4) -> 2 | F4: =INDEX(F5:F26,$G4) -> 2 | G4: 1 | O4: tons | P4: tBTU/h
B5: 2 | C5: =Language!C$2 -> Deutsch | E5: 2 | F5: 2 | G5: R410A | N5: Metric | O5: Imperial | P5: Imperial
B6: 3 | C6: =Language!D$2 -> Français | E6: 3 | F6: 3 | G6: R134a | N6: °C | O6: °F | P6: °F
B7: 4 | C7: =Language!E$2 -> Italiano | E7: 4 | F7: 4 | G7: R22 | N7: K | O7: °F | P7: °F
B8: 5 | C8: =Language!F$2 -> Españiol | E8: 5 | F8: 6 | G8: R404A | N8: kW | O8: tons | P8: MBH (tBtu/hr)
B9: 6 | C9: =Language!G$2 -> Nederlands | E9: 7 | F9: 7 | G9: R507 | N9: bar | O9: Psid | P9: Psid
B10: 7 | C10: =Language!H$2 -> Polish | E10: 8 | F10: 9 | G10: R407C | M10: °C | N10: 0 | O10: 32 | P10: 32
B11: 8 | C11: =Language!I$2 -> Czech | E11: 10 | F11: 10 | G11: R23 | M11: K | N11: 1 | O11: 0.5555555556 | P11: 0.5555555556
B12: 9 | C12: =Language!J$2 -> Russian | E12: 11 | F12: 11 | G12: R124 | M12: kW | N12: 1 | O12: 0.2843453659 | P12: =0.94781*3600/1000 -> 3.412116
B13: 10 | C13: =Language!K$2 -> Chinese | E13: 12 | F13: 12 | G13: R744 | M13: bar | N13: 1 | O13: 14.5038 | P13: 14.5038
B14: 11 | C14: =Language!L$2 -> Japanese | E14: 13 | F14: 14 | G14: R407A | N14: bara | O14: Psia | P14: Psia
B15: 12 | C15: =Language!M$2 -> Română | E15: 15 | F15: 16 | G15: R407F | O15: 14.7 | P15: 14.7
E16: 17 | F16: 17 | G16: Reserv1 | J16: R1234yf
E17: 18 | F17: 18 | G17: R1234ze
B18: Units Conversion | E18: 19 | F18: 19 | G18: Reserv2 | J18: R290
C19: °C-bar-kW | D19: 1 | E19: 20 | F19: 21 | G19: Reserv3 | J19: RDR-5
C20: °F-Psi-tons | E20: 22 | F20: 23 | G20: Reserv4 | J20: RL41-2
C21: °F-Psi-MBH | E21: 24 | F21: 25 | G21: R448A
E22: 26 | F22: 27 | G22: R449A
E23: 28 | F23: 29 | G23: R450A
E24: 30 | F24: 31 | G24: R513A
A31: Expansion Valve Function | F31: Selected Refrigerant | G31: =INDEX($G$5:$G$26,$G$4) -> R410A
J32: Kt
D33: max | E33: =INDEX(SatPress!A2:U2,'E-EX-Fun'!E4) -> 68 | F33: °C | G33: bara | I33: TCmin | K33: TCmax | M33: Indirect range reference for Kt selection
B34: =INDEX(Language!$B$2:$M$41,6,Language!$A$1) -> Evaporating temperature | D34: Roundup | E34: =IF(E35<0,ROUNDDOWN(E35,0),ROUNDUP(E35,0)) -> 4 | G34: =(VLOOKUP(E34,SatPress!$A$7:$AE$213,$F$4,))/100000 -> 9.029201991 | H34: TEmax | I34: =HLOOKUP($E34,INDIRECT(M34),$I40) -> 1 | K34: =HLOOKUP($E34,INDIRECT(M34),$I38) -> 1 | M34: =CONCATENATE("'",$G$31,"'","!$A$52:$EB$180") -> 'R410A'!$A$52:$EB$180
D35: Value | E35: =IF($D$19=1,'E-Expans'!D8,('E-Expans'!D8-32)/1.8) -> 4 | F35: °C | G35: =IF($E34=$E36,G36,G36+((G34-G36)*($E35-$E36)/($E34-$E36))) -> 9.029201991 | I35: =IF($E34=$E36,I36,I36+((I34-I36)*($E35-$E36)/($E34-$E36))) -> 1 | J35: =IF(E43=E45,I35,I35+((K35-I35)*(E44-E45)/(E43-E45))) -> 1 | K35: =IF($E34=$E36,K36,K36+((K34-K36)*($E35-$E36)/($E34-$E36))) -> 1 | M35: =CONCATENATE("'",$G$31,"'","!$A$52:$A$180") -> 'R410A'!$A$52:$A$180
D36: Rounddown | E36: =IF(E35<0,ROUNDUP(E35,0),ROUNDDOWN(E35,0)) -> 4 | G36: =(VLOOKUP(E36,SatPress!$A$7:$AE$213,$F$4,))/100000 -> 9.029201991 | H36: TEmin | I36: =HLOOKUP($E36,INDIRECT(M34),$I40) -> 1 | K36: =HLOOKUP($E36,INDIRECT(M34),$I38) -> 1
B37: Po= | E37: =IF(E34=E36,G35,G36+((G34-G36)*(E35-E36)/(E34-E36))) -> 9.029201991 | F37: bara | I37: index from Temp to line nr.
B38: =INDEX(Language!$B$2:$M$41,7,Language!$A$1) -> Condensing temperature | D38: Roundup | E38: =IF(E39<0,ROUNDDOWN(E39,0),ROUNDUP(E39,0)) -> 38 | G38: =(VLOOKUP(E38,SatPress!$A$7:$AE$213,E$4,))/100000 -> 23.02519795 | I38: =MATCH(E43,INDIRECT($M$35)) -> 90
D39: Value | E39: =IF($D$19=1,'E-Expans'!D10,('E-Expans'!D10-32)/1.8) -> 38 | F39: °C | G39: =IF(E38=E40,G40,G40+((G38-G40)*(E39-E40)/(E38-E40))) -> 23.02519795
D40: Rounddown | E40: =IF(E39<0,ROUNDUP(E39,0),ROUNDDOWN(E39,0)) -> 38 | G40: =(VLOOKUP(E40,SatPress!$A$7:$AE$213,E$4,))/100000 -> 23.02519795 | I40: =MATCH(E45,INDIRECT($M$35)) -> 90
B41: Pc= | E41: =IF(E38=E40,G39,G40+((G38-G40)*(E39-E40)/(E38-E40))) -> 23.02519795 | F41: bara | J41: KDp
B42: =INDEX(Language!$B$2:$M$41,8,Language!$A$1) -> Subcooling | D42: DTsub: | E42: =IF($D$19=1,'E-Expans'!D12,('E-Expans'!D12)/1.8) -> 0 | F42: K | I42: Dp
B43: =INDEX(Language!$B$2:$M$41,9,Language!$A$1) -> Liquid temperature | D43: Roundup | E43: =ROUNDUP(E44,0) -> 38 | I43: =ROUNDUP(I44*2,0)/2 -> 14 | J43: =HLOOKUP(I43,'E-Delta_P'!$E$3:$EE$26,$G$4+2) -> 0.9989003956
D44: Value | E44: =E39-E42 -> 38 | F44: °C | I44: =G39-(G35+E53) -> 13.99599596 | J44: =IF($I43=$I45,J45,J45+((J43-J45)*($I44-$I45)/($I43-$I45))) -> 0.9990549844
D45: Rounddown | E45: =ROUNDDOWN(E44,0) -> 38 | I45: =ROUNDDOWN(I44*2,0)/2 -> 13.5 | J45: =HLOOKUP(I45,'E-Delta_P'!$E$3:$EE$26,$G$4+2) -> 1.018204519
D46: min | E46: =INDEX(SatPress!A1:U1,E4) -> -70 | F46: °C
B48: =INDEX(Language!$B$2:$M$41,10,Language!$A$1) -> Diff. pressure across valve | E48: ='E-Expans'!H20/INDEX('E-EX-Fun'!$N$5:$P$15,9,'E-EX-Fun'!$D$19) -> 13.99599596 | F48: bar | J48: =J35*J44 -> 0.9990549844 | K48: =1-J48 -> 0.0009450155627
B51: =INDEX(Language!$B$2:$M$41,11,Language!$A$1) -> System cooling capacity | D51: Q0: | E51: ='E-Expans'!D13/INDEX('E-EX-Fun'!$N$5:$P$15,8,'E-EX-Fun'!$D$19) -> 35 | F51: kW
B53: =INDEX(Language!$B$2:$M$41,12,Language!$A$1) -> Pressure drop * | E53: ='E-Expans'!D15/INDEX('E-EX-Fun'!$N$5:$P$15,9,'E-EX-Fun'!$D$19) -> 0 | F53: bar
B55: Find valves which fit best for selected capacity
B56: High performance EX | D56: =MATCH($E$51,'E-EX-Dat'!$B$10:$B$14,-1) -> 4 | E56: =$E$51/INDEX('E-EX-Dat'!$B$10:$B$14,D56) -> 0.6028780079
B57: High performance FX | D57: =MATCH($E$51,'E-EX-Dat'!$B$15:$B$21,-1) -> 7 | E57: =$E$51/INDEX('E-EX-Dat'!$B$15:$B$21,D57) -> 0.5827820743
B58: Standard EXM/L | D58: =MATCH($E$51,'E-EX-Dat'!$B$22:$B$27,-1) ->  | E58: =$E$51/INDEX('E-EX-Dat'!$B$22:$B$27,D58) -> 
B59: Stepper PWM | D59: =MATCH($E$51/0.8,'E-EX-Dat'!$B$28:$B$34,-1) ->  | E59: =$E$51/INDEX('E-EX-Dat'!$B$28:$B$34,D59) -> 
A61: Hot Gas Function | E61: =INDEX(E5:E24,$G$61) -> 24 | F61: =INDEX(F5:F24,$G$61) -> 25 | G61: 17 | H61: Refrigerant | J61: =INDEX(G5:G24,$G$61) -> R448A
J62: Kt
D63: max | E63: =INDEX(SatPress!A2:U2,E4) -> 68 | F63: °C | G63: bara | I63: TCmin | K63: TCmax
B64: =INDEX(Language!$B$2:$M$41,6,Language!$A$1) -> Evaporating temperature | D64: Roundup | E64: =IF(E65<0,ROUNDDOWN(E65,0),ROUNDUP(E65,0)) -> 0 | G64: =(VLOOKUP(E64,SatPress!$A$7:$AE$213,$F$61,))/100000 -> 5.108040304 | H64: TEmax | I64: =HLOOKUP($E64,INDIRECT(M34),$I70) -> 1.007 | K64: =HLOOKUP($E64,INDIRECT(M34),$I68) -> 1.007
D65: Value | E65: =IF($D$19=1,'E-HotGas'!D13,('E-HotGas'!D13-32)/1.8) -> 0 | F65: °C | G65: =IF($E64=$E66,G66,G66+((G64-G66)*($E65-$E66)/($E64-$E66))) -> 5.108040304 | I65: =IF($E64=$E66,I66,I66+((I64-I66)*($E65-$E66)/($E64-$E66))) -> 1.007 | J65: =IF(E73=E75,I65,I65+((K65-I65)*(E74-E75)/(E73-E75))) -> 1.007 | K65: =IF($E64=$E66,K66,K66+((K64-K66)*($E65-$E66)/($E64-$E66))) -> 1.007
D66: Rounddown | E66: =IF(E65<0,ROUNDUP(E65,0),ROUNDDOWN(E65,0)) -> 0 | G66: =(VLOOKUP(E66,SatPress!$A$7:$AE$213,$F$61,))/100000 -> 5.108040304 | H66: TEmin | I66: =HLOOKUP($E66,INDIRECT(M34),$I70) -> 1.007 | K66: =HLOOKUP($E66,INDIRECT(M34),$I68) -> 1.007
B67: Po= | E67: =IF(E64=E66,G65,G66+((G64-G66)*(E65-E66)/(E64-E66))) -> 5.108040304 | F67: bara | I67: index from Temp to line nr.
B68: =INDEX(Language!$B$2:$M$41,7,Language!$A$1) -> Condensing temperature | D68: Roundup | E68: =IF(E69<0,ROUNDDOWN(E69,0),ROUNDUP(E69,0)) -> 38 | G68: =(VLOOKUP(E68,SatPress!$A$7:$AE$213,E$61,))/100000 -> 17.73784812 | I68: =MATCH(E73,INDIRECT($M$35)) -> 90 | K68: =HLOOKUP($E73,'E-Delta_P'!$A$46:$CJ$66,$G$61+1) -> 27.51
D69: Value | E69: =IF($D$19=1,'E-HotGas'!E8,('E-HotGas'!E8-32)/1.8) -> 38 | F69: °C | G69: =IF(E68=E70,G70,G70+((G68-G70)*(E69-E70)/(E68-E70))) -> 17.73784812 | K69: =IF($E73=$E75,K70,K70+((K68-K70)*($E74-$E75)/($E73-$E75))) -> 27.51
D70: Rounddown | E70: =IF(E69<0,ROUNDUP(E69,0),ROUNDDOWN(E69,0)) -> 38 | G70: =(VLOOKUP(E70,SatPress!$A$7:$AE$213,E$61,))/100000 -> 17.73784812 | I70: =MATCH(E75,INDIRECT($M$35)) -> 90 | K70: =HLOOKUP($E75,'E-Delta_P'!$A$46:$CJ$66,$G$61+1) -> 27.51
B71: Pc= | E71: =G69 -> 17.73784812 | F71: bara | J71: KDp
B72: =INDEX(Language!$B$2:$M$41,8,Language!$A$1) -> Subcooling | D72: DTsub: | E72: =IF($D$19=1,'E-HotGas'!D15,('E-HotGas'!D15)/1.8) -> 0 | F72: K | I72: Dp
B73: =INDEX(Language!$B$2:$M$41,9,Language!$A$1) -> Liquid temperature | D73: Roundup | E73: =ROUNDUP(E74,0) -> 38 | I73: =ROUNDUP(I74*2,0)/2 -> 13 | J73: =HLOOKUP(I73,'E-Delta_P'!$E$3:$EE$24,$G$4+2) -> 1.037600633
D74: Value | E74: =E69-E72 -> 38 | F74: °C | I74: =G69-(G65+E83) -> 12.62980781 | J74: =IF($I73=$I75,J75,J75+((J73-J75)*($I74-$I75)/($I73-$I75))) -> 1.052814453
D75: Rounddown | E75: =ROUNDDOWN(E74,0) -> 38 | I75: =ROUNDDOWN(I74*2,0)/2 -> 12.5 | J75: =HLOOKUP(I75,'E-Delta_P'!$E$3:$EE$24,$G$4+2) -> 1.058149175
D76: min | E76: =INDEX(SatPress!A1:U1,E4) -> -70 | F76: °C
B78: =INDEX(Language!$B$2:$M$41,10,Language!$A$1) -> Diff. pressure across valve | E78: ='E-HotGas'!H24/INDEX('E-EX-Fun'!$N$5:$P$15,9,'E-EX-Fun'!$D$19) -> 0 | F78: bar
B81: =INDEX(Language!$B$2:$M$41,30,Language!$A$1) -> Bypass cooling capacity | D81: Q0: | E81: ='E-HotGas'!$E$10/INDEX('E-EX-Fun'!$N$5:$P$15,8,'E-EX-Fun'!$D$19) -> 120 | F81: kW
B83: =INDEX(Language!$B$2:$M$41,12,Language!$A$1) -> Pressure drop * | E83: ='E-HotGas'!D18/INDEX('E-EX-Fun'!$N$5:$P$15,9,'E-EX-Fun'!$D$19) -> 0 | F83: bar
B85: Find valves which fit best for selected capacity
B86: High performance | D86: =MATCH($E$81,'E-EX-Dat'!$B$58:$B$62,-1) -> 2 | E86: =$E$81/INDEX('E-EX-Dat'!$B$58:$B$62,D86) -> 0.78172942
B87: High performance
B88: Standard
B89: PWM
A91: Suction Function
J92: Kt
D93: max | E93: =INDEX(SatPress!A2:U2,E4) -> 68 | F93: °C | G93: bara | I93: TCmin | K93: TCmax | M93: Indirect range reference for Kt selection
B94: =INDEX(Language!$B$2:$M$41,6,Language!$A$1) -> Evaporating temperature | D94: Roundup | E94: =IF(E95<0,ROUNDDOWN(E95,0),ROUNDUP(E95,0)) -> 4 | G94: =(VLOOKUP(E94,SatPress!$A$7:$AE$213,$F$61,))/100000 -> 5.838119751 | H94: TEmax | I94: =HLOOKUP($E94,INDIRECT(M94),$I100) -> 6.394 | K94: =HLOOKUP($E94,INDIRECT(M94),$I98) -> 6.394 | M94: =CONCATENATE("'",$J$61,"'","!$A$252:$EB$320") -> 'R448A'!$A$252:$EB$320
D95: Value | E95: =IF($D$19=1,'E-Suction'!E8,('E-Suction'!E8-32)/1.8) -> 4 | F95: °C | G95: =IF($E94=$E96,G96,G96+((G94-G96)*($E95-$E96)/($E94-$E96))) -> 5.838119751 | I95: =IF($E94=$E96,I96,I96+((I94-I96)*($E95-$E96)/($E94-$E96))) -> 6.394 | J95: =IF(E103=E105,I95,I95+((K95-I95)*(E104-E105)/(E103-E105))) -> 6.394 | K95: =IF($E94=$E96,K96,K96+((K94-K96)*($E95-$E96)/($E94-$E96))) -> 6.394 | M95: =CONCATENATE("'",$J$61,"'","!$A$252:$A$320") -> 'R448A'!$A$252:$A$320
D96: Rounddown | E96: =IF(E95<0,ROUNDUP(E95,0),ROUNDDOWN(E95,0)) -> 4 | G96: =(VLOOKUP(E96,SatPress!$A$7:$AE$213,$F$61,))/100000 -> 5.838119751 | H96: TEmin | I96: =HLOOKUP($E96,INDIRECT(M94),$I100) -> 6.394 | K96: =HLOOKUP($E96,INDIRECT(M94),$I98) -> 6.394
B97: Po= | E97: =IF(E94=E96,G95,G96+((G94-G96)*(E95-E96)/(E94-E96))) -> 5.838119751 | F97: bara | I97: index from Temp to line nr.
B98: =INDEX(Language!$B$2:$M$41,7,Language!$A$1) -> Condensing temperature | D98: Roundup | E98: =IF(E99<0,ROUNDDOWN(E99,0),ROUNDUP(E99,0)) -> 38 | G98: =(VLOOKUP(E98,SatPress!$A$7:$AE$213,E$61,))/100000 -> 17.73784812 | I98: =MATCH(E103,INDIRECT($M$95)) -> 30 | K98: =HLOOKUP($E98,'E-Delta_P'!$A$46:$CI$66,$G$61+1) -> 27.51
D99: Value | E99: =IF($D$19=1,'E-Suction'!E10,('E-Suction'!E10-32)/1.8) -> 38 | F99: °C | G99: =IF(E98=E100,G100,G100+((G98-G100)*(E99-E100)/(E98-E100))) -> 17.73784812 | K99: =IF($E98=$E100,K100,K100+((K98-K100)*($E99-$E100)/($E98-$E100))) -> 27.51
D100: Rounddown | E100: =IF(E99<0,ROUNDUP(E99,0),ROUNDDOWN(E99,0)) -> 38 | G100: =(VLOOKUP(E100,SatPress!$A$7:$AE$213,E$61,))/100000 -> 17.73784812 | I100: =MATCH(E105,INDIRECT($M$95)) -> 30 | K100: =HLOOKUP($E100,'E-Delta_P'!$A$46:$CI$66,$G$61+1) -> 27.51
B101: Pc= | E101: =IF(E98=E100,G99,G100+((G98-G100)*(E99-E100)/(E98-E100))) -> 17.73784812 | F101: bara | J101: KDp
B102: =INDEX(Language!$B$2:$M$41,8,Language!$A$1) -> Subcooling | D102: DTsub: | E102: =IF($D$19=1,'E-Suction'!E12,('E-Suction'!E12)/1.8) -> 0 | F102: K | I102: Dp
B103: =INDEX(Language!$B$2:$M$41,9,Language!$A$1) -> Liquid temperature | D103: Roundup | E103: =ROUNDUP(E104,0) -> 38 | I103: =ROUNDUP(I104,1) -> 0.2 | J103: =HLOOKUP(I103,'E-Delta_P'!$F$70:$J$71,2) -> 1.15
D104: Value | E104: =E99-E102 -> 38 | F104: °C | H104: =G99-(G95+E113) -> 11.74972837 | I104: =E113 -> 0.15 | J104: =IF($I103=$I105,J105,J105+((J103-J105)*($I104-$I105)/($I103-$I105))) -> 0.985
D105: Rounddown | E105: =ROUNDDOWN(E104,0) -> 38 | I105: =ROUNDDOWN(I104,1) -> 0.1 | J105: =HLOOKUP(I105,'E-Delta_P'!$F$70:$J$71,2) -> 0.82
D106: min | E106: =INDEX(SatPress!A1:U1,E4) -> -70 | F106: °C
B108: =INDEX(Language!$B$2:$M$41,10,Language!$A$1) -> Diff. pressure across valve | E108: ='E-Suction'!I22/INDEX('E-EX-Fun'!$N$5:$P$15,9,'E-EX-Fun'!$D$19) -> 0 | F108: bar
B111: =INDEX(Language!$B$2:$M$41,11,Language!$A$1) -> System cooling capacity | D111: Q0: | E111: ='E-Suction'!E13/INDEX('E-EX-Fun'!$N$5:$P$15,8,'E-EX-Fun'!$D$19) -> 10 | F111: kW
B113: =INDEX(Language!$B$2:$M$41,12,Language!$A$1) -> Pressure drop * | E113: ='E-Suction'!E15/INDEX('E-EX-Fun'!$N$5:$P$15,9,'E-EX-Fun'!$D$19) -> 0.15 | F113: bar
B115: Find valves which fit best for selected capacity
B116: High performance | D116: =MATCH($E$111,'E-EX-Dat'!$B$70:$B$74,-1) -> 2 | E116: =$E$111/INDEX('E-EX-Dat'!$B$70:$B$74,D116) -> 0.723681615
B117: High performance
B118: Standard
B119: PWM
A121: Condensing Function
J122: Kt
D123: max | E123: =INDEX(SatPress!A2:U2,E4) -> 68 | F123: °C | G123: bara | I123: TCmin | K123: TCmax | M123: Indirect range reference for Kt selection
B124: =INDEX(Language!$B$2:$M$41,6,Language!$A$1) -> Evaporating temperature | D124: Roundup | E124: =IF(E125<0,ROUNDDOWN(E125,0),ROUNDUP(E125,0)) -> 4 | G124: =(VLOOKUP(E124,SatPress!$A$7:$AE$213,$F$61,))/100000 -> 5.838119751 | H124: TEmax | I124: =HLOOKUP($E124,INDIRECT($M$124),$I130) -> 42.9228 | K124: =HLOOKUP($E124,INDIRECT($M$124),$I128) -> 42.9228 | M124: =CONCATENATE("'",$J$61,"'","!$A$182:$EB$250") -> 'R448A'!$A$182:$EB$250
D125: Value | E125: =IF($D$19=1,'E-Condens'!D8,('E-Condens'!D64-32)/1.8) -> 4 | F125: °C | G125: =IF($E124=$E126,G126,G126+((G124-G126)*($E125-$E126)/($E124-$E126))) -> 5.838119751 | I125: =IF($E124=$E126,I126,I126+((I124-I126)*($E125-$E126)/($E124-$E126))) -> 42.9228 | J125: =IF(E133=E135,I125,I125+((K125-I125)*(E134-E135)/(E133-E135))) -> 42.9228 | K125: =IF($E124=$E126,K126,K126+((K124-K126)*($E125-$E126)/($E124-$E126))) -> 42.9228 | M125: =CONCATENATE("'",$J$61,"'","!$A$182:$A$250") -> 'R448A'!$A$182:$A$250
D126: Rounddown | E126: =IF(E125<0,ROUNDUP(E125,0),ROUNDDOWN(E125,0)) -> 4 | G126: =(VLOOKUP(E126,SatPress!$A$7:$AE$213,$F$61,))/100000 -> 5.838119751 | H126: TEmin | I126: =HLOOKUP($E126,INDIRECT($M$124),$I130) -> 42.9228 | K126: =HLOOKUP($E126,INDIRECT($M$124),$I128) -> 42.9228
B127: Po= | E127: =IF(E124=E126,G125,G126+((G124-G126)*(E125-E126)/(E124-E126))) -> 5.838119751 | F127: bara | I127: index from Temp to line nr.
B128: =INDEX(Language!$B$2:$M$41,7,Language!$A$1) -> Condensing temperature | D128: Roundup | E128: =IF(E129<0,ROUNDDOWN(E129,0),ROUNDUP(E129,0)) -> 38 | G128: =(VLOOKUP(E128,SatPress!$A$7:$AE$213,E$61,))/100000 -> 17.73784812 | I128: =MATCH(E133,INDIRECT($M$125)) -> 30 | K128: =HLOOKUP($E128,'E-Delta_P'!$A$46:$CJ$66,$G$61+1) -> 27.51
D129: Value | E129: =IF($D$19=1,'E-Condens'!D10,('E-Condens'!D59-32)/1.8) -> 38 | F129: °C | G129: =IF(E128=E130,G130,G130+((G128-G130)*(E129-E130)/(E128-E130))) -> 17.73784812 | K129: =IF($E128=$E130,K130,K130+((K128-K130)*($E129-$E130)/($E128-$E130))) -> 27.51
D130: Rounddown | E130: =IF(E129<0,ROUNDUP(E129,0),ROUNDDOWN(E129,0)) -> 38 | G130: =(VLOOKUP(E130,SatPress!$A$7:$AE$213,E$61,))/100000 -> 17.73784812 | I130: =MATCH(E135,INDIRECT($M$125)) -> 30 | K130: =HLOOKUP($E130,'E-Delta_P'!$A$46:$CJ$66,$G$61+1) -> 27.51
B131: Pc= | E131: =IF(E128=E130,G129,G130+((G128-G130)*(E129-E130)/(E128-E130))) -> 17.73784812 | F131: bara | J131: KDp
B132: =INDEX(Language!$B$2:$M$41,8,Language!$A$1) -> Subcooling | D132: DTsub: | E132: =IF($D$19=1,'E-Condens'!D12,('E-Condens'!D12)/1.8) -> 0 | F132: K | I132: Dp
B133: =INDEX(Language!$B$2:$M$41,9,Language!$A$1) -> Liquid temperature | D133: Roundup | E133: =ROUNDUP(E134,0) -> 38 | I133: =ROUNDUP(I134*2,0)/2 -> 12 | J133: =HLOOKUP(I133,'E-Delta_P'!$E$3:$EE$24,$G$4+2) -> 1.07996898
D134: Value | E134: =E129-E132 -> 38 | F134: °C | I134: =G129-(G125+E143) -> 11.54972837 | J134: =IF($I133=$I135,J135,J135+((J133-J135)*($I134-$I135)/($I133-$I135))) -> 1.100886616
D135: Rounddown | E135: =ROUNDDOWN(E134,0) -> 38 | I135: =ROUNDDOWN(I134*2,0)/2 -> 11.5 | J135: =HLOOKUP(I135,'E-Delta_P'!$E$3:$EE$24,$G$4+2) -> 1.103196776
D136: min | E136: =INDEX(SatPress!A1:U1,E4) -> -70 | F136: °C
B138: =INDEX(Language!$B$2:$M$41,10,Language!$A$1) -> Diff. pressure across valve | E138: ='E-Condens'!H25/INDEX('E-EX-Fun'!$N$5:$P$15,9,'E-EX-Fun'!$D$19) -> 11.54972837 | F138: bar
B141: =INDEX(Language!$B$2:$M$41,11,Language!$A$1) -> System cooling capacity | D141: Q0: | E141: ='E-Condens'!D13/INDEX('E-EX-Fun'!$N$5:$P$15,8,'E-EX-Fun'!$D$19) -> 10 | F141: kW
B143: =INDEX(Language!$B$2:$M$41,12,Language!$A$1) -> Pressure drop * | E143: ='E-Condens'!D15/INDEX('E-EX-Fun'!$N$5:$P$15,9,'E-EX-Fun'!$D$19) -> 0.35 | F143: bar
B145: Find valves which fit best for selected capacity
B146: High performance | D146: =MATCH($E$141,'E-EX-Dat'!$B$46:$B$50,-1) -> 4 | E146: =$E$141/INDEX('E-EX-Dat'!$B$46:$B$50,D146) -> 0.5834103914
B147: High performance
B148: Standard
B149: PWM

Sheet E-EX-Dat (hidden)
A1: Valve Data Expansion Valve Function
B2: Capacity at selected conditions | E2: Nom Conditions | F2: Nominal Valve Capacities: Expansion Function | AB2: Alternative Types
E3: Tcond | F3: 38 | G3: 38 | H3: 38 | I3: 38 | J3: 38 | K3: 38 | L3: ? | M3: 80 | N3: 10 | O3: 38 | P3: 38
E4: Tevap | F4: 4 | G4: 4 | H4: 4 | I4: 4 | J4: 4 | K4: 4 | L4: ? | M4: 20 | N4: -10 | O4: 4 | P4: 4
F6: R410A | G6: R134a | H6: R22 | I6: R404A | J6: R507 | K6: R407C | L6: R23 | M6: R124 | N6: R744 | O6: R407A | P6: R407F | Q6: Reserv1 | R6: R1234ze | S6: Reserv2 | T6: Reserv3 | U6: Reserv4 | V6: R448A | W6: R449A | X6: R450A | Y6: R513A
B7: ='E-EX-Fun'!E4 -> 2 | F7: 2 | G7: 3 | H7: 4 | I7: 5 | J7: 7 | K7: 8 | L7: 10 | M7: 11 | N7: 12 | O7: 13 | P7: 15 | Q7: 17 | R7: 18 | S7: 19 | T7: 20 | U7: 22 | V7: 24 | W7: 26 | X7: 28 | Y7: 30
B8: ='E-EX-Fun'!G31 -> R410A | F8: R410A | G8: R134a | H8: R22 | I8: R404A | J8: R507 | K8: R407C | L8: R23 | M8: R124 | N8: R744 | O8: R407A | P8: R407F | Q8: Reserv1 | R8: R1234ze | S8: Reserv2 | T8: Reserv3 | U8: Reserv4 | V8: R448A | W8: R449A | X8: R450A | Y8: R513A | AD8: MWP
A9: Row Nr. | D9: Type | E9: PCN | F9: Nominal Capacity per Datasheet | AB9: Type | AC9: PCN | AD9: bar
A10: 4 | B10: =IF(HLOOKUP($B$7,$F$7:$Z$34,$A10)="-","-",HLOOKUP($B$7,$F$7:$Z$34,$A10)/'E-EX-Fun'!$J$35/'E-EX-Fun'!$J$44) -> 1027.971449 | C10: Qmax oder Qn | D10: EX8-M21 | E10: 800 629 | F10: 1027 | G10: 680 | H10: 880 | I10: 613 | J10: 613 | K10: 925 | L10: - | M10: - | N10: 1440 | O10: 866 | P10: 984 | Q10: - | R10: 531.9 | S10: - | T10: - | U10: - | V10: 877.5 | W10: 857.3 | X10: 600.1 | Y10: 614.4 | AB10: EX8-U21 | AC10: 800 630 | AD10: 45
A11: 5 | B11: =IF(HLOOKUP($B$7,$F$7:$Z$34,$A11)="-","-",HLOOKUP($B$7,$F$7:$Z$34,$A11)/'E-EX-Fun'!$J$35/'E-EX-Fun'!$J$44) -> 385.3641751 | D11: EX7-M21 | E11: 800 625 | F11: 385 | G11: 255 | H11: 330 | I11: 230 | J11: 230 | K11: 347 | L11: - | M11: - | N11: 540 | O11: 325 | P11: 369 | Q11: - | R11: 199.5 | S11: - | T11: - | U11: - | V11: 329.1 | W11: 321.5 | X11: 225 | Y11: 230.4 | AB11: EX7-U31 | AC11: 800 626 | AD11: 60
A12: 6 | B12: =IF(HLOOKUP($B$7,$F$7:$Z$34,$A12)="-","-",HLOOKUP($B$7,$F$7:$Z$34,$A12)/'E-EX-Fun'!$J$35/'E-EX-Fun'!$J$44) -> 140.1324273 | D12: EX6-M21 | E12: 800 621 | F12: 140 | G12: 93 | H12: 120 | I12: 84 | J12: 84 | K12: 126 | L12: 130 | M12: 67 | N12: 197 | O12: 118 | P12: 134 | Q12: - | R12: 72.5 | S12: - | T12: - | U12: - | V12: 119.7 | W12: 116.9 | X12: 81.8 | Y12: 83.8 | AB12: EX6-M31 | AC12: 800 623 | AD12: 60
A13: 7 | B13: =IF(HLOOKUP($B$7,$F$7:$Z$34,$A13)="-","-",HLOOKUP($B$7,$F$7:$Z$34,$A13)/'E-EX-Fun'!$J$35/'E-EX-Fun'!$J$44) -> 58.05486275 | D13: EX5-U21 | E13: 800 618 | F13: 58 | G13: 39 | H13: 50 | I13: 35 | J13: 35 | K13: 53 | L13: 54 | M13: 28 | N13: 82 | O13: 49 | P13: 56 | Q13: - | R13: 30.2 | S13: - | T13: - | U13: - | V13: 49.9 | W13: 48.7 | X13: 34.1 | Y13: 34.9 | AB13: EX5-U31 | AC13: 800 619 | AD13: 60
A14: 8 | B14: =IF(HLOOKUP($B$7,$F$7:$Z$34,$A14)="-","-",HLOOKUP($B$7,$F$7:$Z$34,$A14)/'E-EX-Fun'!$J$35/'E-EX-Fun'!$J$44) -> 19.31825605 | D14: EX4-M21 | E14: 800 616 | F14: 19.3 | G14: 12.8 | H14: 16.5 | I14: 11.5 | J14: =I14 -> 11.5 | K14: 17.4 | L14: 17.8 | M14: 9.2 | N14: 27 | O14: 16.2 | P14: 18.4 | Q14: - | R14: 10 | S14: - | T14: - | U14: - | V14: 16.5 | W14: 16.1 | X14: 11.3 | Y14: 11.5 | AB14: EX4-U31 | AC14: 800 617 | AD14: 60
A15: 9 | B15: =IF(HLOOKUP($B$7,$F$7:$Z$34,$A15)="-","-",HLOOKUP($B$7,$F$7:$Z$34,$A15)/'E-EX-Fun'!$J$35/'E-EX-Fun'!$J$44) -> - | D15: FX9-U17 | E15: 801 345 | F15: - | G15: 1700 | H15: 2200 | I15: - | J15: - | K15: 2310 | L15: - | M15: - | N15: - | O15: - | P15: - | Q15: - | R15: 1329 | V15: - | W15: - | X15: 1159.3 | Y15: 1186.8 | AB15: - | AC15: - | AD15: 35
A16: 10 | B16: =IF(HLOOKUP($B$7,$F$7:$Z$34,$A16)="-","-",HLOOKUP($B$7,$F$7:$Z$34,$A16)/'E-EX-Fun'!$J$35/'E-EX-Fun'!$J$44) -> 1101.0405 | D16: FX8-M42 | E16: 801 344 | F16: 1100 | G16: 730 | H16: 944 | I16: - | J16: - | K16: 990 | L16: - | M16: - | N16: - | O16: - | P16: - | Q16: - | R16: 570.7 | V16: - | W16: - | X16: 497.8 | Y16: 509.6 | AB16: FX8-I13 | AC16: 801 343 | AD16: 46
A17: 11 | B17: =IF(HLOOKUP($B$7,$F$7:$Z$34,$A17)="-","-",HLOOKUP($B$7,$F$7:$Z$34,$A17)/'E-EX-Fun'!$J$35/'E-EX-Fun'!$J$44) -> 700.6621366 | D17: FX7.5-U11 | E17: 801 342 | F17: 700 | G17: 460 | H17: 600 | I17: - | J17: - | K17: 630 | L17: - | M17: - | N17: - | O17: - | P17: - | Q17: - | R17: 359.6 | V17: - | W17: - | X17: 313.7 | Y17: 321.1 | AB17: - | AC17: - | AD17: 46
A18: 12 | B18: =IF(HLOOKUP($B$7,$F$7:$Z$34,$A18)="-","-",HLOOKUP($B$7,$F$7:$Z$34,$A18)/'E-EX-Fun'!$J$35/'E-EX-Fun'!$J$44) -> 450.4256593 | D18: FX7-U11 | E18: 801 341 | F18: 450 | G18: 300 | H18: 390 | I18: - | J18: - | K18: 400 | L18: - | M18: - | N18: - | O18: - | P18: - | Q18: - | R18: 242.3 | V18: - | W18: - | X18: 211.4 | Y18: 216.4 | AB18: - | AC18: - | AD18: 46
A19: 13 | B19: =IF(HLOOKUP($B$7,$F$7:$Z$34,$A19)="-","-",HLOOKUP($B$7,$F$7:$Z$34,$A19)/'E-EX-Fun'!$J$35/'E-EX-Fun'!$J$44) -> 220.2081001 | D19: FX6.5-M28 | E19: 801 340 | F19: 220 | G19: 145 | H19: 190 | I19: - | J19: - | K19: 200 | L19: - | M19: - | N19: - | O19: - | P19: - | Q19: - | R19: 113.4 | V19: - | W19: - | X19: 98.9 | Y19: 101.2 | AB19: FX6.5-I09 | AC19: 801 339 | AD19: 46
A20: 14 | B20: =IF(HLOOKUP($B$7,$F$7:$Z$34,$A20)="-","-",HLOOKUP($B$7,$F$7:$Z$34,$A20)/'E-EX-Fun'!$J$35/'E-EX-Fun'!$J$44) -> 136.1286437 | D20: FX6-M28 | E20: 801 338 | F20: 136 | G20: 90 | H20: 116 | I20: - | J20: - | K20: 123 | L20: - | M20: - | N20: - | O20: - | P20: - | Q20: - | R20: 74.3 | V20: - | W20: - | X20: 64.8 | Y20: 66.3 | AB20: FX6-I09 | AC20: 801 337 | AD20: 46
A21: 15 | B21: =IF(HLOOKUP($B$7,$F$7:$Z$34,$A21)="-","-",HLOOKUP($B$7,$F$7:$Z$34,$A21)/'E-EX-Fun'!$J$35/'E-EX-Fun'!$J$44) -> 60.05675457 | D21: FX5-U07 | E21: 801 336 | F21: 60 | G21: 40 | H21: 52 | I21: - | J21: - | K21: 54 | L21: - | M21: - | N21: - | O21: - | P21: - | Q21: - | R21: 31.3 | V21: - | W21: - | X21: 27.3 | Y21: 27.9 | AB21: - | AC21: - | AD21: 46
A22: 16 | B22: =IF(HLOOKUP($B$7,$F$7:$Z$34,$A22)="-","-",HLOOKUP($B$7,$F$7:$Z$34,$A22)/'E-EX-Fun'!$J$35/'E-EX-Fun'!$J$44) -> 23.02175592 | D22: EXL-B1G | E22: 800 406M | F22: 23 | G22: 15.2 | H22: 19.7 | I22: - | J22: - | K22: 20.7 | L22: - | M22: - | N22: - | O22: - | P22: - | Q22: - | R22: - | V22: - | W22: - | X22: - | Y22: - | AD22: 45
A23: 17 | B23: =IF(HLOOKUP($B$7,$F$7:$Z$34,$A23)="-","-",HLOOKUP($B$7,$F$7:$Z$34,$A23)/'E-EX-Fun'!$J$35/'E-EX-Fun'!$J$44) -> 17.01608046 | D23: EXL-B1F | E23: 800 405M | F23: 17 | G23: 11.3 | H23: 14.6 | I23: - | J23: - | K23: 15.4 | L23: - | M23: - | N23: - | O23: - | P23: - | Q23: - | R23: - | V23: - | W23: - | X23: - | Y23: - | AD23: 45
A24: 18 | B24: =IF(HLOOKUP($B$7,$F$7:$Z$34,$A24)="-","-",HLOOKUP($B$7,$F$7:$Z$34,$A24)/'E-EX-Fun'!$J$35/'E-EX-Fun'!$J$44) -> 13.71295896 | D24: EXM-B0E | E24: 800 402M | F24: 13.7 | G24: 9.1 | H24: 11.8 | I24: - | J24: - | K24: 12.4 | L24: - | M24: - | N24: - | O24: - | P24: - | Q24: - | R24: - | V24: - | W24: - | X24: - | Y24: - | AD24: 45
A25: 19 | B25: =IF(HLOOKUP($B$7,$F$7:$Z$34,$A25)="-","-",HLOOKUP($B$7,$F$7:$Z$34,$A25)/'E-EX-Fun'!$J$35/'E-EX-Fun'!$J$44) -> 11.61097255 | D25: EXM-B0D | E25: 800 401M | F25: 11.6 | G25: 7.7 | H25: 9.9 | I25: - | J25: - | K25: 10.5 | L25: - | M25: - | N25: - | O25: - | P25: - | Q25: - | R25: - | V25: - | W25: - | X25: - | Y25: - | AD25: 45
A26: 20 | B26: =IF(HLOOKUP($B$7,$F$7:$Z$34,$A26)="-","-",HLOOKUP($B$7,$F$7:$Z$34,$A26)/'E-EX-Fun'!$J$35/'E-EX-Fun'!$J$44) -> 5.505202502 | D26: EXM-B0B | E26: 800 400M | F26: 5.5 | G26: 3.7 | H26: 4.8 | I26: - | J26: - | K26: 5 | L26: - | M26: - | N26: - | O26: - | P26: - | Q26: - | R26: - | V26: - | W26: - | X26: - | Y26: - | AD26: 45
A27: 21 | B27: =IF(HLOOKUP($B$7,$F$7:$Z$34,$A27)="-","-",HLOOKUP($B$7,$F$7:$Z$34,$A27)/'E-EX-Fun'!$J$35/'E-EX-Fun'!$J$44) -> 1.801702637 | D27: EXM-B0A | E27: 800 399M | F27: 1.8 | G27: 1.2 | H27: 1.6 | I27: - | J27: - | K27: 1.6 | L27: - | M27: - | N27: - | O27: - | P27: - | Q27: - | R27: - | V27: - | W27: - | X27: - | Y27: - | AD27: 45
A28: 22 | B28: =IF(HLOOKUP($B$7,$F$7:$Z$34,$A28)="-","-",HLOOKUP($B$7,$F$7:$Z$34,$A28)/'E-EX-Fun'!$J$35/'E-EX-Fun'!$J$44) -> - | D28: EX2-M00 | E28: 801 091 | F28: - | G28: 13.3 | H28: 17.2 | I28: 12.1 | J28: 12.1 | K28: 18.7 | L28: - | M28: - | N28: 28.2 | O28: 16.9 | P28: 19.2 | R28: 10.39673387 | V28: 17.15100226 | W28: 16.75538095 | X28: 11.72952509 | Y28: 12.00777912 | AB28: EX2-I00 | AC28: 801 090 | AD28: 40
A29: 23 | B29: =IF(HLOOKUP($B$7,$F$7:$Z$34,$A29)="-","-",HLOOKUP($B$7,$F$7:$Z$34,$A29)/'E-EX-Fun'!$J$35/'E-EX-Fun'!$J$44) -> - | D29: EXO-004 | E29: 801 089 | F29: - | G29: 8.5 | H29: 10.9 | I29: 7.7 | J29: 7.7 | K29: 11.8 | L29: - | M29: - | N29: 17.9 | O29: 10.7 | P29: 12.2 | R29: 6.588627856 | V29: 10.86894911 | W29: 10.6182356 | X29: 7.433245549 | Y29: 7.609580956
A30: 24 | B30: =IF(HLOOKUP($B$7,$F$7:$Z$34,$A30)="-","-",HLOOKUP($B$7,$F$7:$Z$34,$A30)/'E-EX-Fun'!$J$35/'E-EX-Fun'!$J$44) -> - | D30: EXO-003 | E30: 801 088 | F30: - | G30: 5.6 | H30: 7.2 | I30: 5.1 | J30: 5.1 | K30: 7.8 | L30: - | M30: - | N30: 11.8 | O30: 7.1 | P30: 8 | R30: 4.352121153 | V30: 7.179489317 | W30: 7.013880397 | X30: 4.910033757 | Y30: 5.026512191
A31: 25 | B31: =IF(HLOOKUP($B$7,$F$7:$Z$34,$A31)="-","-",HLOOKUP($B$7,$F$7:$Z$34,$A31)/'E-EX-Fun'!$J$35/'E-EX-Fun'!$J$44) -> - | D31: EXO-002 | E31: 801 087 | F31: - | G31: 3.3 | H31: 4.3 | I31: 3 | J31: 3 | K31: 4.7 | L31: - | M31: - | N31: 7 | O31: 4.2 | P31: 4.8 | R31: 2.599183466 | V31: 4.287750564 | W31: 4.188845237 | X31: 2.932381271 | Y31: 3.001944781
A32: 26 | B32: =IF(HLOOKUP($B$7,$F$7:$Z$34,$A32)="-","-",HLOOKUP($B$7,$F$7:$Z$34,$A32)/'E-EX-Fun'!$J$35/'E-EX-Fun'!$J$44) -> - | D32: EXO-001 | E32: 801 086 | F32: - | G32: 2.5 | H32: 3.2 | I32: 2.3 | J32: 2.3 | K32: 3.5 | L32: - | M32: - | N32: 5.2 | O32: 3.2 | P32: 3.6 | R32: 1.934276068 | V32: 3.190884141 | W32: 3.117280177 | X32: 2.182237225 | Y32: 2.234005418
A33: 27 | B33: =IF(HLOOKUP($B$7,$F$7:$Z$34,$A33)="-","-",HLOOKUP($B$7,$F$7:$Z$34,$A33)/'E-EX-Fun'!$J$35/'E-EX-Fun'!$J$44) -> - | D33: EXO-000 | E33: 801 085 | F33: - | G33: 1.2 | H33: 1.6 | I33: 1.1 | J33: 1.1 | K33: 1.7 | L33: - | M33: - | N33: 2.6 | O33: 1.6 | P33: 1.8 | R33: 0.967138034 | V33: 1.59544207 | W33: 1.558640088 | X33: 1.091118613 | Y33: 1.117002709
A34: 28 | B34: =IF(HLOOKUP($B$7,$F$7:$Z$34,$A34)="-","-",HLOOKUP($B$7,$F$7:$Z$34,$A34)/'E-EX-Fun'!$J$35/'E-EX-Fun'!$J$44) -> - | D34: EXO-00X | E34: 801 084 | F34: - | G34: 0.7 | H34: 0.9 | I34: 0.6 | J34: 0.6 | K34: 1 | L34: - | M34: - | N34: 1.5 | O34: 0.9 | P34: 1 | R34: 0.5440151441 | V34: 0.8974361646 | W34: 0.8767350497 | X34: 0.6137542196 | Y34: 0.6283140239
D35: ASC3-24V 50Hz | E35: 801 079 | F35: - | G35: - | H35: - | I35: - | J35: - | K35: - | L35: - | M35: - | N35: - | O35: - | P35: - | Q35: - | R35: - | S35: - | T35: - | U35: -
D36: ASC3-230V 50Hz | E36: 801 077 | F36: - | G36: - | H36: - | I36: - | J36: - | K36: - | L36: - | M36: - | N36: - | O36: - | P36: - | Q36: - | R36: - | S36: - | T36: - | U36: -
D37: EX2/CX2-I00/M00 | AD37: 40
D39: CX2-I00 | E39: 801 095 | AD39: 90
A41: Valve Data Regulator
F42: Nominal Valve Capacities: Condensing Pressure, Head Pressure Regulation
B44: Condensing Pressure
B45: Capacity (kW) | E45: Valve Constants
B46: =D46*'E-EX-Fun'!$J$125*SQRT('E-EX-Fun'!$E$143) -> 430.4193323 | D46: =F46*(1+E46) -> 16.95 | E46: =E$64 -> 0 | F46: 16.95 | H46: EX8-M21 / -U21
B47: =D47*'E-EX-Fun'!$J$125*SQRT('E-EX-Fun'!$E$143) -> 141.6955678 | D47: =F47*(1+E47) -> 5.58 | E47: =E$64 -> 0 | F47: 5.58 | H47: EX7-M21 / -U31
B48: =D48*'E-EX-Fun'!$J$125*SQRT('E-EX-Fun'!$E$143) -> 39.86774936 | D48: =F48*(1+E48) -> 1.57 | E48: =E$64 -> 0 | F48: 1.57 | H48: EX6-M21 / -M31
B49: =D49*'E-EX-Fun'!$J$125*SQRT('E-EX-Fun'!$E$143) -> 17.14059288 | D49: =F49*(1+E49) -> 0.675 | E49: =E$64 -> 0 | F49: 0.675 | H49: EX5-U21 / -U31
B50: =D50*'E-EX-Fun'!$J$125*SQRT('E-EX-Fun'!$E$143) -> 5.281841954 | D50: =F50*(1+E50) -> 0.208 | E50: =E$64 -> 0 | F50: 0.208 | H50: EX4-M21 / -U31
E52: 0
F54: Nominal Valve Capacities: Hot Gas Bypass Function
B56: Hot Gas Bypass
B57: Capacity (kW) | E57: Valve Constants
B58: =D58*'E-EX-Fun'!$K$69 -> 466.2945 | D58: =F58*(1+E58) -> 16.95 | E58: =E$64 -> 0 | F58: 16.95 | H58: EX8-M21 / -U21
B59: =D59*'E-EX-Fun'!$K$69 -> 153.5058 | D59: =F59*(1+E59) -> 5.58 | E59: =E$64 -> 0 | F59: 5.58 | H59: EX7-M21 / -U31
B60: =D60*'E-EX-Fun'!$K$69 -> 43.1907 | D60: =F60*(1+E60) -> 1.57 | E60: =E$64 -> 0 | F60: 1.57 | H60: EX6-M21 / -M31
B61: =D61*'E-EX-Fun'!$K$69 -> 18.56925 | D61: =F61*(1+E61) -> 0.675 | E61: =E$64 -> 0 | F61: 0.675 | H61: EX5-U21 / -U31
B62: =D62*'E-EX-Fun'!$K$69 -> 5.72208 | D62: =F62*(1+E62) -> 0.208 | E62: =E$64 -> 0 | F62: 0.208 | H62: EX4-M21 / -U31
E64: 0
F66: Nominal Valve Capacities: Suction Function
B68: Suction
B69: Capacity (kW) | E69: Valve Constants
B70: =D70*'E-EX-Fun'!$J$95*SQRT('E-EX-Fun'!$E$113) -> 41.9747351 | D70: =F70*(1+E70) -> 16.95 | E70: =I$71 -> 0 | F70: 16.95 | H70: EX8-M21 / -U21
B71: =D71*'E-EX-Fun'!$J$95*SQRT('E-EX-Fun'!$E$113) -> 13.81823138 | D71: =F71*(1+E71) -> 5.58 | E71: =I$71 -> 0 | F71: 5.58 | H71: EX7-M21 / -U31
B72: =D72*'E-EX-Fun'!$J$95*SQRT('E-EX-Fun'!$E$113) -> 3.887925316 | D72: =F72*(1+E72) -> 1.57 | E72: =I$71 -> 0 | F72: 1.57 | H72: EX6-M21 / -M31
D73: =F73*(1+E73) -> 0.675 | E73: =I$71 -> 0 | F73: 0.675 | H73: EX5-U21 / -U31
D74: =F74*(1+E74) -> 0.208 | E74: =I$71 -> 0 | F74: 0.208 | H74: EX4-M21 / -U31
A78: Controller Selection
D79: EC3-X33 | E79: 808 036 | F79: EC3-X32 | G79: 808 037
D80: EC3-D73 | E80: 808 041 | F80: EC3-D72 | G80: 808 042
D81: EXD-SH1 | E81: 807 855 | F81: EXD-SH2 | G81: 807 856
D83: EXD-HP1 | E83: 807 836M | F83: EXD-HP2 | G83: 807 837M
D86: EC2-352 | E86: 808 009 | F86: EC2-372 | G86: 808 011
D87: EC2-312 | E87: 808 005 | F87: EC2-392 | G87: 808 007
C90: Universal Driver Module without Terminal Kit | D90: EXD-U01 | E90: 804 750
C91: Terminal Kit for EXD-U01 | D91: K09-U00 | E91: 804 559
C92: Universal Driver Module with Terminal Kit | D92: EXD-U01 Contr.Kit | E92: 808 052
C93: Uninterruptible power supply | D93: ECP-024 | E93: 804 558
C94: Electrical terminal kit for ECP-024 | D94: K09-P00 | E94: 804 560
B96: =INDEX(Language!$B$2:$M$250,242,Language!$A$1) -> Cable assemblies
B97: =INDEX(Language!$B$2:$M$41,15,Language!$A$1) -> Type | D97: =INDEX(Language!$B$2:$M$41,18,Language!$A$1) -> Part No.
A98: 1 | B98: =INDEX(B99:B101,$A98) -> EXV-M15 | D98: =INDEX(D99:D101,$A98) -> 804 663
A99: 1,5 m | B99: EXV-M15 | D99: 804 663
A100: 3,0 m | B100: EXV-M30 | D100: 805 664
A101: 6,0 m | B101: EXV-M60 | D101: 806 665
B103: Spule + Kabel für EX2 / CX2

Sheet CO2Trans
B1: =INDEX(Language!$B$2:$M$41,2,Language!$A$1) -> Instruction: Select refrigerant and fill yellow fields with operating conditions.
B2: =INDEX(Language!$B$2:$M$41,3,Language!$A$1) -> #N/A error message: operating conditions, refrigerant or product out of range/specification.
E4: =INDEX(Language!$B$2:$M$41,4,Language!$A$1) -> Project:
E5: =INDEX(Language!$B$2:$M$299,87,Language!$A$1) -> Electrical control valves
E6: =INDEX(Language!$B$2:$M$299,256,Language!$A$1) -> Valves for R744 transcritical applications
B7: =INDEX(Language!$B$2:$M$299,5,Language!$A$1) -> Refrigerant | D7: R744
B8: =INDEX(Language!$B$2:$M$400,260,Language!$A$1) -> Gas cooler pressure | D8: 100 | E8: =INDEX('E-EX-Fun'!$N$5:$P$15,10,'E-EX-Fun'!$D$19) -> bara | F8: max | G8: =TEXT(CO2TransFun!E128*INDEX('E-EX-Fun'!$N$5:$P$15,9,'E-EX-Fun'!$D$19),"# ##0")&INDEX('E-EX-Fun'!$N$5:$P$15,10,'E-EX-Fun'!$D$19) -> 115bara | H8: =IF(CO2TransFun!$E$46>115,INDEX(Language!$B$2:$M$400,338,Language!$A$1),"") -> 
E9: =INDEX('E-EX-Fun'!$N$5:$P$15,5,'E-EX-Fun'!$D$19) -> bar | F9: min | G9: =TEXT(CO2TransFun!E132*INDEX('E-EX-Fun'!$N$5:$P$15,9,'E-EX-Fun'!$D$19),"# ##0")&INDEX('E-EX-Fun'!$N$5:$P$15,10,'E-EX-Fun'!$D$19) -> 75bara | H9: =IF(CO2TransFun!$E$46<75,INDEX(Language!$B$2:$M$400,340,Language!$A$1),"") -> 
B10: =INDEX(Language!$B$2:$M$400,259,Language!$A$1) -> Gas cooler outlet temperature | D10: 32 | E10: =INDEX('E-EX-Fun'!$N$5:$P$15,2,'E-EX-Fun'!$D$19) -> °C | F10: max | G10: =IF('E-EX-Fun'!$D$19=1,CO2TransFun!E133,(CO2TransFun!E133*1.8)+32)&INDEX('E-EX-Fun'!$N$5:$P$15,2,'E-EX-Fun'!$D$19) -> 45°C | H10: =IF(CO2TransFun!$E$51>45,INDEX(Language!$B$2:$M$400,337,Language!$A$1),"") -> 
F11: min | G11: =IF('E-EX-Fun'!$D$19=1,CO2TransFun!$E$137,(CO2TransFun!$E$137*1.8)+32)&INDEX('E-EX-Fun'!$N$5:$P$15,2,'E-EX-Fun'!$D$19) -> 31°C | H11: =IF(CO2TransFun!$E$51<31,INDEX(Language!$B$2:$M$400,339,Language!$A$1),"") -> 
B12: =INDEX(Language!$B$2:$M$400,345,Language!$A$1) -> Saturated temperature (receiver) | D12: 5 | E12: =INDEX('E-EX-Fun'!$N$5:$P$15,2,'E-EX-Fun'!$D$19) -> °C | F12: max | G12: =IF('E-EX-Fun'!$D$19=1,CO2TransFun!$E$138,(CO2TransFun!$E$138*1.8)+32)&INDEX('E-EX-Fun'!$N$5:$P$15,2,'E-EX-Fun'!$D$19) -> 10°C | H12: =IF(CO2TransFun!$E$140>10,INDEX(Language!$B$2:$M$400,337,Language!$A$1),"") -> 
F13: min | G13: =IF('E-EX-Fun'!$D$19=1,CO2TransFun!$E$142,(CO2TransFun!$E$142*1.8)+32)&INDEX('E-EX-Fun'!$N$5:$P$15,2,'E-EX-Fun'!$D$19) -> -5°C | H13: =IF(CO2TransFun!$E$140<-5,INDEX(Language!$B$2:$M$400,339,Language!$A$1),"") -> 
B14: =INDEX(Language!$B$2:$M$400,257,Language!$A$1) -> Saturated suction temperature (Rack) | D14: -6 | E14: =INDEX('E-EX-Fun'!$N$5:$P$15,2,'E-EX-Fun'!$D$19) -> °C | F14: max | G14: =IF('E-EX-Fun'!$D$19=1,CO2TransFun!$E$143,(CO2TransFun!$E$54*1.8)+32)&INDEX('E-EX-Fun'!$N$5:$P$15,2,'E-EX-Fun'!$D$19) -> -5°C | H14: =IF(CO2TransFun!$E$145>-5,INDEX(Language!$B$2:$M$400,337,Language!$A$1),"") -> 
F15: min | G15: =IF('E-EX-Fun'!$D$19=1,CO2TransFun!$E$147,(CO2TransFun!$E$58*1.8)+32)&INDEX('E-EX-Fun'!$N$5:$P$15,2,'E-EX-Fun'!$D$19) -> -15°C | H15: =IF(CO2TransFun!$E$145<-15,INDEX(Language!$B$2:$M$400,339,Language!$A$1),"") -> 
B16: =INDEX(Language!$B$2:$M$400,267,Language!$A$1) -> Transcritical rack cooling capacity | D16: 100 | E16: =INDEX('E-EX-Fun'!$N$5:$P$15,4,'E-EX-Fun'!$D$19) -> kW
F17: =INDEX(Language!$B$2:$M$400,261,Language!$A$1) -> Gas cooler
G18: =$D$8 -> 100 | H18: =$E$8 -> bara
B19: =INDEX(Language!$B$2:$M$400,342,Language!$A$1) -> This transcritical selection is based on theoretical calculation and not on valve capacity measurement. The selected valve size(s) shall be checked with rack system. | G19: =$D10 -> 32 | H19: =$E10 -> °C | J19: =INDEX(Language!$B$2:$M$400,344,Language!$A$1) -> 3rd party gas cooler controller
O20: =TEXT($D$16,"0,0"&" "&E$16) -> 100 kW
F21: =INDEX(Language!$B$2:$M$400,264,Language!$A$1) -> High pressure gas valve
J22: EXD-U01 | L22: EXD-U01
O26: =INDEX(Language!$B$2:$M$299,257,Language!$A$1) -> Saturated suction temperature (Rack)
G27: =INDEX(Language!$B$2:$M$299,266,Language!$A$1) -> Receiver | J27: =$D$12 -> 5 | K27: =$E$12 -> °C | M27: =INDEX(Language!$B$2:$M$299,265,Language!$A$1) -> Bypass valve
J28: =CO2TransFun!$G$56 -> 39.69466129 | K28: =INDEX('E-EX-Fun'!$N$5:$P$15,5,'E-EX-Fun'!$D$19) -> bar | P28: =$D$14 -> -6 | Q28: =$E$12 -> °C
M31: =CONCATENATE(INDEX(Language!$B$2:$M$400,23,Language!$A$1),E16,")") -> Maximum valve capacity at selected conditions (kW)
B32: =INDEX(Language!$B$2:$M$400,264,Language!$A$1) -> High pressure gas valve
D33: =INDEX(Language!$B$2:$M$41,15,Language!$A$1) -> Type | F33: =INDEX(Language!$B$2:$M$41,18,Language!$A$1) -> Part No. | G33: =INDEX(Language!$B$2:$M$41,16,Language!$A$1) -> Ratio | M33: =INDEX(Language!$B$2:$M$41,15,Language!$A$1) -> Type | P33: =INDEX(Language!$B$2:$M$41,18,Language!$A$1) -> Part No. | Q33: =CO2TransFun!$G$35 -> R744
C34: =INDEX(Language!$B$2:$M$400,346,Language!$A$1) -> No redundancy | M34: =CO2TransFun!B26 -> CX7-CO2 | P34: =CO2TransFun!C26 -> 801 996 | Q34: =CO2TransFun!D26*INDEX('E-EX-Fun'!$N$5:$P$15,8,'E-EX-Fun'!$D$19) -> 790
D35: =INDEX($M$34:$M$37,CO2TransFun!$D$110) -> CX6-CO2 | F35: =INDEX($P$34:$P$37,CO2TransFun!$D$110) -> 801 992 | G35: =TEXT(CO2TransFun!$E$110,"0%")&" "&IF(CO2TransFun!$E$110>10%,"OK",INDEX(Language!$B$2:$M$41,36,Language!$A$1)) -> 45% OK | M35: =CO2TransFun!B27 -> CX6-CO2 | P35: =CO2TransFun!C27 -> 801 992 | Q35: =CO2TransFun!D27*INDEX('E-EX-Fun'!$N$5:$P$15,8,'E-EX-Fun'!$D$19) -> 222
C36: =INDEX(Language!$B$2:$M$400,347,Language!$A$1) -> 100% redundancy | M36: =CO2TransFun!B28 -> CX5-CO2 | P36: =CO2TransFun!C28 -> 801 991 | Q36: =CO2TransFun!D28*INDEX('E-EX-Fun'!$N$5:$P$15,8,'E-EX-Fun'!$D$19) -> 96
D37: =INDEX($M$34:$M$37,CO2TransFun!$D$110) -> CX6-CO2 | F37: =INDEX($P$34:$P$37,CO2TransFun!$D$110) -> 801 992 | G37: =TEXT(CO2TransFun!$E$110,"0%")&" "&IF(CO2TransFun!$E$110>10%,"OK",INDEX(Language!$B$2:$M$41,36,Language!$A$1)) -> 45% OK | M37: =CO2TransFun!B29 -> CX4-CO2 | P37: =CO2TransFun!C29 -> 801 990 | Q37: =CO2TransFun!D29*INDEX('E-EX-Fun'!$N$5:$P$15,8,'E-EX-Fun'!$D$19) -> 29.5
D38: =INDEX($M$34:$M$37,CO2TransFun!$D$110) -> CX6-CO2 | F38: =INDEX($P$34:$P$37,CO2TransFun!$D$110) -> 801 992
C39: =INDEX(Language!$B$2:$M$400,348,Language!$A$1) -> Partial redundancy
D40: =INDEX(CO2TransFun!$F$26:$F$32,CO2TransFun!$D$112) -> CX4-CO2 | F40: =INDEX(CO2TransFun!$G$26:$G$32,CO2TransFun!$D$112) -> 801 990 | G40: =TEXT(CO2TransFun!$E$112,"0%")&" "&IF(CO2TransFun!$E$112>10%,"OK",INDEX(Language!$B$2:$M$41,36,Language!$A$1)) -> 80% OK
D41: =INDEX(CO2TransFun!$H$26:$H$32,CO2TransFun!$D$112) -> CX5-CO2 | F41: =INDEX(CO2TransFun!$I$26:$I$32,CO2TransFun!$D$112) -> 801 991
B43: =INDEX(Language!$B$2:$M$400,265,Language!$A$1) -> Bypass valve
C44: =INDEX(Language!$B$2:$M$400,346,Language!$A$1) -> No redundancy | M44: =INDEX(Language!$B$2:$M$41,15,Language!$A$1) -> Type | P44: =INDEX(Language!$B$2:$M$41,18,Language!$A$1) -> Part No. | Q44: =CO2TransFun!$G$35 -> R744
D45: =INDEX($M$45:$M$48,CO2TransFun!$D$217) -> EX6-M21 | F45: =INDEX($P$45:$P$48,CO2TransFun!$D$217) -> 800 621 | G45: =TEXT(CO2TransFun!$E$217,"0%")&" "&IF(CO2TransFun!$E$217>10%,"OK",INDEX(Language!$B$2:$M$41,36,Language!$A$1)) -> 81% OK | M45: =CO2TransFun!M26 -> EX8-M21 | P45: =CO2TransFun!N26 -> 800 629 | Q45: =CO2TransFun!P205*INDEX('E-EX-Fun'!$N$5:$P$15,8,'E-EX-Fun'!$D$19) -> 1331.643456
C46: =INDEX(Language!$B$2:$M$400,347,Language!$A$1) -> 100% redundancy | M46: =CO2TransFun!M27 -> EX7-M21 | P46: =CO2TransFun!N27 -> 800 625 | Q46: =CO2TransFun!P185*INDEX('E-EX-Fun'!$N$5:$P$15,8,'E-EX-Fun'!$D$19) -> 438.3817395
D47: =INDEX($M$45:$M$48,CO2TransFun!$D$218) -> EX6-M21 | F47: =INDEX($P$45:$P$48,CO2TransFun!$D$218) -> 800 621 | G47: =TEXT(CO2TransFun!$E$218,"0%")&" "&IF(CO2TransFun!$E$218>10%,"OK",INDEX(Language!$B$2:$M$41,36,Language!$A$1)) -> 41% OK | M47: =CO2TransFun!M28 -> EX6-M21 | P47: =CO2TransFun!N28 -> 800 621 | Q47: =CO2TransFun!P165*INDEX('E-EX-Fun'!$N$5:$P$15,8,'E-EX-Fun'!$D$19) -> 123.3439661
D48: =INDEX($M$45:$M$48,CO2TransFun!$D$218) -> EX6-M21 | F48: =INDEX($P$45:$P$48,CO2TransFun!$D$218) -> 800 621 | M48: =CO2TransFun!M29 -> EX5-U21 | P48: =CO2TransFun!N29 -> 800 618 | Q48: =CO2TransFun!P145*INDEX('E-EX-Fun'!$N$5:$P$15,8,'E-EX-Fun'!$D$19) -> 53.42286431
C49: =INDEX(Language!$B$2:$M$400,348,Language!$A$1) -> Partial redundancy
D50: =INDEX(CO2TransFun!Q26:Q32,CO2TransFun!$D$219) -> EX5-U21 | F50: =INDEX(CO2TransFun!R26:R32,CO2TransFun!$D$219) -> 800 618 | G50: =TEXT(CO2TransFun!$E$219,"0%")&" "&IF(CO2TransFun!$E$219>10%,"OK",INDEX(Language!$B$2:$M$41,36,Language!$A$1)) -> 94% OK
D51: =INDEX(CO2TransFun!S26:S32,CO2TransFun!$D$219) -> EX5-U21 | F51: =INDEX(CO2TransFun!T26:T32,CO2TransFun!$D$219) -> 800 618
B53: =INDEX(Language!$B$2:$M$41,19,Language!$A$1) -> Controller for ECV
D54: ='El Ctr-Dat'!B70 -> EXD-U01 | F54: ='El Ctr-Dat'!C70 -> 804 750 | G54: ='El Ctr-Dat'!$D$70 -> Universal driver
D55: ='El Ctr-Dat'!$B$71 -> K09-U00 | F55: ='El Ctr-Dat'!$C$71 -> 804 559 | G55: ='El Ctr-Dat'!$D$71 -> Terminal kit for EXD-U01
D56: ='El Ctr-Dat'!B72 -> ECP-024 | F56: ='El Ctr-Dat'!C72 -> 804 558 | G56: ='El Ctr-Dat'!$D$72 -> Uninterruptible power supply for up to two EXD-U01
D58: ='El Ctr-Dat'!B73 -> K09-P00 | F58: ='El Ctr-Dat'!C73 -> 804 560 | G58: ='El Ctr-Dat'!$D$73 -> Terminal kit for ECP-024
B60: =Home!$D$43 -> 
B61: =INDEX(Language!$B$2:$M$251,250,Language!$A$1) -> The Controls Navigator is provided by Emerson Climate Technologies Europe to assist with the selection of mechanical and electronic controls. Emerson Climate Technologies cannot be held liable for issues arising from application of controls using information provided by this software.

Sheet CO2TransFun (hidden)
A1: Functions, Formulas, Codes
E2: nicht benötigt. Arbeitet nur mit R744
B3: Languages | E3: Refrigerant Selection | M3: Convert to °C-bar-kW
B4: 1 | C4: =Language!B$2 -> English | E4: =INDEX(E5:E20,$G4) -> 12 | F4: =INDEX(F5:F20,$G4) -> 12 | G4: 9 | O4: tons | P4: tBTU/h
B5: 2 | C5: =Language!C$2 -> Deutsch | E5: 2 | F5: 2 | G5: R410A | N5: Metric | O5: Imperial | P5: Imperial
B6: 3 | C6: =Language!D$2 -> Français | E6: 3 | F6: 3 | G6: R134a | N6: °C | O6: °F | P6: °F
B7: 4 | C7: =Language!E$2 -> Italiano | E7: 4 | F7: 4 | G7: R22 | N7: K | O7: °F | P7: °F
B8: 5 | C8: =Language!F$2 -> Españiol | E8: 5 | F8: 6 | G8: R404A | N8: kW | O8: tons | P8: MBH (tBtu/hr)
B9: 6 | C9: =Language!G$2 -> Nederlands | E9: 7 | F9: 7 | G9: R507 | N9: bar | O9: Psid | P9: Psid
B10: 7 | C10: =Language!H$2 -> Polish | E10: 8 | F10: 9 | G10: R407C | M10: °C | N10: 0 | O10: 32 | P10: 32
B11: 8 | C11: =Language!I$2 -> Czech | E11: 10 | F11: 10 | G11: R23 | M11: K | N11: 1 | O11: 0.5555555556 | P11: 0.5555555556
B12: 9 | C12: =Language!J$2 -> Russian | E12: 11 | F12: 11 | G12: R124 | M12: kW | N12: 1 | O12: 0.284 | P12: =0.94781*3600/1000 -> 3.412116
B13: 10 | C13: =Language!K$2 -> Chinese | E13: 12 | F13: 12 | G13: R744 | M13: bar | N13: 1 | O13: 14.5038 | P13: 14.5038
B14: 11 | C14: =Language!L$2 -> Japanese | E14: 13 | F14: 14 | G14: R407A | N14: bara | O14: Psia | P14: Psia
B15: 12 | C15: =Language!M$2 -> Română | E15: 15 | F15: 16 | G15: R407F | O15: 14.7 | P15: 14.7
E16: 17 | F16: 17 | G16: R1234yf
E17: 18 | F17: 18 | G17: R1234zeP
B18: Units Conversion | E18: 19 | F18: 19 | G18: R290
C19: °C-bar-kW | D19: ='E-EX-Fun'!$D$19 -> 1 | E19: 20 | F19: 20 | G19: RDR-5
C20: °F-Psi-tons | E20: 21 | F20: 21 | G20: RL41-2
C21: °F-Psi-MBH
A23: Valve Data | D23: @sel.cond. | O23: @sel.cond.
B24: Type | C24: PCN | D24: Qn (kW) | F24: Type | G24: PCN | H24: Type | I24: PCN | J24: Type | K24: PCN | M24: Type | N24: PCN | O24: Qn (kW) | Q24: Type | R24: PCN | S24: Type | T24: PCN | U24: Type | V24: PCN
D25: 1 Valve | E25: 2 Valves | F25: 2 Valves | G25: 2 Valves | H25: 2 Valves | I25: 2 Valves | O25: 1 Valve | P25: 2 Valves | Q25: 2 Valves | R25: 2 Valves | S25: 2 Valves | T25: 2 Valves
B26: CX7-CO2 | C26: 801 996 | D26: =L98 -> 790 | E26: =D26*2 -> 1580 | F26: CX7-CO2 | G26: 801 996 | H26: CX7-CO2 | I26: 801 996 | J26: CX7-CO2F | K26: 802 003 | M26: EX8-M21 | N26: 800 629 | O26: =P205 -> 1331.643456 | P26: =O26*2 -> 2663.286912 | Q26: EX8-M21 | R26: 800 629 | S26: EX8-M21 | T26: 800 629 | U26: EX8-U21 | V26: 800 630
B27: CX6-CO2 | C27: 801 992 | D27: =L84 -> 222 | E27: =D27+D26 -> 1012 | F27: CX6-CO2 | G27: 801 992 | H27: CX7-CO2 | I27: 801 996 | J27: CX6-CO2F | K27: 802 002 | M27: EX7-M21 | N27: 800 625 | O27: =P185 -> 438.3817395 | P27: =O26+O27 -> 1770.025195 | Q27: EX8-M21 | R27: 800 629 | S27: EX7-M21 | T27: 800 625 | U27: EX7-I21 | V27: 800 624
B28: CX5-CO2 | C28: 801 991 | D28: =L70 -> 96 | E28: =D27*2 -> 444 | F28: CX6-CO2 | G28: 801 992 | H28: CX6-CO2 | I28: 801 992 | J28: CX5-CO2F | K28: 802 001 | M28: EX6-M21 | N28: 800 621 | O28: =P165 -> 123.3439661 | P28: =O27*2 -> 876.763479 | Q28: EX7-M21 | R28: 800 625 | S28: EX7-M21 | T28: 800 625 | U28: EX6-I21 | V28: 800 620
B29: CX4-CO2 | C29: 801 990 | D29: =L56 -> 29.5 | E29: =D28+D27 -> 318 | F29: CX5-CO2 | G29: 801 991 | H29: CX6-CO2 | I29: 801 992 | J29: CX4-CO2F | K29: 802 003 | M29: EX5-U21 | N29: 800 618 | O29: =P145 -> 53.42286431 | P29: =O27+O28 -> 561.7257056 | Q29: EX7-M21 | R29: 800 625 | S29: EX6-M21 | T29: 800 621
E30: =D28*2 -> 192 | F30: CX5-CO2 | G30: 801 991 | H30: CX5-CO2 | I30: 801 991 | P30: =O28*2 -> 246.6879323 | Q30: EX6-M21 | R30: 800 621 | S30: EX6-M21 | T30: 800 621
E31: =D29+D28 -> 125.5 | F31: CX4-CO2 | G31: 801 990 | H31: CX5-CO2 | I31: 801 991 | P31: =O28+O29 -> 176.7668304 | Q31: EX6-M21 | R31: 800 621 | S31: EX5-U21 | T31: 800 618
E32: =D29*2 -> 59 | F32: CX4-CO2 | G32: 801 990 | H32: CX4-CO2 | I32: 801 990 | P32: =O29*2 -> 106.8457286 | Q32: EX5-U21 | R32: 800 618 | S32: EX5-U21 | T32: 800 618
A35: HIgh Pressure Valve Capacity | F35: Selected Refrigerant | G35: R744
B37: Kapazitätsbereiche | F37: Ventilbereiche
B38: Rel. Startzeile des Bereichs: | F38: Rel. Startspalte des Bereichs | J38: Hinweis: | K38: Die Leistungsdaten sind auf 4 x 4 Tabellen verteilt:
B39: -5 | C39: 0 | F39: CX4 | G39: 1 | H39: 0 | K39: Horizontal CX4 ... CX7
B40: =B39+5 -> 0 | C40: 16 | F40: CX5 | G40: =G39+1 -> 2 | H40: 5 | K40: Vertikal: -5; 0; 5; 10°C Sat. suct. temp
B41: =B40+5 -> 5 | C41: 32 | F41: CX6 | G41: =G40+1 -> 3 | H41: 10 | J41: Bereich: | K41: CO2TransDat!D4:W67
B42: =B41+5 -> 10 | C42: 48 | F42: CX7 | G42: =G41+1 -> 4 | H42: 15
B43: 15 | C43: n/a
A44: CX4 | D44: max | E44: 115 | F44: bara
B45: =INDEX(Language!$B$2:$M$299,260,Language!$A$1) -> Gas cooler pressure | D45: Roundup | E45: =IF(E46=E47,E46,INDEX(CO2TransDat!$D$3:$H$3,MATCH($E$46,CO2TransDat!$D$3:$H$3,1)+1)) -> 105 | K45: =$E$45 -> 105 | O45: =$E$45 -> 105
D46: Value | E46: =CO2Trans!$D$8/INDEX('E-EX-Fun'!$N$5:$P$15,9,'E-EX-Fun'!$D$19) -> 100 | F46: bara
D47: Rounddown | E47: =INDEX(CO2TransDat!$D$3:$H$3,MATCH($E$46,CO2TransDat!$D$3:$H$3,1)) -> 95 | I47: =E47 -> 95 | M47: =I47 -> 95
D48: min | E48: 75 | I48: =MATCH(I47,CO2TransDat!$D$3:$H$3)+$H$39 -> 3 | K48: =MATCH(K45,CO2TransDat!$D$3:$H$3)+$H$39 -> 4 | M48: =MATCH(M47,CO2TransDat!$D$3:$H$3)+$H$39 -> 3 | O48: =MATCH(O45,CO2TransDat!$D$3:$H$3)+$H$39 -> 4
D49: max | E49: 45
B50: =INDEX(Language!$B$2:$M$299,259,Language!$A$1) -> Gas cooler outlet temperature | D50: Rounddown | E50: =IF(E51<0,ROUNDUP(E51,0),ROUNDDOWN(E51,0)) -> 32 | H50: =MATCH($E50,CO2TransDat!$C$4:$C$19)+I55 -> 34 | I50: =INDEX(INDIRECT($K$41),$H50,I$48) -> 29 | K50: =INDEX(INDIRECT($K$41),$H50,K$48) -> 30 | L50: =MATCH($E50,CO2TransDat!$C$4:$C$19)+M57 -> 34 | M50: =INDEX(INDIRECT($K$41),$L50,M$48) -> 29 | O50: =INDEX(INDIRECT($K$41),$L50,O$48) -> 30
D51: Value | E51: =IF($D$19=1,CO2Trans!$D$10,(CO2Trans!$D$10-32)/1.8) -> 32 | F51: °C | I51: =IF($E50=$E52,I52,I52+((I50-I52)*($E51-$E52)/($E50-$E52))) -> 29 | J51: =IF($E47=$E45,I51,I51+((K51-I51)*($E46-$E47)/($E45-$E47))) -> 29.5 | K51: =IF($E50=$E52,K52,K52+((K50-K52)*($E51-$E52)/($E50-$E52))) -> 30 | M51: =IF($E50=$E52,M52,M52+((M50-M52)*($E51-$E52)/($E50-$E52))) -> 29 | N51: =IF($E47=$E45,M51,M51+((O51-M51)*($E46-$E47)/($E45-$E47))) -> 29.5 | O51: =IF($E50=$E52,O52,O52+((O50-O52)*($E51-$E52)/($E50-$E52))) -> 30
D52: Roundup | E52: =IF(E51<0,ROUNDDOWN(E51,0),ROUNDUP(E51,0)) -> 32 | H52: =MATCH($E52,CO2TransDat!$C$4:$C$19)+I55 -> 34 | I52: =INDEX(INDIRECT($K$41),$H52,I$48) -> 29 | K52: =INDEX(INDIRECT($K$41),$H52,K$48) -> 30 | L52: =MATCH($E52,CO2TransDat!$C$4:$C$19)+M57 -> 34 | M52: =INDEX(INDIRECT($K$41),$L52,M$48) -> 29 | O52: =INDEX(INDIRECT($K$41),$L52,O$48) -> 30
D53: min | E53: 31
D54: max | E54: 10 | G54: bara
B55: =INDEX(Language!$B$2:$M$299,257,Language!$A$1) -> Saturated suction temperature (Rack) | D55: Rounddown | E55: =IF(E56<0,ROUNDUP(E56*2,-1)/2,ROUNDDOWN(E56*2,-1)/2) -> 5 | F55: =MATCH($E55,$B$39:$B$43) -> 3 | G55: =(VLOOKUP(E57,SatPress!$A$7:$U$213,E$4,))/100000 -> 39.69466129 | I55: =INDEX($C$39:$C$42,$F55) -> 32
D56: Value | E56: =IF($D$19=1,CO2Trans!$D$12,(CO2Trans!$D$12-32)/1.8) -> 5 | F56: °C | G56: =IF(E57=E55,G57,G57+((G55-G57)*(E56-E55)/(E57-E55))) -> 39.69466129 | H56: =(VLOOKUP(E56,SatPress!$A$7:$U$213,E$4,))/100000 -> 39.69466129 | L56: =IF(E57=E55,J51,J51+((N51-J51)*(E56-E55)/(E57-E55))) -> 29.5
D57: Roundup | E57: =IF(E56<0,ROUNDDOWN(E56*2,-1)/2,ROUNDUP(E56*2,-1)/2) -> 5 | F57: =MATCH($E57,$B$39:$B$43) -> 3 | G57: =(VLOOKUP(E55,SatPress!$A$7:$U$213,E$4,))/100000 -> 39.69466129 | M57: =INDEX($C$39:$C$42,$F57) -> 32
D58: min | E58: -5
A59: CX5 | D59: max | E59: 115 | F59: bara
B60: =INDEX(Language!$B$2:$M$299,260,Language!$A$1) -> Gas cooler pressure | D60: Roundup | E60: =IF(E61=E62,E61,INDEX(CO2TransDat!$D$3:$H$3,MATCH($E$46,CO2TransDat!$D$3:$H$3,1)+1)) -> 105 | K60: =$E$45 -> 105 | O60: =$E$45 -> 105
D61: Value | E61: =CO2Trans!$D$8/INDEX('E-EX-Fun'!$N$5:$P$15,9,'E-EX-Fun'!$D$19) -> 100 | F61: bara
D62: Rounddown | E62: =INDEX(CO2TransDat!$D$3:$H$3,MATCH($E$46,CO2TransDat!$D$3:$H$3,1)) -> 95 | I62: =E62 -> 95 | M62: =I62 -> 95
I63: =MATCH(I62,CO2TransDat!$D$3:$H$3)+$H$40 -> 8 | K63: =MATCH(K60,CO2TransDat!$D$3:$H$3)+$H$40 -> 9 | M63: =MATCH(M62,CO2TransDat!$D$3:$H$3)+$H$40 -> 8 | O63: =MATCH(O60,CO2TransDat!$D$3:$H$3)+$H$40 -> 9
B64: =INDEX(Language!$B$2:$M$299,259,Language!$A$1) -> Gas cooler outlet temperature | D64: Rounddown | E64: =IF(E65<0,ROUNDUP(E65,0),ROUNDDOWN(E65,0)) -> 32 | H64: =MATCH($E64,CO2TransDat!$C$4:$C$19)+I69 -> 34 | I64: =INDEX(INDIRECT($K$41),$H64,I$63) -> 94 | K64: =INDEX(INDIRECT($K$41),$H64,K$63) -> 98 | L64: =MATCH($E64,CO2TransDat!$C$4:$C$19)+M71 -> 34 | M64: =INDEX(INDIRECT($K$41),$L64,M$63) -> 94 | O64: =INDEX(INDIRECT($K$41),$L64,O$63) -> 98
D65: Value | E65: =IF($D$19=1,CO2Trans!$D$10,(CO2Trans!$D$10-32)/1.8) -> 32 | F65: °C | I65: =IF($E64=$E66,I66,I66+((I64-I66)*($E65-$E66)/($E64-$E66))) -> 94 | J65: =IF($E62=$E60,I65,I65+((K65-I65)*($E61-$E62)/($E60-$E62))) -> 96 | K65: =IF($E64=$E66,K66,K66+((K64-K66)*($E65-$E66)/($E64-$E66))) -> 98 | M65: =IF($E64=$E66,M66,M66+((M64-M66)*($E65-$E66)/($E64-$E66))) -> 94 | N65: =IF($E62=$E60,M65,M65+((O65-M65)*($E61-$E62)/($E60-$E62))) -> 96 | O65: =IF($E64=$E66,O66,O66+((O64-O66)*($E65-$E66)/($E64-$E66))) -> 98
D66: Roundup | E66: =IF(E65<0,ROUNDDOWN(E65,0),ROUNDUP(E65,0)) -> 32 | H66: =MATCH($E66,CO2TransDat!$C$4:$C$19)+I69 -> 34 | I66: =INDEX(INDIRECT($K$41),$H66,I$63) -> 94 | K66: =INDEX(INDIRECT($K$41),$H66,K$63) -> 98 | L66: =MATCH($E66,CO2TransDat!$C$4:$C$19)+M71 -> 34 | M66: =INDEX(INDIRECT($K$41),$L66,M$63) -> 94 | O66: =INDEX(INDIRECT($K$41),$L66,O$63) -> 98
G68: bara
B69: =INDEX(Language!$B$2:$M$299,257,Language!$A$1) -> Saturated suction temperature (Rack) | D69: Rounddown | E69: =IF(E70<0,ROUNDUP(E70*2,-1)/2,ROUNDDOWN(E70*2,-1)/2) -> 5 | F69: =MATCH($E69,$B$39:$B$43) -> 3 | G69: =(VLOOKUP(E71,SatPress!$A$7:$U$213,E$4,))/100000 -> 39.69466129 | I69: =INDEX($C$39:$C$42,$F69) -> 32
D70: Value | E70: =IF($D$19=1,CO2Trans!$D$12,(CO2Trans!$D$12-32)/1.8) -> 5 | F70: °C | G70: =IF(E71=E69,G71,G71+((G69-G71)*(E70-E69)/(E71-E69))) -> 39.69466129 | H70: =(VLOOKUP(E70,SatPress!$A$7:$U$213,E$4,))/100000 -> 39.69466129 | L70: =IF(E71=E69,J65,J65+((N65-J65)*(E70-E69)/(E71-E69))) -> 96
D71: Roundup | E71: =IF(E70<0,ROUNDDOWN(E70*2,-1)/2,ROUNDUP(E70*2,-1)/2) -> 5 | F71: =MATCH($E71,$B$39:$B$43) -> 3 | G71: =(VLOOKUP(E69,SatPress!$A$7:$U$213,E$4,))/100000 -> 39.69466129 | M71: =INDEX($C$39:$C$42,$F71) -> 32
A73: CX6 | D73: max | E73: 115 | F73: bara
B74: =INDEX(Language!$B$2:$M$299,260,Language!$A$1) -> Gas cooler pressure | D74: Roundup | E74: =IF(E75=E76,E75,INDEX(CO2TransDat!$D$3:$H$3,MATCH($E$46,CO2TransDat!$D$3:$H$3,1)+1)) -> 105 | K74: =$E$45 -> 105 | O74: =$E$45 -> 105
D75: Value | E75: =CO2Trans!$D$8/INDEX('E-EX-Fun'!$N$5:$P$15,9,'E-EX-Fun'!$D$19) -> 100 | F75: bara
D76: Rounddown | E76: =INDEX(CO2TransDat!$D$3:$H$3,MATCH($E$46,CO2TransDat!$D$3:$H$3,1)) -> 95 | I76: =E76 -> 95 | M76: =I76 -> 95
I77: =MATCH(I76,CO2TransDat!$D$3:$H$3)+$H$41 -> 13 | K77: =MATCH(K74,CO2TransDat!$D$3:$H$3)+$H$41 -> 14 | M77: =MATCH(M76,CO2TransDat!$D$3:$H$3)+$H$41 -> 13 | O77: =MATCH(O74,CO2TransDat!$D$3:$H$3)+$H$41 -> 14
B78: =INDEX(Language!$B$2:$M$299,259,Language!$A$1) -> Gas cooler outlet temperature | D78: Rounddown | E78: =IF(E79<0,ROUNDUP(E79,0),ROUNDDOWN(E79,0)) -> 32 | H78: =MATCH($E78,CO2TransDat!$C$4:$C$19)+I83 -> 34 | I78: =INDEX(INDIRECT($K$41),$H78,I$77) -> 218 | K78: =INDEX(INDIRECT($K$41),$H78,K$77) -> 226 | L78: =MATCH($E78,CO2TransDat!$C$4:$C$19)+M85 -> 34 | M78: =INDEX(INDIRECT($K$41),$L78,M$77) -> 218 | O78: =INDEX(INDIRECT($K$41),$L78,O$77) -> 226
D79: Value | E79: =IF($D$19=1,CO2Trans!$D$10,(CO2Trans!$D$10-32)/1.8) -> 32 | F79: °C | I79: =IF($E78=$E80,I80,I80+((I78-I80)*($E79-$E80)/($E78-$E80))) -> 218 | J79: =IF($E74=$E76,I79,I79+((K79-I79)*($E75-$E76)/($E74-$E76))) -> 222 | K79: =IF($E78=$E80,K80,K80+((K78-K80)*($E79-$E80)/($E78-$E80))) -> 226 | M79: =IF($E78=$E80,M80,M80+((M78-M80)*($E79-$E80)/($E78-$E80))) -> 218 | N79: =IF($E74=$E76,M79,M79+((O79-M79)*($E75-$E76)/($E74-$E76))) -> 222 | O79: =IF($E78=$E80,O80,O80+((O78-O80)*($E79-$E80)/($E78-$E80))) -> 226
D80: Roundup | E80: =IF(E79<0,ROUNDDOWN(E79,0),ROUNDUP(E79,0)) -> 32 | H80: =MATCH($E80,CO2TransDat!$C$4:$C$19)+I83 -> 34 | I80: =INDEX(INDIRECT($K$41),$H80,I$77) -> 218 | K80: =INDEX(INDIRECT($K$41),$H80,K$77) -> 226 | L80: =MATCH($E80,CO2TransDat!$C$4:$C$19)+M85 -> 34 | M80: =INDEX(INDIRECT($K$41),$L80,M$77) -> 218 | O80: =INDEX(INDIRECT($K$41),$L80,O$77) -> 226
G82: bara
B83: =INDEX(Language!$B$2:$M$299,257,Language!$A$1) -> Saturated suction temperature (Rack) | D83: Rounddown | E83: =IF(E84<0,ROUNDUP(E84*2,-1)/2,ROUNDDOWN(E84*2,-1)/2) -> 5 | F83: =MATCH($E83,$B$39:$B$43) -> 3 | G83: =(VLOOKUP(E85,SatPress!$A$7:$U$213,E$4,))/100000 -> 39.69466129 | I83: =INDEX($C$39:$C$42,$F83) -> 32
D84: Value | E84: =IF($D$19=1,CO2Trans!$D$12,(CO2Trans!$D$12-32)/1.8) -> 5 | F84: °C | G84: =IF(E85=E83,G85,G85+((G83-G85)*(E84-E83)/(E85-E83))) -> 39.69466129 | H84: =(VLOOKUP(E84,SatPress!$A$7:$U$213,E$4,))/100000 -> 39.69466129 | L84: =IF(E85=E83,J79,J79+((N79-J79)*(E84-E83)/(E85-E83))) -> 222
D85: Roundup | E85: =IF(E84<0,ROUNDDOWN(E84*2,-1)/2,ROUNDUP(E84*2,-1)/2) -> 5 | F85: =MATCH($E85,$B$39:$B$43) -> 3 | G85: =(VLOOKUP(E83,SatPress!$A$7:$U$213,E$4,))/100000 -> 39.69466129 | M85: =INDEX($C$39:$C$42,$F85) -> 32
A87: CX7 | D87: max | E87: 115 | F87: bara
B88: =INDEX(Language!$B$2:$M$299,260,Language!$A$1) -> Gas cooler pressure | D88: Roundup | E88: =IF(E89=E90,E89,INDEX(CO2TransDat!$D$3:$H$3,MATCH($E$46,CO2TransDat!$D$3:$H$3,1)+1)) -> 105 | K88: =$E$45 -> 105 | O88: =$E$45 -> 105
D89: Value | E89: =CO2Trans!$D$8/INDEX('E-EX-Fun'!$N$5:$P$15,9,'E-EX-Fun'!$D$19) -> 100 | F89: bara
D90: Rounddown | E90: =INDEX(CO2TransDat!$D$3:$H$3,MATCH($E$46,CO2TransDat!$D$3:$H$3,1)) -> 95 | I90: =E90 -> 95 | M90: =I90 -> 95
I91: =MATCH(I90,CO2TransDat!$D$3:$H$3)+$H$42 -> 18 | K91: =MATCH(K88,CO2TransDat!$D$3:$H$3)+$H$42 -> 19 | M91: =MATCH(M90,CO2TransDat!$D$3:$H$3)+$H$42 -> 18 | O91: =MATCH(O88,CO2TransDat!$D$3:$H$3)+$H$42 -> 19
B92: =INDEX(Language!$B$2:$M$299,259,Language!$A$1) -> Gas cooler outlet temperature | D92: Rounddown | E92: =IF(E93<0,ROUNDUP(E93,0),ROUNDDOWN(E93,0)) -> 32 | H92: =MATCH($E92,CO2TransDat!$C$4:$C$19)+I97 -> 34 | I92: =INDEX(INDIRECT($K$41),$H92,I$91) -> 775 | K92: =INDEX(INDIRECT($K$41),$H92,K$91) -> 805 | L92: =MATCH($E92,CO2TransDat!$C$4:$C$19)+M99 -> 34 | M92: =INDEX(INDIRECT($K$41),$L92,M$91) -> 775 | O92: =INDEX(INDIRECT($K$41),$L92,O$91) -> 805
D93: Value | E93: =IF($D$19=1,CO2Trans!$D$10,(CO2Trans!$D$10-32)/1.8) -> 32 | F93: °C | I93: =IF($E92=$E94,I94,I94+((I92-I94)*($E93-$E94)/($E92-$E94))) -> 775 | J93: =IF($E90=$E88,I93,I93+((K93-I93)*($E89-$E90)/($E88-$E90))) -> 790 | K93: =IF($E92=$E94,K94,K94+((K92-K94)*($E93-$E94)/($E92-$E94))) -> 805 | M93: =IF($E92=$E94,M94,M94+((M92-M94)*($E93-$E94)/($E92-$E94))) -> 775 | N93: =IF($E90=$E88,M93,M93+((O93-M93)*($E89-$E90)/($E88-$E90))) -> 790 | O93: =IF($E92=$E94,O94,O94+((O92-O94)*($E93-$E94)/($E92-$E94))) -> 805
D94: Roundup | E94: =IF(E93<0,ROUNDDOWN(E93,0),ROUNDUP(E93,0)) -> 32 | H94: =MATCH($E94,CO2TransDat!$C$4:$C$19)+I97 -> 34 | I94: =INDEX(INDIRECT($K$41),$H94,I$91) -> 775 | K94: =INDEX(INDIRECT($K$41),$H94,K$91) -> 805 | L94: =MATCH($E94,CO2TransDat!$C$4:$C$19)+M99 -> 34 | M94: =INDEX(INDIRECT($K$41),$L94,M$91) -> 775 | O94: =INDEX(INDIRECT($K$41),$L94,O$91) -> 805
G96: bara
B97: =INDEX(Language!$B$2:$M$299,257,Language!$A$1) -> Saturated suction temperature (Rack) | D97: Rounddown | E97: =IF(E98<0,ROUNDUP(E98*2,-1)/2,ROUNDDOWN(E98*2,-1)/2) -> 5 | F97: =MATCH($E97,$B$39:$B$43) -> 3 | G97: =(VLOOKUP(E99,SatPress!$A$7:$U$213,E$4,))/100000 -> 39.69466129 | I97: =INDEX($C$39:$C$42,$F97) -> 32
D98: Value | E98: =IF($D$19=1,CO2Trans!$D$12,(CO2Trans!$D$12-32)/1.8) -> 5 | F98: °C | G98: =IF(E99=E97,G99,G99+((G97-G99)*(E98-E97)/(E99-E97))) -> 39.69466129 | H98: =(VLOOKUP(E98,SatPress!$A$7:$U$213,E$4,))/100000 -> 39.69466129 | L98: =IF(E99=E97,J93,J93+((N93-J93)*(E98-E97)/(E99-E97))) -> 790
D99: Roundup | E99: =IF(E98<0,ROUNDDOWN(E98*2,-1)/2,ROUNDUP(E98*2,-1)/2) -> 5 | F99: =MATCH($E99,$B$39:$B$43) -> 3 | G99: =(VLOOKUP(E97,SatPress!$A$7:$U$213,E$4,))/100000 -> 39.69466129 | M99: =INDEX($C$39:$C$42,$F99) -> 32
B102: =INDEX(Language!$B$2:$M$41,10,Language!$A$1) -> Diff. pressure across valve | E102: ='E-Expans'!H20/INDEX('E-EX-Fun'!$N$5:$P$15,9,'E-EX-Fun'!$D$19) -> 13.99599596 | F102: bar
K104: CX7
B105: =INDEX(Language!$B$2:$M$41,11,Language!$A$1) -> System cooling capacity | D105: Q0: | E105: =CO2Trans!D16/INDEX('E-EX-Fun'!$N$5:$P$15,8,'E-EX-Fun'!$D$19) -> 100 | F105: kW | K105: CX6
K106: CX5
B107: =INDEX(Language!$B$2:$M$41,12,Language!$A$1) -> Pressure drop * | E107: ='E-Expans'!D15/INDEX('E-EX-Fun'!$N$5:$P$15,9,'E-EX-Fun'!$D$19) -> 0 | F107: bar | K107: CX4
B109: Find valves which fit best for selected capacity
B110: =INDEX(Language!$B$2:$M$400,346,Language!$A$1) -> No redundancy | D110: =MATCH($E$105,$D$26:$D$29,-1) -> 2 | E110: =$E$105/INDEX($D$26:$D$29,$D$110) -> 0.4504504505
B111: =INDEX(Language!$B$2:$M$400,347,Language!$A$1) -> 100% redundancy | D111: =D110 -> 2 | E111: =$E$105/(INDEX($D$26:$D$29,$D$110)*2) -> 0.2252252252
B112: =INDEX(Language!$B$2:$M$400,348,Language!$A$1) -> Partial redundancy | D112: =MATCH($E$105,E26:E32,-1) -> 6 | E112: =$E$105/INDEX($E$26:$E$32,$D$112) -> 0.796812749
A116: Bypass Valve Capacity | F116: Selected Refrigerant | G116: R744
B118: Kapazitätsbereiche Receiver | F118: Kapazitätsbereiche Rack | J118: Ventilbereiche
B119: Rel. Startzeile des Bereichs: | F119: Rel. Startzeile des Bereichs: | J119: Rel. Startspalte des Bereichs | P119: Hinweis: | Q119: Die Leistungsdaten sind auf 3 x 4 x 4 Tabellen verteilt:
B120: -5 | C120: 0 | F120: -15 | G120: 0 | J120: EX5 | K120: 1 | L120: 0 | Q120: Horizontal CX4 ... CX7
B121: =B120+5 -> 0 | C121: 16 | F121: -10 | G121: 64 | J121: EX6 | K121: =K120+1 -> 2 | L121: 5 | Q121: Vertikal: -5; 0; 5; 10°C Sat. temp receiver
B122: =B121+5 -> 5 | C122: 32 | F122: -5 | G122: 128 | J122: EX7 | K122: =K121+1 -> 3 | L122: 10 | Q122: Vertikal: -15; -10; -5°C Sat. suct. temp
B123: =B122+5 -> 10 | C123: 48 | J123: EX8 | K123: =K122+1 -> 4 | L123: 15 | Q123: Hinweis: -5 / -5°C ist nicht verfügbar n/a
B124: 15 | C124: 64 | P124: Bereich: | Q124: CO2TransDat!D73:W264
A128: =$M$29 -> EX5-U21 | D128: max | E128: 115 | F128: bara | I128: Rel Spalte Gaskühler-Druck + Ventil
B129: =INDEX(Language!$B$2:$M$299,260,Language!$A$1) -> Gas cooler pressure | D129: Roundup | E129: =IF(E130=E131,E130,INDEX(CO2TransDat!$D$3:$H$3,MATCH($E$130,CO2TransDat!$D$3:$H$3,1)+1)) -> 105 | K129: =$E$45 -> 105 | O129: =$E$45 -> 105 | S129: =$E$45 -> 105 | W129: =$E$45 -> 105
D130: Value | E130: =CO2Trans!$D$8/INDEX('E-EX-Fun'!$N$5:$P$15,9,'E-EX-Fun'!$D$19) -> 100 | F130: bara
D131: Rounddown | E131: =INDEX(CO2TransDat!$D$3:$H$3,MATCH($E$130,CO2TransDat!$D$3:$H$3,1)) -> 95 | I131: =E131 -> 95 | M131: =I131 -> 95 | Q131: =M131 -> 95 | U131: =Q131 -> 95
D132: min | E132: 75 | F132: bara
D133: max | E133: 45 | F133: °C | I133: =MATCH(I131,CO2TransDat!$D$72:$H$72)+$L$120 -> 3 | K133: =MATCH(K129,CO2TransDat!$D$72:$H$72)+$L$120 -> 4 | M133: =MATCH(M131,CO2TransDat!$D$72:$H$72)+$L$120 -> 3 | O133: =MATCH(O129,CO2TransDat!$D$72:$H$72)+$L$120 -> 4 | Q133: =MATCH(Q131,CO2TransDat!$D$72:$H$72)+$L$120 -> 3 | S133: =MATCH(S129,CO2TransDat!$D$72:$H$72)+$L$120 -> 4 | U133: =MATCH(U131,CO2TransDat!$D$72:$H$72)+$L$120 -> 3 | W133: =MATCH(W129,CO2TransDat!$D$72:$H$72)+$L$120 -> 4
B134: =INDEX(Language!$B$2:$M$299,259,Language!$A$1) -> Gas cooler outlet temperature | D134: Rounddown | E134: =IF(E135<0,ROUNDUP(E135,0),ROUNDDOWN(E135,0)) -> 32 | G134: =MATCH($E134,CO2TransDat!$C$73:$C$88) -> 2 | H134: =$G134+$H$139+$H$144 -> 98 | I134: =INDEX(INDIRECT($Q$124),$H134,I$133) -> 54.39068973 | K134: =INDEX(INDIRECT($Q$124),$H134,K$133) -> 60.24274195 | L134: =$G134+$H$141+$H$144 -> 98 | M134: =INDEX(INDIRECT($Q$124),$L134,M$133) -> 54.39068973 | O134: =INDEX(INDIRECT($Q$124),$L134,O$133) -> 60.24274195 | P134: =$G134+$H$139+$H$146 -> 162 | Q134: =INDEX(INDIRECT($Q$124),$P134,Q$133) -> 49.76911257 | S134: =INDEX(INDIRECT($Q$124),$P134,S$133) -> 55.12969029 | T134: =$G134+$H$141+$H$146 -> 162 | U134: =INDEX(INDIRECT($Q$124),$T134,U$133) -> 49.76911257 | W134: =INDEX(INDIRECT($Q$124),$T134,W$133) -> 55.12969029
D135: Value | E135: =IF($D$19=1,CO2Trans!$D$10,(CO2Trans!$D$10-32)/1.8) -> 32 | F135: °C | I135: =IF($E134=$E136,I136,I136+((I134-I136)*($E135-$E136)/($E134-$E136))) -> 54.39068973 | J135: =IF($E131=$E129,I135,I135+((K135-I135)*($E130-$E131)/($E129-$E131))) -> 57.31671584 | K135: =IF($E134=$E136,K136,K136+((K134-K136)*($E135-$E136)/($E134-$E136))) -> 60.24274195 | M135: =IF($E134=$E136,M136,M136+((M134-M136)*($E135-$E136)/($E134-$E136))) -> 54.39068973 | N135: =IF($E131=$E129,M135,M135+((O135-M135)*($E130-$E131)/($E129-$E131))) -> 57.31671584 | O135: =IF($E134=$E136,O136,O136+((O134-O136)*($E135-$E136)/($E134-$E136))) -> 60.24274195 | Q135: =IF($E134=$E136,Q136,Q136+((Q134-Q136)*($E135-$E136)/($E134-$E136))) -> 49.76911257 | R135: =IF($E131=$E129,Q135,Q135+((S135-Q135)*($E130-$E131)/($E129-$E131))) -> 52.44940143 | S135: =IF($E134=$E136,S136,S136+((S134-S136)*($E135-$E136)/($E134-$E136))) -> 55.12969029 | U135: =IF($E134=$E136,U136,U136+((U134-U136)*($E135-$E136)/($E134-$E136))) -> 49.76911257 | V135: =IF($E131=$E129,U135,U135+((W135-U135)*($E130-$E131)/($E129-$E131))) -> 52.44940143 | W135: =IF($E134=$E136,W136,W136+((W134-W136)*($E135-$E136)/($E134-$E136))) -> 55.12969029
D136: Roundup | E136: =IF(E135<0,ROUNDDOWN(E135,0),ROUNDUP(E135,0)) -> 32 | G136: =MATCH($E136,CO2TransDat!$C$73:$C$88) -> 2 | H136: =$G136+$H$139+$H$144 -> 98 | I136: =INDEX(INDIRECT($Q$124),$H136,I$133) -> 54.39068973 | K136: =INDEX(INDIRECT($Q$124),$H136,K$133) -> 60.24274195 | L136: =$G136+$H$141+$H$144 -> 98 | M136: =INDEX(INDIRECT($Q$124),$L136,M$133) -> 54.39068973 | O136: =INDEX(INDIRECT($Q$124),$L136,O$133) -> 60.24274195 | P136: =$G136+$H$139+$H$146 -> 162 | Q136: =INDEX(INDIRECT($Q$124),$P136,Q$133) -> 49.76911257 | S136: =INDEX(INDIRECT($Q$124),$P136,S$133) -> 55.12969029 | T136: =$G136+$H$141+$H$146 -> 162 | U136: =INDEX(INDIRECT($Q$124),$T136,U$133) -> 49.76911257 | W136: =INDEX(INDIRECT($Q$124),$T136,W$133) -> 55.12969029
D137: min | E137: 31 | F137: °C
D138: max | E138: 10 | F138: °C | G138: bara
B139: =INDEX(Language!$B$2:$M$400,345,Language!$A$1) -> Saturated temperature (receiver) | D139: Rounddown | E139: =IF(E140<0,ROUNDUP(E140*2,-1)/2,ROUNDDOWN(E140*2,-1)/2) -> 5 | F139: =MATCH($E139,$B$120:$B$124) -> 3 | G139: =(VLOOKUP(E141,SatPress!$A$7:$U$213,E$4,))/100000 -> 39.69466129 | H139: =INDEX($C$120:$C$124,$F139) -> 32 | Q139: =INDEX($C$120:$C$124,$F139) -> 32
D140: Value | E140: =IF($D$19=1,CO2Trans!$D$12,(CO2Trans!$D$12-32)/1.8) -> 5 | F140: °C | G140: =IF(E141=E139,G141,G141+((G139-G141)*(E140-E139)/(E141-E139))) -> 39.69466129 | H140: =(VLOOKUP(E140,SatPress!$A$7:$U$213,E$4,))/100000 -> 39.69466129 | L140: =IF(E141=E139,J135,J135+((N135-J135)*(E140-E139)/(E141-E139))) -> 57.31671584 | P140: =H140 -> 39.69466129 | T140: =IF(E141=E139,R135,R135+((V135-R135)*(E140-E139)/(E141-E139))) -> 52.44940143
D141: Roundup | E141: =IF(E140<0,ROUNDDOWN(E140*2,-1)/2,ROUNDUP(E140*2,-1)/2) -> 5 | F141: =MATCH($E141,$B$39:$B$43) -> 3 | G141: =(VLOOKUP(E139,SatPress!$A$7:$U$213,E$4,))/100000 -> 39.69466129 | H141: =INDEX($C$120:$C$124,$F141) -> 32 | M141: =INDEX($C$120:$C$124,$F141) -> 32 | U141: =INDEX($C$120:$C$124,$F141) -> 32
D142: min | E142: -5 | F142: °C
D143: max | E143: -5 | F143: °C | G143: bara
B144: =INDEX(Language!$B$2:$M$400,257,Language!$A$1) -> Saturated suction temperature (Rack) | D144: Rounddown | E144: =IF(E145<0,ROUNDUP(E145*2,-1)/2,ROUNDDOWN(E145*2,-1)/2) -> -10 | F144: =MATCH($E144,$F$120:$F$122) -> 2 | G144: =(VLOOKUP(E146,SatPress!$A$7:$U$213,E$4,))/100000 -> 30.45876007 | H144: =INDEX($G$120:$G$122,$F144) -> 64 | I144: =INDEX($G$120:$G$122,$F144) -> 64
D145: Value | E145: =IF($D$19=1,CO2Trans!$D$14,(CO2Trans!$D$14-32)/1.8) -> -6 | F145: °C | G145: =IF(E146=E144,G146,G146+((G144-G146)*(E145-E144)/(E146-E144))) -> 29.66436256 | H145: =(VLOOKUP(E145,SatPress!$A$7:$U$213,E$4,))/100000 -> 29.63162011 | P145: =IF(E146=E144,L140,L140+((T140-L140)*(E145-E144)/(E146-E144))) -> 53.42286431
D146: Roundup | E146: =IF(E145<0,ROUNDDOWN(E145*2,-1)/2,ROUNDUP(E145*2,-1)/2) -> -5 | F146: =MATCH($E146,$F$120:$F$122) -> 3 | G146: =(VLOOKUP(E144,SatPress!$A$7:$U$213,E$4,))/100000 -> 26.48677255 | H146: =INDEX($G$120:$G$122,$F146) -> 128 | Q146: =INDEX($G$120:$G$122,$F146) -> 128
D147: min | E147: -15 | F147: °C
A148: =$M$28 -> EX6-M21 | D148: max | E148: 115 | F148: bara | I148: Rel Spalte Gaskühler-Druck + Ventil
B149: =INDEX(Language!$B$2:$M$299,260,Language!$A$1) -> Gas cooler pressure | D149: Roundup | E149: =IF(E150=E151,E150,INDEX(CO2TransDat!$D$3:$H$3,MATCH($E$130,CO2TransDat!$D$3:$H$3,1)+1)) -> 105 | K149: =$E$45 -> 105 | O149: =$E$45 -> 105 | S149: =$E$45 -> 105 | W149: =$E$45 -> 105
D150: Value | E150: =CO2Trans!$D$8/INDEX('E-EX-Fun'!$N$5:$P$15,9,'E-EX-Fun'!$D$19) -> 100 | F150: bara
D151: Rounddown | E151: =INDEX(CO2TransDat!$D$3:$H$3,MATCH($E$130,CO2TransDat!$D$3:$H$3,1)) -> 95 | I151: =E151 -> 95 | M151: =I151 -> 95 | Q151: =M151 -> 95 | U151: =Q151 -> 95
D152: min | E152: 75 | F152: bara
D153: max | E153: 45 | F153: °C | I153: =MATCH(I151,CO2TransDat!$D$72:$H$72)+$L$121 -> 8 | K153: =MATCH(K149,CO2TransDat!$D$72:$H$72)+$L$121 -> 9 | M153: =MATCH(M151,CO2TransDat!$D$72:$H$72)+$L$121 -> 8 | O153: =MATCH(O149,CO2TransDat!$D$72:$H$72)+$L$121 -> 9 | Q153: =MATCH(Q151,CO2TransDat!$D$72:$H$72)+$L$121 -> 8 | S153: =MATCH(S149,CO2TransDat!$D$72:$H$72)+$L$121 -> 9 | U153: =MATCH(U151,CO2TransDat!$D$72:$H$72)+$L$121 -> 8 | W153: =MATCH(W149,CO2TransDat!$D$72:$H$72)+$L$121 -> 9
B154: =INDEX(Language!$B$2:$M$299,259,Language!$A$1) -> Gas cooler outlet temperature | D154: Rounddown | E154: =IF(E155<0,ROUNDUP(E155,0),ROUNDDOWN(E155,0)) -> 32 | G154: =MATCH($E154,CO2TransDat!$C$73:$C$88) -> 2 | H154: =$G154+$H$139+$H$144 -> 98 | I154: =INDEX(INDIRECT($Q$124),$H154,I153) -> 125.5785042 | K154: =INDEX(INDIRECT($Q$124),$H154,K$153) -> 139.0898601 | L154: =$G154+$H$141+$H$144 -> 98 | M154: =INDEX(INDIRECT($Q$124),$L154,M$153) -> 125.5785042 | O154: =INDEX(INDIRECT($Q$124),$L154,O$153) -> 139.0898601 | P154: =$G154+$H$139+$H$146 -> 162 | Q154: =INDEX(INDIRECT($Q$124),$P154,Q$153) -> 114.9080981 | S154: =INDEX(INDIRECT($Q$124),$P154,S$153) -> 127.2847261 | T154: =$G154+$H$141+$H$146 -> 162 | U154: =INDEX(INDIRECT($Q$124),$T154,U$153) -> 114.9080981 | W154: =INDEX(INDIRECT($Q$124),$T154,W$153) -> 127.2847261
D155: Value | E155: =IF($D$19=1,CO2Trans!$D$10,(CO2Trans!$D$10-32)/1.8) -> 32 | F155: °C | I155: =IF($E154=$E156,I156,I156+((I154-I156)*($E155-$E156)/($E154-$E156))) -> 125.5785042 | J155: =IF($E151=$E149,I155,I155+((K155-I155)*($E150-$E151)/($E149-$E151))) -> 132.3341822 | K155: =IF($E154=$E156,K156,K156+((K154-K156)*($E155-$E156)/($E154-$E156))) -> 139.0898601 | M155: =IF($E154=$E156,M156,M156+((M154-M156)*($E155-$E156)/($E154-$E156))) -> 125.5785042 | N155: =IF($E151=$E149,M155,M155+((O155-M155)*($E150-$E151)/($E149-$E151))) -> 132.3341822 | O155: =IF($E154=$E156,O156,O156+((O154-O156)*($E155-$E156)/($E154-$E156))) -> 139.0898601 | Q155: =IF($E154=$E156,Q156,Q156+((Q154-Q156)*($E155-$E156)/($E154-$E156))) -> 114.9080981 | R155: =IF($E151=$E149,Q155,Q155+((S155-Q155)*($E150-$E151)/($E149-$E151))) -> 121.0964121 | S155: =IF($E154=$E156,S156,S156+((S154-S156)*($E155-$E156)/($E154-$E156))) -> 127.2847261 | U155: =IF($E154=$E156,U156,U156+((U154-U156)*($E155-$E156)/($E154-$E156))) -> 114.9080981 | V155: =IF($E151=$E149,U155,U155+((W155-U155)*($E150-$E151)/($E149-$E151))) -> 121.0964121 | W155: =IF($E154=$E156,W156,W156+((W154-W156)*($E155-$E156)/($E154-$E156))) -> 127.2847261
D156: Roundup | E156: =IF(E155<0,ROUNDDOWN(E155,0),ROUNDUP(E155,0)) -> 32 | G156: =MATCH($E156,CO2TransDat!$C$73:$C$88) -> 2 | H156: =$G156+$H$139+$H$144 -> 98 | I156: =INDEX(INDIRECT($Q$124),$H156,I$153) -> 125.5785042 | K156: =INDEX(INDIRECT($Q$124),$H156,K$153) -> 139.0898601 | L156: =$G156+$H$141+$H$144 -> 98 | M156: =INDEX(INDIRECT($Q$124),$L156,M$153) -> 125.5785042 | O156: =INDEX(INDIRECT($Q$124),$L156,O$153) -> 139.0898601 | P156: =$G156+$H$139+$H$146 -> 162 | Q156: =INDEX(INDIRECT($Q$124),$P156,Q$153) -> 114.9080981 | S156: =INDEX(INDIRECT($Q$124),$P156,S$153) -> 127.2847261 | T156: =$G156+$H$141+$H$146 -> 162 | U156: =INDEX(INDIRECT($Q$124),$T156,U$153) -> 114.9080981 | W156: =INDEX(INDIRECT($Q$124),$T156,W$153) -> 127.2847261
D157: min | E157: 31 | F157: °C
D158: max | E158: 10 | F158: °C | G158: bara
B159: =INDEX(Language!$B$2:$M$400,345,Language!$A$1) -> Saturated temperature (receiver) | D159: Rounddown | E159: =IF(E160<0,ROUNDUP(E160*2,-1)/2,ROUNDDOWN(E160*2,-1)/2) -> 5 | F159: =MATCH($E159,$B$120:$B$124) -> 3 | G159: =(VLOOKUP(E161,SatPress!$A$7:$U$213,E$4,))/100000 -> 39.69466129 | H159: =INDEX($C$120:$C$124,$F159) -> 32 | Q159: =INDEX($C$120:$C$124,$F159) -> 32
D160: Value | E160: =IF($D$19=1,CO2Trans!$D$12,(CO2Trans!$D$12-32)/1.8) -> 5 | F160: °C | G160: =IF(E161=E159,G161,G161+((G159-G161)*(E160-E159)/(E161-E159))) -> 39.69466129 | H160: =(VLOOKUP(E160,SatPress!$A$7:$U$213,E$4,))/100000 -> 39.69466129 | L160: =IF(E161=E159,J155,J155+((N155-J155)*(E160-E159)/(E161-E159))) -> 132.3341822 | P160: =H160 -> 39.69466129 | T160: =IF(E161=E159,R155,R155+((V155-R155)*(E160-E159)/(E161-E159))) -> 121.0964121
D161: Roundup | E161: =IF(E160<0,ROUNDDOWN(E160*2,-1)/2,ROUNDUP(E160*2,-1)/2) -> 5 | F161: =MATCH($E161,$B$39:$B$43) -> 3 | G161: =(VLOOKUP(E159,SatPress!$A$7:$U$213,E$4,))/100000 -> 39.69466129 | H161: =INDEX($C$120:$C$124,$F161) -> 32 | M161: =INDEX($C$120:$C$124,$F161) -> 32 | U161: =INDEX($C$120:$C$124,$F161) -> 32
D162: min | E162: -5 | F162: °C
D163: max | E163: -5 | F163: °C | G163: bara
B164: =INDEX(Language!$B$2:$M$400,257,Language!$A$1) -> Saturated suction temperature (Rack) | D164: Rounddown | E164: =IF(E165<0,ROUNDUP(E165*2,-1)/2,ROUNDDOWN(E165*2,-1)/2) -> -10 | F164: =MATCH($E164,$F$120:$F$122) -> 2 | G164: =(VLOOKUP(E166,SatPress!$A$7:$U$213,E$4,))/100000 -> 30.45876007 | H164: =INDEX($G$120:$G$122,$F164) -> 64 | I164: =INDEX($G$120:$G$122,$F164) -> 64
D165: Value | E165: =IF($D$19=1,CO2Trans!$D$14,(CO2Trans!$D$14-32)/1.8) -> -6 | F165: °C | G165: =IF(E166=E164,G166,G166+((G164-G166)*(E165-E164)/(E166-E164))) -> 29.66436256 | H165: =(VLOOKUP(E165,SatPress!$A$7:$U$213,E$4,))/100000 -> 29.63162011 | P165: =IF(E166=E164,L160,L160+((T160-L160)*(E165-E164)/(E166-E164))) -> 123.3439661
D166: Roundup | E166: =IF(E165<0,ROUNDDOWN(E165*2,-1)/2,ROUNDUP(E165*2,-1)/2) -> -5 | F166: =MATCH($E166,$F$120:$F$122) -> 3 | G166: =(VLOOKUP(E164,SatPress!$A$7:$U$213,E$4,))/100000 -> 26.48677255 | H166: =INDEX($G$120:$G$122,$F166) -> 128 | Q166: =INDEX($G$120:$G$122,$F166) -> 128
D167: min | E167: -15 | F167: °C
A168: =$M$27 -> EX7-M21 | D168: max | E168: 115 | F168: bara | I168: Rel Spalte Gaskühler-Druck + Ventil
B169: =INDEX(Language!$B$2:$M$299,260,Language!$A$1) -> Gas cooler pressure | D169: Roundup | E169: =IF(E170=E171,E170,INDEX(CO2TransDat!$D$3:$H$3,MATCH($E$130,CO2TransDat!$D$3:$H$3,1)+1)) -> 105 | K169: =$E$45 -> 105 | O169: =$E$45 -> 105 | S169: =$E$45 -> 105 | W169: =$E$45 -> 105
D170: Value | E170: =CO2Trans!$D$8/INDEX('E-EX-Fun'!$N$5:$P$15,9,'E-EX-Fun'!$D$19) -> 100 | F170: bara
D171: Rounddown | E171: =INDEX(CO2TransDat!$D$3:$H$3,MATCH($E$130,CO2TransDat!$D$3:$H$3,1)) -> 95 | I171: =E171 -> 95 | M171: =I171 -> 95 | Q171: =M171 -> 95 | U171: =Q171 -> 95
D172: min | E172: 75 | F172: bara
D173: max | E173: 45 | F173: °C | I173: =MATCH(I171,CO2TransDat!$D$72:$H$72)+$L$122 -> 13 | K173: =MATCH(K169,CO2TransDat!$D$72:$H$72)+$L$122 -> 14 | M173: =MATCH(M171,CO2TransDat!$D$72:$H$72)+$L$122 -> 13 | O173: =MATCH(O169,CO2TransDat!$D$72:$H$72)+$L$122 -> 14 | Q173: =MATCH(Q171,CO2TransDat!$D$72:$H$72)+$L$122 -> 13 | S173: =MATCH(S169,CO2TransDat!$D$72:$H$72)+$L$122 -> 14 | U173: =MATCH(U171,CO2TransDat!$D$72:$H$72)+$L$122 -> 13 | W173: =MATCH(W169,CO2TransDat!$D$72:$H$72)+$L$122 -> 14
B174: =INDEX(Language!$B$2:$M$299,259,Language!$A$1) -> Gas cooler outlet temperature | D174: Rounddown | E174: =IF(E175<0,ROUNDUP(E175,0),ROUNDDOWN(E175,0)) -> 32 | G174: =MATCH($E174,CO2TransDat!$C$73:$C$88) -> 2 | H174: =$G174+$H$139+$H$144 -> 98 | I174: =INDEX(INDIRECT($Q$124),$H174,I$173) -> 446.323601 | K174: =INDEX(INDIRECT($Q$124),$H174,K$173) -> 494.3448531 | L174: =$G174+$H$141+$H$144 -> 98 | M174: =INDEX(INDIRECT($Q$124),$L174,M$173) -> 446.323601 | O174: =INDEX(INDIRECT($Q$124),$L174,O$173) -> 494.3448531 | P174: =$G174+$H$139+$H$146 -> 162 | Q174: =INDEX(INDIRECT($Q$124),$P174,Q$173) -> 408.3994825 | S174: =INDEX(INDIRECT($Q$124),$P174,S$173) -> 452.3877526 | T174: =$G174+$H$141+$H$146 -> 162 | U174: =INDEX(INDIRECT($Q$124),$T174,U$173) -> 408.3994825 | W174: =INDEX(INDIRECT($Q$124),$T174,W$173) -> 452.3877526
D175: Value | E175: =IF($D$19=1,CO2Trans!$D$10,(CO2Trans!$D$10-32)/1.8) -> 32 | F175: °C | I175: =IF($E174=$E176,I176,I176+((I174-I176)*($E175-$E176)/($E174-$E176))) -> 446.323601 | J175: =IF($E171=$E169,I175,I175+((K175-I175)*($E170-$E171)/($E169-$E171))) -> 470.3342271 | K175: =IF($E174=$E176,K176,K176+((K174-K176)*($E175-$E176)/($E174-$E176))) -> 494.3448531 | M175: =IF($E174=$E176,M176,M176+((M174-M176)*($E175-$E176)/($E174-$E176))) -> 446.323601 | N175: =IF($E171=$E169,M175,M175+((O175-M175)*($E170-$E171)/($E169-$E171))) -> 470.3342271 | O175: =IF($E174=$E176,O176,O176+((O174-O176)*($E175-$E176)/($E174-$E176))) -> 494.3448531 | Q175: =IF($E174=$E176,Q176,Q176+((Q174-Q176)*($E175-$E176)/($E174-$E176))) -> 408.3994825 | R175: =IF($E171=$E169,Q175,Q175+((S175-Q175)*($E170-$E171)/($E169-$E171))) -> 430.3936176 | S175: =IF($E174=$E176,S176,S176+((S174-S176)*($E175-$E176)/($E174-$E176))) -> 452.3877526 | U175: =IF($E174=$E176,U176,U176+((U174-U176)*($E175-$E176)/($E174-$E176))) -> 408.3994825 | V175: =IF($E171=$E169,U175,U175+((W175-U175)*($E170-$E171)/($E169-$E171))) -> 430.3936176 | W175: =IF($E174=$E176,W176,W176+((W174-W176)*($E175-$E176)/($E174-$E176))) -> 452.3877526
D176: Roundup | E176: =IF(E175<0,ROUNDDOWN(E175,0),ROUNDUP(E175,0)) -> 32 | G176: =MATCH($E176,CO2TransDat!$C$73:$C$88) -> 2 | H176: =$G176+$H$139+$H$144 -> 98 | I176: =INDEX(INDIRECT($Q$124),$H176,I$173) -> 446.323601 | K176: =INDEX(INDIRECT($Q$124),$H176,K$173) -> 494.3448531 | L176: =$G176+$H$141+$H$144 -> 98 | M176: =INDEX(INDIRECT($Q$124),$L176,M$173) -> 446.323601 | O176: =INDEX(INDIRECT($Q$124),$L176,O$173) -> 494.3448531 | P176: =$G176+$H$139+$H$146 -> 162 | Q176: =INDEX(INDIRECT($Q$124),$P176,Q$173) -> 408.3994825 | S176: =INDEX(INDIRECT($Q$124),$P176,S$173) -> 452.3877526 | T176: =$G176+$H$141+$H$146 -> 162 | U176: =INDEX(INDIRECT($Q$124),$T176,U$173) -> 408.3994825 | W176: =INDEX(INDIRECT($Q$124),$T176,W$173) -> 452.3877526
D177: min | E177: 31 | F177: °C
D178: max | E178: 10 | F178: °C | G178: bara
B179: =INDEX(Language!$B$2:$M$400,345,Language!$A$1) -> Saturated temperature (receiver) | D179: Rounddown | E179: =IF(E180<0,ROUNDUP(E180*2,-1)/2,ROUNDDOWN(E180*2,-1)/2) -> 5 | F179: =MATCH($E179,$B$120:$B$124) -> 3 | G179: =(VLOOKUP(E181,SatPress!$A$7:$U$213,E$4,))/100000 -> 39.69466129 | H179: =INDEX($C$120:$C$124,$F179) -> 32 | Q179: =INDEX($C$120:$C$124,$F179) -> 32
D180: Value | E180: =IF($D$19=1,CO2Trans!$D$12,(CO2Trans!$D$12-32)/1.8) -> 5 | F180: °C | G180: =IF(E181=E179,G181,G181+((G179-G181)*(E180-E179)/(E181-E179))) -> 39.69466129 | H180: =(VLOOKUP(E180,SatPress!$A$7:$U$213,E$4,))/100000 -> 39.69466129 | L180: =IF(E181=E179,J175,J175+((N175-J175)*(E180-E179)/(E181-E179))) -> 470.3342271 | P180: =H180 -> 39.69466129 | T180: =IF(E181=E179,R175,R175+((V175-R175)*(E180-E179)/(E181-E179))) -> 430.3936176
D181: Roundup | E181: =IF(E180<0,ROUNDDOWN(E180*2,-1)/2,ROUNDUP(E180*2,-1)/2) -> 5 | F181: =MATCH($E181,$B$39:$B$43) -> 3 | G181: =(VLOOKUP(E179,SatPress!$A$7:$U$213,E$4,))/100000 -> 39.69466129 | H181: =INDEX($C$120:$C$124,$F181) -> 32 | M181: =INDEX($C$120:$C$124,$F181) -> 32 | U181: =INDEX($C$120:$C$124,$F181) -> 32
D182: min | E182: -5 | F182: °C
D183: max | E183: -5 | F183: °C | G183: bara
B184: =INDEX(Language!$B$2:$M$400,257,Language!$A$1) -> Saturated suction temperature (Rack) | D184: Rounddown | E184: =IF(E185<0,ROUNDUP(E185*2,-1)/2,ROUNDDOWN(E185*2,-1)/2) -> -10 | F184: =MATCH($E184,$F$120:$F$122) -> 2 | G184: =(VLOOKUP(E186,SatPress!$A$7:$U$213,E$4,))/100000 -> 30.45876007 | H184: =INDEX($G$120:$G$122,$F184) -> 64 | I184: =INDEX($G$120:$G$122,$F184) -> 64
D185: Value | E185: =IF($D$19=1,CO2Trans!$D$14,(CO2Trans!$D$14-32)/1.8) -> -6 | F185: °C | G185: =IF(E186=E184,G186,G186+((G184-G186)*(E185-E184)/(E186-E184))) -> 29.66436256 | H185: =(VLOOKUP(E185,SatPress!$A$7:$U$213,E$4,))/100000 -> 29.63162011 | P185: =IF(E186=E184,L180,L180+((T180-L180)*(E185-E184)/(E186-E184))) -> 438.3817395
D186: Roundup | E186: =IF(E185<0,ROUNDDOWN(E185*2,-1)/2,ROUNDUP(E185*2,-1)/2) -> -5 | F186: =MATCH($E186,$F$120:$F$122) -> 3 | G186: =(VLOOKUP(E184,SatPress!$A$7:$U$213,E$4,))/100000 -> 26.48677255 | H186: =INDEX($G$120:$G$122,$F186) -> 128 | Q186: =INDEX($G$120:$G$122,$F186) -> 128
D187: min | E187: -15 | F187: °C
A188: =$M$26 -> EX8-M21 | D188: max | E188: 115 | F188: bara | I188: Rel Spalte Gaskühler-Druck + Ventil
B189: =INDEX(Language!$B$2:$M$299,260,Language!$A$1) -> Gas cooler pressure | D189: Roundup | E189: =IF(E190=E191,E190,INDEX(CO2TransDat!$D$3:$H$3,MATCH($E$130,CO2TransDat!$D$3:$H$3,1)+1)) -> 105 | K189: =$E$45 -> 105 | O189: =$E$45 -> 105 | S189: =$E$45 -> 105 | W189: =$E$45 -> 105
D190: Value | E190: =CO2Trans!$D$8/INDEX('E-EX-Fun'!$N$5:$P$15,9,'E-EX-Fun'!$D$19) -> 100 | F190: bara
D191: Rounddown | E191: =INDEX(CO2TransDat!$D$3:$H$3,MATCH($E$130,CO2TransDat!$D$3:$H$3,1)) -> 95 | I191: =E191 -> 95 | M191: =I191 -> 95 | Q191: =M191 -> 95 | U191: =Q191 -> 95
D192: min | E192: 75 | F192: bara
D193: max | E193: 45 | F193: °C | I193: =MATCH(I191,CO2TransDat!$D$72:$H$72)+$L$123 -> 18 | K193: =MATCH(K189,CO2TransDat!$D$72:$H$72)+$L$123 -> 19 | M193: =MATCH(M191,CO2TransDat!$D$72:$H$72)+$L$123 -> 18 | O193: =MATCH(O189,CO2TransDat!$D$72:$H$72)+$L$123 -> 19 | Q193: =MATCH(Q191,CO2TransDat!$D$72:$H$72)+$L$123 -> 18 | S193: =MATCH(S189,CO2TransDat!$D$72:$H$72)+$L$123 -> 19 | U193: =MATCH(U191,CO2TransDat!$D$72:$H$72)+$L$123 -> 18 | W193: =MATCH(W189,CO2TransDat!$D$72:$H$72)+$L$123 -> 19
B194: =INDEX(Language!$B$2:$M$299,259,Language!$A$1) -> Gas cooler outlet temperature | D194: Rounddown | E194: =IF(E195<0,ROUNDUP(E195,0),ROUNDDOWN(E195,0)) -> 32 | G194: =MATCH($E194,CO2TransDat!$C$73:$C$88) -> 2 | H194: =$G194+$H$139+$H$144 -> 98 | I194: =INDEX(INDIRECT($Q$124),$H194,I$193) -> 1355.767928 | K194: =INDEX(INDIRECT($Q$124),$H194,K$193) -> 1501.638935 | L194: =$G194+$H$141+$H$144 -> 98 | M194: =INDEX(INDIRECT($Q$124),$L194,M$193) -> 1355.767928 | O194: =INDEX(INDIRECT($Q$124),$L194,O$193) -> 1501.638935 | P194: =$G194+$H$139+$H$146 -> 162 | Q194: =INDEX(INDIRECT($Q$124),$P194,Q$193) -> 1240.568321 | S194: =INDEX(INDIRECT($Q$124),$P194,S$193) -> 1374.188603 | T194: =$G194+$H$141+$H$146 -> 162 | U194: =INDEX(INDIRECT($Q$124),$T194,U$193) -> 1240.568321 | W194: =INDEX(INDIRECT($Q$124),$T194,W$193) -> 1374.188603
D195: Value | E195: =IF($D$19=1,CO2Trans!$D$10,(CO2Trans!$D$10-32)/1.8) -> 32 | F195: °C | I195: =IF($E194=$E196,I196,I196+((I194-I196)*($E195-$E196)/($E194-$E196))) -> 1355.767928 | J195: =IF($E191=$E189,I195,I195+((K195-I195)*($E190-$E191)/($E189-$E191))) -> 1428.703432 | K195: =IF($E194=$E196,K196,K196+((K194-K196)*($E195-$E196)/($E194-$E196))) -> 1501.638935 | M195: =IF($E194=$E196,M196,M196+((M194-M196)*($E195-$E196)/($E194-$E196))) -> 1355.767928 | N195: =IF($E191=$E189,M195,M195+((O195-M195)*($E190-$E191)/($E189-$E191))) -> 1428.703432 | O195: =IF($E194=$E196,O196,O196+((O194-O196)*($E195-$E196)/($E194-$E196))) -> 1501.638935 | Q195: =IF($E194=$E196,Q196,Q196+((Q194-Q196)*($E195-$E196)/($E194-$E196))) -> 1240.568321 | R195: =IF($E191=$E189,Q195,Q195+((S195-Q195)*($E190-$E191)/($E189-$E191))) -> 1307.378462 | S195: =IF($E194=$E196,S196,S196+((S194-S196)*($E195-$E196)/($E194-$E196))) -> 1374.188603 | U195: =IF($E194=$E196,U196,U196+((U194-U196)*($E195-$E196)/($E194-$E196))) -> 1240.568321 | V195: =IF($E191=$E189,U195,U195+((W195-U195)*($E190-$E191)/($E189-$E191))) -> 1307.378462 | W195: =IF($E194=$E196,W196,W196+((W194-W196)*($E195-$E196)/($E194-$E196))) -> 1374.188603
D196: Roundup | E196: =IF(E195<0,ROUNDDOWN(E195,0),ROUNDUP(E195,0)) -> 32 | G196: =MATCH($E196,CO2TransDat!$C$73:$C$88) -> 2 | H196: =$G196+$H$139+$H$144 -> 98 | I196: =INDEX(INDIRECT($Q$124),$H196,I$193) -> 1355.767928 | K196: =INDEX(INDIRECT($Q$124),$H196,K$193) -> 1501.638935 | L196: =$G196+$H$141+$H$144 -> 98 | M196: =INDEX(INDIRECT($Q$124),$L196,M$193) -> 1355.767928 | O196: =INDEX(INDIRECT($Q$124),$L196,O$193) -> 1501.638935 | P196: =$G196+$H$139+$H$146 -> 162 | Q196: =INDEX(INDIRECT($Q$124),$P196,Q$193) -> 1240.568321 | S196: =INDEX(INDIRECT($Q$124),$P196,S$193) -> 1374.188603 | T196: =$G196+$H$141+$H$146 -> 162 | U196: =INDEX(INDIRECT($Q$124),$T196,U$193) -> 1240.568321 | W196: =INDEX(INDIRECT($Q$124),$T196,W$193) -> 1374.188603
D197: min | E197: 31 | F197: °C
D198: max | E198: 10 | F198: °C | G198: bara
B199: =INDEX(Language!$B$2:$M$400,345,Language!$A$1) -> Saturated temperature (receiver) | D199: Rounddown | E199: =IF(E200<0,ROUNDUP(E200*2,-1)/2,ROUNDDOWN(E200*2,-1)/2) -> 5 | F199: =MATCH($E199,$B$120:$B$124) -> 3 | G199: =(VLOOKUP(E201,SatPress!$A$7:$U$213,E$4,))/100000 -> 39.69466129 | H199: =INDEX($C$120:$C$124,$F199) -> 32 | Q199: =INDEX($C$120:$C$124,$F199) -> 32
D200: Value | E200: =IF($D$19=1,CO2Trans!$D$12,(CO2Trans!$D$12-32)/1.8) -> 5 | F200: °C | G200: =IF(E201=E199,G201,G201+((G199-G201)*(E200-E199)/(E201-E199))) -> 39.69466129 | H200: =(VLOOKUP(E200,SatPress!$A$7:$U$213,E$4,))/100000 -> 39.69466129 | L200: =IF(E201=E199,J195,J195+((N195-J195)*(E200-E199)/(E201-E199))) -> 1428.703432 | P200: =H200 -> 39.69466129 | T200: =IF(E201=E199,R195,R195+((V195-R195)*(E200-E199)/(E201-E199))) -> 1307.378462
D201: Roundup | E201: =IF(E200<0,ROUNDDOWN(E200*2,-1)/2,ROUNDUP(E200*2,-1)/2) -> 5 | F201: =MATCH($E201,$B$39:$B$43) -> 3 | G201: =(VLOOKUP(E199,SatPress!$A$7:$U$213,E$4,))/100000 -> 39.69466129 | H201: =INDEX($C$120:$C$124,$F201) -> 32 | M201: =INDEX($C$120:$C$124,$F201) -> 32 | U201: =INDEX($C$120:$C$124,$F201) -> 32
D202: min | E202: -5 | F202: °C
D203: max | E203: -5 | F203: °C | G203: bara
B204: =INDEX(Language!$B$2:$M$400,257,Language!$A$1) -> Saturated suction temperature (Rack) | D204: Rounddown | E204: =IF(E205<0,ROUNDUP(E205*2,-1)/2,ROUNDDOWN(E205*2,-1)/2) -> -10 | F204: =MATCH($E204,$F$120:$F$122) -> 2 | G204: =(VLOOKUP(E206,SatPress!$A$7:$U$213,E$4,))/100000 -> 30.45876007 | H204: =INDEX($G$120:$G$122,$F204) -> 64 | I204: =INDEX($G$120:$G$122,$F204) -> 64
D205: Value | E205: =IF($D$19=1,CO2Trans!$D$14,(CO2Trans!$D$14-32)/1.8) -> -6 | F205: °C | G205: =IF(E206=E204,G206,G206+((G204-G206)*(E205-E204)/(E206-E204))) -> 29.66436256 | H205: =(VLOOKUP(E205,SatPress!$A$7:$U$213,E$4,))/100000 -> 29.63162011 | P205: =IF(E206=E204,L200,L200+((T200-L200)*(E205-E204)/(E206-E204))) -> 1331.643456
D206: Roundup | E206: =IF(E205<0,ROUNDDOWN(E205*2,-1)/2,ROUNDUP(E205*2,-1)/2) -> -5 | F206: =MATCH($E206,$F$120:$F$122) -> 3 | G206: =(VLOOKUP(E204,SatPress!$A$7:$U$213,E$4,))/100000 -> 26.48677255 | H206: =INDEX($G$120:$G$122,$F206) -> 128 | Q206: =INDEX($G$120:$G$122,$F206) -> 128
D207: min | E207: -15 | F207: °C
B209: =INDEX(Language!$B$2:$M$41,10,Language!$A$1) -> Diff. pressure across valve | E209: ='E-Expans'!H92/INDEX('E-EX-Fun'!$N$5:$P$15,9,'E-EX-Fun'!$D$19) -> 0 | F209: bar
K211: CX7
B212: =INDEX(Language!$B$2:$M$41,11,Language!$A$1) -> System cooling capacity | D212: Q0: | E212: =E105 -> 100 | F212: kW | K212: CX6
K213: CX5
B214: =INDEX(Language!$B$2:$M$41,12,Language!$A$1) -> Pressure drop * | E214: ='E-Expans'!D86/INDEX('E-EX-Fun'!$N$5:$P$15,9,'E-EX-Fun'!$D$19) -> 0 | F214: bar | K214: CX4
B216: Find valves which fit best for selected capacity
B217: =INDEX(Language!$B$2:$M$400,346,Language!$A$1) -> No redundancy | D217: =MATCH($E$212,$O$26:$O$29,-1) -> 3 | E217: =$E$212/INDEX($O$26:$O$29,$D$217) -> 0.8107409153
B218: =INDEX(Language!$B$2:$M$400,347,Language!$A$1) -> 100% redundancy | D218: =D217 -> 3 | E218: =$E$212/(INDEX($O$26:$O$29,$D$217)*2) -> 0.4053704577
B219: =INDEX(Language!$B$2:$M$400,348,Language!$A$1) -> Partial redundancy | D219: =MATCH($E$212,$P$26:$P$32,-1) -> 7 | E219: =$E$212/INDEX($P$26:$P$32,$D$219) -> 0.9359288508

Sheet CO2TransDat (hidden)
A1: High Pressure Valve Capacity /kW) | D1: CX4 | I1: CX5 | N1: CX6 | S1: CX7
A2: Bypass Ventile ab Zeile 70 | D2: Gas cooler pressure, bara | I2: Gas cooler pressure, bara | N2: Gas cooler pressure, bara | S2: Gas cooler pressure, bara
A3: Saturated Suction Temperature, °C | B3: Suction Pressure, bara | C3: Gas Cooler Outlet Temperature, °C | D3: 75 | E3: 85 | F3: 95 | G3: 105 | H3: 115 | I3: =$D3 -> 75 | J3: =$E3 -> 85 | K3: =$F3 -> 95 | L3: =$G3 -> 105 | M3: =$H3 -> 115 | N3: =$D3 -> 75 | O3: =$E3 -> 85 | P3: =$F3 -> 95 | Q3: =$G3 -> 105 | R3: =$H3 -> 115 | S3: =$D3 -> 75 | T3: =$E3 -> 85 | U3: =$F3 -> 95 | V3: =$G3 -> 105 | W3: =$H3 -> 115
A4: -5 | B4: 30.5 | C4: 31 | D4: 21 | E4: 26 | F4: 28 | G4: 29 | H4: 31 | I4: 68 | J4: 84 | K4: 91 | L4: 93 | M4: 99 | N4: 156 | O4: 193 | P4: 210 | Q4: 216 | R4: 229 | S4: 555 | T4: 687 | U4: 745 | V4: 766 | W4: 814
A5: -5 | B5: 30.5 | C5: 32 | D5: 10 | E5: 25 | F5: 27 | G5: 28 | H5: 30 | I5: 31 | J5: 80 | K5: 88 | L5: 91 | M5: 97 | N5: 71 | O5: 185 | P5: 203 | Q5: 210 | R5: 224 | S5: 252 | T5: 658 | U5: 723 | V5: 746 | W5: 796
A6: -5 | B6: 30.5 | C6: 33 | D6: 7 | E6: 24 | F6: 26 | G6: 27 | H6: 29 | I6: 22 | J6: 76 | K6: 85 | L6: 88 | M6: 95 | N6: 51 | O6: 176 | P6: 197 | Q6: 204 | R6: 219 | S6: 181 | T6: 625 | U6: 699 | V6: 724 | W6: 778
A7: -5 | B7: 30.5 | C7: 34 | D7: 6 | E7: 22 | F7: 25 | G7: 26 | H7: 29 | I7: 18 | J7: 72 | K7: 82 | L7: 86 | M7: 93 | N7: 42 | O7: 165 | P7: 190 | Q7: 198 | R7: 214 | S7: 150 | T7: 587 | U7: 675 | V7: 702 | W7: 760
A8: -5 | B8: 30.5 | C8: 35 | D8: 5 | E8: 20 | F8: 24 | G8: 26 | H8: 28 | I8: 16 | J8: 66 | K8: 79 | L8: 83 | M8: 90 | N8: 36 | O8: 152 | P8: 183 | Q8: 191 | R8: 209 | S8: 128 | T8: 542 | U8: 649 | V8: 679 | W8: 741
A9: -5 | B9: 30.5 | C9: 36 | D9: 4 | E9: 18 | F9: 23 | G9: 25 | H9: 27 | I9: 14 | J9: 59 | K9: 76 | L9: 80 | M9: 88 | N9: 31 | O9: 136 | P9: 175 | Q9: 184 | R9: 203 | S9: 112 | T9: 482 | U9: 621 | V9: 655 | W9: 722
A10: -5 | B10: 30.5 | C10: 37 | D10: 4 | E10: 15 | F10: 22 | G10: 24 | H10: 26 | I10: 12 | J10: 49 | K10: 72 | L10: 77 | M10: 86 | N10: 28 | O10: 113 | P10: 166 | Q10: 177 | R10: 198 | S10: 98 | T10: 400 | U10: 591 | V10: 630 | W10: 702
A11: -5 | B11: 30.5 | C11: 38 | D11: 3 | E11: 12 | F11: 21 | G11: 23 | H11: 26 | I11: 11 | J11: 38 | K11: 68 | L11: 73 | M11: 83 | N11: 24 | O11: 88 | P11: 157 | Q11: 170 | R11: 192 | S11: 87 | T11: 311 | U11: 558 | V11: 603 | W11: 682
A12: -5 | B12: 30.5 | C12: 39 | D12: 3 | E12: 9 | F12: 20 | G12: 22 | H12: 25 | I12: 9 | J12: 30 | K12: 64 | L12: 70 | M12: 81 | N12: 22 | O12: 70 | P12: 147 | Q12: 162 | R12: 186 | S12: 77 | T12: 248 | U12: 522 | V12: 574 | W12: 662
A13: -5 | B13: 30.5 | C13: 40 | D13: 3 | E13: 8 | F13: 18 | G13: 20 | H13: 24 | I13: 8 | J13: 25 | K13: 59 | L13: 66 | M13: 78 | N13: 19 | O13: 58 | P13: 135 | Q13: 153 | R13: 180 | S13: 68 | T13: 206 | U13: 481 | V13: 543 | W13: 641
A14: -5 | B14: 30.5 | C14: 41 | D14: 2 | E14: 7 | F14: 16 | G14: 19 | H14: 23 | I14: 7 | J14: 22 | K14: 53 | L14: 62 | M14: 75 | N14: 17 | O14: 50 | P14: 123 | Q14: 144 | R14: 174 | S14: 59 | T14: 177 | U14: 436 | V14: 511 | W14: 619
A15: -5 | B15: 30.5 | C15: 42 | D15: 2 | E15: 6 | F15: 15 | G15: 18 | H15: 22 | I15: 6 | J15: 19 | K15: 47 | L15: 58 | M15: 73 | N15: 15 | O15: 43 | P15: 109 | Q15: 134 | R15: 168 | S15: 52 | T15: 154 | U15: 388 | V15: 475 | W15: 597
A16: -5 | B16: 30.5 | C16: 43 | D16: 2 | E16: 5 | F16: 13 | G16: 16 | H16: 22 | I16: 5 | J16: 16 | K16: 41 | L16: 53 | M16: 70 | N16: 13 | O16: 38 | P16: 96 | Q16: 123 | R16: 162 | S16: 45 | T16: 135 | U16: 340 | V16: 437 | W16: 574
A17: -5 | B17: 30.5 | C17: 44 | D17: 1 | E17: 4 | F17: 11 | G17: 15 | H17: 21 | I17: 5 | J17: 15 | K17: 36 | L17: 48 | M17: 67 | N17: 11 | O17: 34 | P17: 83 | Q17: 112 | R17: 155 | S17: 38 | T17: 119 | U17: 296 | V17: 398 | W17: 550
A18: -5 | B18: 30.5 | C18: 45 | D18: 1 | E18: 4 | F18: 10 | G18: 13 | H18: 20 | I18: 4 | J18: 13 | K18: 31 | L18: 44 | M18: 64 | N18: 9 | O18: 30 | P18: 73 | Q18: 101 | R18: 148 | S18: 32 | T18: 106 | U18: 258 | V18: 358 | W18: 526
C19: 46 | D19: n/a | E19: n/a | F19: n/a | G19: n/a | H19: n/a | I19: n/a | J19: n/a | K19: n/a | L19: n/a | M19: n/a | N19: n/a | O19: n/a | P19: n/a | Q19: n/a | R19: n/a | S19: n/a | T19: n/a | U19: n/a | V19: n/a | W19: n/a
A20: 0 | B20: 34.9 | C20: 31 | D20: 21 | E20: 27 | F20: 29 | G20: 30 | H20: 32 | I20: 69 | J20: 87 | K20: 95 | L20: 98 | M20: 104 | N20: 160 | O20: 200 | P20: 219 | Q20: 225 | R20: 241 | S20: 567 | T20: 711 | U20: 777 | V20: 801 | W20: 857
A21: 0 | B21: 34.9 | C21: 32 | D21: 10 | E21: 26 | F21: 28 | G21: 29 | H21: 32 | I21: 31 | J21: 83 | K21: 92 | L21: 95 | M21: 102 | N21: 72 | O21: 191 | P21: 212 | Q21: 219 | R21: 236 | S21: 257 | T21: 680 | U21: 753 | V21: 780 | W21: 838
A22: 0 | B22: 34.9 | C22: 33 | D22: 7 | E22: 24 | F22: 27 | G22: 28 | H22: 31 | I22: 22 | J22: 79 | K22: 89 | L22: 92 | M22: 100 | N22: 52 | O22: 182 | P22: 205 | Q22: 213 | R22: 230 | S22: 184 | T22: 647 | U22: 729 | V22: 757 | W22: 819
A23: 0 | B23: 34.9 | C23: 34 | D23: 6 | E23: 23 | F23: 26 | G23: 28 | H23: 30 | I23: 18 | J23: 74 | K23: 86 | L23: 89 | M23: 97 | N23: 43 | O23: 171 | P23: 198 | Q23: 207 | R23: 225 | S23: 151 | T23: 607 | U23: 703 | V23: 734 | W23: 800
A24: 0 | B24: 34.9 | C24: 35 | D24: 5 | E24: 21 | F24: 25 | G24: 27 | H24: 29 | I24: 16 | J24: 68 | K24: 82 | L24: 87 | M24: 95 | N24: 36 | O24: 157 | P24: 190 | Q24: 200 | R24: 219 | S24: 130 | T24: 560 | U24: 676 | V24: 710 | W24: 780
A25: 0 | B25: 34.9 | C25: 36 | D25: 4 | E25: 19 | F25: 24 | G25: 26 | H25: 29 | I25: 14 | J25: 61 | K25: 79 | L25: 83 | M25: 93 | N25: 32 | O25: 140 | P25: 182 | Q25: 193 | R25: 214 | S25: 113 | T25: 498 | U25: 647 | V25: 685 | W25: 760
A26: 0 | B26: 34.9 | C26: 37 | D26: 4 | E26: 16 | F26: 23 | G26: 25 | H26: 28 | I26: 12 | J26: 50 | K26: 75 | L26: 80 | M26: 90 | N26: 28 | O26: 116 | P26: 173 | Q26: 185 | R26: 208 | S26: 99 | T26: 413 | U26: 615 | V26: 658 | W26: 739
A27: 0 | B27: 34.9 | C27: 38 | D27: 3 | E27: 12 | F27: 22 | G27: 24 | H27: 27 | I27: 11 | J27: 39 | K27: 71 | L27: 77 | M27: 87 | N27: 24 | O27: 90 | P27: 163 | Q27: 177 | R27: 202 | S27: 87 | T27: 321 | U27: 581 | V27: 630 | W27: 718
A28: 0 | B28: 34.9 | C28: 39 | D28: 3 | E28: 10 | F28: 20 | G28: 23 | H28: 26 | I28: 9 | J28: 31 | K28: 66 | L28: 73 | M28: 85 | N28: 22 | O28: 72 | P28: 153 | Q28: 169 | R28: 196 | S28: 76 | T28: 254 | U28: 543 | V28: 599 | W28: 696
A29: 0 | B29: 34.9 | C29: 40 | D29: 3 | E29: 8 | F29: 19 | G29: 21 | H29: 25 | I29: 8 | J29: 26 | K29: 61 | L29: 69 | M29: 82 | N29: 19 | O29: 59 | P29: 141 | Q29: 160 | R29: 190 | S29: 67 | T29: 211 | U29: 501 | V29: 567 | W29: 674
A30: 0 | B30: 34.9 | C30: 41 | D30: 2 | E30: 7 | F30: 17 | G30: 20 | H30: 25 | I30: 7 | J30: 22 | K30: 55 | L30: 65 | M30: 79 | N30: 16 | O30: 51 | P30: 128 | Q30: 150 | R30: 183 | S30: 59 | T30: 181 | U30: 454 | V30: 533 | W30: 651
A31: 0 | B31: 34.9 | C31: 42 | D31: 2 | E31: 6 | F31: 15 | G31: 19 | H31: 24 | I31: 6 | J31: 19 | K31: 49 | L31: 60 | M31: 76 | N31: 14 | O31: 44 | P31: 113 | Q31: 139 | R31: 177 | S31: 51 | T31: 157 | U31: 403 | V31: 496 | W31: 628
A32: 0 | B32: 34.9 | C32: 43 | D32: 2 | E32: 5 | F32: 13 | G32: 17 | H32: 23 | I32: 5 | J32: 17 | K32: 43 | L32: 56 | M32: 74 | N32: 12 | O32: 39 | P32: 99 | Q32: 128 | R32: 170 | S32: 44 | T32: 138 | U32: 353 | V32: 456 | W32: 603
A33: 0 | B33: 34.9 | C33: 44 | D33: 1 | E33: 5 | F33: 12 | G33: 16 | H33: 22 | I33: 5 | J33: 15 | K33: 37 | L33: 50 | M33: 70 | N33: 10 | O33: 34 | P33: 86 | Q33: 117 | R33: 163 | S33: 37 | T33: 121 | U33: 307 | V33: 414 | W33: 578
A34: 0 | B34: 34.9 | C34: 45 | D34: 1 | E34: 4 | F34: 10 | G34: 14 | H34: 21 | I34: 4 | J34: 13 | K34: 33 | L34: 45 | M34: 67 | N34: 9 | O34: 30 | P34: 75 | Q34: 105 | R34: 155 | S34: 31 | T34: 107 | U34: 267 | V34: 373 | W34: 553
C35: 46 | D35: n/a | E35: n/a | F35: n/a | G35: n/a | H35: n/a | I35: n/a | J35: n/a | K35: n/a | L35: n/a | M35: n/a | N35: n/a | O35: n/a | P35: n/a | Q35: n/a | R35: n/a | S35: n/a | T35: n/a | U35: n/a | V35: n/a | W35: n/a
A36: 5 | B36: 39.7 | C36: 31 | D36: 21 | E36: 27 | F36: 30 | G36: 31 | H36: 34 | I36: 69 | J36: 88 | K36: 97 | L36: 101 | M36: 109 | N36: 160 | O36: 204 | P36: 225 | Q36: 233 | R36: 251 | S36: 569 | T36: 724 | U36: 799 | V36: 827 | W36: 892
A37: 5 | B37: 39.7 | C37: 32 | D37: 10 | E37: 26 | F37: 29 | G37: 30 | H37: 33 | I37: 31 | J37: 84 | K37: 94 | L37: 98 | M37: 106 | N37: 72 | O37: 195 | P37: 218 | Q37: 226 | R37: 246 | S37: 256 | T37: 693 | U37: 775 | V37: 805 | W37: 873
A38: 5 | B38: 39.7 | C38: 33 | D38: 7 | E38: 25 | F38: 28 | G38: 29 | H38: 32 | I38: 22 | J38: 80 | K38: 91 | L38: 95 | M38: 104 | N38: 51 | O38: 185 | P38: 211 | Q38: 220 | R38: 240 | S38: 182 | T38: 658 | U38: 750 | V38: 782 | W38: 853
A39: 5 | B39: 39.7 | C39: 34 | D39: 6 | E39: 23 | F39: 27 | G39: 29 | H39: 31 | I39: 18 | J39: 75 | K39: 88 | L39: 92 | M39: 101 | N39: 42 | O39: 174 | P39: 203 | Q39: 213 | R39: 234 | S39: 149 | T39: 618 | U39: 723 | V39: 757 | W39: 832
A40: 5 | B40: 39.7 | C40: 35 | D40: 5 | E40: 21 | F40: 26 | G40: 28 | H40: 31 | I40: 15 | J40: 69 | K40: 85 | L40: 89 | M40: 99 | N40: 36 | O40: 160 | P40: 195 | Q40: 206 | R40: 228 | S40: 127 | T40: 569 | U40: 695 | V40: 732 | W40: 812
A41: 5 | B41: 39.7 | C41: 36 | D41: 4 | E41: 19 | F41: 25 | G41: 27 | H41: 30 | I41: 13 | J41: 62 | K41: 81 | L41: 86 | M41: 96 | N41: 31 | O41: 142 | P41: 187 | Q41: 199 | R41: 222 | S41: 110 | T41: 506 | U41: 665 | V41: 706 | W41: 790
A42: 5 | B42: 39.7 | C42: 37 | D42: 4 | E42: 16 | F42: 24 | G42: 26 | H42: 29 | I42: 12 | J42: 51 | K42: 77 | L42: 83 | M42: 94 | N42: 27 | O42: 118 | P42: 178 | Q42: 191 | R42: 216 | S42: 96 | T42: 419 | U42: 632 | V42: 678 | W42: 769
A43: 5 | B43: 39.7 | C43: 38 | D43: 3 | E43: 12 | F43: 22 | G43: 24 | H43: 28 | I43: 10 | J43: 40 | K43: 73 | L43: 79 | M43: 91 | N43: 24 | O43: 91 | P43: 168 | Q43: 183 | R43: 210 | S43: 84 | T43: 324 | U43: 596 | V43: 649 | W43: 747
A44: 5 | B44: 39.7 | C44: 39 | D44: 3 | E44: 10 | F44: 21 | G44: 23 | H44: 27 | I44: 9 | J44: 31 | K44: 68 | L44: 75 | M44: 88 | N44: 21 | O44: 72 | P44: 157 | Q44: 174 | R44: 204 | S44: 74 | T44: 256 | U44: 557 | V44: 618 | W44: 724
A45: 5 | B45: 39.7 | C45: 40 | D45: 2 | E45: 8 | F45: 19 | G45: 22 | H45: 26 | I45: 8 | J45: 26 | K45: 63 | L45: 71 | M45: 85 | N45: 18 | O45: 60 | P45: 144 | Q45: 164 | R45: 197 | S45: 64 | T45: 212 | U45: 513 | V45: 584 | W45: 701
A46: 5 | B46: 39.7 | C46: 41 | D46: 2 | E46: 7 | F46: 17 | G46: 21 | H46: 25 | I46: 7 | J46: 22 | K46: 57 | L46: 67 | M46: 82 | N46: 16 | O46: 51 | P46: 131 | Q46: 154 | R46: 190 | S46: 56 | T46: 181 | U46: 465 | V46: 548 | W46: 677
A47: 5 | B47: 39.7 | C47: 42 | D47: 2 | E47: 6 | F47: 16 | G47: 19 | H47: 25 | I47: 6 | J47: 19 | K47: 50 | L47: 62 | M47: 79 | N47: 13 | O47: 44 | P47: 116 | Q47: 143 | R47: 183 | S47: 48 | T47: 157 | U47: 412 | V47: 510 | W47: 652
A48: 5 | B48: 39.7 | C48: 43 | D48: 2 | E48: 5 | F48: 14 | G48: 18 | H48: 24 | I48: 5 | J48: 17 | K48: 44 | L48: 57 | M48: 76 | N48: 11 | O48: 38 | P48: 101 | Q48: 132 | R48: 176 | S48: 41 | T48: 137 | U48: 360 | V48: 469 | W48: 626
A49: 5 | B49: 39.7 | C49: 44 | D49: 1 | E49: 5 | F49: 12 | G49: 16 | H49: 23 | I49: 4 | J49: 15 | K49: 38 | L49: 52 | M49: 73 | N49: 10 | O49: 34 | P49: 88 | Q49: 120 | R49: 169 | S49: 34 | T49: 120 | U49: 313 | V49: 425 | W49: 600
A50: 5 | B50: 39.7 | C50: 45 | D50: 1 | E50: 4 | F50: 10 | G50: 14 | H50: 22 | I50: 3 | J50: 13 | K50: 33 | L50: 47 | M50: 70 | N50: 8 | O50: 30 | P50: 76 | Q50: 108 | R50: 161 | S50: 27 | T50: 106 | U50: 272 | V50: 382 | W50: 573
C51: 46 | D51: n/a | E51: n/a | F51: n/a | G51: n/a | H51: n/a | I51: n/a | J51: n/a | K51: n/a | L51: n/a | M51: n/a | N51: n/a | O51: n/a | P51: n/a | Q51: n/a | R51: n/a | S51: n/a | T51: n/a | U51: n/a | V51: n/a | W51: n/a
A52: 10 | B52: 45 | C52: 31 | D52: 21 | E52: 27 | F52: 30 | G52: 32 | H52: 35 | I52: 68 | J52: 88 | K52: 99 | L52: 103 | M52: 112 | N52: 157 | O52: 204 | P52: 228 | Q52: 237 | R52: 258 | S52: 557 | T52: 724 | U52: 809 | V52: 842 | W52: 918
A53: 10 | B53: 45 | C53: 32 | D53: 9 | E53: 26 | F53: 30 | G53: 31 | H53: 34 | I53: 30 | J53: 84 | K53: 96 | L53: 100 | M53: 109 | N53: 70 | O53: 195 | P53: 221 | Q53: 230 | R53: 253 | S53: 247 | T53: 693 | U53: 785 | V53: 819 | W53: 898
A54: 10 | B54: 45 | C54: 33 | D54: 7 | E54: 25 | F54: 29 | G54: 30 | H54: 33 | I54: 21 | J54: 80 | K54: 92 | L54: 97 | M54: 107 | N54: 49 | O54: 185 | P54: 214 | Q54: 224 | R54: 247 | S54: 175 | T54: 658 | U54: 759 | V54: 795 | W54: 877
A55: 10 | B55: 45 | C55: 34 | D55: 5 | E55: 23 | F55: 28 | G55: 29 | H55: 32 | I55: 17 | J55: 75 | K55: 89 | L55: 94 | M55: 104 | N55: 40 | O55: 174 | P55: 206 | Q55: 217 | R55: 241 | S55: 142 | T55: 617 | U55: 732 | V55: 770 | W55: 856
A56: 10 | B56: 45 | C56: 35 | D56: 5 | E56: 21 | F56: 26 | G56: 28 | H56: 31 | I56: 15 | J56: 69 | K56: 86 | L56: 91 | M56: 102 | N56: 34 | O56: 160 | P56: 198 | Q56: 209 | R56: 235 | S56: 121 | T56: 568 | U56: 703 | V56: 745 | W56: 834
A57: 10 | B57: 45 | C57: 36 | D57: 4 | E57: 19 | F57: 25 | G57: 27 | H57: 31 | I57: 13 | J57: 61 | K57: 82 | L57: 87 | M57: 99 | N57: 29 | O57: 142 | P57: 189 | Q57: 202 | R57: 228 | S57: 104 | T57: 504 | U57: 672 | V57: 718 | W57: 812
A58: 10 | B58: 45 | C58: 37 | D58: 3 | E58: 16 | F58: 24 | G58: 26 | H58: 30 | I58: 11 | J58: 51 | K58: 78 | L58: 84 | M58: 96 | N58: 25 | O58: 117 | P58: 180 | Q58: 194 | R58: 222 | S58: 90 | T58: 416 | U58: 639 | V58: 689 | W58: 790
A59: 10 | B59: 45 | C59: 38 | D59: 3 | E59: 12 | F59: 23 | G59: 25 | H59: 29 | I59: 10 | J59: 39 | K59: 73 | L59: 80 | M59: 93 | N59: 22 | O59: 90 | P59: 169 | Q59: 185 | R59: 216 | S59: 78 | T59: 321 | U59: 602 | V59: 659 | W59: 767
A60: 10 | B60: 45 | C60: 39 | D60: 3 | E60: 10 | F60: 21 | G60: 24 | H60: 28 | I60: 8 | J60: 31 | K60: 68 | L60: 76 | M60: 91 | N60: 19 | O60: 71 | P60: 158 | Q60: 176 | R60: 209 | S60: 68 | T60: 253 | U60: 562 | V60: 627 | W60: 743
A61: 10 | B61: 45 | C61: 40 | D61: 2 | E61: 8 | F61: 19 | G61: 22 | H61: 27 | I61: 7 | J61: 25 | K61: 63 | L61: 72 | M61: 88 | N61: 16 | O61: 59 | P61: 146 | Q61: 167 | R61: 202 | S61: 58 | T61: 208 | U61: 517 | V61: 592 | W61: 719
A62: 10 | B62: 45 | C62: 41 | D62: 2 | E62: 7 | F62: 18 | G62: 21 | H62: 26 | I62: 6 | J62: 22 | K62: 57 | L62: 68 | M62: 85 | N62: 14 | O62: 50 | P62: 132 | Q62: 156 | R62: 195 | S62: 50 | T62: 177 | U62: 468 | V62: 556 | W62: 694
A63: 10 | B63: 45 | C63: 42 | D63: 2 | E63: 6 | F63: 16 | G63: 19 | H63: 25 | I63: 5 | J63: 19 | K63: 50 | L63: 63 | M63: 81 | N63: 12 | O63: 43 | P63: 117 | Q63: 145 | R63: 188 | S63: 42 | T63: 152 | U63: 414 | V63: 516 | W63: 668
A64: 10 | B64: 45 | C64: 43 | D64: 1 | E64: 5 | F64: 14 | G64: 18 | H64: 24 | I64: 4 | J64: 16 | K64: 44 | L64: 58 | M64: 78 | N64: 10 | O64: 37 | P64: 102 | Q64: 133 | R64: 181 | S64: 35 | T64: 132 | U64: 361 | V64: 474 | W64: 642
A65: 10 | B65: 45 | C65: 44 | D65: 1 | E65: 4 | F65: 12 | G65: 16 | H65: 23 | I65: 3 | J65: 14 | K65: 38 | L65: 52 | M65: 75 | N65: 8 | O65: 32 | P65: 88 | Q65: 121 | R65: 173 | S65: 28 | T65: 115 | U65: 313 | V65: 430 | W65: 615
A66: 10 | B66: 45 | C66: 45 | D66: 1 | E66: 4 | F66: 10 | G66: 14 | H66: 22 | I66: 3 | J66: 12 | K66: 33 | L66: 47 | M66: 72 | N66: 6 | O66: 28 | P66: 76 | Q66: 108 | R66: 165 | S66: 22 | T66: 101 | U66: 271 | V66: 385 | W66: 587
C67: 46 | D67: n/a | E67: n/a | F67: n/a | G67: n/a | H67: n/a | I67: n/a | J67: n/a | K67: n/a | L67: n/a | M67: n/a | N67: n/a | O67: n/a | P67: n/a | Q67: n/a | R67: n/a | S67: n/a | T67: n/a | U67: n/a | V67: n/a | W67: n/a
A69: Bypass Ventil-Leistungen (kW)
A70: Saturated Suction Temperature (Rack) | B70: Saturated Temperature (Receiver) | C70: Gas Cooler Outlet Temperature, °C | D70: EX5 | I70: EX6 | N70: EX7 | S70: EX8
D71: Gas cooler pressure (bara)
D72: 75 | E72: 85 | F72: 95 | G72: 105 | H72: 115 | I72: 75 | J72: 85 | K72: 95 | L72: 105 | M72: 115 | N72: 75 | O72: 85 | P72: 95 | Q72: 105 | R72: 115 | S72: 75 | T72: 85 | U72: 95 | V72: 105 | W72: 115
A73: -15 | B73: -5 | C73: 31 | D73: 23.28962172 | E73: 31.12236217 | F73: 34.83237818 | G73: 37.55718161 | H73: 39.76366533 | I73: 53.77162662 | J73: 71.85604206 | K73: 80.42181432 | L73: 86.71290459 | M73: 91.80728613 | N73: 191.1118959 | O73: 255.3864425 | P73: 285.8303974 | Q73: 308.1898138 | R73: 326.2959596 | S73: 580.5280708 | T73: 775.7706452 | U73: 868.2482501 | V73: 936.1679827 | W73: 991.1678343
A74: -15 | B74: -5 | C74: 32 | D74: 9.039089414 | E74: 28.73055157 | F74: 32.71877292 | G74: 35.52357002 | H74: 37.75684134 | I74: 20.86966232 | J74: 66.33377347 | K74: 75.54187278 | L74: 82.01765431 | M74: 87.17388367 | N74: 74.17370431 | O74: 235.7595261 | P74: 268.4864013 | Q74: 291.5022363 | R74: 309.828198 | S74: 225.3125964 | T74: 716.1512486 | U74: 815.5635309 | V74: 885.4772232 | W74: 941.1447951
A75: -15 | B75: -5 | C75: 33 | D75: 6.351933565 | E75: 26.30178112 | F75: 30.67199112 | G75: 33.57793988 | H75: 35.84633947 | I75: 14.66549367 | J75: 60.72617111 | K75: 70.8162148 | L75: 77.52553766 | M75: 82.762872 | N75: 52.12321955 | O75: 215.8293215 | P75: 251.6907507 | Q75: 275.5366243 | R75: 294.1508444 | S75: 158.3312852 | T75: 655.6105735 | U75: 764.5444846 | V75: 836.9795308 | W75: 893.5227264
A76: -15 | B76: -5 | C76: 34 | D76: 5.212367189 | E76: 23.76812542 | F76: 28.67767087 | G76: 31.71068337 | H76: 34.02348504 | I76: 12.03443601 | J76: 54.87640723 | K76: 66.21168127 | L76: 73.21437191 | M76: 78.55422281 | N76: 42.77207193 | O76: 195.038441 | P76: 235.3255933 | Q76: 260.2141371 | R76: 279.1927155 | S76: 129.9259174 | T76: 592.4554793 | U76: 714.8331195 | V76: 790.4354164 | W76: 848.0853991
A77: -15 | B77: -5 | C77: 35 | D77: 4.452207542 | E77: 21.02011134 | F77: 26.72068656 | G77: 29.9126882 | H77: 32.28035083 | I77: 10.27936153 | J77: 48.53172764 | K77: 61.69334986 | L77: 69.06311834 | M77: 74.52963353 | N77: 36.5342913 | O77: 172.4885607 | P77: 219.2668103 | Q77: 245.4600002 | R77: 264.8887612 | S77: 110.9778204 | T77: 523.957187 | U77: 666.0524077 | V77: 745.6177425 | W77: 804.6352155
A78: -15 | B78: -5 | C78: 36 | D78: 3.87240317 | E78: 17.87567698 | F78: 24.78502964 | G78: 28.17525758 | H78: 30.60964367 | I78: 8.940695555 | J78: 41.27178362 | K78: 57.2242596 | L78: 65.05169764 | M78: 70.67226553 | N78: 31.77648484 | O78: 146.6857023 | P78: 203.3830373 | Q78: 231.202849 | R78: 251.1791348 | S78: 96.52534373 | T78: 445.5775366 | U78: 617.8033122 | V78: 702.3097293 | W78: 762.9903826
A79: -15 | B79: -5 | C79: 37 | D79: 3.399452958 | E79: 14.10530939 | F79: 22.8539386 | G79: 26.49011926 | H79: 29.00462721 | I79: 7.848736977 | J79: 32.56667022 | K79: 52.76571119 | L79: 61.16101064 | M79: 66.96656576 | N79: 27.89551104 | O79: 115.7465094 | P79: 187.5367315 | Q79: 217.3748022 | R79: 238.0085585 | S79: 84.73636418 | T79: 351.5955798 | U79: 569.6680285 | V79: 660.3051786 | W79: 722.982987
A80: -15 | B80: -5 | C80: 38 | D80: 2.997678084 | E80: 10.52456868 | F80: 20.91057541 | G80: 24.84954113 | H80: 27.45908604 | I80: 6.921109695 | J80: 24.29937181 | K80: 48.27882851 | L80: 57.37320526 | M80: 63.39818394 | N80: 24.59859369 | O80: 86.36337241 | P80: 171.5897217 | Q80: 203.912411 | R80: 225.3260296 | S80: 74.7215346 | T80: 262.3403517 | U80: 521.2268428 | V80: 619.4113561 | W80: 684.4581005
A81: -15 | B81: -5 | C81: 39 | D81: 2.646940419 | E81: 8.167086978 | F81: 18.93979483 | G81: 23.24655604 | H81: 25.96733496 | I81: 6.111318319 | J81: 18.85636258 | K81: 43.72864394 | L81: 53.67219556 | M81: 59.95399396 | N81: 21.72048167 | O81: 67.01815491 | P81: 155.4177281 | Q81: 190.7585039 | R81: 213.0848957 | S81: 65.97888249 | T81: 203.5766534 | U81: 472.1022387 | V81: 579.4545953 | W81: 647.2740112
A82: -15 | B82: -5 | C82: 40 | D82: 2.33471234 | E82: 6.711211224 | F82: 16.9302016 | G82: 21.67527224 | H82: 24.52427251 | I82: 5.390438785 | J82: 15.49500238 | K82: 39.08884781 | L82: 50.04437855 | M82: 56.62221741 | N82: 19.15837479 | O82: 55.07140975 | P82: 138.9272425 | Q82: 177.864734 | R82: 201.243295 | S82: 58.19613848 | T82: 167.2868092 | U82: 422.0101722 | V82: 540.288036 | W82: 611.3035573
A83: -15 | B83: -5 | C83: 41 | E83: 5.699573627 | F83: 14.88218458 | G83: 20.13121512 | H83: 23.12546823 | J83: 13.1593097 | K83: 34.36033793 | L83: 46.47942315 | M83: 53.39262517 | O83: 46.77003065 | P83: 122.1214558 | Q83: 165.1943829 | R83: 189.7648716 | T83: 142.0702544 | U83: 370.9603363 | V83: 501.8001417 | W83: 576.4363036
A84: -15 | B84: -5 | C84: 42 | E84: 4.932911435 | F84: 12.85496286 | G84: 18.61159901 | H84: 21.76725953 | J84: 11.38922199 | K84: 29.67984071 | L84: 42.97089773 | M84: 50.25676096 | O84: 40.47889089 | P84: 105.4863128 | Q84: 152.7245919 | R84: 178.6195708 | T84: 122.9600718 | U84: 320.4288535 | V84: 463.9214754 | W84: 542.5809543
A85: -15 | B85: -5 | C85: 43 | E85: 4.317882466 | F85: 10.98398637 | G85: 17.11542805 | H85: 20.44682041 | J85: 9.969228634 | K85: 25.36008617 | L85: 39.516503 | M85: 47.20810006 | O85: 35.43203553 | P85: 90.13329988 | Q85: 140.447189 | R85: 167.7842028 | T85: 107.6295703 | U85: 273.7920131 | V85: 426.6272139 | W85: 509.6670675
A86: -15 | B86: -5 | C86: 44 | E86: 3.804750149 | F86: 9.369310809 | G86: 15.64397995 | H86: 19.16216238 | J86: 8.784496667 | K86: 21.63208525 | L86: 36.11918901 | M86: 44.24205138 | O86: 31.2213321 | P86: 76.88346223 | Q86: 128.372659 | R86: 157.2424501 | T86: 94.83899268 | U86: 233.5438503 | V86: 389.9492062 | W86: 477.645077
A87: -15 | B87: -5 | C87: 45 | E87: 3.364343769 | F87: 8.037601125 | G87: 14.20366287 | H87: 17.91205274 | J87: 7.767676056 | K87: 18.5574026 | L87: 32.79375104 | M87: 41.35576882 | O87: 27.60740917 | P87: 65.95560923 | Q87: 116.5535865 | R87: 146.9841975 | T87: 83.86121602 | U87: 200.349028 | V87: 354.0471848 | W87: 446.4842558
A88: -15 | C88: 46 | D88: n/a | E88: n/a | F88: n/a | G88: n/a | H88: n/a | I88: n/a | J88: n/a | K88: n/a | L88: n/a | M88: n/a | N88: n/a | O88: n/a | P88: n/a | Q88: n/a | R88: n/a | S88: n/a | T88: n/a | U88: n/a | V88: n/a | W88: n/a
A89: -15 | B89: 0 | C89: 31 | D89: 30.23926725 | E89: 41.32450243 | F89: 46.75222 | G89: 50.81415804 | H89: 54.15152544 | I89: 69.81713174 | J89: 95.41098354 | K89: 107.9426256 | L89: 117.3209237 | M89: 125.0263161 | N89: 248.1398695 | O89: 339.1040052 | P89: 383.6432171 | Q89: 416.9750028 | R89: 444.361047 | S89: 753.7582057 | T89: 1030.073994 | U89: 1165.367837 | V89: 1266.617616 | W89: 1349.806406
A90: -15 | B90: 0 | C90: 32 | D90: 11.28179053 | E90: 37.88661991 | F90: 43.64569627 | G90: 47.77646147 | H90: 51.11436225 | I90: 26.04766343 | J90: 87.47351951 | K90: 100.7702105 | L90: 110.3074184 | M90: 118.0140423 | N90: 92.57704583 | O90: 310.8931458 | P90: 358.1514488 | Q90: 392.0480221 | R90: 419.4384432 | S90: 281.2152198 | T90: 944.379717 | U90: 1087.933164 | V90: 1190.898562 | W90: 1274.100647
A91: -15 | B91: 0 | C91: 33 | D91: 7.870438965 | E91: 34.44360377 | F91: 40.67352984 | G91: 44.90386512 | H91: 48.25617855 | I91: 18.17145467 | J91: 79.52420282 | K91: 93.90800272 | L91: 103.6751003 | M91: 111.4150005 | N91: 64.58389621 | O91: 282.6401603 | P91: 333.7622007 | Q91: 368.4758343 | R91: 395.984524 | S91: 196.1822654 | T91: 858.5574763 | U91: 1013.847545 | V91: 1119.294873 | W91: 1202.856215
A92: -15 | B92: 0 | C92: 34 | D92: 6.438648097 | E92: 30.90236598 | F92: 37.81114506 | G92: 42.17742841 | H92: 45.55880617 | I92: 14.86570222 | J92: 71.3481097 | K92: 87.29926139 | L92: 97.38023912 | M92: 105.1872437 | N92: 52.8347888 | O92: 253.5811797 | P92: 310.273808 | Q92: 346.1030155 | R92: 373.8502036 | S92: 160.4927724 | T92: 770.2869168 | U92: 942.4983952 | V92: 1051.334429 | W92: 1135.620242
A93: -15 | B93: 0 | C93: 35 | D93: 5.48842777 | E93: 27.11851584 | F93: 35.0340349 | G93: 39.57984821 | H93: 43.00608548 | I93: 12.67181118 | J93: 62.61186747 | K93: 80.8874041 | L93: 91.38288485 | M93: 99.29346206 | N93: 45.03739259 | O93: 222.5313506 | P93: 287.4851687 | Q93: 324.787578 | R93: 352.9028779 | S93: 136.8071334 | T93: 675.9688876 | U93: 873.2748404 | V93: 986.5859224 | W93: 1071.989925
A94: -15 | B94: 0 | C94: 36 | D94: 4.766259474 | E94: 22.85986639 | F94: 32.31755063 | G94: 37.09520895 | H94: 40.58354536 | I94: 11.00445202 | J94: 52.7793974 | K94: 74.61552131 | L94: 85.64629125 | M94: 93.70024443 | N94: 39.11136451 | O94: 187.5853742 | P94: 265.1940184 | Q94: 304.3989205 | R94: 333.0237987 | S94: 118.8060266 | T94: 569.8157872 | U94: 805.5624753 | V94: 924.6526349 | W94: 1011.60455
A95: -15 | B95: 0 | C95: 37 | D95: 4.178842167 | E95: 17.85079614 | F95: 29.63706692 | G95: 34.70888451 | H95: 38.2781665 | I95: 9.648209122 | J95: 41.21433814 | K95: 68.42675745 | L95: 80.13668923 | M95: 88.37753147 | N95: 34.2910872 | O95: 146.481533 | P95: 243.1982844 | Q95: 284.8170229 | R95: 314.106131 | S95: 104.1637864 | T95: 444.9573449 | U95: 738.7474769 | V95: 865.1699888 | W95: 954.1395914
A96: -15 | B96: 0 | C96: 38 | D96: 3.680993822 | E96: 13.18908408 | F96: 26.96890191 | G96: 32.40760441 | H96: 36.07822674 | I96: 8.498765148 | J96: 30.45126766 | K96: 62.26643529 | L96: 74.82343959 | M96: 83.2982588 | N96: 30.20580225 | O96: 108.2280723 | P96: 221.3036362 | Q96: 265.9329891 | R96: 296.0536841 | S96: 91.75418424 | T96: 328.7573165 | U96: 672.2395402 | V96: 807.8071981 | W96: 899.3028577
A97: -15 | B97: 0 | C97: 39 | D97: 3.247260549 | E97: 10.16933263 | F97: 24.29267524 | G97: 30.17967588 | H97: 33.97322652 | I97: 7.497351561 | J97: 23.47919445 | K97: 56.08750019 | L97: 69.67954577 | M97: 78.43818475 | N97: 26.64663803 | O97: 83.44834715 | P97: 199.3428351 | Q97: 247.6508697 | R97: 278.7802999 | S97: 80.94274456 | T97: 253.4855706 | U97: 605.5306549 | V97: 752.2728031 | W97: 846.8326315
A98: -15 | B98: 0 | C98: 40 | D98: 2.861832727 | E98: 8.323675289 | F98: 21.59391249 | G98: 28.01531906 | H98: 31.95388688 | I98: 6.607466738 | J98: 19.21789736 | K98: 49.85653326 | L98: 64.68242783 | M98: 73.77588589 | N98: 23.48386267 | O98: 68.30310017 | P98: 177.1971055 | Q98: 229.8904123 | R98: 262.2098365 | S98: 71.33538931 | T98: 207.4798473 | U98: 538.2600247 | V98: 698.3230266 | W98: 796.4976216
A99: -15 | B99: 0 | C99: 41 | E99: 7.04971562 | F99: 18.8743702 | G99: 25.90703394 | H99: 30.01220051 | J99: 16.2765493 | K99: 43.57759002 | L99: 59.81476954 | M99: 69.2928747 | O99: 57.849137 | P99: 154.8808614 | Q99: 212.5900726 | R99: 246.2765865 | T99: 175.7245291 | U99: 470.4714337 | V99: 645.7709195 | W99: 748.0982332
A100: -15 | B100: 0 | C100: 42 | E100: 6.088869404 | F100: 16.21257061 | G100: 23.84986004 | H100: 28.14149878 | J100: 14.05812495 | K100: 37.43196449 | L100: 55.06511802 | M100: 64.97375453 | O100: 49.96454599 | P100: 133.038447 | Q100: 195.7091456 | R100: 230.9258282 | T100: 151.7740241 | U100: 404.1221643 | V100: 594.4928347 | W100: 701.4682416
A101: -15 | B101: 0 | C101: 43 | E101: 5.320920796 | F101: 13.78209196 | G101: 21.84139937 | H101: 26.33648258 | J101: 12.28506713 | K101: 31.82041821 | L101: 50.42793678 | M101: 60.80629065 | O101: 43.66285007 | P101: 113.0942252 | Q101: 179.2279537 | R101: 216.1140776 | T101: 132.6317757 | U101: 343.5389099 | V101: 544.428999 | W101: 656.4755583
A102: -15 | B102: 0 | C102: 44 | E102: 4.682141278 | F102: 11.70444857 | G102: 19.88235004 | H102: 24.59316429 | J102: 10.81023795 | K102: 27.02350626 | L102: 45.90483758 | M102: 56.78127638 | O102: 38.42110049 | P102: 96.04532798 | Q102: 163.1522253 | R102: 201.8086129 | T102: 116.7092569 | U102: 291.7505931 | V102: 495.5968134 | W102: 613.0207864
A103: -15 | B103: 0 | C103: 45 | E103: 4.135294879 | F103: 10.00458936 | G103: 17.98013965 | H103: 22.90870526 | J103: 9.547666118 | K103: 23.09883131 | L103: 41.51296949 | M103: 52.89215774 | O103: 33.93374327 | P103: 82.09648327 | Q103: 147.5429107 | R103: 187.9861403 | T103: 103.0783062 | U103: 249.3791024 | V103: 448.1814222 | W103: 571.033168
A104: -15 | C104: 46 | D104: n/a | E104: n/a | F104: n/a | G104: n/a | H104: n/a | I104: n/a | J104: n/a | K104: n/a | L104: n/a | M104: n/a | N104: n/a | O104: n/a | P104: n/a | Q104: n/a | R104: n/a | S104: n/a | T104: n/a | U104: n/a | V104: n/a | W104: n/a
A105: -15 | B105: 5 | C105: 31 | D105: 37.40035447 | E105: 52.69918528 | F105: 60.54218025 | G105: 66.57206506 | H105: 71.63294497 | I105: 86.35081841 | J105: 121.673119 | K105: 139.7812103 | L105: 153.7031502 | M105: 165.3878288 | N105: 306.9029087 | O105: 432.4433145 | P105: 496.8020085 | Q105: 546.2825338 | R105: 587.8115191 | S105: 932.2588357 | T105: 1313.604692 | U105: 1509.102875 | V105: 1659.406622 | W105: 1785.556496
A106: -15 | B106: 5 | C106: 32 | D106: 13.269472 | E106: 47.85377812 | F106: 56.0238822 | G106: 62.04946335 | H106: 67.02331759 | I106: 30.63686918 | J106: 110.4859289 | K106: 129.3492574 | L106: 143.261261 | M106: 154.7450127 | N106: 108.8877261 | O106: 392.6824734 | P106: 459.7253863 | Q106: 509.1705963 | R106: 549.985459 | S106: 330.7611036 | T106: 1192.825793 | U106: 1396.477652 | V106: 1546.674123 | W106: 1670.654755
A107: -15 | B107: 5 | C107: 33 | D107: 9.176147809 | E107: 43.09297788 | F107: 51.77453832 | G107: 57.84425274 | H107: 62.75845505 | I107: 21.18610597 | J107: 99.49408129 | K107: 119.5382723 | L107: 133.5521718 | M107: 144.8981977 | N107: 75.29838937 | O107: 353.6159068 | P107: 424.8557704 | Q107: 474.6631328 | R107: 514.9884988 | S107: 228.7289785 | T107: 1074.155846 | U107: 1290.556507 | V107: 1441.853065 | W107: 1564.346784
A108: -15 | B108: 5 | C108: 34 | D108: 7.479373205 | E108: 38.28952175 | F108: 47.74844023 | G108: 53.91580892 | H108: 58.79699205 | I108: 17.26855284 | J108: 88.40374874 | K108: 110.2427223 | L108: 124.4820882 | M108: 135.7518787 | N108: 61.37485659 | O108: 314.1993108 | P108: 391.8180831 | Q108: 442.426785 | R108: 482.4811994 | S108: 186.4343762 | T108: 954.4226377 | U108: 1190.200091 | V108: 1343.930825 | W108: 1465.601493
A109: -15 | B109: 5 | C109: 35 | D109: 6.360127783 | E109: 33.25834613 | F109: 43.90297518 | G109: 50.22862528 | H109: 55.10341406 | I109: 14.68441267 | J109: 76.7876521 | K109: 101.3642221 | L109: 115.9690319 | M109: 127.2240589 | N109: 52.19046033 | O109: 272.9140756 | P109: 360.2626492 | Q109: 412.1701898 | R109: 452.172133 | S109: 158.5355381 | T109: 829.0131867 | U109: 1094.346219 | V109: 1252.022351 | W109: 1373.53363
A110: -15 | B110: 5 | C110: 36 | D110: 5.51311784 | E110: 27.71725002 | F110: 40.19796641 | G110: 46.75142169 | H110: 51.64698857 | I110: 12.72881619 | J110: 63.99423901 | K110: 92.81001068 | L110: 107.9407824 | M110: 119.2437824 | N110: 45.2399964 | O110: 227.4444928 | P110: 329.8597832 | Q110: 383.6366662 | R110: 423.8091121 | S110: 137.4225697 | T110: 690.8932173 | U110: 1001.993427 | V110: 1165.347938 | W110: 1287.377142
A111: -15 | B111: 5 | C111: 37 | D111: 4.826444361 | E111: 21.35864003 | F111: 36.5956212 | G111: 43.45658399 | H111: 48.40095689 | I111: 11.1434083 | J111: 49.31333066 | K111: 84.49283131 | L111: 100.3335836 | M111: 111.7492681 | N111: 39.60523461 | O111: 175.2664873 | P111: 300.2993622 | Q111: 356.5996157 | R111: 397.172558 | S111: 120.3062234 | T111: 532.3955125 | U111: 912.1996756 | V111: 1083.219263 | W111: 1206.465028
A112: -15 | B112: 5 | C112: 38 | D112: 4.24607605 | E112: 15.5896888 | F112: 33.06152172 | G112: 40.31990826 | H112: 45.34194491 | I112: 9.803440292 | J112: 35.99384033 | K112: 76.33321927 | L112: 93.0915529 | M112: 104.6865493 | N112: 34.84280053 | O112: 127.9271522 | P112: 271.2989577 | Q112: 330.8604237 | R112: 372.0706656 | S112: 105.8396898 | T112: 388.5959195 | U112: 824.1070488 | V112: 1005.033007 | W112: 1130.214656
A113: -15 | B113: 5 | C113: 39 | D113: 3.741643301 | E113: 11.92670731 | F113: 29.56743713 | G113: 37.32060376 | H113: 42.44955984 | I113: 8.638794093 | J113: 27.53666247 | K113: 68.26599456 | L113: 86.1666881 | M113: 98.00854256 | N113: 30.70348474 | O113: 97.86915705 | P113: 242.6269106 | Q113: 306.2484838 | R113: 348.336094 | S113: 93.26596171 | T113: 297.290719 | U113: 737.0118521 | V113: 930.270932 | W113: 1058.117705
A114: -15 | B114: 5 | C114: 40 | D114: 3.294319157 | E114: 9.715863489 | F114: 26.09424329 | G114: 34.44147109 | H114: 39.70613956 | I114: 7.606001583 | J114: 22.43221423 | K114: 60.2470029 | L114: 79.51927885 | M114: 91.67446928 | N114: 27.03279543 | O114: 79.72723275 | P114: 214.1262906 | Q114: 282.6226599 | R114: 325.8239099 | S114: 82.11574957 | T114: 242.1821855 | U114: 650.437388 | V114: 858.5043163 | W114: 989.7339199
A115: -15 | B115: 5 | C115: 41 | E115: 8.202011732 | F115: 22.64432572 | G115: 31.66913089 | H115: 37.09661097 | J115: 18.93699768 | K115: 52.28175203 | L115: 73.11843456 | M115: 85.64952828 | O115: 67.30474333 | P115: 185.8166728 | Q115: 259.8731623 | R115: 304.4104254 | T115: 204.4472042 | U115: 564.4431191 | V115: 789.3996597 | W115: 924.6875824
A116: -15 | B116: 5 | C116: 42 | E116: 7.066744709 | F116: 19.31525218 | G116: 28.99411657 | H116: 34.60839653 | J116: 16.31586646 | K116: 44.59550871 | L116: 66.94229856 | M116: 79.90468023 | O116: 57.9888757 | P116: 158.498687 | Q116: 237.9223095 | R116: 283.9924304 | T116: 176.1490042 | U116: 481.4610654 | V116: 722.720994 | W116: 862.6651783
A117: -15 | B117: 5 | C117: 43 | E117: 6.163386281 | F117: 16.31577546 | G117: 26.41067294 | H117: 32.23129389 | J117: 14.23017127 | K117: 37.67024629 | L117: 60.97758311 | M117: 74.41636971 | O117: 50.57602272 | P117: 133.8853339 | Q117: 216.722875 | R117: 264.4862057 | T117: 153.6314669 | U117: 406.6946972 | V117: 658.3248622 | W117: 803.4123991
A118: -15 | B118: 5 | C118: 44 | E118: 5.414660329 | F118: 13.7816582 | G118: 23.91722626 | H118: 29.95725997 | J118: 12.50149517 | K118: 31.81941672 | L118: 55.22065476 | M118: 69.1660267 | O118: 44.43206564 | P118: 113.0906658 | Q118: 196.2619449 | R118: 245.8257509 | T118: 134.9683714 | U118: 343.5280977 | V118: 596.172037 | W118: 746.7287595
A119: -15 | B119: 5 | C119: 45 | E119: 4.775620415 | F119: 11.7285126 | G119: 21.52072288 | H119: 27.780083 | J119: 11.02606478 | K119: 27.07906585 | L119: 49.68755136 | M119: 64.13930929 | O119: 39.18817929 | P119: 96.24279455 | Q119: 176.5965201 | R119: 227.9600929 | T119: 119.0393618 | U119: 292.3504243 | V119: 536.4356659 | W119: 692.4594219
A120: -15 | C120: 46 | D120: n/a | E120: n/a | F120: n/a | G120: n/a | H120: n/a | I120: n/a | J120: n/a | K120: n/a | L120: n/a | M120: n/a | N120: n/a | O120: n/a | P120: n/a | Q120: n/a | R120: n/a | S120: n/a | T120: n/a | U120: n/a | V120: n/a | W120: n/a
A121: -15 | B121: 10 | C121: 31 | D121: 45.45896657 | E121: 66.99871161 | F121: 78.82749506 | G121: 88.31732643 | H121: 96.56357399 | I121: 104.9567317 | J121: 154.6882018 | K121: 181.9987754 | L121: 203.9091213 | M121: 222.9482517 | N121: 373.0309316 | O121: 549.7835452 | P121: 646.8491506 | Q121: 724.7215905 | R121: 792.3893278 | S121: 1133.131593 | T121: 1670.041414 | U121: 1964.891237 | V121: 2201.43924 | W121: 2406.989087
A122: -15 | B122: 10 | C122: 32 | D122: 15.08307071 | E122: 59.9654957 | F122: 71.94424814 | G122: 81.16648934 | H122: 89.04195967 | I122: 34.82414855 | J122: 138.4497474 | K122: 166.1065729 | L122: 187.3991004 | M122: 205.5821716 | N122: 123.7699038 | O122: 492.069803 | P122: 590.3660362 | Q122: 666.0426625 | R122: 730.6678455 | S122: 375.9677184 | T122: 1494.728165 | U122: 1793.316185 | V122: 2023.194109 | W122: 2219.501789
A123: -15 | B123: 10 | C123: 33 | D123: 10.3168443 | E123: 53.24895482 | F123: 65.64079831 | G123: 74.69459563 | H123: 82.27425403 | I123: 23.81977287 | J123: 122.9424398 | K123: 151.5530196 | L123: 172.4566399 | M123: 189.9567336 | N123: 84.65881059 | O123: 436.9546587 | P123: 538.6406684 | Q123: 612.9350642 | R123: 675.1328492 | S123: 257.1625161 | T123: 1327.308506 | U123: 1636.193428 | V123: 1861.872641 | W123: 2050.806773
A124: -15 | B124: 10 | C124: 34 | D124: 8.371397654 | E124: 46.65890182 | F124: 59.81483657 | G124: 68.79695221 | H124: 76.14628122 | I124: 19.32807988 | J124: 107.7271704 | K124: 138.1019021 | L124: 158.840022 | M124: 175.8083258 | N124: 68.69470428 | O124: 382.877459 | P124: 490.8335118 | Q124: 564.539696 | R124: 624.8474253 | S124: 208.6693974 | T124: 1163.041744 | U124: 1490.972764 | V124: 1714.865206 | W124: 1898.058039
A125: -15 | B125: 10 | C125: 35 | D125: 7.097651587 | E125: 39.94914456 | F125: 54.37848337 | G125: 63.38723821 | H125: 70.56507477 | I125: 16.38722499 | J125: 92.23552494 | K125: 125.5503219 | L125: 146.349947 | M125: 162.922305 | N125: 58.2424939 | O125: 327.8179804 | P125: 446.2234371 | Q125: 520.1482194 | R125: 579.0487018 | S125: 176.9194035 | T125: 995.7911769 | U125: 1355.463666 | V125: 1580.020129 | W125: 1758.938261
A126: -15 | B126: 10 | C126: 36 | D126: 6.13870817 | E126: 32.77769815 | F126: 49.25522211 | G126: 58.39349474 | H126: 65.45407229 | I126: 14.17319386 | J126: 75.67792074 | K126: 113.7216157 | L126: 134.8202746 | M126: 151.1219022 | N126: 50.37351704 | O126: 268.9699348 | P126: 404.1825579 | Q126: 479.170148 | R126: 537.1084167 | S126: 153.0163287 | T126: 817.032329 | U126: 1227.758845 | V126: 1455.543729 | W126: 1631.539008
A127: -15 | B127: 10 | C127: 37 | D127: 5.364421935 | E127: 24.81712555 | F127: 44.37824767 | G127: 53.75533614 | H127: 60.74961098 | I127: 12.38550359 | J127: 57.29836341 | K127: 102.4615424 | L127: 124.1115849 | M127: 140.2601312 | N127: 44.01981529 | O127: 203.6464126 | P127: 364.1626794 | Q127: 441.1099642 | R127: 498.5041607 | S127: 133.7161056 | T127: 618.6033502 | U127: 1106.193085 | V127: 1339.930805 | W127: 1514.273391
A128: -15 | B128: 10 | C128: 38 | D128: 4.712179171 | E128: 17.8315485 | F128: 39.69054608 | G128: 49.4220922 | H128: 56.39837066 | I128: 10.87959015 | J128: 41.16989873 | K128: 91.63846669 | L128: 114.1068893 | M128: 130.2138852 | N128: 38.66758791 | O128: 146.3235891 | P128: 325.6959517 | Q128: 405.5518742 | R128: 462.7983945 | S128: 117.4579955 | T128: 444.4775691 | U128: 989.3452296 | V128: 1231.918328 | W128: 1405.812327
A129: -15 | B129: 10 | C129: 39 | D129: 4.146886915 | E129: 13.50805717 | F129: 35.14743339 | G129: 45.35164213 | H129: 52.35551968 | I129: 9.574430084 | J129: 31.18772023 | K129: 81.1492212 | L129: 104.7089384 | M129: 120.8796557 | N129: 34.02886616 | O129: 110.845528 | P129: 288.4157034 | Q129: 372.1502398 | R129: 429.623235 | S129: 103.3672547 | T129: 336.7081898 | U129: 876.1014645 | V129: 1130.456374 | W129: 1305.038321
A130: -15 | B130: 10 | C130: 40 | D130: 3.64684166 | E130: 10.93934121 | F130: 30.71902555 | G130: 41.50970775 | H130: 48.58338122 | I130: 8.419913832 | J130: 25.25700839 | K130: 70.924809 | L130: 95.83858996 | M130: 112.1704537 | N130: 29.92555362 | O130: 89.76694702 | P130: 252.0767097 | Q130: 340.6237783 | R130: 398.6695106 | S130: 90.90289137 | T130: 272.679167 | U130: 765.7168869 | V130: 1034.690509 | W130: 1211.012223
A131: -15 | B131: 10 | C131: 41 | E131: 9.197803848 | F131: 26.4042192 | G131: 37.86936475 | H131: 45.05046681 | J131: 21.23610594 | K131: 60.96268257 | L131: 87.43368038 | M131: 104.0135778 | O131: 75.47609628 | P131: 216.6699164 | Q131: 310.7515519 | R131: 369.6788306 | T131: 229.2687871 | U131: 658.1639934 | V131: 943.9496066 | W131: 1122.949136
A132: -15 | B132: 10 | C132: 42 | E132: 7.900933116 | F132: 22.31763033 | G132: 34.41048962 | H132: 41.73073254 | J132: 18.24186028 | K132: 51.52747003 | L132: 79.4477481 | M132: 96.34889718 | O132: 64.83412763 | P132: 183.1358489 | Q132: 282.3684295 | R132: 342.4374817 | T132: 196.9423769 | U132: 556.2997561 | V132: 857.7320575 | W132: 1040.199877
A133: -15 | B133: 10 | C133: 43 | E133: 6.874528618 | F133: 18.69875174 | G133: 31.11893445 | H133: 38.60291938 | J133: 15.87207343 | K133: 43.17211798 | L133: 71.84812807 | M133: 89.12732858 | O133: 56.41157307 | P133: 153.4397569 | Q133: 255.358315 | R133: 316.7710149 | T133: 171.3577354 | U133: 466.0938852 | V133: 775.6852043 | W133: 962.2345346
A134: -15 | B134: 10 | C134: 44 | E134: 6.027516643 | F134: 15.68684418 | G134: 27.98664889 | H134: 35.64986732 | J134: 13.91647225 | K134: 36.21815495 | L134: 64.61623347 | M134: 82.3092525 | O134: 49.46109246 | P134: 128.7243979 | Q134: 229.6551482 | R134: 292.5386172 | T134: 150.2447163 | U134: 391.0176602 | V134: 697.6083804 | W134: 888.6253693
A135: -15 | B135: 10 | C135: 45 | E135: 5.307224366 | F135: 13.27654048 | G135: 25.01658844 | H135: 32.85777308 | J135: 12.25344449 | K135: 30.65318905 | L135: 57.75888802 | M135: 75.86279961 | O135: 43.55045877 | P135: 108.9457292 | Q135: 205.2831816 | R135: 269.6270203 | T135: 132.2903721 | U135: 330.9372958 | V135: 623.575256 | W135: 819.0283142
A136: -15 | C136: 46 | D136: n/a | E136: n/a | F136: n/a | G136: n/a | H136: n/a | I136: n/a | J136: n/a | K136: n/a | L136: n/a | M136: n/a | N136: n/a | O136: n/a | P136: n/a | Q136: n/a | R136: n/a | S136: n/a | T136: n/a | U136: n/a | V136: n/a | W136: n/a
A137: -10 | B137: -5 | C137: 31 | D137: 18.58830049 | E137: 24.8438261 | F137: 27.80678655 | G137: 29.98291862 | H137: 31.74510077 | I137: 42.91710554 | J137: 57.36001026 | K137: 64.20096307 | L137: 69.22526798 | M137: 73.2938356 | N137: 152.533407 | O137: 203.8655142 | P137: 228.179219 | Q137: 246.0363028 | R137: 260.4965622 | S137: 463.3407255 | T137: 619.2689006 | U137: 693.1250471 | V137: 747.368339 | W137: 791.2933207
A138: -10 | B138: -5 | C138: 32 | D138: 7.20728124 | E138: 22.93363482 | F138: 26.11878069 | G138: 28.35879875 | H138: 30.1423745 | I138: 16.64034051 | J138: 52.9497157 | K138: 60.30365541 | L138: 65.47546182 | M138: 69.59342348 | N138: 59.14210194 | O138: 188.1907093 | P138: 214.3276415 | Q138: 232.7089662 | R138: 247.344779 | S138: 179.6520839 | T138: 571.6545739 | U138: 651.0490186 | V138: 706.8847629 | W138: 751.3430114
A139: -10 | B139: -5 | C139: 33 | D139: 5.061215972 | E139: 20.993926 | F139: 24.48414259 | G139: 26.80494422 | H139: 28.61657476 | I139: 11.68545452 | J139: 48.47127033 | K139: 56.52956451 | L139: 61.88788593 | M139: 66.07062113 | N139: 41.53174283 | O139: 172.2736869 | P139: 200.9139936 | Q139: 219.9582188 | R139: 234.8242458 | S139: 126.1582511 | T139: 523.304479 | U139: 610.3032601 | V139: 668.1526538 | W139: 713.310209
A140: -10 | B140: -5 | C140: 34 | D140: 4.15111475 | E140: 18.97045182 | F140: 22.89140228 | G140: 25.31368188 | H140: 27.1607736 | I140: 9.584191407 | J140: 43.79942552 | K140: 52.85220821 | L140: 58.44482434 | M140: 62.70943317 | N140: 34.06355927 | O140: 155.6692958 | P140: 187.844154 | Q140: 207.7210954 | R140: 222.8781128 | S140: 103.4726397 | T140: 472.8664093 | U140: 570.6018657 | V140: 630.9807469 | W140: 677.0222244
A141: -10 | B141: -5 | C141: 35 | D141: 3.54402223 | E141: 16.77578284 | F141: 21.32847989 | G141: 23.87773428 | H141: 25.76864006 | I141: 8.182521912 | J141: 38.73232214 | K141: 49.24369621 | L141: 55.12947473 | M141: 59.4952425 | N141: 29.08182947 | O141: 137.6601003 | P141: 175.0189967 | Q141: 195.9378783 | R141: 211.4544288 | S141: 88.33996587 | T141: 418.1610575 | U141: 531.6437266 | V141: 595.1876412 | W141: 642.3212486
A142: -10 | B142: -5 | C142: 36 | D142: 3.080968318 | E142: 14.26451749 | F142: 19.78259035 | G142: 22.49015584 | H142: 24.43434953 | I142: 7.113412147 | J142: 32.93425363 | K142: 45.67451008 | L142: 51.92580099 | M142: 56.41460112 | N142: 25.28206355 | O142: 117.0529524 | P142: 162.3336091 | Q142: 184.5515729 | R142: 200.5053976 | S142: 76.79766617 | T142: 355.5640758 | U142: 493.1101566 | V142: 560.6002081 | W142: 609.0620949
A143: -10 | B143: -5 | C143: 37 | D143: 2.70325222 | E143: 11.25335797 | F143: 18.24034732 | G143: 21.14434003 | H143: 23.1525221 | I143: 6.241332331 | J143: 25.98201766 | K143: 42.11374307 | L143: 48.81854979 | M143: 53.45508778 | N143: 22.18256969 | O143: 92.34373156 | P143: 149.6781442 | Q143: 173.5079668 | R143: 189.9868725 | S143: 67.38253695 | T143: 280.5064964 | U143: 454.6674809 | V143: 527.05377 | W143: 577.1106611
A144: -10 | B144: -5 | C144: 38 | D144: 2.382379464 | E144: 8.393641705 | F144: 16.68830326 | G144: 19.8341117 | H144: 21.9181939 | I144: 5.500493762 | J144: 19.37943747 | K144: 38.53034723 | L144: 45.79346377 | M144: 50.60524181 | N144: 19.5495256 | O144: 68.87723634 | P144: 136.9422532 | Q144: 162.7563871 | R144: 179.8581206 | S144: 59.38431164 | T144: 209.2238631 | U144: 415.9805004 | V144: 494.3944018 | W144: 546.3432157
A145: -10 | B145: -5 | C145: 39 | D145: 2.102266971 | E145: 6.510866798 | F145: 15.11436264 | G145: 18.55390659 | H145: 20.72682453 | I145: 4.853763448 | J145: 15.03244246 | K145: 34.89639609 | L145: 42.8376961 | M145: 47.85458017 | N145: 17.25095544 | O145: 53.42740696 | P145: 124.0266816 | Q145: 152.2511747 | R145: 170.0818837 | S145: 52.40209582 | T145: 162.2929297 | U145: 376.7477158 | V145: 462.4834069 | W145: 516.6465821
A146: -10 | B146: -5 | C146: 40 | D146: 1.852909705 | E146: 5.348148829 | F146: 13.50942475 | G146: 17.29901935 | H146: 19.57433975 | I146: 4.278041526 | J146: 12.34793185 | K146: 31.19087773 | L146: 39.94038292 | M146: 45.19369619 | N146: 15.20475905 | O146: 43.88628009 | P146: 110.8567502 | Q146: 141.9537176 | R146: 160.6247291 | S146: 46.18649927 | T146: 133.3104745 | U146: 336.7422787 | V146: 431.2034971 | W146: 487.9192041
A147: -10 | B147: -5 | C147: 41 | E147: 4.540216415 | F147: 11.87380016 | G147: 16.06587638 | H147: 18.45720124 | J147: 10.48255849 | K147: 27.41450919 | L147: 37.0932734 | M147: 42.61442052 | O147: 37.25648176 | P147: 97.43500717 | Q147: 131.8346915 | R147: 151.457622 | T147: 113.1715709 | U147: 295.9719304 | V147: 400.465595 | W147: 460.0728839
A148: -10 | B148: -5 | C148: 42 | E148: 3.927930713 | F148: 10.25478348 | G148: 14.85225293 | H148: 17.37248391 | J148: 9.068898853 | K148: 23.67648538 | L148: 34.29123103 | M148: 40.10999962 | O148: 32.23213732 | P148: 84.14954678 | Q148: 121.8758402 | R148: 142.5565591 | T148: 97.9094494 | U148: 255.6155588 | V148: 370.2142458 | W148: 433.0347092
A149: -10 | B149: -5 | C149: 43 | E149: 3.436745094 | F149: 8.760550211 | G149: 13.65735367 | H149: 16.31793081 | J149: 7.934837938 | K149: 20.22656446 | L149: 31.5324195 | M149: 37.67522261 | O149: 28.20152592 | P149: 71.88804438 | Q149: 112.0706375 | R149: 133.9030205 | T149: 85.66592551 | U149: 218.3695972 | V149: 340.4296245 | W149: 406.7484224
A150: -10 | B150: -5 | C150: 44 | E150: 3.026938032 | F150: 7.471008656 | G150: 12.48219903 | H150: 15.29195386 | J150: 6.988665751 | K150: 17.24924057 | L150: 28.81919482 | M150: 35.30642288 | O150: 24.83869738 | P150: 61.30621809 | Q150: 102.4274568 | R150: 125.4839743 | T150: 75.45088183 | U150: 186.2258775 | V150: 311.137167 | W150: 381.1744381
A151: -10 | B151: -5 | C151: 45 | E151: 2.675212681 | F151: 6.407454451 | G151: 11.33190681 | H151: 14.29356856 | J151: 6.176593984 | K151: 14.7936816 | L151: 26.16337307 | M151: 33.00132741 | O151: 21.95248053 | P151: 52.57881741 | Q151: 92.98829411 | R151: 117.291342 | T151: 66.68361021 | U151: 159.7152249 | V151: 282.4644418 | W151: 356.2882163
C152: 46 | D152: n/a | E152: n/a | F152: n/a | G152: n/a | H152: n/a | I152: n/a | J152: n/a | K152: n/a | L152: n/a | M152: n/a | N152: n/a | O152: n/a | P152: n/a | Q152: n/a | R152: n/a | S152: n/a | T152: n/a | U152: n/a | V152: n/a | W152: n/a
A153: -10 | B153: 0 | C153: 31 | D153: 27.76122138 | E153: 37.94404422 | F153: 42.92990926 | G153: 46.66117836 | H153: 49.72686172 | I153: 64.09576113 | J153: 87.6061021 | K153: 99.11758462 | L153: 107.7324265 | M153: 114.8105484 | N153: 227.8053166 | O153: 311.3643629 | P153: 352.2777848 | Q153: 382.8961401 | R153: 408.052777 | S153: 691.9892683 | T153: 945.8111023 | U153: 1070.091121 | V153: 1163.09849 | W153: 1239.515156
A154: -10 | B154: 0 | C154: 32 | D154: 10.34701015 | E154: 34.78602836 | F154: 40.07627736 | G154: 43.87077062 | H154: 46.93694393 | I154: 23.88942049 | J154: 80.31480076 | K154: 92.52905213 | L154: 101.2898675 | M154: 108.3691206 | N154: 84.90634799 | O154: 285.4500562 | P154: 328.8612171 | Q154: 359.9983825 | R154: 385.1590399 | S154: 257.9144442 | T154: 867.0929127 | U154: 998.9601488 | V154: 1093.543474 | W154: 1169.972352
A155: -10 | B155: 0 | C155: 33 | D155: 7.213365433 | E155: 31.62329677 | F155: 37.34606516 | G155: 41.23202283 | H155: 44.31143552 | I155: 16.65438784 | J155: 73.01261166 | K155: 86.22547398 | L155: 95.19746449 | M155: 102.3072849 | N155: 59.19202811 | O155: 259.4970529 | P155: 306.4574171 | Q155: 338.3451286 | R155: 363.6144267 | S155: 179.8037413 | T155: 788.2571769 | U155: 930.9055948 | V155: 1027.768804 | W155: 1104.527694
A156: -10 | B156: 0 | C156: 34 | D156: 5.898131924 | E156: 28.37033944 | F156: 34.71669766 | G156: 38.72753632 | H156: 41.8336473 | I156: 13.61774577 | J156: 65.50210724 | K156: 80.15472842 | L156: 89.4150471 | M156: 96.58650921 | N156: 48.39937667 | O156: 232.8036678 | P156: 284.8811367 | Q156: 317.7936069 | R156: 343.2819881 | S156: 147.0196119 | T156: 707.1724317 | U156: 865.3647432 | V156: 965.3407951 | W156: 1042.765179
A157: -10 | B157: 0 | C157: 35 | D157: 5.025265892 | E157: 24.89452003 | F157: 32.16566285 | G157: 36.34141654 | H157: 39.48873516 | I157: 11.60245213 | J157: 57.4770536 | K157: 74.26483923 | L157: 83.9059176 | M157: 91.17252089 | N157: 41.2367407 | O157: 204.2815026 | P157: 263.9476452 | Q157: 298.2133887 | R157: 324.039915 | S157: 125.2621425 | T157: 620.5325213 | U157: 801.776449 | V157: 905.8632505 | W157: 984.3147956
A158: -10 | B158: 0 | C158: 36 | D158: 4.361886928 | E158: 20.98255314 | F158: 29.67031859 | G158: 34.05904354 | H158: 37.26340602 | I158: 10.07082717 | J158: 48.4450124 | K158: 68.50352968 | L158: 78.63632112 | M158: 86.0346286 | N158: 35.79313097 | O158: 172.1803625 | P158: 243.4711437 | Q158: 279.4845044 | R158: 305.7791259 | S158: 108.7264462 | T158: 523.0209937 | U158: 739.5763236 | V158: 848.9717471 | W158: 928.8451942
A159: -10 | B159: 0 | C159: 37 | D159: 3.822289322 | E159: 16.38125473 | F159: 27.20804419 | G159: 31.86698188 | H159: 35.14570043 | I159: 8.824991523 | J159: 37.82142637 | K159: 62.81857262 | L159: 73.57523758 | M159: 81.14522011 | N159: 31.3652565 | O159: 134.4226491 | P159: 223.2660097 | Q159: 261.4967043 | R159: 288.4014829 | S159: 95.27618237 | T159: 408.3268643 | U159: 678.2005133 | V159: 794.3313866 | W159: 876.058268
A160: -10 | B160: 0 | C160: 38 | D160: 3.364969164 | E160: 12.09903724 | F160: 24.75708567 | G160: 29.75304138 | H160: 33.12485049 | I160: 7.769119982 | J160: 27.93454187 | K160: 57.15974191 | L160: 68.69452202 | M160: 76.47943422 | N160: 27.61254108 | O160: 99.28327618 | P160: 203.1537324 | Q160: 244.1499572 | R160: 271.8186261 | S160: 83.8768049 | T160: 301.5862959 | U160: 617.1067677 | V160: 741.6383109 | W160: 825.6856115
A161: -10 | B161: 0 | C161: 39 | D161: 2.966544682 | E161: 9.325113765 | F161: 22.29872176 | G161: 27.70648115 | H161: 31.19121137 | I161: 6.849228163 | J161: 21.53004207 | K161: 51.48381348 | L161: 63.96937559 | M161: 72.01500273 | N161: 24.34311666 | O161: 76.52078648 | P161: 182.9806874 | Q161: 227.3561247 | R161: 255.951411 | S161: 73.94548877 | T161: 232.442174 | U161: 555.8284322 | V161: 690.6247874 | W161: 777.4868129
A162: -10 | B162: 0 | C162: 40 | D162: 2.612493265 | E162: 7.629705287 | F162: 19.81965637 | G162: 25.71831746 | H162: 29.3362595 | I162: 6.031785921 | J162: 17.61564309 | K162: 45.76008896 | L162: 59.37905649 | M162: 67.7322462 | N162: 21.43781238 | O162: 62.60846397 | P162: 162.6377684 | Q162: 211.0414874 | R162: 240.7298942 | S162: 65.12023653 | T162: 190.1816244 | U162: 494.0340815 | V162: 641.0668838 | W162: 731.2494097
A163: -10 | B163: 0 | C163: 41 | E163: 6.459454461 | F163: 17.32150302 | G163: 23.78166086 | H163: 27.55263939 | J163: 14.91374045 | K163: 39.99229373 | L163: 54.90765816 | M163: 63.61418213 | O163: 53.00552337 | P163: 142.1382159 | Q163: 195.1495112 | R163: 226.0937174 | T163: 161.0114016 | U163: 431.7639355 | V163: 592.7928699 | W163: 686.7900555
A164: -10 | B164: 0 | C164: 42 | E164: 5.576827558 | F164: 14.87639172 | G164: 21.89195468 | H164: 25.83422531 | J164: 12.87591069 | K164: 34.34696325 | L164: 50.54466007 | M164: 59.64666725 | O164: 45.76279084 | P164: 122.0739203 | Q164: 179.6428046 | R164: 211.9926135 | T164: 139.0106281 | U164: 370.8159408 | V164: 545.6891644 | W164: 643.9560572
A165: -10 | B165: 0 | C165: 43 | E165: 4.871395107 | F165: 12.64377031 | G165: 20.04699616 | H165: 24.1761495 | J165: 11.24719164 | K165: 29.19223439 | L165: 46.28497642 | M165: 55.81846282 | O165: 39.97409514 | P165: 103.7532917 | Q165: 164.503292 | R165: 198.3866386 | T165: 121.4266869 | U165: 315.1645688 | V165: 499.7008601 | W165: 602.6260795
A166: -10 | B166: 0 | C166: 44 | E166: 4.284616517 | F166: 10.735261 | G166: 18.24742655 | H166: 22.574749 | J166: 9.892423428 | K166: 24.78582318 | L166: 42.13008776 | M166: 52.12111165 | O166: 35.15905906 | P166: 88.09228876 | Q166: 149.7362355 | R166: 185.2457344 | T166: 106.8003676 | U166: 267.5921675 | V166: 454.8439411 | W166: 562.7088169
A167: -10 | B167: 0 | C167: 45 | E167: 3.782287075 | F167: 9.173781701 | G167: 16.50006882 | H167: 21.02741621 | J167: 8.732633393 | K167: 21.18064304 | L167: 38.09574713 | M167: 48.5485933 | O167: 31.03700276 | P167: 75.27897337 | Q167: 135.3976236 | R167: 172.5485036 | T167: 94.27906753 | U167: 228.6699997 | V167: 411.2884802 | W167: 524.1392716
C168: 46 | D168: n/a | E168: n/a | F168: n/a | G168: n/a | H168: n/a | I168: n/a | J168: n/a | K168: n/a | L168: n/a | M168: n/a | N168: n/a | O168: n/a | P168: n/a | Q168: n/a | R168: n/a | S168: n/a | T168: n/a | U168: n/a | V168: n/a | W168: n/a
A169: -10 | B169: 5 | C169: 31 | D169: 36.30349548 | E169: 51.16173978 | F169: 58.77886665 | G169: 64.63509858 | H169: 69.55023171 | I169: 83.81836457 | J169: 118.1234286 | K169: 135.7100303 | L169: 149.2310364 | M169: 160.5792115 | N169: 297.9022129 | O169: 419.8272176 | P169: 482.3324645 | Q169: 530.3880148 | R169: 570.7210191 | S169: 904.9180124 | T169: 1275.281602 | U169: 1465.149691 | V169: 1611.124884 | W169: 1733.641805
A170: -10 | B170: 5 | C170: 32 | D170: 12.86755118 | E170: 46.45587407 | F170: 54.39068973 | G170: 60.24274195 | H170: 65.07335562 | I170: 29.70890492 | J170: 107.2584151 | K170: 125.5785042 | L170: 139.0898601 | M170: 150.2428946 | N170: 105.5896111 | O170: 381.2114372 | P170: 446.323601 | Q170: 494.3448531 | R170: 533.9843006 | S170: 320.7426359 | T170: 1157.980979 | U170: 1355.767928 | V170: 1501.638935 | W170: 1622.049085
A171: -10 | B171: 5 | C171: 33 | D171: 8.892109419 | E171: 41.83217871 | F171: 50.26372146 | G171: 56.15863596 | H171: 60.93131561 | I171: 20.53031145 | J171: 96.5831185 | K171: 116.0500628 | L171: 129.6603801 | M171: 140.6796552 | N171: 72.96760376 | O171: 343.2699371 | P171: 412.4581849 | Q171: 460.8311598 | R171: 499.9952075 | S171: 221.6489039 | T171: 1042.728572 | U171: 1252.897175 | V171: 1399.836587 | W171: 1518.802646
A172: -10 | B172: 5 | C172: 34 | D172: 7.244199725 | E172: 37.16705589 | F172: 46.35356977 | G172: 52.34332623 | H172: 57.08393761 | I172: 16.72557878 | J172: 85.81217317 | K172: 107.0222126 | L172: 120.8515032 | M172: 131.7967383 | N172: 59.44505069 | O172: 304.9884881 | P172: 380.3719402 | Q172: 429.523177 | R172: 468.4240762 | S172: 180.5723314 | T172: 926.4435256 | U172: 1155.430894 | V172: 1304.734382 | W172: 1422.901092
A173: -10 | B173: 5 | C173: 35 | D173: 6.157187122 | E173: 32.28077162 | F173: 42.61884913 | G173: 48.76232871 | H173: 53.49672988 | I173: 14.2158585 | J173: 74.53060507 | K173: 98.39940167 | L173: 112.5836119 | M173: 123.5145087 | N173: 50.52515315 | O173: 264.8922142 | P173: 349.725262 | Q173: 400.1379326 | R173: 438.9878717 | S173: 153.4769437 | T173: 804.6457044 | U173: 1062.337489 | V173: 1215.472752 | W173: 1333.484664
A174: -10 | B174: 5 | C174: 36 | D174: 5.334569969 | E174: 26.89925189 | F174: 39.02053982 | G174: 45.38526408 | H174: 50.13984497 | I174: 12.31658066 | J174: 62.1056257 | K174: 90.09154047 | L174: 104.7865656 | M174: 115.7640538 | N174: 43.77485357 | O174: 220.7320964 | P174: 320.1979591 | Q174: 372.4261376 | R174: 411.441669 | S174: 132.9720014 | T174: 670.5034112 | U174: 972.6443382 | V174: 1131.29445 | W174: 1249.809371
A175: -10 | B175: 5 | C175: 37 | D175: 4.667671796 | E175: 20.72376164 | F175: 35.52193749 | G175: 42.18531344 | H175: 46.9872948 | I175: 10.77683047 | J175: 47.8475085 | K175: 82.01388509 | L175: 97.39844426 | M175: 108.4853718 | N175: 38.30236562 | O175: 170.0567499 | P175: 291.48884 | Q175: 346.1677191 | R175: 385.5722132 | S175: 116.3485837 | T175: 516.570235 | U175: 885.4365301 | V175: 1051.530975 | W175: 1171.227422
A176: -10 | B176: 5 | C176: 38 | D176: 4.104017341 | E176: 15.12094874 | F176: 32.0896155 | G176: 39.1389699 | H176: 44.0163784 | I176: 9.475451803 | J176: 34.91160224 | K176: 74.08925931 | L176: 90.36497463 | M176: 101.6260501 | N176: 33.67708348 | O176: 124.0807264 | P176: 263.3236095 | Q176: 321.1697824 | R176: 361.1932228 | S176: 102.2986676 | T176: 376.911884 | U176: 799.8808569 | V176: 975.5963822 | W176: 1097.172962
A177: -10 | B177: 5 | C177: 39 | D177: 3.614111603 | E177: 11.56345637 | F177: 28.69615602 | G177: 36.22604149 | H177: 41.20729027 | I177: 8.344345906 | J177: 26.69798015 | K177: 66.25436022 | L177: 83.63953697 | M177: 95.14036136 | N177: 29.65697462 | O177: 94.88836256 | P177: 235.4772803 | Q177: 297.2666346 | R177: 338.1421761 | S177: 90.08704657 | T177: 288.2361551 | U177: 715.293889 | V177: 902.9873578 | W177: 1027.152309
A178: -10 | B178: 5 | C178: 40 | D178: 3.179669814 | E178: 9.416281986 | F178: 25.32298567 | G178: 33.42982411 | H178: 38.54287695 | I178: 7.341296483 | J178: 21.74053341 | K178: 58.46630514 | L178: 77.1835645 | M178: 88.98870118 | N178: 26.09199642 | O178: 77.26890218 | P178: 207.7974412 | Q178: 274.3212038 | R178: 316.2783138 | S178: 79.2579461 | T178: 234.714676 | U178: 631.2126574 | V178: 833.2875276 | W178: 960.7378886
A179: -10 | B179: 5 | C179: 41 | E179: 7.946027199 | F179: 21.97242125 | G179: 30.73732372 | H179: 36.00849941 | J179: 18.34597456 | K179: 50.73044318 | L179: 70.96705623 | M179: 83.13727069 | O179: 65.20416437 | P179: 180.3031038 | Q179: 252.2268623 | R179: 295.4815098 | T179: 198.0664133 | U179: 547.694912 | V179: 766.1729957 | W179: 897.5648013
A180: -10 | B180: 5 | C180: 42 | E180: 6.843454396 | F180: 18.73922072 | G180: 28.13934635 | H180: 33.59194232 | J180: 15.80032853 | K180: 43.26555371 | L180: 64.96878496 | M180: 77.55786682 | O180: 56.15658166 | P180: 153.7718406 | Q180: 230.9081656 | R180: 275.6515267 | T180: 170.5831647 | U180: 467.102634 | V180: 701.4145892 | W180: 837.3285622
A181: -10 | B181: 5 | C181: 43 | E181: 5.966111521 | F181: 15.82612504 | G181: 25.63030254 | H181: 31.28329715 | J181: 13.77469866 | K181: 36.53972988 | L181: 59.17584558 | M181: 72.22761254 | O181: 48.95720925 | P181: 129.8673202 | Q181: 210.3192473 | R181: 256.707056 | T181: 148.7141034 | U181: 394.4894404 | V181: 638.8729825 | W181: 779.7821863
A182: -10 | B182: 5 | C182: 44 | E182: 5.238947906 | F182: 13.36498707 | G182: 23.20866391 | H182: 29.07475246 | J182: 12.0958062 | K182: 30.85739662 | L182: 53.58470931 | M182: 67.1284726 | O182: 42.99019017 | P182: 109.6715116 | Q182: 190.4475656 | R182: 238.5839982 | T182: 130.5884809 | U182: 333.1419572 | V182: 578.5100782 | W182: 724.7309621
A183: -10 | B183: 5 | C183: 45 | E183: 4.618311515 | F183: 11.37096941 | G183: 20.88117672 | H183: 26.96027537 | J183: 10.66286629 | K183: 26.25356172 | L183: 48.21095212 | M183: 62.24651814 | O183: 37.89732096 | P183: 93.30883719 | Q183: 171.3484795 | R183: 221.2328479 | T183: 115.1182061 | U183: 283.4381345 | V183: 520.4940372 | W183: 672.0245112
C184: 46 | D184: n/a | E184: n/a | F184: n/a | G184: n/a | H184: n/a | I184: n/a | J184: n/a | K184: n/a | L184: n/a | M184: n/a | N184: n/a | O184: n/a | P184: n/a | Q184: n/a | R184: n/a | S184: n/a | T184: n/a | U184: n/a | V184: n/a | W184: n/a
A185: -10 | B185: 10 | C185: 31 | D185: 45.45222726 | E185: 66.99937334 | F185: 78.83222116 | G185: 88.32531323 | H185: 96.5743942 | I185: 104.9411718 | J185: 154.6897296 | K185: 182.0096871 | L185: 203.9275614 | M185: 222.9732337 | N185: 372.9756296 | O185: 549.7889753 | P185: 646.8879324 | Q185: 724.7871292 | R185: 792.4781171 | S185: 1132.963606 | T185: 1670.057909 | U185: 1965.009042 | V185: 2201.638322 | W185: 2407.258797
A186: -10 | B186: 10 | C186: 32 | D186: 15.06589426 | E186: 59.96374082 | F186: 71.94660916 | G186: 81.17201911 | H186: 89.05019545 | I186: 34.78449115 | J186: 138.4456957 | K186: 166.1120241 | L186: 187.4118677 | M186: 205.6011866 | N186: 123.6289558 | O186: 492.0554027 | P186: 590.3854104 | Q186: 666.0880392 | R186: 730.7354274 | S186: 375.5395701 | T186: 1494.684422 | U186: 1793.375037 | V186: 2023.331947 | W186: 2219.707078
A187: -10 | B187: 10 | C187: 33 | D187: 10.29803018 | E187: 53.24489214 | F187: 65.64099346 | G187: 74.69790167 | H187: 82.28016443 | I187: 23.77633438 | J187: 122.9330598 | K187: 151.5534702 | L187: 172.464273 | M187: 189.9703796 | N187: 84.50442409 | O187: 436.9213208 | P187: 538.6422699 | Q187: 612.9621931 | R187: 675.1813493 | S187: 256.6935463 | T187: 1327.207238 | U187: 1636.198293 | V187: 1861.955049 | W187: 2050.954099
A188: -10 | B188: 10 | C188: 34 | D188: 8.351915073 | E188: 46.6525748 | F188: 59.81302992 | G188: 68.79823181 | H188: 76.15008605 | I188: 19.28309804 | J188: 107.7125624 | K188: 138.0977309 | L188: 158.8429764 | M188: 175.8171104 | N188: 68.53483251 | O188: 382.8255403 | P188: 490.8186867 | Q188: 564.5501964 | R188: 624.8786473 | S188: 208.1837654 | T188: 1162.884034 | U188: 1490.927731 | V188: 1714.897102 | W188: 1898.15288
A189: -10 | B189: 10 | C189: 35 | D189: 7.077731348 | E189: 39.94051207 | F189: 54.3748088 | G189: 63.38665904 | H189: 70.5669619 | I189: 16.34123267 | J189: 92.21559406 | K189: 125.541838 | L189: 146.3486098 | M189: 162.926662 | N189: 58.07903076 | O189: 327.7471432 | P189: 446.193284 | Q189: 520.1434668 | R189: 579.0641874 | S189: 176.4228623 | T189: 995.5759995 | U189: 1355.372072 | V189: 1580.005692 | W189: 1758.9853
A190: -10 | B190: 10 | C190: 36 | D190: 6.118458439 | E190: 32.76660156 | F190: 49.24978719 | G190: 58.39119972 | H190: 65.45420329 | I190: 14.12644081 | J190: 75.65230067 | K190: 113.7090675 | L190: 134.8149758 | M190: 151.1222046 | N190: 50.20735013 | O190: 268.8788775 | P190: 404.1379596 | Q190: 479.1513154 | R190: 537.1094917 | S190: 152.5115743 | T190: 816.7557302 | U190: 1227.623372 | V190: 1455.486522 | W190: 1631.542273
A191: -10 | B191: 10 | C191: 37 | D191: 5.343906159 | E191: 24.80329372 | F191: 44.37113703 | G191: 53.75144746 | H191: 60.74812552 | I191: 12.33813628 | J191: 57.26642814 | K191: 102.4451252 | L191: 124.1026066 | M191: 140.2567016 | N191: 43.85146525 | O191: 203.5329102 | P191: 364.1043303 | Q191: 441.0780541 | R191: 498.4919712 | S191: 133.2047197 | T191: 618.2585713 | U191: 1106.015842 | V191: 1339.833874 | W191: 1514.236364
A192: -10 | B192: 10 | C192: 38 | D192: 4.691439285 | E192: 17.81531642 | F192: 39.68182474 | G192: 49.41671461 | H192: 56.39539012 | I192: 10.83170541 | J192: 41.13242173 | K192: 91.61833066 | L192: 114.0944734 | M192: 130.2070037 | N192: 38.49739884 | O192: 146.1903906 | P192: 325.6243854 | Q192: 405.5077464 | R192: 462.7739366 | S192: 116.9410234 | T192: 444.0729607 | U192: 989.1278374 | V192: 1231.784283 | W192: 1405.738033
A193: -10 | B193: 10 | C193: 39 | D193: 4.125952795 | E193: 13.49033954 | F193: 35.13715104 | G193: 45.34486594 | H193: 52.35115002 | I193: 9.526096894 | J193: 31.14681336 | K193: 81.12548107 | L193: 104.6932934 | M193: 120.869567 | N193: 33.85708323 | O193: 110.7001392 | P193: 288.3313276 | Q193: 372.0946352 | R193: 429.5873781 | S193: 102.845441 | T193: 336.2665518 | U193: 875.8451619 | V193: 1130.287467 | W193: 1304.929401
A194: -10 | B194: 10 | C194: 40 | D194: 3.625735724 | E194: 10.92074098 | F194: 30.70722161 | G194: 41.50161148 | H194: 48.57771545 | I194: 8.371183951 | J194: 25.21406373 | K194: 70.89755576 | L194: 95.81989709 | M194: 112.1573724 | N194: 29.75236079 | O194: 89.61431567 | P194: 251.9798479 | Q194: 340.5573413 | R194: 398.623018 | S194: 90.37679489 | T194: 272.2155288 | U194: 765.4226562 | V194: 1034.488698 | W194: 1210.870995
A195: -10 | B195: 10 | C195: 41 | E195: 9.17860522 | F195: 26.39093269 | G195: 37.86001765 | H195: 45.04358714 | J195: 21.1917797 | K195: 60.93200636 | L195: 87.41209958 | M195: 103.9976938 | O195: 75.3185546 | P195: 216.5608888 | Q195: 310.6748507 | R195: 369.6223768 | T195: 228.7902331 | U195: 657.8328075 | V195: 943.7166165 | W195: 1122.77765
A196: -10 | B196: 10 | C196: 42 | E196: 7.881288884 | F196: 22.30293967 | G196: 34.39995406 | H196: 41.7227122 | J196: 18.19650522 | K196: 51.49355188 | L196: 79.42342334 | M196: 96.33037965 | O196: 64.67292937 | P196: 183.0152991 | Q196: 282.281976 | R196: 342.3716678 | T196: 196.4527156 | U196: 555.9335697 | V196: 857.4694431 | W196: 1039.999959
A197: -10 | B197: 10 | C197: 43 | E197: 6.854531714 | F197: 18.68281763 | G197: 31.10726791 | H197: 38.59382434 | J197: 15.8259041 | K197: 43.13532894 | L197: 71.82119209 | M197: 89.10632972 | O197: 56.24748083 | P197: 153.3090035 | Q197: 255.2625808 | R197: 316.6963821 | T197: 170.8592832 | U197: 465.6967041 | V197: 775.3943986 | W197: 962.0078272
A198: -10 | B198: 10 | C198: 44 | E198: 6.007228707 | F198: 15.66987519 | G198: 27.9739061 | H198: 35.63975761 | J198: 13.86963098 | K198: 36.17897653 | L198: 64.58681261 | M198: 82.28591095 | O198: 49.29461203 | P198: 128.5851523 | Q198: 229.5505824 | R198: 292.455658 | T198: 149.7390097 | U198: 390.594683 | V198: 697.2907476 | W198: 888.3733698
A199: -10 | B199: 10 | C199: 45 | E199: 5.286688937 | F199: 13.2587433 | G199: 25.00282514 | H199: 32.846704 | J199: 12.20603181 | K199: 30.61209851 | L199: 57.72711098 | M199: 75.83724306 | O199: 43.38194745 | P199: 108.7996877 | Q199: 205.1702416 | R199: 269.5361887 | T199: 131.7784963 | U199: 330.493675 | V199: 623.2321854 | W199: 818.7524012
C200: 46 | D200: n/a | E200: n/a | F200: n/a | G200: n/a | H200: n/a | I200: n/a | J200: n/a | K200: n/a | L200: n/a | M200: n/a | N200: n/a | O200: n/a | P200: n/a | Q200: n/a | R200: n/a | S200: n/a | T200: n/a | U200: n/a | V200: n/a | W200: n/a
A201: -5 | B201: -5 | C201: 31
... 63 more rows

Sheet E-HotGasFlowDat (hidden)
A1: Eingaben= kW, A3 oder B3, C4 bis C18, D3 bis H3 | D1: CX4 | I1: CX5 | N1: CX6 | S1: CX7
D2: Gas cooler pressure, bara | I2: Gas cooler pressure, bara | N2: Gas cooler pressure, bara | S2: Gas cooler pressure, bara
A3: Saturated suction temperature, °C | B3: Suction pressure, bara | C3: Gas cooler outlet temperature, °C | D3: 75 | E3: 85 | F3: 95 | G3: 105 | H3: 115 | I3: =$D3 -> 75 | J3: =$E3 -> 85 | K3: =$F3 -> 95 | L3: =$G3 -> 105 | M3: =$H3 -> 115 | N3: =$D3 -> 75 | O3: =$E3 -> 85 | P3: =$F3 -> 95 | Q3: =$G3 -> 105 | R3: =$H3 -> 115 | S3: =$D3 -> 75 | T3: =$E3 -> 85 | U3: =$F3 -> 95 | V3: =$G3 -> 105 | W3: =$H3 -> 115
A4: -5 | B4: 30.5 | C4: 31 | D4: 23 | E4: 29 | F4: 32 | G4: 32 | H4: 34 | I4: 76 | J4: 94 | K4: 102 | L4: 105 | M4: 112 | N4: 176 | O4: 217 | P4: 236 | Q4: 243 | R4: 258 | S4: 624 | T4: 773 | U4: 838 | V4: 862 | W4: 916
A5: -5 | B5: 30.5 | C5: 32 | D5: 11 | E5: 28 | F5: 31 | G5: 32 | H5: 34 | I5: 35 | J5: 90 | K5: 99 | L5: 102 | M5: 109 | N5: 80 | O5: 208 | P5: 229 | Q5: 236 | R5: 252 | S5: 284 | T5: 740 | U5: 813 | V5: 839 | W5: 896
A6: -5 | B6: 30.5 | C6: 33 | D6: 8 | E6: 26 | F6: 30 | G6: 31 | H6: 33 | I6: 25 | J6: 86 | K6: 96 | L6: 99 | M6: 107 | N6: 57 | O6: 198 | P6: 221 | Q6: 229 | R6: 246 | S6: 204 | T6: 703 | U6: 787 | V6: 815 | W6: 875
A7: -5 | B7: 30.5 | C7: 34 | D7: 6 | E7: 25 | F7: 29 | G7: 30 | H7: 32 | I7: 21 | J7: 81 | K7: 93 | L7: 96 | M7: 104 | N7: 47 | O7: 186 | P7: 214 | Q7: 222 | R7: 240 | S7: 168 | T7: 661 | U7: 759 | V7: 790 | W7: 855
A8: -5 | B8: 30.5 | C8: 35 | D8: 5 | E8: 23 | F8: 27 | G8: 29 | H8: 31 | I8: 18 | J8: 74 | K8: 89 | L8: 93 | M8: 102 | N8: 41 | O8: 171 | P8: 205 | Q8: 215 | R8: 235 | S8: 144 | T8: 609 | U8: 730 | V8: 764 | W8: 834
A9: -5 | B9: 30.5 | C9: 36 | D9: 5 | E9: 20 | F9: 26 | G9: 28 | H9: 31 | I9: 15 | J9: 66 | K9: 85 | L9: 90 | M9: 99 | N9: 35 | O9: 153 | P9: 197 | Q9: 207 | R9: 229 | S9: 126 | T9: 542 | U9: 699 | V9: 737 | W9: 812
A10: -5 | B10: 30.5 | C10: 37 | D10: 4 | E10: 17 | F10: 25 | G10: 27 | H10: 30 | I10: 13 | J10: 55 | K10: 81 | L10: 86 | M10: 96 | N10: 31 | O10: 127 | P10: 187 | Q10: 199 | R10: 222 | S10: 111 | T10: 450 | U10: 665 | V10: 708 | W10: 790
A11: -5 | B11: 30.5 | C11: 38 | D11: 4 | E11: 13 | F11: 24 | G11: 26 | H11: 29 | I11: 12 | J11: 43 | K11: 76 | L11: 83 | M11: 94 | N11: 27 | O11: 99 | P11: 177 | Q11: 191 | R11: 216 | S11: 98 | T11: 350 | U11: 628 | V11: 678 | W11: 768
A12: -5 | B12: 30.5 | C12: 39 | D12: 3 | E12: 10 | F12: 22 | G12: 24 | H12: 28 | I12: 11 | J12: 34 | K12: 72 | L12: 79 | M12: 91 | N12: 24 | O12: 78 | P12: 165 | Q12: 182 | R12: 210 | S12: 86 | T12: 279 | U12: 587 | V12: 646 | W12: 745
A13: -5 | B13: 30.5 | C13: 40 | D13: 3 | E13: 9 | F13: 20 | G13: 23 | H13: 27 | I13: 9 | J13: 28 | K13: 66 | L13: 75 | M13: 88 | N13: 21 | O13: 65 | P13: 152 | Q13: 172 | R13: 203 | S13: 76 | T13: 232 | U13: 541 | V13: 611 | W13: 721
A14: -5 | B14: 30.5 | C14: 41 | D14: 3 | E14: 7 | F14: 18 | G14: 22 | H14: 26 | I14: 8 | J14: 24 | K14: 60 | L14: 70 | M14: 85 | N14: 19 | O14: 56 | P14: 138 | Q14: 162 | R14: 196 | S14: 67 | T14: 199 | U14: 491 | V14: 574 | W14: 697
A15: -5 | B15: 30.5 | C15: 42 | D15: 2 | E15: 7 | F15: 16 | G15: 20 | H15: 25 | I15: 7 | J15: 21 | K15: 53 | L15: 65 | M15: 82 | N15: 16 | O15: 49 | P15: 123 | Q15: 150 | R15: 189 | S15: 58 | T15: 173 | U15: 437 | V15: 535 | W15: 672
A16: -5 | B16: 30.5 | C16: 43 | D16: 2 | E16: 6 | F16: 14 | G16: 19 | H16: 24 | I16: 6 | J16: 19 | K16: 47 | L16: 60 | M16: 79 | N16: 14 | O16: 43 | P16: 108 | Q16: 138 | R16: 182 | S16: 50 | T16: 152 | U16: 383 | V16: 492 | W16: 646
A17: -5 | B17: 30.5 | C17: 44 | D17: 2 | E17: 5 | F17: 13 | G17: 17 | H17: 23 | I17: 5 | J17: 16 | K17: 41 | L17: 55 | M17: 75 | N17: 12 | O17: 38 | P17: 94 | Q17: 126 | R17: 174 | S17: 43 | T17: 134 | U17: 333 | V17: 447 | W17: 619
A18: -5 | B18: 30.5 | C18: 45 | D18: 1 | E18: 4 | F18: 11 | G18: 15 | H18: 22 | I18: 4 | J18: 14 | K18: 35 | L18: 49 | M18: 72 | N18: 10 | O18: 33 | P18: 82 | Q18: 113 | R18: 166 | S18: 36 | T18: 119 | U18: 290 | V18: 403 | W18: 592
A19: 0 | B19: 34.9 | C19: 31 | D19: 24 | E19: 30 | F19: 33 | G19: 34 | H19: 36 | I19: 78 | J19: 97 | K19: 106 | L19: 110 | M19: 117 | N19: 180 | O19: 225 | P19: 246 | Q19: 254 | R19: 271 | S19: 638 | T19: 800 | U19: 874 | V19: 901 | W19: 964
A20: 0 | B20: 34.9 | C20: 32 | D20: 11 | E20: 29 | F20: 32 | G20: 33 | H20: 35 | I20: 35 | J20: 93 | K20: 103 | L20: 107 | M20: 115 | N20: 81 | O20: 215 | P20: 238 | Q20: 247 | R20: 265 | S20: 289 | T20: 765 | U20: 847 | V20: 877 | W20: 943
A21: 0 | B21: 34.9 | C21: 33 | D21: 8 | E21: 27 | F21: 31 | G21: 32 | H21: 35 | I21: 25 | J21: 89 | K21: 100 | L21: 104 | M21: 112 | N21: 58 | O21: 205 | P21: 231 | Q21: 240 | R21: 259 | S21: 207 | T21: 727 | U21: 820 | V21: 852 | W21: 921
A22: 0 | B22: 34.9 | C22: 34 | D22: 6 | E22: 26 | F22: 30 | G22: 31 | H22: 34 | I22: 21 | J22: 83 | K22: 96 | L22: 101 | M22: 110 | N22: 48 | O22: 192 | P22: 223 | Q22: 232 | R22: 253 | S22: 170 | T22: 683 | U22: 791 | V22: 826 | W22: 900
A23: 0 | B23: 34.9 | C23: 35 | D23: 5 | E23: 24 | F23: 29 | G23: 30 | H23: 33 | I23: 18 | J23: 77 | K23: 93 | L23: 97 | M23: 107 | N23: 41 | O23: 177 | P23: 214 | Q23: 225 | R23: 247 | S23: 146 | T23: 630 | U23: 761 | V23: 799 | W23: 877
A24: 0 | B24: 34.9 | C24: 36 | D24: 5 | E24: 21 | F24: 27 | G24: 29 | H24: 32 | I24: 15 | J24: 68 | K24: 89 | L24: 94 | M24: 104 | N24: 36 | O24: 158 | P24: 205 | Q24: 217 | R24: 240 | S24: 127 | T24: 560 | U24: 728 | V24: 770 | W24: 855
A25: 0 | B25: 34.9 | C25: 37 | D25: 4 | E25: 17 | F25: 26 | G25: 28 | H25: 31 | I25: 14 | J25: 57 | K25: 84 | L25: 90 | M25: 101 | N25: 31 | O25: 131 | P25: 195 | Q25: 208 | R25: 234 | S25: 111 | T25: 464 | U25: 692 | V25: 740 | W25: 831
A26: 0 | B26: 34.9 | C26: 38 | D26: 4 | E26: 14 | F26: 25 | G26: 27 | H26: 30 | I26: 12 | J26: 44 | K26: 80 | L26: 86 | M26: 98 | N26: 27 | O26: 102 | P26: 184 | Q26: 199 | R26: 227 | S26: 98 | T26: 361 | U26: 653 | V26: 708 | W26: 808
A27: 0 | B27: 34.9 | C27: 39 | D27: 3 | E27: 11 | F27: 23 | G27: 25 | H27: 29 | I27: 10 | J27: 35 | K27: 74 | L27: 82 | M27: 95 | N27: 24 | O27: 81 | P27: 172 | Q27: 190 | R27: 220 | S27: 86 | T27: 286 | U27: 611 | V27: 674 | W27: 783
A28: 0 | B28: 34.9 | C28: 40 | D28: 3 | E28: 9 | F28: 21 | G28: 24 | H28: 29 | I28: 9 | J28: 29 | K28: 69 | L28: 78 | M28: 92 | N28: 21 | O28: 67 | P28: 158 | Q28: 180 | R28: 213 | S28: 75 | T28: 238 | U28: 563 | V28: 638 | W28: 758
A29: 0 | B29: 34.9 | C29: 41 | D29: 2 | E29: 8 | F29: 19 | G29: 23 | H29: 28 | I29: 8 | J29: 25 | K29: 62 | L29: 73 | M29: 89 | N29: 19 | O29: 57 | P29: 144 | Q29: 169 | R29: 206 | S29: 66 | T29: 203 | U29: 510 | V29: 599 | W29: 732
A30: 0 | B30: 34.9 | C30: 42 | D30: 2 | E30: 7 | F30: 17 | G30: 21 | H30: 27 | I30: 7 | J30: 22 | K30: 55 | L30: 68 | M30: 86 | N30: 16 | O30: 50 | P30: 128 | Q30: 157 | R30: 199 | S30: 57 | T30: 176 | U30: 453 | V30: 557 | W30: 706
A31: 0 | B31: 34.9 | C31: 43 | D31: 2 | E31: 6 | F31: 15 | G31: 19 | H31: 26 | I31: 6 | J31: 19 | K31: 48 | L31: 62 | M31: 83 | N31: 14 | O31: 44 | P31: 112 | Q31: 144 | R31: 191 | S31: 49 | T31: 155 | U31: 397 | V31: 513 | W31: 679
A32: 0 | B32: 34.9 | C32: 44 | D32: 2 | E32: 5 | F32: 13 | G32: 18 | H32: 24 | I32: 5 | J32: 17 | K32: 42 | L32: 57 | M32: 79 | N32: 12 | O32: 38 | P32: 97 | Q32: 131 | R32: 183 | S32: 42 | T32: 136 | U32: 345 | V32: 466 | W32: 651
A33: 0 | B33: 34.9 | C33: 45 | D33: 1 | E33: 5 | F33: 11 | G33: 16 | H33: 23 | I33: 4 | J33: 15 | K33: 37 | L33: 51 | M33: 76 | N33: 10 | O33: 34 | P33: 84 | Q33: 118 | R33: 175 | S33: 35 | T33: 121 | U33: 300 | V33: 419 | W33: 622
A34: 5 | B34: 39.7 | C34: 31 | D34: 24 | E34: 31 | F34: 34 | G34: 35 | H34: 38 | I34: 78 | J34: 99 | K34: 110 | L34: 113 | M34: 122 | N34: 180 | O34: 229 | P34: 253 | Q34: 262 | R34: 282 | S34: 640 | T34: 815 | U34: 899 | V34: 931 | W34: 1004
A35: 5 | B35: 39.7 | C35: 32 | D35: 11 | E35: 29 | F35: 33 | G35: 34 | H35: 37 | I35: 35 | J35: 95 | K35: 106 | L35: 110 | M35: 120 | N35: 81 | O35: 219 | P35: 245 | Q35: 255 | R35: 276 | S35: 288 | T35: 780 | U35: 872 | V35: 905 | W35: 982
A36: 5 | B36: 39.7 | C36: 33 | D36: 8 | E36: 28 | F36: 32 | G36: 33 | H36: 36 | I36: 25 | J36: 90 | K36: 103 | L36: 107 | M36: 117 | N36: 58 | O36: 208 | P36: 237 | Q36: 247 | R36: 270 | S36: 205 | T36: 740 | U36: 843 | V36: 879 | W36: 959
A37: 5 | B37: 39.7 | C37: 34 | D37: 6 | E37: 26 | F37: 31 | G37: 32 | H37: 35 | I37: 20 | J37: 85 | K37: 99 | L37: 104 | M37: 114 | N37: 47 | O37: 196 | P37: 229 | Q37: 240 | R37: 263 | S37: 168 | T37: 695 | U37: 813 | V37: 852 | W37: 936
A38: 5 | B38: 39.7 | C38: 35 | D38: 5 | E38: 24 | F38: 29 | G38: 31 | H38: 34 | I38: 17 | J38: 78 | K38: 95 | L38: 100 | M38: 111 | N38: 40 | O38: 180 | P38: 220 | Q38: 232 | R38: 257 | S38: 143 | T38: 640 | U38: 782 | V38: 824 | W38: 913
A39: 5 | B39: 39.7 | C39: 36 | D39: 5 | E39: 21 | F39: 28 | G39: 30 | H39: 33 | I39: 15 | J39: 69 | K39: 91 | L39: 97 | M39: 108 | N39: 35 | O39: 160 | P39: 210 | Q39: 223 | R39: 250 | S39: 124 | T39: 569 | U39: 748 | V39: 794 | W39: 889
A40: 5 | B40: 39.7 | C40: 37 | D40: 4 | E40: 18 | F40: 27 | G40: 29 | H40: 33 | I40: 13 | J40: 57 | K40: 87 | L40: 93 | M40: 105 | N40: 30 | O40: 133 | P40: 200 | Q40: 215 | R40: 243 | S40: 108 | T40: 471 | U40: 711 | V40: 763 | W40: 865
A41: 5 | B41: 39.7 | C41: 38 | D41: 4 | E41: 14 | F41: 25 | G41: 27 | H41: 32 | I41: 12 | J41: 44 | K41: 82 | L41: 89 | M41: 102 | N41: 27 | O41: 103 | P41: 189 | Q41: 205 | R41: 236 | S41: 95 | T41: 365 | U41: 671 | V41: 730 | W41: 840
A42: 5 | B42: 39.7 | C42: 39 | D42: 3 | E42: 11 | F42: 24 | G42: 26 | H42: 31 | I42: 10 | J42: 35 | K42: 76 | L42: 85 | M42: 99 | N42: 23 | O42: 81 | P42: 176 | Q42: 196 | R42: 229 | S42: 83 | T42: 289 | U42: 627 | V42: 695 | W42: 814
A43: 5 | B43: 39.7 | C43: 40 | D43: 3 | E43: 9 | F43: 22 | G43: 25 | H43: 30 | I43: 9 | J43: 29 | K43: 70 | L43: 80 | M43: 96 | N43: 20 | O43: 67 | P43: 162 | Q43: 185 | R43: 222 | S43: 72 | T43: 239 | U43: 577 | V43: 657 | W43: 788
A44: 5 | B44: 39.7 | C44: 41 | D44: 2 | E44: 8 | F44: 20 | G44: 23 | H44: 29 | I44: 8 | J44: 25 | K44: 64 | L44: 75 | M44: 93 | N44: 18 | O44: 57 | P44: 147 | Q44: 174 | R44: 214 | S44: 63 | T44: 204 | U44: 523 | V44: 617 | W44: 761
A45: 5 | B45: 39.7 | C45: 42 | D45: 2 | E45: 7 | F45: 17 | G45: 22 | H45: 28 | I45: 7 | J45: 21 | K45: 57 | L45: 70 | M45: 89 | N45: 15 | O45: 50 | P45: 131 | Q45: 161 | R45: 206 | S45: 54 | T45: 176 | U45: 464 | V45: 573 | W45: 733
A46: 5 | B46: 39.7 | C46: 43 | D46: 2 | E46: 6 | F46: 15 | G46: 20 | H46: 27 | I46: 6 | J46: 19 | K46: 49 | L46: 64 | M46: 86 | N46: 13 | O46: 43 | P46: 114 | Q46: 148 | R46: 198 | S46: 46 | T46: 154 | U46: 405 | V46: 527 | W46: 705
A47: 5 | B47: 39.7 | C47: 44 | D47: 1 | E47: 5 | F47: 13 | G47: 18 | H47: 25 | I47: 5 | J47: 16 | K47: 43 | L47: 58 | M47: 82 | N47: 11 | O47: 38 | P47: 99 | Q47: 135 | R47: 190 | S47: 38 | T47: 135 | U47: 352 | V47: 479 | W47: 675
A48: 5 | B48: 39.7 | C48: 45 | D48: 1 | E48: 4 | F48: 11 | G48: 16 | H48: 24 | I48: 4 | J48: 14 | K48: 37 | L48: 52 | M48: 79 | N48: 9 | O48: 33 | P48: 86 | Q48: 121 | R48: 181 | S48: 31 | T48: 119 | U48: 306 | V48: 430 | W48: 645
A49: 10 | B49: 45 | C49: 31 | D49: 24 | E49: 31 | F49: 34 | G49: 36 | H49: 39 | I49: 76 | J49: 99 | K49: 111 | L49: 115 | M49: 126 | N49: 176 | O49: 229 | P49: 256 | Q49: 267 | R49: 291 | S49: 627 | T49: 814 | U49: 911 | V49: 947 | W49: 1033
A50: 10 | B50: 45 | C50: 32 | D50: 10 | E50: 29 | F50: 33 | G50: 35 | H50: 38 | I50: 34 | J50: 95 | K50: 108 | L50: 112 | M50: 123 | N50: 78 | O50: 219 | P50: 248 | Q50: 259 | R50: 284 | S50: 278 | T50: 779 | U50: 883 | V50: 921 | W50: 1010
A51: 10 | B51: 45 | C51: 33 | D51: 7 | E51: 28 | F51: 32 | G51: 34 | H51: 37 | I51: 24 | J51: 90 | K51: 104 | L51: 109 | M51: 120 | N51: 55 | O51: 208 | P51: 240 | Q51: 252 | R51: 278 | S51: 196 | T51: 740 | U51: 854 | V51: 895 | W51: 986
A52: 10 | B52: 45 | C52: 34 | D52: 6 | E52: 26 | F52: 31 | G52: 33 | H52: 36 | I52: 20 | J52: 85 | K52: 100 | L52: 106 | M52: 117 | N52: 45 | O52: 195 | P52: 232 | Q52: 244 | R52: 271 | S52: 160 | T52: 694 | U52: 823 | V52: 867 | W52: 963
A53: 10 | B53: 45 | C53: 35 | D53: 5 | E53: 24 | F53: 30 | G53: 32 | H53: 35 | I53: 17 | J53: 78 | K53: 96 | L53: 102 | M53: 114 | N53: 38 | O53: 180 | P53: 222 | Q53: 236 | R53: 264 | S53: 136 | T53: 639 | U53: 791 | V53: 838 | W53: 938
A54: 10 | B54: 45 | C54: 36 | D54: 4 | E54: 21 | F54: 28 | G54: 30 | H54: 34 | I54: 14 | J54: 69 | K54: 92 | L54: 98 | M54: 111 | N54: 33 | O54: 160 | P54: 213 | Q54: 227 | R54: 257 | S54: 117 | T54: 567 | U54: 756 | V54: 807 | W54: 914
A55: 10 | B55: 45 | C55: 37 | D55: 4 | E55: 18 | F55: 27 | G55: 29 | H55: 33 | I55: 12 | J55: 57 | K55: 88 | L55: 94 | M55: 108 | N55: 28 | O55: 132 | P55: 202 | Q55: 218 | R55: 250 | S55: 101 | T55: 468 | U55: 718 | V55: 775 | W55: 888
A56: 10 | B56: 45 | C56: 38 | D56: 3 | E56: 14 | F56: 25 | G56: 28 | H56: 32 | I56: 11 | J56: 44 | K56: 83 | L56: 90 | M56: 105 | N56: 25 | O56: 102 | P56: 191 | Q56: 209 | R56: 243 | S56: 88 | T56: 361 | U56: 677 | V56: 741 | W56: 863
A57: 10 | B57: 45 | C57: 39 | D57: 3 | E57: 11 | F57: 24 | G57: 27 | H57: 31 | I57: 9 | J57: 35 | K57: 77 | L57: 86 | M57: 102 | N57: 21 | O57: 80 | P57: 178 | Q57: 198 | R57: 235 | S57: 76 | T57: 284 | U57: 632 | V57: 705 | W57: 836
A58: 10 | B58: 45 | C58: 40 | D58: 2 | E58: 9 | F58: 22 | G58: 25 | H58: 30 | I58: 8 | J58: 29 | K58: 71 | L58: 81 | M58: 99 | N58: 19 | O58: 66 | P58: 164 | Q58: 188 | R58: 228 | S58: 66 | T58: 234 | U58: 582 | V58: 667 | W58: 809
A59: 10 | B59: 45 | C59: 41 | D59: 2 | E59: 7 | F59: 20 | G59: 24 | H59: 29 | I59: 7 | J59: 24 | K59: 64 | L59: 76 | M59: 95 | N59: 16 | O59: 56 | P59: 148 | Q59: 176 | R59: 220 | S59: 56 | T59: 199 | U59: 526 | V59: 625 | W59: 781
A60: 10 | B60: 45 | C60: 42 | D60: 2 | E60: 6 | F60: 18 | G60: 22 | H60: 28 | I60: 6 | J60: 21 | K60: 57 | L60: 71 | M60: 92 | N60: 13 | O60: 48 | P60: 131 | Q60: 163 | R60: 212 | S60: 48 | T60: 171 | U60: 466 | V60: 581 | W60: 752
A61: 10 | B61: 45 | C61: 43 | D61: 1 | E61: 6 | F61: 15 | G61: 20 | H61: 27 | I61: 5 | J61: 18 | K61: 50 | L61: 65 | M61: 88 | N61: 11 | O61: 42 | P61: 114 | Q61: 150 | R61: 203 | S61: 40 | T61: 149 | U61: 407 | V61: 533 | W61: 722
A62: 10 | B62: 45 | C62: 44 | D62: 1 | E62: 5 | F62: 13 | G62: 18 | H62: 26 | I62: 4 | J62: 16 | K62: 43 | L62: 59 | M62: 84 | N62: 9 | O62: 37 | P62: 99 | Q62: 136 | R62: 195 | S62: 32 | T62: 130 | U62: 352 | V62: 483 | W62: 692
A63: 10 | B63: 45 | C63: 45 | D63: 1 | E63: 4 | F63: 11 | G63: 16 | H63: 25 | I63: 3 | J63: 14 | K63: 37 | L63: 53 | M63: 80 | N63: 7 | O63: 32 | P63: 86 | Q63: 122 | R63: 186 | S63: 25 | T63: 113 | U63: 305 | V63: 433 | W63: 660

Sheet E-HotGas
B1: =INDEX(Language!$B$2:$M$41,2,Language!$A$1) -> Instruction: Select refrigerant and fill yellow fields with operating conditions.
B2: =INDEX(Language!$B$2:$M$41,3,Language!$A$1) -> #N/A error message: operating conditions, refrigerant or product out of range/specification.
E4: =INDEX(Language!$B$2:$M$41,4,Language!$A$1) -> Project:
E5: =INDEX(Language!$B$2:$M$299,87,Language!$A$1) -> Electrical control valves
E6: =INDEX(Language!$B$2:$M$61,56,Language!$A$1) -> Hot gas bypass duty
B7: =INDEX(Language!$B$2:$M$41,5,Language!$A$1) -> Refrigerant | E7: ='E-EX-Fun'!$J$61 -> R448A
B8: =INDEX(Language!$B$2:$M$41,7,Language!$A$1) -> Condensing temperature | E8: 38 | F8: =INDEX('E-EX-Fun'!$N$5:$P$15,2,'E-EX-Fun'!$D$19) -> °C
B10: =INDEX(Language!$B$2:$M$41,30,Language!$A$1) -> Bypass cooling capacity | E10: 120 | F10: =INDEX('E-EX-Fun'!$N$5:$P$15,4,'E-EX-Fun'!$D$19) -> kW
H11: Tc = | I11: =E8 -> 38 | J11: =F8 -> °C
H12: PC= | I12: =('E-EX-Fun'!E71)*INDEX('E-EX-Fun'!$N$5:$P$15,9,'E-EX-Fun'!$D$19) -> 17.73784812 | J12: =INDEX('E-EX-Fun'!$N$5:$P$15,10,'E-EX-Fun'!$D$19) -> bara
H14: =$E$7 -> R448A
J17: Q0 = | K17: =$E$10 -> 120 | L17: =$F$10 -> kW
B25: =INDEX(Language!$B$2:$M$41,17,Language!$A$1) -> High performance stepper motor ECV
M26: =CONCATENATE(INDEX(Language!$B$2:$M$41,23,Language!$A$1),$F$10,")") -> Maximum valve capacity at selected conditions (kW)
D28: =INDEX(Language!$B$2:$M$41,15,Language!$A$1) -> Type | F28: =INDEX(Language!$B$2:$M$41,18,Language!$A$1) -> Part No. | G28: =INDEX(Language!$B$2:$M$41,16,Language!$A$1) -> Ratio | M28: =INDEX(Language!$B$2:$M$41,15,Language!$A$1) -> Type | P28: ='E-EX-Fun'!$J$61 -> R448A
D29: =INDEX('E-EX-Dat'!$D$10:$D$14,'E-EX-Fun'!$D$86) -> EX7-M21 | F29: =INDEX('E-EX-Dat'!$E$10:$E$14,'E-EX-Fun'!$D$86,1) -> 800 625 | G29: =TEXT('E-EX-Fun'!$E86,"0%")&" "&IF('E-EX-Fun'!$E86>10%,"OK",INDEX(Language!$B$2:$M$41,36,Language!$A$1)) -> 78% OK | M29: ='E-EX-Dat'!D10 -> EX8-M21 | P29: ='E-EX-Dat'!$B58*INDEX('E-EX-Fun'!$N$5:$P$15,8,'E-EX-Fun'!$D$19) -> 466.2945
M30: ='E-EX-Dat'!D11 -> EX7-M21 | P30: ='E-EX-Dat'!$B59*INDEX('E-EX-Fun'!$N$5:$P$15,8,'E-EX-Fun'!$D$19) -> 153.5058
M31: ='E-EX-Dat'!D12 -> EX6-M21 | P31: ='E-EX-Dat'!$B60*INDEX('E-EX-Fun'!$N$5:$P$15,8,'E-EX-Fun'!$D$19) -> 43.1907
M32: ='E-EX-Dat'!D13 -> EX5-U21 | P32: ='E-EX-Dat'!$B61*INDEX('E-EX-Fun'!$N$5:$P$15,8,'E-EX-Fun'!$D$19) -> 18.56925
M33: ='E-EX-Dat'!D14 -> EX4-M21 | P33: ='E-EX-Dat'!$B62*INDEX('E-EX-Fun'!$N$5:$P$15,8,'E-EX-Fun'!$D$19) -> 5.72208
B34: =INDEX(Language!$B$2:$M$41,19,Language!$A$1) -> Controller for ECV
D35: ='El Ctr-Dat'!$B$70 -> EXD-U01 | F35: ='El Ctr-Dat'!$C$70 -> 804 750 | G35: ='El Ctr-Dat'!$D$70 -> Universal driver
D36: ='El Ctr-Dat'!$B$71 -> K09-U00 | F36: ='El Ctr-Dat'!$C$71 -> 804 559 | G36: ='El Ctr-Dat'!$D$71 -> Terminal kit for EXD-U01
D37: ='E-EX-Dat'!$D$93 -> ECP-024 | F37: ='E-EX-Dat'!$E$93 -> 804 558 | G37: ='El Ctr-Dat'!$D$72 -> Uninterruptible power supply for up to two EXD-U01
D39: ='E-EX-Dat'!$D$94 -> K09-P00 | F39: ='E-EX-Dat'!$E$94 -> 804 560 | G39: ='El Ctr-Dat'!$D$73 -> Terminal kit for ECP-024
D42: =INDEX(Language!$B$2:$M$400,371,Language!$A$1) -> Temperature controllers
D43: =" "&INDEX(Language!$B$2:$M$400,372,Language!$A$1) -> for EX4-8 Series only
D44: =INDEX(Language!$B$2:$M$400,15,Language!$A$1) -> Type | F44: =INDEX(Language!$B$2:$M$41,18,Language!$A$1) -> Part No. | G44: =INDEX(Language!$B$2:$M$400,285,Language!$A$1) -> Description
D45: ='El Ctr-Dat'!$B$127 -> EXD-SH1 | F45: ='El Ctr-Dat'!$C$127 -> 807 855 | G45: ='El Ctr-Dat'!$E$127 -> Controller for single refrigeration circuit
D47: ='El Ctr-Dat'!$B$128 -> EXD-SH2 | F47: ='El Ctr-Dat'!$C$128 -> 807 856 | G47: ='El Ctr-Dat'!$E$128 -> Controller for two independent refrigeration circuits
D49: ='El Ctr-Dat'!$B$129 -> EXD-M03 | F49: ='El Ctr-Dat'!$D$129 -> 807 865 | G49: ='El Ctr-Dat'!$E$129 -> Molex terminal with 3 meter wires
D50: ='El Ctr-Dat'!$B$103 -> ECN-N60 | F50: ='El Ctr-Dat'!$C$103 -> 804 497 | G50: ='El Ctr-Dat'!$D$103 -> Temperature sensor Cable length 6,0 m
B60: =Home!$D$43 -> 
B61: =INDEX(Language!$B$2:$M$251,250,Language!$A$1) -> The Controls Navigator is provided by Emerson Climate Technologies Europe to assist with the selection of mechanical and electronic controls. Emerson Climate Technologies cannot be held liable for issues arising from application of controls using information provided by this software.

Sheet E-Suction
B1: =INDEX(Language!$B$2:$M$41,2,Language!$A$1) -> Instruction: Select refrigerant and fill yellow fields with operating conditions.
B2: =INDEX(Language!$B$2:$M$41,3,Language!$A$1) -> #N/A error message: operating conditions, refrigerant or product out of range/specification.
E4: =INDEX(Language!$B$2:$M$41,4,Language!$A$1) -> Project:
E5: =INDEX(Language!$B$2:$M$299,87,Language!$A$1) -> Electrical control valves
E6: =INDEX(Language!$B$2:$M$61,57,Language!$A$1) -> Suction duty
B7: =INDEX(Language!$B$2:$M$41,5,Language!$A$1) -> Refrigerant | E7: ='E-EX-Fun'!$J$61 -> R448A
B8: =INDEX(Language!$B$2:$M$41,6,Language!$A$1) -> Evaporating temperature | E8: 4 | F8: =INDEX('E-EX-Fun'!$N$5:$P$15,2,'E-EX-Fun'!$D$19) -> °C
B10: =INDEX(Language!$B$2:$M$41,7,Language!$A$1) -> Condensing temperature | E10: 38 | F10: =INDEX('E-EX-Fun'!$N$5:$P$15,2,'E-EX-Fun'!$D$19) -> °C | H10: TC = | I10: =E10 -> 38 | J10: =F10 -> °C
H11: PC= | I11: =('E-EX-Fun'!E101)*INDEX('E-EX-Fun'!$N$5:$P$15,9,'E-EX-Fun'!$D$19) -> 17.73784812 | J11: =INDEX('E-EX-Fun'!$N$5:$P$15,10,'E-EX-Fun'!$D$19) -> bara
B12: =INDEX(Language!$B$2:$M$41,8,Language!$A$1) -> Subcooling | E12: 0 | F12: =INDEX('E-EX-Fun'!$N$5:$P$15,3,'E-EX-Fun'!$D$19) -> K
B13: =INDEX(Language!$B$2:$M$41,11,Language!$A$1) -> System cooling capacity | E13: 10 | F13: =INDEX('E-EX-Fun'!$N$5:$P$15,4,'E-EX-Fun'!$D$19) -> kW | H13: =$E$7 -> R448A
B15: =INDEX(Language!$B$2:$M$41,35,Language!$A$1) -> Required pressure drop across valve | E15: 0.15 | F15: =INDEX('E-EX-Fun'!$N$5:$P$15,5,'E-EX-Fun'!$D$19) -> bar | I15: Q0 = | J15: =E13&" "&F13 -> 10 kW
F22: =INDEX(Language!$B$2:$M$41,9,Language!$A$1) -> Liquid temperature | G22: Tliquid = | H22: =$E$10-$E$12&INDEX('E-EX-Fun'!$N$5:$P$15,2,'E-EX-Fun'!$D$19) -> 38°C | J22: T0 = | K22: =$E$8&INDEX('E-EX-Fun'!$N$5:$P$15,2,'E-EX-Fun'!$D$19) -> 4°C | M22: Dp = | N22: =$E$15&INDEX('E-EX-Fun'!$N$5:$P$15,5,'E-EX-Fun'!$D$19) -> 0.15bar
G23: Dp = | H23: =$I$11-($K23+$E$15) -> 11.74972837 | I23: =INDEX('E-EX-Fun'!$N$5:$P$15,5,'E-EX-Fun'!$D$19) -> bar | J23: P0 = | K23: =('E-EX-Fun'!$G$95)*INDEX('E-EX-Fun'!$N$5:$P$15,9,'E-EX-Fun'!$D$19) -> 5.838119751 | L23: =INDEX('E-EX-Fun'!$N$5:$P$15,10,'E-EX-Fun'!$D$19) -> bara
B25: =INDEX(Language!$B$2:$M$41,17,Language!$A$1) -> High performance stepper motor ECV
M26: =CONCATENATE(INDEX(Language!$B$2:$M$41,23,Language!$A$1),F13,")") -> Maximum valve capacity at selected conditions (kW)
D28: =INDEX(Language!$B$2:$M$41,15,Language!$A$1) -> Type | F28: =INDEX(Language!$B$2:$M$41,18,Language!$A$1) -> Part No. | G28: =INDEX(Language!$B$2:$M$41,16,Language!$A$1) -> Ratio | M28: =INDEX(Language!$B$2:$M$41,15,Language!$A$1) -> Type | P28: ='E-EX-Fun'!$J$61 -> R448A
D29: =INDEX('E-EX-Dat'!D10:D14,'E-EX-Fun'!D116) -> EX7-M21 | F29: =INDEX('E-EX-Dat'!E10:E14,'E-EX-Fun'!D116,1) -> 800 625 | G29: =TEXT('E-EX-Fun'!E116,"0%")&" "&IF('E-EX-Fun'!E116>10%,"OK",INDEX(Language!$B$2:$M$41,36,Language!$A$1)) -> 72% OK | M29: ='E-EX-Dat'!D10 -> EX8-M21 | P29: =IF('E-EX-Dat'!$B70<1,"",'E-EX-Dat'!$B70*INDEX('E-EX-Fun'!$N$5:$P$15,8,'E-EX-Fun'!$D$19)) -> 41.9747351
M30: ='E-EX-Dat'!D11 -> EX7-M21 | P30: =IF('E-EX-Dat'!$B71<1,"",'E-EX-Dat'!$B71*INDEX('E-EX-Fun'!$N$5:$P$15,8,'E-EX-Fun'!$D$19)) -> 13.81823138
M31: ='E-EX-Dat'!D12 -> EX6-M21 | P31: =IF('E-EX-Dat'!$B72<1,"",'E-EX-Dat'!$B72*INDEX('E-EX-Fun'!$N$5:$P$15,8,'E-EX-Fun'!$D$19)) -> 3.887925316
B33: =INDEX(Language!$B$2:$M$41,19,Language!$A$1) -> Controller for ECV
D34: ='El Ctr-Dat'!$B$70 -> EXD-U01 | F34: ='El Ctr-Dat'!$C$70 -> 804 750 | G34: ='El Ctr-Dat'!$D$70 -> Universal driver
D35: ='El Ctr-Dat'!$B$71 -> K09-U00 | F35: ='El Ctr-Dat'!$C$71 -> 804 559 | G35: ='El Ctr-Dat'!$D$71 -> Terminal kit for EXD-U01
D36: ='E-EX-Dat'!$D$93 -> ECP-024 | F36: ='E-EX-Dat'!$E$93 -> 804 558 | G36: ='El Ctr-Dat'!$D$72 -> Uninterruptible power supply for up to two EXD-U01
D38: ='E-EX-Dat'!$D$94 -> K09-P00 | F38: ='E-EX-Dat'!$E$94 -> 804 560 | G38: ='El Ctr-Dat'!$D$73 -> Terminal kit for ECP-024
D42: =INDEX(Language!$B$2:$M$400,371,Language!$A$1) -> Temperature controllers
D43: =" "&INDEX(Language!$B$2:$M$400,372,Language!$A$1) -> for EX4-8 Series only
D44: =INDEX(Language!$B$2:$M$400,15,Language!$A$1) -> Type | F44: =INDEX(Language!$B$2:$M$41,18,Language!$A$1) -> Part No. | G44: =INDEX(Language!$B$2:$M$400,285,Language!$A$1) -> Description
D45: ='El Ctr-Dat'!$B$127 -> EXD-SH1 | F45: ='El Ctr-Dat'!$C$127 -> 807 855 | G45: ='El Ctr-Dat'!$E$127 -> Controller for single refrigeration circuit
D47: ='El Ctr-Dat'!$B$128 -> EXD-SH2 | F47: ='El Ctr-Dat'!$C$128 -> 807 856 | G47: ='El Ctr-Dat'!$E$128 -> Controller for two independent refrigeration circuits
D49: ='El Ctr-Dat'!$B$129 -> EXD-M03 | F49: ='El Ctr-Dat'!$D$129 -> 807 865 | G49: ='El Ctr-Dat'!$E$129 -> Molex terminal with 3 meter wires
D50: ='El Ctr-Dat'!$B$103 -> ECN-N60 | F50: ='El Ctr-Dat'!$C$103 -> 804 497 | G50: ='El Ctr-Dat'!$D$103 -> Temperature sensor Cable length 6,0 m
B60: =Home!$D$43 -> 
B61: =INDEX(Language!$B$2:$M$251,250,Language!$A$1) -> The Controls Navigator is provided by Emerson Climate Technologies Europe to assist with the selection of mechanical and electronic controls. Emerson Climate Technologies cannot be held liable for issues arising from application of controls using information provided by this software.

Sheet E-Condens
B1: =INDEX(Language!$B$2:$M$41,2,Language!$A$1) -> Instruction: Select refrigerant and fill yellow fields with operating conditions.
B2: =INDEX(Language!$B$2:$M$41,3,Language!$A$1) -> #N/A error message: operating conditions, refrigerant or product out of range/specification.
E4: =INDEX(Language!$B$2:$M$41,4,Language!$A$1) -> Project:
E5: =INDEX(Language!$B$2:$M$299,87,Language!$A$1) -> Electrical control valves
E6: =INDEX(Language!$B$2:$M$61,58,Language!$A$1) -> Liquid and head pressure duty
B7: =INDEX(Language!$B$2:$M$41,5,Language!$A$1) -> Refrigerant | D7: ='E-EX-Fun'!$J$61 -> R448A
B8: =INDEX(Language!$B$2:$M$400,6,Language!$A$1) -> Evaporating temperature | D8: 4 | E8: =INDEX('E-EX-Fun'!$N$5:$P$15,2,'E-EX-Fun'!$D$19) -> °C
B10: =INDEX(Language!$B$2:$M$400,7,Language!$A$1) -> Condensing temperature | D10: 38 | E10: =INDEX('E-EX-Fun'!$N$5:$P$15,2,'E-EX-Fun'!$D$19) -> °C
F11: TC = | G11: =D10 -> 38 | H11: =E10 -> °C
B12: =INDEX(Language!$B$2:$M$41,8,Language!$A$1) -> Subcooling | D12: 0 | E12: =INDEX('E-EX-Fun'!$N$5:$P$15,3,'E-EX-Fun'!$D$19) -> K | F12: PC= | G12: =('E-EX-Fun'!E131)*INDEX('E-EX-Fun'!$N$5:$P$15,9,'E-EX-Fun'!$D$19) -> 17.73784812 | H12: =INDEX('E-EX-Fun'!$N$5:$P$15,10,'E-EX-Fun'!$D$19) -> bara
B13: =INDEX(Language!$B$2:$M$41,34,Language!$A$1) -> Evaporator cooling capacity | D13: 10 | E13: =INDEX('E-EX-Fun'!$N$5:$P$15,4,'E-EX-Fun'!$D$19) -> kW
B15: =INDEX(Language!$B$2:$M$400,35,Language!$A$1) -> Required pressure drop across valve | D15: 0.35 | E15: =INDEX('E-EX-Fun'!$N$5:$P$15,5,'E-EX-Fun'!$D$19) -> bar | G15: =$D$7 -> R448A | J15: Q0 = | K15: =$D$13&" "&$E$13 -> 10 kW
E24: =INDEX(Language!$B$2:$M$41,9,Language!$A$1) -> Liquid temperature | G24: Tliquid = | H24: =D10-D12&INDEX('E-EX-Fun'!$N$5:$P$15,2,'E-EX-Fun'!$D$19) -> 38°C | J24: T0 = | K24: =D8 -> 4 | L24: =E8 -> °C
G25: Dp = | H25: =G12-(K25+D15) -> 11.54972837 | I25: =INDEX('E-EX-Fun'!$N$5:$P$15,5,'E-EX-Fun'!$D$19) -> bar | J25: P0 = | K25: =('E-EX-Fun'!E127)*INDEX('E-EX-Fun'!$N$5:$P$15,9,'E-EX-Fun'!$D$19) -> 5.838119751 | L25: =INDEX('E-EX-Fun'!$N$5:$P$15,10,'E-EX-Fun'!$D$19) -> bara
M29: =CONCATENATE(INDEX(Language!$B$2:$M$41,23,Language!$A$1),E13,")") -> Maximum valve capacity at selected conditions (kW)
B30: =INDEX(Language!$B$2:$M$41,17,Language!$A$1) -> High performance stepper motor ECV
D31: =INDEX(Language!$B$2:$M$41,15,Language!$A$1) -> Type | F31: =INDEX(Language!$B$2:$M$41,18,Language!$A$1) -> Part No. | G31: =INDEX(Language!$B$2:$M$41,16,Language!$A$1) -> Ratio | M31: =INDEX(Language!$B$2:$M$41,15,Language!$A$1) -> Type | P31: ='E-EX-Fun'!$J$61 -> R448A
D32: =INDEX('E-EX-Dat'!D10:D14,'E-EX-Fun'!D146) -> EX5-U21 | F32: =INDEX('E-EX-Dat'!E10:E14,'E-EX-Fun'!D146,1) -> 800 618 | G32: =TEXT('E-EX-Fun'!E146,"0%")&" "&IF('E-EX-Fun'!E146>10%,"OK",INDEX(Language!$B$2:$M$41,36,Language!$A$1)) -> 58% OK | M32: ='E-EX-Dat'!D10 -> EX8-M21 | P32: ='E-EX-Dat'!$B46*INDEX('E-EX-Fun'!$N$5:$P$15,8,'E-EX-Fun'!$D$19) -> 430.4193323
M33: ='E-EX-Dat'!D11 -> EX7-M21 | P33: ='E-EX-Dat'!$B47*INDEX('E-EX-Fun'!$N$5:$P$15,8,'E-EX-Fun'!$D$19) -> 141.6955678
M34: ='E-EX-Dat'!D12 -> EX6-M21 | P34: ='E-EX-Dat'!$B48*INDEX('E-EX-Fun'!$N$5:$P$15,8,'E-EX-Fun'!$D$19) -> 39.86774936
M35: ='E-EX-Dat'!D13 -> EX5-U21 | P35: ='E-EX-Dat'!$B49*INDEX('E-EX-Fun'!$N$5:$P$15,8,'E-EX-Fun'!$D$19) -> 17.14059288
M36: ='E-EX-Dat'!D14 -> EX4-M21 | P36: ='E-EX-Dat'!$B50*INDEX('E-EX-Fun'!$N$5:$P$15,8,'E-EX-Fun'!$D$19) -> 5.281841954
B38: =INDEX(Language!$B$2:$M$41,19,Language!$A$1) -> Controller for ECV
D39: ='El Ctr-Dat'!$B$70 -> EXD-U01 | F39: ='El Ctr-Dat'!$C$70 -> 804 750 | G39: ='El Ctr-Dat'!$D$70 -> Universal driver
D40: ='El Ctr-Dat'!$B$71 -> K09-U00 | F40: ='El Ctr-Dat'!$C$71 -> 804 559 | G40: ='El Ctr-Dat'!$D$71 -> Terminal kit for EXD-U01
D41: ='E-EX-Dat'!$D$93 -> ECP-024 | F41: ='E-EX-Dat'!$E$93 -> 804 558 | G41: ='El Ctr-Dat'!$D$72 -> Uninterruptible power supply for up to two EXD-U01
D43: ='E-EX-Dat'!$D$94 -> K09-P00 | F43: ='E-EX-Dat'!$E$94 -> 804 560 | G43: ='El Ctr-Dat'!$D$73 -> Terminal kit for ECP-024
B60: =Home!$D$43 -> 
B61: =INDEX(Language!$B$2:$M$251,250,Language!$A$1) -> The Controls Navigator is provided by Emerson Climate Technologies Europe to assist with the selection of mechanical and electronic controls. Emerson Climate Technologies cannot be held liable for issues arising from application of controls using information provided by this software.

Sheet E-HeatRecl
B1: =INDEX(Language!$B$2:$M$41,2,Language!$A$1) -> Instruction: Select refrigerant and fill yellow fields with operating conditions.
B2: =INDEX(Language!$B$2:$M$41,3,Language!$A$1) -> #N/A error message: operating conditions, refrigerant or product out of range/specification.
E4: =INDEX(Language!$B$2:$M$41,4,Language!$A$1) -> Project:
E5: =INDEX(Language!$B$2:$M$299,87,Language!$A$1) -> Electrical control valves
E6: =INDEX(Language!$B$2:$M$400,353,Language!$A$1) -> Heat reclaim
B7: =INDEX(Language!$B$2:$M$299,5,Language!$A$1) -> Refrigerant | D7: =INDEX('E-Heat-Fun'!$G$5:$G$21,'E-Heat-Fun'!$G$4) -> R448A
B8: =INDEX(Language!$B$2:$M$400,6,Language!$A$1) -> Evaporating temperature | D8: 4 | E8: =INDEX('E-EX-Fun'!$N$5:$P$15,2,'E-EX-Fun'!$D$19) -> °C | F8: max | G8: =IF('E-EX-Fun'!$D$19=1,'E-Heat-Fun'!E44,('E-Heat-Fun'!E44*1.8)+32)&INDEX('E-EX-Fun'!$N$5:$P$15,2,'E-EX-Fun'!$D$19) -> 15°C
F9: min | G9: =IF('E-EX-Fun'!$D$19=1,'E-Heat-Fun'!E48,('E-Heat-Fun'!E48*1.8)+32)&INDEX('E-EX-Fun'!$N$5:$P$15,2,'E-EX-Fun'!$D$19) -> -45°C
B10: =INDEX(Language!$B$2:$M$400,7,Language!$A$1) -> Condensing temperature | D10: 38 | E10: =INDEX('E-EX-Fun'!$N$5:$P$15,2,'E-EX-Fun'!$D$19) -> °C | F10: max | G10: =IF('E-EX-Fun'!$D$19=1,'E-Heat-Fun'!E49,('E-Heat-Fun'!E49*1.8)+32)&INDEX('E-EX-Fun'!$N$5:$P$15,2,'E-EX-Fun'!$D$19) -> 60°C
F11: min | G11: =IF('E-EX-Fun'!$D$19=1,'E-Heat-Fun'!E53,('E-Heat-Fun'!E53*1.8)+32)&INDEX('E-EX-Fun'!$N$5:$P$15,2,'E-EX-Fun'!$D$19) -> 30°C
B12: =INDEX(Language!$B$2:$M$400,35,Language!$A$1) -> Required pressure drop across valve | D12: 0.2 | E12: =INDEX('E-EX-Fun'!$N$5:$P$15,5,'E-EX-Fun'!$D$19) -> bar | F12: max | G12: =TEXT('E-Heat-Fun'!$E$54*INDEX('E-EX-Fun'!$N$5:$P$15,9,'E-EX-Fun'!$D$19),"# ##0")&INDEX('E-EX-Fun'!$N$5:$P$15,10,'E-EX-Fun'!$D$19) -> 1bara
F13: min | G13: =TEXT('E-Heat-Fun'!$E$58*INDEX('E-EX-Fun'!$N$5:$P$15,9,'E-EX-Fun'!$D$19),"0,0")&INDEX('E-EX-Fun'!$N$5:$P$15,10,'E-EX-Fun'!$D$19) -> 00bara
B14: =INDEX(Language!$B$2:$M$400,354,Language!$A$1) -> Capacity heat reclaim | D14: 35 | E14: =INDEX('E-EX-Fun'!$N$5:$P$15,4,'E-EX-Fun'!$D$19) -> kW
L16: Dp= | M16: =TEXT($D$12,"0,0")&$E$12 -> 00bar
E19: TC= | F19: =D10 -> 38 | G19: =E10 -> °C
J22: =$D$14 -> 35 | K22: =$E$14 -> kW
L27: Te = | M27: =TEXT($D$8,"0,0")&$E$8 -> 04°C
B32: =INDEX(Language!$B$2:$M$41,14,Language!$A$1) -> Your choice
B34: =INDEX(Language!$B$2:$M$41,17,Language!$A$1) -> High performance stepper motor ECV | M34: =CONCATENATE(INDEX(Language!$B$2:$M$41,23,Language!$A$1),E14,")") -> Maximum valve capacity at selected conditions (kW)
D36: =INDEX(Language!$B$2:$M$41,15,Language!$A$1) -> Type | F36: =INDEX(Language!$B$2:$M$41,18,Language!$A$1) -> Part No. | G36: =INDEX(Language!$B$2:$M$41,16,Language!$A$1) -> Ratio | M36: =INDEX(Language!$B$2:$M$41,15,Language!$A$1) -> Type | P36: ='E-Heat-Fun'!$G$31 -> R448A
D37: =INDEX('E-Heat-Fun'!$B$25:$B$27,'E-Heat-Fun'!$H$25) -> EX8-M21 | F37: =INDEX('E-Heat-Fun'!$C$25:$C$27,'E-Heat-Fun'!$H$25) -> 800 629 | G37: =TEXT('E-Heat-Fun'!I26,"0%")&" "&IF('E-Heat-Fun'!I26>10%,"OK",INDEX(Language!$B$2:$M$41,36,Language!$A$1)) -> 49% OK | M37: ='E-Heat-Fun'!B25 -> EX8-M21 | P37: ='E-Heat-Fun'!E25 -> 71.95
M38: ='E-Heat-Fun'!B26 -> EX7-M21 | P38: ='E-Heat-Fun'!E26 -> 23.57
M39: ='E-Heat-Fun'!B27 -> EX6-M21 | P39: ='E-Heat-Fun'!E27 -> 6.671
B42: =INDEX(Language!$B$2:$M$41,19,Language!$A$1) -> Controller for ECV
D43: ='El Ctr-Dat'!$B$70 -> EXD-U01 | F43: ='El Ctr-Dat'!$C$70 -> 804 750 | G43: ='El Ctr-Dat'!$D$70 -> Universal driver
D44: ='El Ctr-Dat'!$B$71 -> K09-U00 | F44: ='El Ctr-Dat'!$C$71 -> 804 559 | G44: ='El Ctr-Dat'!$D$71 -> Terminal kit for EXD-U01
D45: ='E-EX-Dat'!$D$93 -> ECP-024 | F45: ='E-EX-Dat'!$E$93 -> 804 558 | G45: ='El Ctr-Dat'!$D$72 -> Uninterruptible power supply for up to two EXD-U01
D47: ='E-EX-Dat'!$D$94 -> K09-P00 | F47: ='E-EX-Dat'!$E$94 -> 804 560 | G47: ='El Ctr-Dat'!$D$73 -> Terminal kit for ECP-024
D49: =INDEX(Language!$B$2:$M$400,371,Language!$A$1) -> Temperature controllers
D50: =" "&INDEX(Language!$B$2:$M$400,372,Language!$A$1) -> for EX4-8 Series only
D51: =INDEX(Language!$B$2:$M$400,15,Language!$A$1) -> Type | F51: =INDEX(Language!$B$2:$M$41,18,Language!$A$1) -> Part No. | G51: =INDEX(Language!$B$2:$M$400,285,Language!$A$1) -> Description
D52: ='El Ctr-Dat'!$B$127 -> EXD-SH1 | F52: ='El Ctr-Dat'!$C$127 -> 807 855 | G52: ='El Ctr-Dat'!$E$127 -> Controller for single refrigeration circuit
D54: ='El Ctr-Dat'!$B$128 -> EXD-SH2 | F54: ='El Ctr-Dat'!$C$128 -> 807 856 | G54: ='El Ctr-Dat'!$E$128 -> Controller for two independent refrigeration circuits
D56: ='El Ctr-Dat'!$B$129 -> EXD-M03 | F56: ='El Ctr-Dat'!$D$129 -> 807 865 | G56: ='El Ctr-Dat'!$E$129 -> Molex terminal with 3 meter wires
D57: ='El Ctr-Dat'!$B$103 -> ECN-N60 | F57: ='El Ctr-Dat'!$C$103 -> 804 497 | G57: ='El Ctr-Dat'!$D$103 -> Temperature sensor Cable length 6,0 m
B59: =Home!$D$43 -> 
B60: =INDEX(Language!$B$2:$M$251,250,Language!$A$1) -> The Controls Navigator is provided by Emerson Climate Technologies Europe to assist with the selection of mechanical and electronic controls. Emerson Climate Technologies cannot be held liable for issues arising from application of controls using information provided by this software.

Sheet E-Heat-Fun (hidden)
A1: Functions, Formulas, Codes
B3: Languages | E3: Refrigerant Selection | H3: Startzeile in Daten | M3: Convert to °C-bar-kW
B4: 1 | C4: =Language!B$2 -> English | E4: =INDEX(E5:E21,$G4) -> 24 | F4: =INDEX(F5:F21,$G4) -> 25 | G4: 14 | H4: =INDEX(H5:H21,$G4) -> 424 | I4: =INDEX(I5:I21,$G4) -> 419 | O4: tons | P4: tBTU/h
B5: 2 | C5: =Language!C$2 -> Deutsch | E5: 2 | F5: 2 | G5: R410A | H5: 120 | I5: =H5-H$6 -> 115 | N5: Metric | O5: Imperial | P5: Imperial
B6: 3 | C6: =Language!D$2 -> Français | E6: 3 | F6: 3 | G6: R134a | H6: 5 | I6: =H6-H$6 -> 0 | N6: °C | O6: °F | P6: °F
B7: 4 | C7: =Language!E$2 -> Italiano | E7: 4 | F7: 4 | G7: R22 | H7: 44 | I7: 39 | N7: K | O7: °F | P7: °F
B8: 5 | C8: =Language!F$2 -> Españiol | E8: 5 | F8: 6 | G8: R404A | H8: 82 | I8: 77 | N8: kW | O8: tons | P8: MBH (tBtu/hr)
B9: 6 | C9: =Language!G$2 -> Nederlands | E9: 7 | F9: 7 | G9: R507 | H9: 82 | I9: 77 | N9: bar | O9: Psid | P9: Psid
B10: 7 | C10: =Language!H$2 -> Polish | E10: 8 | F10: 9 | G10: R407C | H10: 44 | I10: 39 | M10: °C | N10: 0 | O10: 32 | P10: 32
B11: 8 | C11: =Language!I$2 -> Czech | E11: 13 | F11: 14 | G11: R407A | H11: 158 | I11: 153 | M11: K | N11: 1 | O11: 0.5555555556 | P11: 0.5555555556
B12: 9 | C12: =Language!J$2 -> Russian | E12: 15 | F12: 16 | G12: R407F | H12: 196 | I12: 191 | M12: kW | N12: 1 | O12: 0.284 | P12: =0.94781*3600/1000 -> 3.412116
B13: 10 | C13: =Language!K$2 -> Chinese | E13: 17 | F13: 17 | G13: Reserv1 | H13: 234 | I13: 229 | M13: bar | N13: 1 | O13: 14.5038 | P13: 14.5038
B14: 11 | C14: =Language!L$2 -> Japanese | E14: 18 | F14: 18 | G14: R1234ze | H14: 272 | I14: 267 | N14: bara | O14: Psia | P14: Psia
B15: 12 | C15: =Language!M$2 -> Română | E15: 19 | F15: 19 | G15: Reserv2 | H15: 310 | I15: 305 | O15: 14.7 | P15: 14.7
E16: 20 | F16: 21 | G16: Reserv3 | H16: 348 | I16: 343
E17: 22 | F17: 23 | G17: Reserv4 | H17: 356 | I17: 351
B18: Units Conversion | E18: 24 | F18: 25 | G18: R448A | H18: 424 | I18: 419
C19: °C-bar-kW | D19: ='E-EX-Fun'!$D$19 -> 1 | E19: 26 | F19: 27 | G19: R449A | H19: 462 | I19: 457
C20: °F-Psi-tons | E20: 28 | F20: 29 | G20: R450A | H20: 500 | I20: 495
C21: °F-Psi-MBH | E21: 30 | F21: 31 | G21: R513A | H21: 538 | I21: 533
A23: Valve Data | E23: Metric/imperial
B24: Type | C24: PCN | D24: Capacity | E24: Capacity | F24: =INDEX(Language!$B$2:$M$41,11,Language!$A$1)&" Q0:" -> System cooling capacity Q0: | I24: ='E-HeatRecl'!$D$14/INDEX('E-EX-Fun'!$N$5:$P$15,8,'E-EX-Fun'!$D$19) -> 35 | J24: kW
B25: EX8-M21 | C25: 800 629 | D25: =$L$88 -> 71.95 | E25: =D25*INDEX('E-Heat-Fun'!$N$5:$P$15,8,'E-Heat-Fun'!$D$19) -> 71.95 | F25: Nächstes Ventil | H25: =MATCH($I$24,$D$25:$D$27,-1) -> 1 | I25: =INDEX(D25:D27,H25) -> 71.95 | J25: kW
B26: EX7-M21 | C26: 800 625 | D26: =$L$72 -> 23.57 | E26: =D26*INDEX('E-Heat-Fun'!$N$5:$P$15,8,'E-Heat-Fun'!$D$19) -> 23.57 | F26: =INDEX(Language!$B$2:$M$41,16,Language!$A$1) -> Ratio | I26: =I24/I25 -> 0.4864489229
B27: EX6-M21 | C27: 800 621 | D27: =$L$56 -> 6.671 | E27: =D27*INDEX('E-Heat-Fun'!$N$5:$P$15,8,'E-Heat-Fun'!$D$19) -> 6.671
B28: EX5-U21 | C28: 800 618 | D28: -
A31: Expansion Valve Function | F31: Selected Refrigerant | G31: =INDEX($G$5:$G$21,$G$4) -> R448A
K32: Hinweis: | L32: Die Leistungsdaten sind untereinander angeordnet
B33: Kondensationstemp.bereiche | F33: Ventilbereiche | I33: Dp | L33: Horizontal Verdampfungstemperatur -45 ... +15°C
B34: Rel. Startzeile des Bereichs: | F34: Rel. Startsplt des Ber. | L34: Vertikal: alle anderen Daten
B35: 30 | C35: 0 | F35: EX6 | G35: 0 | I35: 0.1 | J35: 0 | K35: Bereich: | L35: 'E-Heat-Dat'!C6:Q580
B36: =B35+10 -> 40 | C36: 1 | F36: EX7 | G36: 12 | I36: 0.5 | J36: 4
B37: =B36+10 -> 50 | C37: 2 | F37: EX8 | G37: 24 | I37: 1 | J37: 8
B38: =B37+10 -> 60 | C38: 3 | I38: 1.1 | J38: n/a
B39: =B38+10 -> 70 | C39: n/a
E41: =IF(#REF!=E43,#REF!,INDEX(CO2TransDat!$D$3:$H$3,MATCH($E$115,CO2TransDat!$D$3:$H$3,1)+1)) -> 
E42: =CO2Trans!$D$8/INDEX('E-EX-Fun'!$N$5:$P$15,9,'E-EX-Fun'!$D$19) -> 100 | F42: bara | I42: =INDEX('E-Heat-Dat'!C6:P10,2,5) -> 4
E43: =INDEX(CO2TransDat!$D$3:$H$3,MATCH($E$115,CO2TransDat!$D$3:$H$3,1)) -> 
A44: EX6 | D44: max | E44: 15 | F44: °C | I44: Rel Spalte Verdampfungstemperatur
B45: =INDEX(Language!$B$2:$M$400,6,Language!$A$1) -> Evaporating temperature | D45: Roundup | E45: =IF(E46<0,ROUNDDOWN(E46*2,-1)/2,ROUNDUP(E46*2,-1)/2) -> 5 | G45: =MATCH($E45,'E-Heat-Dat'!$C$5:$O$5) -> 11 | K45: =$G$45 -> 11 | O45: =$G$45 -> 11
D46: Value | E46: =IF($D$19=1,'E-HeatRecl'!$D$8,('E-HeatRecl'!$D$8-32)/1.8) -> 4 | F46: °C
D47: Rounddown | E47: =IF(E46<0,ROUNDUP(E46*2,-1)/2,ROUNDDOWN(E46*2,-1)/2) -> 0 | G47: =MATCH($E47,'E-Heat-Dat'!$C$5:$O$5) -> 10 | I47: =$G$47 -> 10 | M47: =$G$47 -> 10
D48: min | E48: -45 | F48: °C
D49: max | E49: 60 | F49: °C | I49: =$G$47 -> 10 | K49: =$G$45 -> 11 | M49: =$G$47 -> 10 | O49: =$G$45 -> 11
B50: =INDEX(Language!$B$2:$M$400,7,Language!$A$1) -> Condensing temperature | D50: Roundup | E50: =IF(E51<0,ROUNDDOWN(E51,-1),ROUNDUP(E51,-1)) -> 40 | G50: =MATCH($E50,'E-Heat-Dat'!$A$6:$A$9) -> 2 | H50: =$G50+H$55+$G$35+$I$4 -> 421 | I50: =INDEX(INDIRECT($L$35),$H50,I$49) -> 5.1 | K50: =INDEX(INDIRECT($L$35),$H50,K$49) -> 5.2 | L50: =$G50+L$57+$G$35+$I$4 -> 425 | M50: =INDEX(INDIRECT($L$35),$L50,M$49) -> 11.1 | O50: =INDEX(INDIRECT($L$35),$L50,O$49) -> 11.4
D51: Value | E51: =IF($D$19=1,'E-HeatRecl'!$D$10,('E-HeatRecl'!$D$10-32)/1.8) -> 38 | F51: °C | I51: =IF($E52=$E50,I52,I52+((I50-I52)*($E51-$E52)/($E50-$E52))) -> 5.06 | J51: =IF($E47=$E45,I51,I51+((K51-I51)*($E46-$E47)/($E45-$E47))) -> 5.14 | K51: =IF($E52=$E50,K52,K52+((K50-K52)*($E51-$E52)/($E50-$E52))) -> 5.16 | M51: =IF($E52=$E50,M52,M52+((M50-M52)*($E51-$E52)/($E50-$E52))) -> 11.04 | N51: =IF($E47=$E45,M51,M51+((O51-M51)*($E46-$E47)/($E45-$E47))) -> 11.264 | O51: =IF($E52=$E50,O52,O52+((O50-O52)*($E51-$E52)/($E50-$E52))) -> 11.32
D52: Rounddown | E52: =IF(E51<0,ROUNDUP(E51,-1),ROUNDDOWN(E51,-1)) -> 30 | G52: =MATCH($E52,'E-Heat-Dat'!$A$6:$A$9) -> 1 | H52: =$G52+$H$55+$G$35+$I$4 -> 420 | I52: =INDEX(INDIRECT($L$35),$H52,I$49) -> 4.9 | K52: =INDEX(INDIRECT($L$35),$H52,K$49) -> 5 | L52: =$G52+L$57+$G$35+$I$4 -> 424 | M52: =INDEX(INDIRECT($L$35),$L52,M$49) -> 10.8 | O52: =INDEX(INDIRECT($L$35),$L52,O$49) -> 11
D53: min | E53: 30 | F53: °C
D54: max | E54: 1 | F54: bara
B55: =INDEX(Language!$B$2:$M$400,35,Language!$A$1) -> Required pressure drop across valve | D55: Rounddown | E55: =INDEX($I$35:$I$38,$F55) -> 0.1 | F55: =MATCH($E56,$I$35:$I$38) -> 1 | H55: =INDEX($J$35:$J$38,$F55) -> 0
D56: Value | E56: ='E-HeatRecl'!$D$12/INDEX('E-EX-Fun'!$N$5:$P$15,9,'E-EX-Fun'!$D$19) -> 0.2 | F56: bara | L56: =IF(E57=E55,J51,J51+((N51-J51)*(E56-E55)/(E57-E55))) -> 6.671
D57: Roundup | E57: =IF(E56=E54,E56,INDEX($I$35:$I$38,$F57)) -> 0.5 | F57: =IF($E56=1,3,MATCH($E56,$I$35:$I$38)+1) -> 2 | H57: =INDEX($J$35:$J$38,$F57) -> 4 | L57: =H57 -> 4 | M57: =INDEX($C$105:$C$109,$F57) -> 0
D58: min | E58: 0.1 | F58: bara
A60: EX7 | D60: max | E60: 15 | F60: °C | I60: Rel Spalte Verdampfungstemperatur
B61: =INDEX(Language!$B$2:$M$400,6,Language!$A$1) -> Evaporating temperature | D61: Roundup | E61: =IF(E62<0,ROUNDDOWN(E62*2,-1)/2,ROUNDUP(E62*2,-1)/2) -> 5 | G61: =MATCH($E61,'E-Heat-Dat'!$C$5:$O$5) -> 11 | K61: =$G$45 -> 11 | O61: =$G$45 -> 11
D62: Value | E62: =IF($D$19=1,'E-HeatRecl'!$D$8,('E-HeatRecl'!$D$8-32)/1.8) -> 4 | F62: °C
D63: Rounddown | E63: =IF(E62<0,ROUNDUP(E62*2,-1)/2,ROUNDDOWN(E62*2,-1)/2) -> 0 | G63: =MATCH($E63,'E-Heat-Dat'!$C$5:$O$5) -> 10 | I63: =$G$47 -> 10 | M63: =$G$47 -> 10
D64: min | E64: -45 | F64: °C
D65: max | E65: 60 | F65: °C | I65: =$G$47 -> 10 | K65: =$G$45 -> 11 | M65: =$G$47 -> 10 | O65: =$G$45 -> 11
B66: =INDEX(Language!$B$2:$M$400,7,Language!$A$1) -> Condensing temperature | D66: Roundup | E66: =IF(E67<0,ROUNDDOWN(E67,-1),ROUNDUP(E67,-1)) -> 40 | G66: =MATCH($E66,'E-Heat-Dat'!$A$6:$A$9) -> 2 | H66: =$G66+H$55+$G$36+$I$4 -> 433 | I66: =INDEX(INDIRECT($L$35),$H66,I$49) -> 18 | K66: =INDEX(INDIRECT($L$35),$H66,K$49) -> 18 | L66: =$G66+L$57+$G$36+$I$4 -> 437 | M66: =INDEX(INDIRECT($L$35),$L66,M$49) -> 40 | O66: =INDEX(INDIRECT($L$35),$L66,O$49) -> 41
D67: Value | E67: =IF($D$19=1,'E-HeatRecl'!$D$10,('E-HeatRecl'!$D$10-32)/1.8) -> 38 | F67: °C | I67: =IF($E68=$E66,I68,I68+((I66-I68)*($E67-$E68)/($E66-$E68))) -> 17.8 | J67: =IF($E63=$E61,I67,I67+((K67-I67)*($E62-$E63)/($E61-$E63))) -> 17.96 | K67: =IF($E68=$E66,K68,K68+((K66-K68)*($E67-$E68)/($E66-$E68))) -> 18 | M67: =IF($E68=$E66,M68,M68+((M66-M68)*($E67-$E68)/($E66-$E68))) -> 39.6 | N67: =IF($E63=$E61,M67,M67+((O67-M67)*($E62-$E63)/($E61-$E63))) -> 40.4 | O67: =IF($E68=$E66,O68,O68+((O66-O68)*($E67-$E68)/($E66-$E68))) -> 40.6
D68: Rounddown | E68: =IF(E67<0,ROUNDUP(E67,-1),ROUNDDOWN(E67,-1)) -> 30 | G68: =MATCH($E68,'E-Heat-Dat'!$A$6:$A$9) -> 1 | H68: =$G68+$H$55+$G$36+$I$4 -> 432 | I68: =INDEX(INDIRECT($L$35),$H68,I$49) -> 17 | K68: =INDEX(INDIRECT($L$35),$H68,K$49) -> 18 | L68: =$G68+L$57+$G$36+$I$4 -> 436 | M68: =INDEX(INDIRECT($L$35),$L68,M$49) -> 38 | O68: =INDEX(INDIRECT($L$35),$L68,O$49) -> 39
D69: min | E69: 30 | F69: °C
D70: max | E70: 1 | F70: bara
B71: =INDEX(Language!$B$2:$M$400,35,Language!$A$1) -> Required pressure drop across valve | D71: Rounddown | E71: =INDEX($I$35:$I$38,$F71) -> 0.1 | F71: =MATCH($E72,$I$35:$I$38) -> 1 | H71: =INDEX($J$35:$J$38,$F71) -> 0
D72: Value | E72: ='E-HeatRecl'!$D$12/INDEX('E-EX-Fun'!$N$5:$P$15,9,'E-EX-Fun'!$D$19) -> 0.2 | F72: bara | L72: =IF(E73=E71,J67,J67+((N67-J67)*(E72-E71)/(E73-E71))) -> 23.57
D73: Roundup | E73: =IF(E72=E70,E72,INDEX($I$35:$I$38,$F73)) -> 0.5 | F73: =IF($E72=1,3,MATCH($E72,$I$35:$I$38)+1) -> 2 | H73: =INDEX($J$35:$J$38,$F73) -> 4 | L73: =H73 -> 4 | M73: =INDEX($C$105:$C$109,$F73) -> 0
D74: min | E74: 0.1 | F74: bara
A76: EX8 | D76: max | E76: 15 | F76: °C | I76: Rel Spalte Verdampfungstemperatur
B77: =INDEX(Language!$B$2:$M$400,6,Language!$A$1) -> Evaporating temperature | D77: Roundup | E77: =IF(E78<0,ROUNDDOWN(E78*2,-1)/2,ROUNDUP(E78*2,-1)/2) -> 5 | G77: =MATCH($E77,'E-Heat-Dat'!$C$5:$O$5) -> 11 | K77: =$G$45 -> 11 | O77: =$G$45 -> 11
D78: Value | E78: =IF($D$19=1,'E-HeatRecl'!$D$8,('E-HeatRecl'!$D$8-32)/1.8) -> 4 | F78: °C
D79: Rounddown | E79: =IF(E78<0,ROUNDUP(E78*2,-1)/2,ROUNDDOWN(E78*2,-1)/2) -> 0 | G79: =MATCH($E79,'E-Heat-Dat'!$C$5:$O$5) -> 10 | I79: =$G$47 -> 10 | M79: =$G$47 -> 10
D80: min | E80: -45 | F80: °C
D81: max | E81: 60 | F81: °C | I81: =$G$47 -> 10 | K81: =$G$45 -> 11 | M81: =$G$47 -> 10 | O81: =$G$45 -> 11
B82: =INDEX(Language!$B$2:$M$400,7,Language!$A$1) -> Condensing temperature | D82: Roundup | E82: =IF(E83<0,ROUNDDOWN(E83,-1),ROUNDUP(E83,-1)) -> 40 | G82: =MATCH($E82,'E-Heat-Dat'!$A$6:$A$9) -> 2 | H82: =$G82+H$55+$G$37+$I$4 -> 445 | I82: =INDEX(INDIRECT($L$35),$H82,I$49) -> 55 | K82: =INDEX(INDIRECT($L$35),$H82,K$49) -> 56 | L82: =$G82+L$57+$G$37+$I$4 -> 449 | M82: =INDEX(INDIRECT($L$35),$L82,M$49) -> 120 | O82: =INDEX(INDIRECT($L$35),$L82,O$49) -> 123
D83: Value | E83: =IF($D$19=1,'E-HeatRecl'!$D$10,('E-HeatRecl'!$D$10-32)/1.8) -> 38 | F83: °C | I83: =IF($E84=$E82,I84,I84+((I82-I84)*($E83-$E84)/($E82-$E84))) -> 54.6 | J83: =IF($E79=$E77,I83,I83+((K83-I83)*($E78-$E79)/($E77-$E79))) -> 55.4 | K83: =IF($E84=$E82,K84,K84+((K82-K84)*($E83-$E84)/($E82-$E84))) -> 55.6 | M83: =IF($E84=$E82,M84,M84+((M82-M84)*($E83-$E84)/($E82-$E84))) -> 119.2 | N83: =IF($E79=$E77,M83,M83+((O83-M83)*($E78-$E79)/($E77-$E79))) -> 121.6 | O83: =IF($E84=$E82,O84,O84+((O82-O84)*($E83-$E84)/($E82-$E84))) -> 122.2
D84: Rounddown | E84: =IF(E83<0,ROUNDUP(E83,-1),ROUNDDOWN(E83,-1)) -> 30 | G84: =MATCH($E84,'E-Heat-Dat'!$A$6:$A$9) -> 1 | H84: =$G84+$H$55+$G$37+$I$4 -> 444 | I84: =INDEX(INDIRECT($L$35),$H84,I$49) -> 53 | K84: =INDEX(INDIRECT($L$35),$H84,K$49) -> 54 | L84: =$G84+L$57+$G$37+$I$4 -> 448 | M84: =INDEX(INDIRECT($L$35),$L84,M$49) -> 116 | O84: =INDEX(INDIRECT($L$35),$L84,O$49) -> 119
D85: min | E85: 30 | F85: °C
D86: max | E86: 1 | F86: bara
B87: =INDEX(Language!$B$2:$M$400,35,Language!$A$1) -> Required pressure drop across valve | D87: Rounddown | E87: =INDEX($I$35:$I$38,$F87) -> 0.1 | F87: =MATCH($E88,$I$35:$I$38) -> 1 | H87: =INDEX($J$35:$J$38,$F87) -> 0
D88: Value | E88: ='E-HeatRecl'!$D$12/INDEX('E-EX-Fun'!$N$5:$P$15,9,'E-EX-Fun'!$D$19) -> 0.2 | F88: bara | L88: =IF(E89=E87,J83,J83+((N83-J83)*(E88-E87)/(E89-E87))) -> 71.95
D89: Roundup | E89: =IF(E88=E86,E88,INDEX($I$35:$I$38,$F89)) -> 0.5 | F89: =IF($E88=1,3,MATCH($E88,$I$35:$I$38)+1) -> 2 | H89: =INDEX($J$35:$J$38,$F89) -> 4 | L89: =H89 -> 4 | M89: =INDEX($C$105:$C$109,$F89) -> 0
D90: min | E90: 0.1 | F90: bara

Sheet E-Heat-Dat (hidden)
A1: Hot Gas Flow / Heat Reclaim
A2: R134a | C2: R134a
A3: Condensing | B3: Pressure | C3: Extended Capacity KW | P3: Valve type | R3: * Condensing temperatures R407C:
A4: Temperature | B4: Drop | C4: Evaporating Temperature (°C) | R4: The relation between bubble points and dew points is as
A5: °C | B5: bar | C5: -45 | D5: -40 | E5: -35 | F5: -30 | G5: -25 | H5: -20 | I5: -15 | J5: -10 | K5: -5 | L5: 0 | M5: 5 | N5: 10 | O5: 15 | R5: follows:
A6: 30 | B6: 0.1 | C6: 3 | D6: 3 | E6: 3 | F6: 3 | G6: 3 | H6: 3 | I6: 4 | J6: 4 | K6: 4 | L6: 4 | M6: 4 | N6: 4 | O6: 4 | P6: EX6 | R6: Bubble point °C Dew point °C
A7: 40 | B7: 0.1 | C7: 3 | D7: 3 | E7: 3 | F7: 3 | G7: 4 | H7: 4 | I7: 4 | J7: 4 | K7: 4 | L7: 4 | M7: 4 | N7: 4 | O7: 4 | P7: EX6 | R7: +60 +64
A8: 50 | B8: 0.1 | C8: 3 | D8: 3 | E8: 3 | F8: 3 | G8: 4 | H8: 4 | I8: 4 | J8: 4 | K8: 4 | L8: 4 | M8: 4 | N8: 4 | O8: 5 | P8: EX6 | R8: +50 +54
A9: 60 | B9: 0.1 | C9: 3 | D9: 3 | E9: 3 | F9: 3 | G9: 4 | H9: 4 | I9: 4 | J9: 4 | K9: 4 | L9: 4 | M9: 4 | N9: 5 | O9: 5 | P9: EX6 | R9: +40 +45
A10: 30 | B10: 0.5 | C10: 6 | D10: 7 | E10: 7 | F10: 7 | G10: 7 | H10: 8 | I10: 8 | J10: 8 | K10: 8 | L10: 8 | M10: 9 | N10: 9 | O10: 9 | P10: EX6 | R10: +30 +35
A11: 40 | B11: 0.5 | C11: 7 | D11: 7 | E11: 7 | F11: 7 | G11: 8 | H11: 8 | I11: 8 | J11: 8 | K11: 9 | L11: 9 | M11: 9 | N11: 9 | O11: 10 | P11: EX6
A12: 50 | B12: 0.5 | C12: 7 | D12: 7 | E12: 7 | F12: 8 | G12: 8 | H12: 8 | I12: 8 | J12: 9 | K12: 9 | L12: 9 | M12: 9 | N12: 10 | O12: 10 | P12: EX6
A13: 60 | B13: 0.5 | C13: 6 | D13: 7 | E13: 7 | F13: 7 | G13: 8 | H13: 8 | I13: 8 | J13: 9 | K13: 9 | L13: 9 | M13: 10 | N13: 10 | O13: 10 | P13: EX6
A14: 30 | B14: 1 | C14: 9 | D14: 9 | E14: 9 | F14: 10 | G14: 10 | H14: 10 | I14: 11 | J14: 11 | K14: 11 | L14: 11 | M14: 12 | N14: 12 | O14: 12 | P14: EX6
A15: 40 | B15: 1 | C15: 9 | D15: 10 | E15: 10 | F15: 10 | G15: 11 | H15: 11 | I15: 11 | J15: 12 | K15: 12 | L15: 12 | M15: 12 | N15: 13 | O15: 13 | P15: EX6
A16: 50 | B16: 1 | C16: 9 | D16: 10 | E16: 10 | F16: 10 | G16: 11 | H16: 11 | I16: 12 | J16: 12 | K16: 12 | L16: 13 | M16: 13 | N16: 13 | O16: 14 | P16: EX6
A17: 60 | B17: 1 | C17: 9 | D17: 9 | E17: 10 | F17: 10 | G17: 11 | H17: 11 | I17: 12 | J17: 12 | K17: 12 | L17: 13 | M17: 13 | N17: 14 | O17: 14 | P17: EX6
A18: 30 | B18: 0.1 | C18: 11 | D18: 11 | E18: 11 | F18: 12 | G18: 12 | H18: 12 | I18: 13 | J18: 13 | K18: 13 | L18: 14 | M18: 14 | N18: 14 | O18: 15 | P18: EX7
A19: 40 | B19: 0.1 | C19: 11 | D19: 11 | E19: 12 | F19: 12 | G19: 13 | H19: 13 | I19: 13 | J19: 14 | K19: 14 | L19: 14 | M19: 15 | N19: 15 | O19: 16 | P19: EX7
A20: 50 | B20: 0.1 | C20: 11 | D20: 11 | E20: 12 | F20: 12 | G20: 13 | H20: 13 | I20: 14 | J20: 14 | K20: 14 | L20: 15 | M20: 15 | N20: 16 | O20: 16 | P20: EX7
A21: 60 | B21: 0.1 | C21: 10 | D21: 11 | E21: 12 | F21: 12 | G21: 13 | H21: 13 | I21: 14 | J21: 14 | K21: 15 | L21: 15 | M21: 16 | N21: 16 | O21: 16 | P21: EX7
A22: 30 | B22: 0.5 | C22: 23 | D22: 24 | E22: 25 | F22: 25 | G22: 26 | H22: 27 | I22: 28 | J22: 28 | K22: 29 | L22: 30 | M22: 30 | N22: 31 | O22: 32 | P22: EX7
A23: 40 | B23: 0.5 | C23: 24 | D23: 25 | E23: 26 | F23: 26 | G23: 27 | H23: 28 | I23: 29 | J23: 30 | K23: 31 | L23: 32 | M23: 32 | N23: 33 | O23: 34 | P23: EX7
A24: 50 | B24: 0.5 | C24: 24 | D24: 25 | E24: 26 | F24: 27 | G24: 28 | H24: 29 | I24: 30 | J24: 31 | K24: 32 | L24: 33 | M24: 34 | N24: 35 | O24: 35 | P24: EX7
A25: 60 | B25: 0.5 | C25: 23 | D25: 24 | E25: 25 | F25: 26 | G25: 28 | H25: 29 | I25: 30 | J25: 31 | K25: 32 | L25: 33 | M25: 34 | N25: 35 | O25: 36 | P25: EX7
A26: 30 | B26: 1 | C26: 31 | D26: 32 | E26: 33 | F26: 34 | G26: 35 | H26: 36 | I26: 37 | J26: 38 | K26: 39 | L26: 40 | M26: 41 | N26: 42 | O26: 43 | P26: EX7
A27: 40 | B27: 1 | C27: 33 | D27: 34 | E27: 35 | F27: 36 | G27: 38 | H27: 39 | I27: 40 | J27: 41 | K27: 42 | L27: 43 | M27: 44 | N27: 45 | O27: 46 | P27: EX7
A28: 50 | B28: 1 | C28: 33 | D28: 34 | E28: 36 | F28: 37 | G28: 39 | H28: 40 | I28: 41 | J28: 43 | K28: 44 | L28: 45 | M28: 46 | N28: 48 | O28: 49 | P28: EX7
A29: 60 | B29: 1 | C29: 32 | D29: 34 | E29: 35 | F29: 37 | G29: 38 | H29: 40 | I29: 41 | J29: 43 | K29: 44 | L29: 46 | M29: 47 | N29: 49 | O29: 50 | P29: EX7
A30: 30 | B30: 0.1 | C30: 32 | D30: 33 | E30: 34 | F30: 35 | G30: 37 | H30: 38 | I30: 39 | J30: 40 | K30: 41 | L30: 42 | M30: 42 | N30: 43 | O30: 44 | P30: EX8
A31: 40 | B31: 0.1 | C31: 33 | D31: 34 | E31: 36 | F31: 37 | G31: 38 | H31: 39 | I31: 40 | J31: 42 | K31: 43 | L31: 44 | M31: 45 | N31: 46 | O31: 47 | P31: EX8
A32: 50 | B32: 0.1 | C32: 33 | D32: 35 | E32: 36 | F32: 37 | G32: 39 | H32: 40 | I32: 41 | J32: 43 | K32: 44 | L32: 45 | M32: 47 | N32: 48 | O32: 49 | P32: EX8
A33: 60 | B33: 0.1 | C33: 32 | D33: 33 | E33: 35 | F33: 37 | G33: 38 | H33: 40 | I33: 41 | J33: 43 | K33: 44 | L33: 46 | M33: 47 | N33: 49 | O33: 50 | P33: EX8
A34: 30 | B34: 0.5 | C34: 70 | D34: 72 | E34: 75 | F34: 77 | G34: 79 | H34: 81 | I34: 84 | J34: 86 | K34: 88 | L34: 90 | M34: 92 | N34: 94 | O34: 96 | P34: EX8
A35: 40 | B35: 0.5 | C35: 73 | D35: 75 | E35: 78 | F35: 80 | G35: 83 | H35: 86 | I35: 88 | J35: 91 | K35: 93 | L35: 96 | M35: 98 | N35: 100 | O35: 103 | P35: EX8
A36: 50 | B36: 0.5 | C36: 73 | D36: 76 | E36: 79 | F36: 82 | G36: 85 | H36: 88 | I36: 91 | J36: 94 | K36: 97 | L36: 99 | M36: 102 | N36: 105 | O36: 108 | P36: EX8
A37: 60 | B37: 0.5 | C37: 70 | D37: 74 | E37: 77 | F37: 80 | G37: 84 | H37: 87 | I37: 91 | J37: 94 | K37: 97 | L37: 101 | M37: 104 | N37: 107 | O37: 110 | P37: EX8
A38: 30 | B38: 1 | C38: 95 | D38: 98 | E38: 102 | F38: 105 | G38: 108 | H38: 111 | I38: 114 | J38: 117 | K38: 119 | L38: 122 | M38: 125 | N38: 128 | O38: 130 | P38: EX8
A39: 40 | B39: 1 | C39: 100 | D39: 103 | E39: 107 | F39: 110 | G39: 114 | H39: 117 | I39: 121 | J39: 124 | K39: 128 | L39: 131 | M39: 134 | N39: 138 | O39: 141 | P39: EX8
A40: 50 | B40: 1 | C40: 100 | D40: 105 | E40: 109 | F40: 113 | G40: 117 | H40: 121 | I40: 125 | J40: 129 | K40: 133 | L40: 137 | M40: 141 | N40: 145 | O40: 148 | P40: EX8
A41: 60 | B41: 1 | C41: 97 | D41: 102 | E41: 107 | F41: 112 | G41: 116 | H41: 121 | I41: 126 | J41: 130 | K41: 135 | L41: 139 | M41: 144 | N41: 148 | O41: 152 | P41: EX8
A43: R22/R407C | C43: R22/R407C
A44: °C | B44: bar | C44: -45 | D44: -40 | E44: -35 | F44: -30 | G44: -25 | H44: -20 | I44: -15 | J44: -10 | K44: -5 | L44: 0 | M44: 5 | N44: 10 | O44: 15
A45: 30 | B45: 0.1 | C45: 4 | D45: 4 | E45: 4 | F45: 4 | G45: 4 | H45: 4 | I45: 4 | J45: 4 | K45: 4 | L45: 5 | M45: 5 | N45: 5 | O45: 5 | P45: EX6
A46: 40 | B46: 0.1 | C46: 4 | D46: 4 | E46: 4 | F46: 4 | G46: 4 | H46: 4 | I46: 5 | J46: 5 | K46: 5 | L46: 5 | M46: 5 | N46: 5 | O46: 5 | P46: EX6
A47: 50 | B47: 0.1 | C47: 4 | D47: 4 | E47: 4 | F47: 4 | G47: 4 | H47: 5 | I47: 5 | J47: 5 | K47: 5 | L47: 5 | M47: 5 | N47: 5 | O47: 5 | P47: EX6
A48: 60 | B48: 0.1 | C48: 4 | D48: 4 | E48: 4 | F48: 4 | G48: 4 | H48: 5 | I48: 5 | J48: 5 | K48: 5 | L48: 5 | M48: 5 | N48: 5 | O48: 6 | P48: EX6
A49: 30 | B49: 0.5 | C49: 8 | D49: 8 | E49: 9 | F49: 9 | G49: 9 | H49: 9 | I49: 9 | J49: 10 | K49: 10 | L49: 10 | M49: 10 | N49: 10 | O49: 11 | P49: EX6
A50: 40 | B50: 0.5 | C50: 8 | D50: 9 | E50: 9 | F50: 9 | G50: 9 | H50: 10 | I50: 10 | J50: 10 | K50: 10 | L50: 11 | M50: 11 | N50: 11 | O50: 11 | P50: EX6
A51: 50 | B51: 0.5 | C51: 9 | D51: 9 | E51: 9 | F51: 10 | G51: 10 | H51: 10 | I51: 10 | J51: 11 | K51: 11 | L51: 11 | M51: 11 | N51: 12 | O51: 12 | P51: EX6
A52: 60 | B52: 0.5 | C52: 9 | D52: 9 | E52: 9 | F52: 10 | G52: 10 | H52: 10 | I52: 10 | J52: 11 | K52: 11 | L52: 11 | M52: 12 | N52: 12 | O52: 12 | P52: EX6
A53: 30 | B53: 1 | C53: 11 | D53: 12 | E53: 12 | F53: 12 | G53: 12 | H53: 13 | I53: 13 | J53: 13 | K53: 14 | L53: 14 | M53: 14 | N53: 14 | O53: 15 | P53: EX6
A54: 40 | B54: 1 | C54: 12 | D54: 12 | E54: 12 | F54: 13 | G54: 13 | H54: 14 | I54: 14 | J54: 14 | K54: 14 | L54: 15 | M54: 15 | N54: 15 | O54: 16 | P54: EX6
A55: 50 | B55: 1 | C55: 12 | D55: 13 | E55: 13 | F55: 13 | G55: 14 | H55: 14 | I55: 14 | J55: 15 | K55: 15 | L55: 15 | M55: 16 | N55: 16 | O55: 17 | P55: EX6
A56: 60 | B56: 1 | C56: 12 | D56: 13 | E56: 13 | F56: 13 | G56: 14 | H56: 14 | I56: 15 | J56: 15 | K56: 15 | L56: 16 | M56: 16 | N56: 17 | O56: 17 | P56: EX6
A57: 30 | B57: 0.1 | C57: 13 | D57: 14 | E57: 14 | F57: 14 | G57: 15 | H57: 15 | I57: 15 | J57: 16 | K57: 16 | L57: 16 | M57: 17 | N57: 17 | O57: 17 | P57: EX7
A58: 40 | B58: 0.1 | C58: 14 | D58: 14 | E58: 15 | F58: 15 | G58: 15 | H58: 16 | I58: 16 | J58: 16 | K58: 17 | L58: 17 | M58: 18 | N58: 18 | O58: 18 | P58: EX7
A59: 50 | B59: 0.1 | C59: 14 | D59: 14 | E59: 15 | F59: 15 | G59: 16 | H59: 16 | I59: 17 | J59: 17 | K59: 17 | L59: 18 | M59: 18 | N59: 19 | O59: 19 | P59: EX7
A60: 60 | B60: 0.1 | C60: 14 | D60: 14 | E60: 15 | F60: 15 | G60: 16 | H60: 16 | I60: 17 | J60: 17 | K60: 18 | L60: 18 | M60: 19 | N60: 19 | O60: 20 | P60: EX7
A61: 30 | B61: 0.5 | C61: 29 | D61: 30 | E61: 30 | F61: 31 | G61: 32 | H61: 33 | I61: 34 | J61: 34 | K61: 35 | L61: 36 | M61: 37 | N61: 37 | O61: 38 | P61: EX7
A62: 40 | B62: 0.5 | C62: 30 | D62: 31 | E62: 32 | F62: 33 | G62: 34 | H62: 35 | I62: 35 | J62: 36 | K62: 37 | L62: 38 | M62: 39 | N62: 40 | O62: 40 | P62: EX7
A63: 50 | B63: 0.5 | C63: 31 | D63: 32 | E63: 33 | F63: 34 | G63: 35 | H63: 36 | I63: 37 | J63: 38 | K63: 39 | L63: 40 | M63: 40 | N63: 41 | O63: 42 | P63: EX7
A64: 60 | B64: 0.5 | C64: 31 | D64: 32 | E64: 33 | F64: 34 | G64: 35 | H64: 36 | I64: 37 | J64: 38 | K64: 39 | L64: 40 | M64: 41 | N64: 42 | O64: 43 | P64: EX7
A65: 30 | B65: 1 | C65: 40 | D65: 41 | E65: 42 | F65: 43 | G65: 44 | H65: 45 | I65: 46 | J65: 47 | K65: 48 | L65: 49 | M65: 50 | N65: 51 | O65: 52 | P65: EX7
A66: 40 | B66: 1 | C66: 42 | D66: 43 | E66: 44 | F66: 46 | G66: 47 | H66: 48 | I66: 49 | J66: 50 | K66: 52 | L66: 53 | M66: 54 | N66: 55 | O66: 56 | P66: EX7
A67: 50 | B67: 1 | C67: 43 | D67: 44 | E67: 46 | F67: 47 | G67: 49 | H67: 50 | I67: 51 | J67: 52 | K67: 54 | L67: 55 | M67: 56 | N67: 57 | O67: 59 | P67: EX7
A68: 60 | B68: 1 | C68: 43 | D68: 45 | E68: 46 | F68: 48 | G68: 49 | H68: 51 | I68: 52 | J68: 53 | K68: 55 | L68: 56 | M68: 58 | N68: 59 | O68: 60 | P68: EX7
A69: 30 | B69: 0.1 | C69: 40 | D69: 41 | E69: 42 | F69: 43 | G69: 44 | H69: 45 | I69: 46 | J69: 48 | K69: 49 | L69: 50 | M69: 51 | N69: 52 | O69: 53 | P69: EX8
A70: 40 | B70: 0.1 | C70: 42 | D70: 43 | E70: 44 | F70: 45 | G70: 47 | H70: 48 | I70: 49 | J70: 50 | K70: 51 | L70: 52 | M70: 54 | N70: 55 | O70: 56 | P70: EX8
A71: 50 | B71: 0.1 | C71: 42 | D71: 44 | E71: 45 | F71: 47 | G71: 48 | H71: 49 | I71: 51 | J71: 52 | K71: 53 | L71: 54 | M71: 56 | N71: 57 | O71: 58 | P71: EX8
A72: 60 | B72: 0.1 | C72: 42 | D72: 44 | E72: 45 | F72: 47 | G72: 48 | H72: 50 | I72: 51 | J72: 53 | K72: 54 | L72: 55 | M72: 57 | N72: 58 | O72: 59 | P72: EX8
A73: 30 | B73: 0.5 | C73: 88 | D73: 90 | E73: 93 | F73: 95 | G73: 97 | H73: 100 | I73: 102 | J73: 104 | K73: 107 | L73: 109 | M73: 111 | N73: 113 | O73: 115 | P73: EX8
A74: 40 | B74: 0.5 | C74: 92 | D74: 94 | E74: 97 | F74: 100 | G74: 103 | H74: 105 | I74: 108 | J74: 110 | K74: 113 | L74: 115 | M74: 118 | N74: 120 | O74: 123 | P74: EX8
A75: 50 | B75: 0.5 | C75: 94 | D75: 97 | E75: 100 | F75: 103 | G75: 106 | H75: 109 | I75: 112 | J75: 115 | K75: 117 | L75: 120 | M75: 123 | N75: 126 | O75: 128 | P75: EX8
A76: 60 | B76: 0.5 | C76: 94 | D76: 97 | E76: 100 | F76: 103 | G76: 107 | H76: 110 | I76: 113 | J76: 116 | K76: 119 | L76: 123 | M76: 126 | N76: 129 | O76: 131 | P76: EX8
A77: 30 | B77: 1 | C77: 121 | D77: 124 | E77: 128 | F77: 131 | G77: 134 | H77: 138 | I77: 141 | J77: 144 | K77: 147 | L77: 150 | M77: 153 | N77: 156 | O77: 159 | P77: EX8
A78: 40 | B78: 1 | C78: 127 | D78: 131 | E78: 135 | F78: 139 | G78: 142 | H78: 146 | I78: 149 | J78: 153 | K78: 157 | L78: 160 | M78: 163 | N78: 167 | O78: 170 | P78: EX8
A79: 50 | B79: 1 | C79: 131 | D79: 135 | E79: 139 | F79: 143 | G79: 147 | H79: 151 | I79: 155 | J79: 159 | K79: 163 | L79: 167 | M79: 171 | N79: 175 | O79: 178 | P79: EX8
A80: 60 | B80: 1 | C80: 131 | D80: 135 | E80: 140 | F80: 145 | G80: 149 | H80: 154 | I80: 158 | J80: 162 | K80: 167 | L80: 171 | M80: 175 | N80: 179 | O80: 183 | P80: EX8
A81: R404A
A82: °C | B82: bar | C82: -45 | D82: -40 | E82: -35 | F82: -30 | G82: -25 | H82: -20 | I82: -15 | J82: -10 | K82: -5 | L82: 0 | M82: 5 | N82: 10 | O82: 15
A83: 30 | B83: 0.1 | C83: 3 | D83: 3 | E83: 3 | F83: 4 | G83: 4 | H83: 4 | I83: 4 | J83: 4 | K83: 4 | L83: 4 | M83: 4 | N83: 4 | O83: 5 | P83: EX6
A84: 40 | B84: 0.1 | C84: 3 | D84: 3 | E84: 3 | F84: 3 | G84: 4 | H84: 4 | I84: 4 | J84: 4 | K84: 4 | L84: 4 | M84: 4 | N84: 4 | O84: 5 | P84: EX6
A85: 50 | B85: 0.1 | C85: 3 | D85: 3 | E85: 3 | F85: 3 | G85: 3 | H85: 4 | I85: 4 | J85: 4 | K85: 4 | L85: 4 | M85: 4 | N85: 4 | O85: 5 | P85: EX6
A86: 60 | B86: 0.1 | C86: 2 | D86: 2 | E86: 3 | F86: 3 | G86: 3 | H86: 3 | I86: 3 | J86: 3 | K86: 4 | L86: 4 | M86: 4 | N86: 4 | O86: 4 | P86: EX6
A87: 30 | B87: 0.5 | C87: 7 | D87: 7 | E87: 8 | F87: 8 | G87: 8 | H87: 8 | I87: 9 | J87: 9 | K87: 9 | L87: 9 | M87: 10 | N87: 10 | O87: 10 | P87: EX6
A88: 40 | B88: 0.5 | C88: 7 | D88: 7 | E88: 7 | F88: 8 | G88: 8 | H88: 8 | I88: 9 | J88: 9 | K88: 9 | L88: 9 | M88: 10 | N88: 10 | O88: 10 | P88: EX6
A89: 50 | B89: 0.5 | C89: 6 | D89: 6 | E89: 7 | F89: 7 | G89: 7 | H89: 8 | I89: 8 | J89: 8 | K89: 9 | L89: 9 | M89: 9 | N89: 10 | O89: 10 | P89: EX6
A90: 60 | B90: 0.5 | C90: 5 | D90: 5 | E90: 6 | F90: 6 | G90: 6 | H90: 7 | I90: 7 | J90: 7 | K90: 8 | L90: 8 | M90: 8 | N90: 9 | O90: 9 | P90: EX6
A91: 30 | B91: 1 | C91: 10 | D91: 10 | E91: 10 | F91: 11 | G91: 11 | H91: 12 | I91: 12 | J91: 12 | K91: 13 | L91: 13 | M91: 13 | N91: 13 | O91: 14 | P91: EX6
A92: 40 | B92: 1 | C92: 9 | D92: 10 | E92: 10 | F92: 11 | G92: 11 | H92: 11 | I92: 12 | J92: 12 | K92: 13 | L92: 13 | M92: 13 | N92: 14 | O92: 14 | P92: EX6
A93: 50 | B93: 1 | C93: 8 | D93: 9 | E93: 9 | F93: 10 | G93: 10 | H93: 11 | I93: 11 | J93: 12 | K93: 12 | L93: 13 | M93: 13 | N93: 13 | O93: 14 | P93: EX6
A94: 60 | B94: 1 | C94: 7 | D94: 7 | E94: 8 | F94: 8 | G94: 9 | H94: 9 | I94: 10 | J94: 10 | K94: 11 | L94: 11 | M94: 12 | N94: 12 | O94: 13 | P94: EX6
A95: 30 | B95: 0.1 | C95: 11 | D95: 12 | E95: 12 | F95: 13 | G95: 13 | H95: 13 | I95: 14 | J95: 14 | K95: 15 | L95: 15 | M95: 15 | N95: 16 | O95: 16 | P95: EX7
A96: 40 | B96: 0.1 | C96: 11 | D96: 11 | E96: 12 | F96: 12 | G96: 13 | H96: 13 | I96: 14 | J96: 14 | K96: 15 | L96: 15 | M96: 16 | N96: 16 | O96: 16 | P96: EX7
A97: 50 | B97: 0.1 | C97: 10 | D97: 10 | E97: 11 | F97: 11 | G97: 12 | H97: 13 | I97: 13 | J97: 14 | K97: 14 | L97: 15 | M97: 15 | N97: 16 | O97: 16 | P97: EX7
A98: 60 | B98: 0.1 | C98: 8 | D98: 8 | E98: 9 | F98: 10 | G98: 10 | H98: 11 | I98: 11 | J98: 12 | K98: 13 | L98: 13 | M98: 14 | N98: 14 | O98: 15 | P98: EX7
A99: 30 | B99: 0.5 | C99: 25 | D99: 26 | E99: 27 | F99: 28 | G99: 29 | H99: 30 | I99: 31 | J99: 31 | K99: 32 | L99: 33 | M99: 34 | N99: 35 | O99: 35 | P99: EX7
A100: 40 | B100: 0.5 | C100: 24 | D100: 25 | E100: 26 | F100: 27 | G100: 28 | H100: 29 | I100: 30 | J100: 31 | K100: 32 | L100: 33 | M100: 34 | N100: 35 | O100: 36 | P100: EX7
A101: 50 | B101: 0.5 | C101: 22 | D101: 23 | E101: 24 | F101: 25 | G101: 26 | H101: 28 | I101: 29 | J101: 30 | K101: 31 | L101: 32 | M101: 33 | N101: 34 | O101: 35 | P101: EX7
A102: 60 | B102: 0.5 | C102: 17 | D102: 18 | E102: 20 | F102: 21 | G102: 22 | H102: 24 | I102: 25 | J102: 26 | K102: 28 | L102: 29 | M102: 30 | N102: 31 | O102: 32 | P102: EX7
A103: 30 | B103: 1 | C103: 34 | D103: 36 | E103: 37 | F103: 38 | G103: 40 | H103: 41 | I103: 42 | J103: 43 | K103: 45 | L103: 46 | M103: 47 | N103: 48 | O103: 49 | P103: EX7
A104: 40 | B104: 1 | C104: 33 | D104: 35 | E104: 36 | F104: 38 | G104: 39 | H104: 41 | I104: 42 | J104: 44 | K104: 45 | L104: 46 | M104: 48 | N104: 49 | O104: 50 | P104: EX7
A105: 50 | B105: 1 | C105: 30 | D105: 32 | E105: 33 | F105: 35 | G105: 37 | H105: 38 | I105: 40 | J105: 42 | K105: 43 | L105: 45 | M105: 46 | N105: 48 | O105: 49 | P105: EX7
A106: 60 | B106: 1 | C106: 24 | D106: 26 | E106: 27 | F106: 29 | G106: 31 | H106: 33 | I106: 35 | J106: 37 | K106: 39 | L106: 40 | M106: 42 | N106: 44 | O106: 45 | P106: EX7
A107: 30 | B107: 0.1 | C107: 34 | D107: 36 | E107: 37 | F107: 38 | G107: 40 | H107: 41 | I107: 42 | J107: 43 | K107: 45 | L107: 46 | M107: 47 | N107: 48 | O107: 49 | P107: EX8
A108: 40 | B108: 0.1 | C108: 33 | D108: 34 | E108: 36 | F108: 37 | G108: 39 | H108: 40 | I108: 42 | J108: 43 | K108: 45 | L108: 46 | M108: 47 | N108: 49 | O108: 50 | P108: EX8
A109: 50 | B109: 0.1 | C109: 30 | D109: 31 | E109: 33 | F109: 35 | G109: 36 | H109: 38 | I109: 40 | J109: 41 | K109: 43 | L109: 44 | M109: 46 | N109: 47 | O109: 49 | P109: EX8
A110: 60 | B110: 0.1 | C110: 23 | D110: 25 | E110: 27 | F110: 29 | G110: 31 | H110: 33 | I110: 35 | J110: 36 | K110: 38 | L110: 40 | M110: 42 | N110: 43 | O110: 45 | P110: EX8
A111: 30 | B111: 0.5 | C111: 76 | D111: 78 | E111: 81 | F111: 84 | G111: 87 | H111: 90 | I111: 93 | J111: 95 | K111: 98 | L111: 101 | M111: 103 | N111: 105 | O111: 108 | P111: EX8
A112: 40 | B112: 0.5 | C112: 73 | D112: 76 | E112: 79 | F112: 83 | G112: 86 | H112: 89 | I112: 92 | J112: 95 | K112: 98 | L112: 101 | M112: 104 | N112: 107 | O112: 109 | P112: EX8
A113: 50 | B113: 0.5 | C113: 65 | D113: 69 | E113: 73 | F113: 77 | G113: 80 | H113: 84 | I113: 88 | J113: 91 | K113: 95 | L113: 98 | M113: 101 | N113: 104 | O113: 107 | P113: EX8
A114: 60 | B114: 0.5 | C114: 52 | D114: 56 | E114: 60 | F114: 64 | G114: 68 | H114: 72 | I114: 76 | J114: 80 | K114: 84 | L114: 88 | M114: 92 | N114: 95 | O114: 99 | P114: EX8
A115: 30 | B115: 1 | C115: 104 | D115: 109 | E115: 113 | F115: 117 | G115: 120 | H115: 124 | I115: 128 | J115: 132 | K115: 135 | L115: 139 | M115: 142 | N115: 146 | O115: 149 | P115: EX8
A116: 40 | B116: 1 | C116: 101 | D116: 105 | E116: 110 | F116: 115 | G116: 119 | H116: 124 | I116: 128 | J116: 132 | K116: 136 | L116: 140 | M116: 144 | N116: 148 | O116: 152 | P116: EX8
A117: 50 | B117: 1 | C117: 91 | D117: 96 | E117: 102 | F117: 107 | G117: 112 | H117: 117 | I117: 122 | J117: 127 | K117: 131 | L117: 136 | M117: 141 | N117: 145 | O117: 149 | P117: EX8
A118: 60 | B118: 1 | C118: 72 | D118: 78 | E118: 84 | F118: 89 | G118: 95 | H118: 101 | I118: 106 | J118: 112 | K118: 117 | L118: 122 | M118: 127 | N118: 132 | O118: 137 | P118: EX8
A119: R410A
A120: °C | B120: bar | C120: -45 | D120: -40 | E120: -35 | F120: -30 | G120: -25 | H120: -20 | I120: -15 | J120: -10 | K120: -5 | L120: 0 | M120: 5 | N120: 10 | O120: 15
A121: 30 | B121: 0.1 | C121: 5 | D121: 5 | E121: 5 | F121: 5 | G121: 5 | H121: 5 | I121: 5 | J121: 5 | K121: 6 | L121: 6 | M121: 6 | N121: 6 | O121: 6 | P121: EX6
A122: 40 | B122: 0.1 | C122: 5 | D122: 5 | E122: 5 | F122: 5 | G122: 5 | H122: 5 | I122: 5 | J122: 6 | K122: 6 | L122: 6 | M122: 6 | N122: 6 | O122: 6 | P122: EX6
A123: 50 | B123: 0.1 | C123: 4 | D123: 5 | E123: 5 | F123: 5 | G123: 5 | H123: 5 | I123: 5 | J123: 6 | K123: 6 | L123: 6 | M123: 6 | N123: 6 | O123: 6 | P123: EX6
A124: 60 | B124: 0.1 | C124: 4 | D124: 4 | E124: 4 | F124: 5 | G124: 5 | H124: 5 | I124: 5 | J124: 5 | K124: 5 | L124: 6 | M124: 6 | N124: 6 | O124: 6 | P124: EX6
A125: 30 | B125: 0.5 | C125: 10 | D125: 10 | E125: 11 | F125: 11 | G125: 11 | H125: 12 | I125: 12 | J125: 12 | K125: 12 | L125: 13 | M125: 13 | N125: 13 | O125: 13 | P125: EX6
A126: 40 | B126: 0.5 | C126: 10 | D126: 11 | E126: 11 | F126: 11 | G126: 11 | H126: 12 | I126: 12 | J126: 12 | K126: 13 | L126: 13 | M126: 13 | N126: 13 | O126: 14 | P126: EX6
A127: 50 | B127: 0.5 | C127: 10 | D127: 10 | E127: 11 | F127: 11 | G127: 11 | H127: 12 | I127: 12 | J127: 12 | K127: 13 | L127: 13 | M127: 13 | N127: 14 | O127: 14 | P127: EX6
A128: 60 | B128: 0.5 | C128: 9 | D128: 10 | E128: 10 | F128: 10 | G128: 11 | H128: 11 | I128: 11 | J128: 12 | K128: 12 | L128: 12 | M128: 13 | N128: 13 | O128: 13 | P128: EX6
A129: 30 | B129: 1 | C129: 14 | D129: 14 | E129: 15 | F129: 15 | G129: 16 | H129: 16 | I129: 16 | J129: 17 | K129: 17 | L129: 17 | M129: 18 | N129: 18 | O129: 18 | P129: EX6
A130: 40 | B130: 1 | C130: 14 | D130: 15 | E130: 15 | F130: 16 | G130: 16 | H130: 16 | I130: 17 | J130: 17 | K130: 18 | L130: 18 | M130: 18 | N130: 19 | O130: 19 | P130: EX6
A131: 50 | B131: 1 | C131: 14 | D131: 14 | E131: 15 | F131: 15 | G131: 16 | H131: 16 | I131: 17 | J131: 17 | K131: 18 | L131: 18 | M131: 19 | N131: 19 | O131: 19 | P131: EX6
A132: 60 | B132: 1 | C132: 13 | D132: 13 | E132: 14 | F132: 14 | G132: 15 | H132: 15 | I132: 16 | J132: 16 | K132: 17 | L132: 17 | M132: 18 | N132: 18 | O132: 19 | P132: EX6
A133: 30 | B133: 0.1 | C133: 16 | D133: 17 | E133: 17 | F133: 18 | G133: 18 | H133: 19 | I133: 19 | J133: 19 | K133: 20 | L133: 20 | M133: 21 | N133: 21 | O133: 21 | P133: EX7
A134: 40 | B134: 0.1 | C134: 16 | D134: 17 | E134: 17 | F134: 18 | G134: 18 | H134: 19 | I134: 19 | J134: 20 | K134: 20 | L134: 21 | M134: 21 | N134: 22 | O134: 22 | P134: EX7
A135: 50 | B135: 0.1 | C135: 16 | D135: 17 | E135: 17 | F135: 18 | G135: 18 | H135: 19 | I135: 19 | J135: 20 | K135: 20 | L135: 21 | M135: 21 | N135: 22 | O135: 22 | P135: EX7
A136: 60 | B136: 0.1 | C136: 15 | D136: 15 | E136: 16 | F136: 16 | G136: 17 | H136: 18 | I136: 18 | J136: 19 | K136: 19 | L136: 20 | M136: 20 | N136: 21 | O136: 21 | P136: EX7
A137: 30 | B137: 0.5 | C137: 36 | D137: 37 | E137: 38 | F137: 39 | G137: 40 | H137: 41 | I137: 42 | J137: 43 | K137: 44 | L137: 45 | M137: 45 | N137: 46 | O137: 47 | P137: EX7
A138: 40 | B138: 0.5 | C138: 36 | D138: 37 | E138: 39 | F138: 40 | G138: 41 | H138: 42 | I138: 43 | J138: 44 | K138: 45 | L138: 46 | M138: 47 | N138: 48 | O138: 49 | P138: EX7
A139: 50 | B139: 0.5 | C139: 35 | D139: 37 | E139: 38 | F139: 39 | G139: 40 | H139: 42 | I139: 43 | J139: 44 | K139: 45 | L139: 46 | M139: 47 | N139: 48 | O139: 49 | P139: EX7
A140: 60 | B140: 0.5 | C140: 32 | D140: 34 | E140: 35 | F140: 36 | G140: 38 | H140: 39 | I140: 40 | J140: 41 | K140: 43 | L140: 44 | M140: 45 | N140: 46 | O140: 47 | P140: EX7
A141: 30 | B141: 1 | C141: 50 | D141: 51 | E141: 53 | F141: 54 | G141: 56 | H141: 57 | I141: 58 | J141: 60 | K141: 61 | L141: 62 | M141: 63 | N141: 64 | O141: 65 | P141: EX7
A142: 40 | B142: 1 | C142: 51 | D142: 52 | E142: 54 | F142: 55 | G142: 57 | H142: 59 | I142: 60 | J142: 61 | K142: 63 | L142: 64 | M142: 66 | N142: 67 | O142: 68 | P142: EX7
A143: 50 | B143: 1 | C143: 50 | D143: 51 | E143: 53 | F143: 55 | G143: 57 | H143: 58 | I143: 60 | J143: 61 | K143: 63 | L143: 64 | M143: 66 | N143: 67 | O143: 69 | P143: EX7
A144: 60 | B144: 1 | C144: 46 | D144: 47 | E144: 49 | F144: 51 | G144: 53 | H144: 55 | I144: 56 | J144: 58 | K144: 60 | L144: 61 | M144: 63 | N144: 64 | O144: 66 | P144: EX7
A145: 30 | B145: 0.1 | C145: 49 | D145: 51 | E145: 52 | F145: 53 | G145: 55 | H145: 56 | I145: 58 | J145: 59 | K145: 60 | L145: 61 | M145: 63 | N145: 64 | O145: 65 | P145: EX8
A146: 40 | B146: 0.1 | C146: 50 | D146: 51 | E146: 53 | F146: 54 | G146: 56 | H146: 58 | I146: 59 | J146: 60 | K146: 62 | L146: 63 | M146: 65 | N146: 66 | O146: 67 | P146: EX8
A147: 50 | B147: 0.1 | C147: 48 | D147: 50 | E147: 52 | F147: 54 | G147: 55 | H147: 57 | I147: 59 | J147: 60 | K147: 62 | L147: 63 | M147: 65 | N147: 66 | O147: 67 | P147: EX8
A148: 60 | B148: 0.1 | C148: 44 | D148: 46 | E148: 48 | F148: 50 | G148: 52 | H148: 53 | I148: 55 | J148: 57 | K148: 58 | L148: 60 | M148: 62 | N148: 63 | O148: 64 | P148: EX8
A149: 30 | B149: 0.5 | C149: 109 | D149: 112 | E149: 115 | F149: 118 | G149: 121 | H149: 124 | I149: 127 | J149: 130 | K149: 133 | L149: 135 | M149: 138 | N149: 141 | O149: 143 | P149: EX8
A150: 40 | B150: 0.5 | C150: 110 | D150: 114 | E150: 117 | F150: 121 | G150: 124 | H150: 127 | I150: 131 | J150: 134 | K150: 137 | L150: 140 | M150: 143 | N150: 146 | O150: 148 | P150: EX8
A151: 50 | B151: 0.5 | C151: 108 | D151: 111 | E151: 115 | F151: 119 | G151: 123 | H151: 126 | I151: 130 | J151: 133 | K151: 137 | L151: 140 | M151: 143 | N151: 146 | O151: 149 | P151: EX8
A152: 60 | B152: 0.5 | C152: 99 | D152: 103 | E152: 107 | F152: 111 | G152: 115 | H152: 118 | I152: 122 | J152: 126 | K152: 130 | L152: 133 | M152: 137 | N152: 140 | O152: 143 | P152: EX8
A153: 30 | B153: 1 | C153: 152 | D153: 156 | E153: 160 | F153: 165 | G153: 169 | H153: 173 | I153: 177 | J153: 181 | K153: 185 | L153: 188 | M153: 192 | N153: 195 | O153: 199 | P153: EX8
A154: 40 | B154: 1 | C154: 154 | D154: 159 | E154: 164 | F154: 168 | G154: 173 | H154: 178 | I154: 182 | J154: 187 | K154: 191 | L154: 195 | M154: 199 | N154: 203 | O154: 207 | P154: EX8
A155: 50 | B155: 1 | C155: 151 | D155: 156 | E155: 161 | F155: 167 | G155: 172 | H155: 177 | I155: 182 | J155: 186 | K155: 191 | L155: 196 | M155: 200 | N155: 204 | O155: 209 | P155: EX8
A156: 60 | B156: 1 | C156: 138 | D156: 144 | E156: 150 | F156: 155 | G156: 161 | H156: 166 | I156: 171 | J156: 177 | K156: 182 | L156: 186 | M156: 191 | N156: 196 | O156: 200 | P156: EX8
A157: R407A
A158: °C | B158: bar | C158: -45 | D158: -40 | E158: -35 | F158: -30 | G158: -25 | H158: -20 | I158: -15 | J158: -10 | K158: -5 | L158: 0 | M158: 5 | N158: 10 | O158: 15
A159: 30 | B159: 0.1 | C159: 3.742795809 | D159: 3.868091816 | E159: 3.992274037 | F159: 4.115178027 | G159: 4.236562873 | H159: 4.356369989 | I159: 4.47403907 | J159: 4.589592516 | K159: 4.702840929 | L159: 4.813563851 | M159: 4.921818488 | N159: 5.026921101 | O159: 5.128814623 | P159: EX6
A160: 40 | B160: 0.1 | C160: 3.757252515 | D160: 3.897659438 | E160: 4.037029705 | F160: 4.175235179 | G160: 4.31200519 | H160: 4.447096685 | I160: 4.580218023 | J160: 4.711196274 | K160: 4.839760419 | L160: 4.965638286 | M160: 5.088578704 | N160: 5.20830029 | O160: 5.324499181 | P160: EX6
A161: 50 | B161: 0.1 | C161: 3.642027161 | D161: 3.79745206 | E161: 3.952292108 | F161: 4.106212923 | G161: 4.258886497 | H161: 4.410013557 | I161: 4.559288883 | J161: 4.706409969 | K161: 4.851019212 | L161: 4.99289135 | M161: 5.131670004 | N161: 5.267010858 | O161: 5.398544452 | P161: EX6
A162: 60 | B162: 0.1 | C162: 3.345406237 | D162: 3.515477343 | E162: 3.685402976 | F162: 3.854759935 | G162: 4.02322931 | H162: 4.190412053 | I162: 4.355938063 | J162: 4.519435506 | K162: 4.680468841 | L162: 4.838752578 | M162: 4.993846189 | N162: 5.145331366 | O162: 5.292672288 | P162: EX6
A163: 30 | B163: 0.5 | C163: 8.236129232 | D163: 8.510856501 | E163: 8.783060888 | F163: 9.052366243 | G163: 9.318250357 | H163: 9.580580103 | I163: 9.838135435 | J163: 10.09095843 | K163: 10.33863097 | L163: 10.58066653 | M163: 10.81717432 | N163: 11.04666329 | O163: 11.26898947 | P163: EX6
A164: 40 | B164: 0.5 | C164: 8.294343116 | D164: 8.60322647 | E164: 8.90972383 | F164: 9.213548639 | G164: 9.51410372 | H164: 9.810852027 | I164: 10.10325367 | J164: 10.39063307 | K164: 10.67266781 | L164: 10.94866571 | M164: 11.2180657 | N164: 11.48023801 | O164: 11.73449872 | P164: EX6
A165: 50 | B165: 0.5 | C165: 8.05869863 | D165: 8.401557623 | E165: 8.742850436 | F165: 9.08205245 | G165: 9.418366025 | H165: 9.751126708 | I165: 10.07965698 | J165: 10.40328455 | K165: 10.7212375 | L165: 11.03297266 | M165: 11.33770965 | N165: 11.63467454 | O165: 11.923032 | P165: EX6
A166: 60 | B166: 0.5 | C166: 7.415337651 | D166: 7.791182097 | E166: 8.166551031 | F166: 8.540514253 | G166: 8.912339444 | H166: 9.281145787 | I166: 9.646107618 | J166: 10.0063946 | K166: 10.36106073 | L166: 10.70942029 | M166: 11.05050244 | N166: 11.38336225 | O166: 11.70702204 | P166: EX6
A167: 30 | B167: 1 | C167: 11.41006025 | D167: 11.78897827 | E167: 12.16433814 | F167: 12.53542589 | G167: 12.90170293 | H167: 13.26292088 | I167: 13.61741179 | J167: 13.96522235 | K167: 14.30577164 | L167: 14.63838398 | M167: 14.9631836 | N167: 15.27812823 | O167: 15.58298884 | P167: EX6
A168: 40 | B168: 1 | C168: 11.53938318 | D168: 11.96728553 | E168: 12.39170645 | F168: 12.81224172 | G168: 13.22806187 | H168: 13.63841971 | I168: 14.04256394 | J168: 14.43971522 | K168: 14.82897751 | L168: 15.20980003 | M168: 15.58126157 | N168: 15.94247285 | O168: 16.29246211 | P168: EX6
A169: 50 | B169: 1 | C169: 11.24572796 | D169: 11.72225251 | E169: 12.19640199 | F169: 12.66740799 | G169: 13.13417046 | H169: 13.59575951 | I169: 14.05122728 | J169: 14.49963199 | K169: 14.94008527 | L169: 15.37128413 | M169: 15.79263131 | N169: 16.20286878 | O169: 16.6008037 | P169: EX6
A170: 60 | B170: 1 | C170: 10.37142239 | D170: 10.89516006 | E170: 11.41797631 | F170: 11.93871156 | G170: 12.45591673 | H170: 12.96875289 | I170: 13.47592933 | J170: 13.97627642 | K170: 14.46869564 | L170: 14.95156449 | M170: 15.4241197 | N170: 15.88481825 | O170: 16.33225304 | P170: EX6
A171: 30 | B171: 0.1 | C171: 13.30242077 | D171: 13.74774034 | E171: 14.18910136 | F171: 14.62591936 | G171: 15.05733811 | H171: 15.48314939 | I171: 15.90136179 | J171: 16.31205493 | K171: 16.71455566 | L171: 17.10808044 | M171: 17.49283259 | N171: 17.866382 | O171: 18.22852586 | P171: EX7
A172: 40 | B172: 0.1 | C172: 13.35380193 | D172: 13.85282781 | E172: 14.34816927 | F172: 14.83937089 | G172: 15.32547067 | H172: 15.80560478 | I172: 16.27873667 | J172: 16.74425173 | K172: 17.20118671 | L172: 17.64857429 | M172: 18.08552176 | N172: 18.51102906 | O172: 18.9240162 | P172: EX7
A173: 50 | B173: 0.1 | C173: 12.94427488 | D173: 13.49667675 | E173: 14.04699998 | F173: 14.59405612 | G173: 15.1366794 | H173: 15.67380615 | I173: 16.20435157 | J173: 16.72724053 | K173: 17.24120204 | L173: 17.7454355 | M173: 18.23867428 | N173: 18.71969464 | O173: 19.18718347 | P173: EX7
A174: 60 | B174: 0.1 | C174: 11.89004255 | D174: 12.49449909 | E174: 13.0984386 | F174: 13.70035697 | G174: 14.29912073 | H174: 14.89331163 | I174: 15.48161426 | J174: 16.06270709 | K174: 16.63504212 | L174: 17.1976047 | M174: 17.74882913 | N174: 18.28722868 | O174: 18.81089896 | P174: EX7
A175: 30 | B175: 0.5 | C175: 29.2723574 | D175: 30.24877661 | E175: 31.21622914 | F175: 32.17337811 | G175: 33.11836751 | H175: 34.05072419 | I175: 34.96611193 | J175: 35.86468029 | K175: 36.74494318 | L175: 37.60517148 | M175: 38.44575331 | N175: 39.26138927 | O175: 40.05156768 | P175: EX7
A176: 40 | B176: 0.5 | C176: 29.4792577 | D176: 30.57707242 | E176: 31.66640699 | F176: 32.74624293 | G176: 33.81445781 | H176: 34.86914287 | I176: 35.90837927 | J176: 36.92976595 | K176: 37.93215692 | L176: 38.91309212 | M176: 39.87057745 | N176: 40.80237457 | O176: 41.70605276 | P176: EX7
A177: 50 | B177: 0.5 | C177: 28.64174417 | D177: 29.86031308 | E177: 31.07331556 | F177: 32.27888705 | G177: 33.47419262 | H177: 34.65687072 | I177: 35.82451336 | J177: 36.97473109 | K177: 38.1047804 | L177: 39.21273085 | M177: 40.29580882 | N177: 41.35126364 | O177: 42.37612645 | P177: EX7
A178: 60 | B178: 0.5 | C178: 26.3551491 | D178: 27.69095293 | E178: 29.02506672 | F178: 30.35418441 | G178: 31.67570325 | H178: 32.98649267 | I178: 34.28361816 | J178: 35.56412859 | K178: 36.8246617 | L178: 38.0627804 | M178: 39.27503414 | N178: 40.45806454 | O178: 41.60839681 | P178: EX7
A179: 30 | B179: 1 | C179: 40.55295298 | D179: 41.89968071 | E179: 43.2337623 | F179: 44.55266016 | G179: 45.85446011 | H179: 47.1382793 | I179: 48.39818966 | J179: 49.63435716 | K179: 50.84471703 | L179: 52.02686789 | M179: 53.18125126 | N179: 54.30060863 | O179: 55.38412596 | P179: EX7
A180: 40 | B180: 1 | C180: 41.01258479 | D180: 42.53340971 | E180: 44.04186113 | F180: 45.53650241 | G180: 47.01438551 | H180: 48.47285475 | I180: 49.90924 | J180: 51.32077131 | K180: 52.704264 | L180: 54.05776063 | M180: 55.37798697 | N180: 56.66178248 | O180: 57.90569337 | P180: EX7
A181: 50 | B181: 1 | C181: 39.968893 | D181: 41.66252803 | E181: 43.34772172 | F181: 45.02174303 | G181: 46.68068225 | H181: 48.32123442 | I181: 49.94003073 | J181: 51.53372387 | K181: 53.09915657 | L181: 54.63169775 | M181: 56.12922465 | N181: 57.5872661 | O181: 59.00158256 | P181: EX7
A182: 60 | B182: 1 | C182: 36.86148851 | D182: 38.72292558 | E182: 40.58108777 | F182: 42.43185381 | G182: 44.27007348 | H182: 46.09276506 | I182: 47.89534118 | J182: 49.67364487 | K182: 51.42377177 | L182: 53.13995532 | M182: 54.81948277 | N182: 56.45686994 | O182: 58.04711589 | P182: EX7
A183: 30 | B183: 0.1 | C183: 40.40789106 | D183: 41.7606091 | E183: 43.10130251 | F183: 44.4281959 | G183: 45.73868835 | H183: 47.03214734 | I183: 48.30252371 | J183: 49.55005933 | K183: 50.7727094 | L183: 51.96809381 | M183: 53.13683017 | N183: 54.27153672 | O183: 55.37159736 | P183: EX8
A184: 40 | B184: 0.1 | C184: 40.56396824 | D184: 42.07982642 | E184: 43.58449268 | F184: 45.07658362 | G184: 46.55317705 | H184: 48.01164893 | I184: 49.44885063 | J184: 50.86291519 | K184: 52.25091663 | L184: 53.60991653 | M184: 54.93720321 | N184: 56.2297388 | O184: 57.48424275 | P184: EX8
A185: 50 | B185: 0.1 | C185: 39.31997476 | D185: 40.99796969 | E185: 42.66965047 | F185: 44.33140704 | G185: 45.97969817 | H185: 47.61129286 | I185: 49.2228959 | J185: 50.81124138 | K185: 52.37246856 | L185: 53.90414547 | M185: 55.40242457 | N185: 56.86358856 | O185: 58.2836487 | P185: EX8
A186: 60 | B186: 0.1 | C186: 36.11760236 | D186: 37.95372036 | E186: 39.78826779 | F186: 41.61667573 | G186: 43.43550115 | H186: 45.24043586 | I186: 47.02748419 | J186: 48.79263174 | K186: 50.53117634 | L186: 52.24003579 | M186: 53.91445408 | N186: 55.54991506 | O186: 57.14063393 | P186: EX8
A187: 30 | B187: 0.5 | C187: 88.91872005 | D187: 91.88472464 | E187: 94.82349175 | F187: 97.7309604 | G187: 100.6014927 | H187: 103.4336514 | I187: 106.2142647 | J187: 108.9437869 | K187: 111.6177037 | L187: 114.2307628 | M187: 116.7841431 | N187: 119.261747 | O187: 121.6620201 | P187: EX8
A188: 40 | B188: 0.5 | C188: 89.54720753 | D188: 92.8819673 | E188: 96.19096746 | F188: 99.47111429 | G188: 102.7159605 | H188: 105.9197082 | I188: 109.0765284 | J188: 112.1791278 | K188: 115.2240251 | L188: 118.2037476 | M188: 121.112238 | N188: 123.9426969 | O188: 126.6877409 | P188: EX8
A189: 50 | B189: 0.5 | C189: 87.00314763 | D189: 90.70471446 | E189: 94.38937254 | F189: 98.05145798 | G189: 101.6823593 | H189: 105.274903 | I189: 108.8217744 | J189: 112.3157154 | K189: 115.7483921 | L189: 119.1139405 | M189: 122.4039354 | N189: 125.6100213 | O189: 128.7231798 | P189: EX8
A190: 60 | B190: 0.5 | C190: 80.05730776 | D190: 84.11499143 | E190: 88.16754138 | F190: 92.20491502 | G190: 96.2192061 | H190: 100.2009052 | I190: 104.1410982 | J190: 108.0308207 | K190: 111.8598595 | L190: 115.6208114 | M190: 119.3031951 | N190: 122.896809 | O190: 126.3910978 | P190: EX8
A191: 30 | B191: 1 | C191: 123.1850453 | D191: 127.2759118 | E191: 131.328364 | F191: 135.3346935 | G191: 139.2890858 | H191: 143.1888592 | I191: 147.0160062 | J191: 150.7710312 | K191: 154.4476619 | L191: 158.0386041 | M191: 161.5451987 | N191: 164.9453972 | O191: 168.2367267 | P191: EX8
A192: 40 | B192: 1 | C192: 124.5812387 | D192: 129.2009488 | E192: 133.7830728 | F192: 138.3232466 | G192: 142.8125151 | H192: 147.2428115 | I192: 151.6060247 | J192: 155.8937408 | K192: 160.0962858 | L192: 164.2077137 | M192: 168.2180787 | N192: 172.1177801 | O192: 175.8963266 | P192: EX8
A193: 50 | B193: 1 | C193: 121.4108847 | D193: 126.5555287 | E193: 131.674531 | F193: 136.7595958 | G193: 141.7988466 | H193: 146.7822444 | I193: 151.6995557 | J193: 156.5406128 | K193: 161.2958251 | L193: 165.9511249 | M193: 170.5000641 | N193: 174.929061 | O193: 179.2252374 | P193: EX8
A194: 60 | B194: 1 | C194: 111.9717258 | D194: 117.6260911 | E194: 123.2705086 | F194: 128.8924592 | G194: 134.4762985 | H194: 140.0129691 | I194: 145.4885364 | J194: 150.8903728 | K194: 156.2066186 | L194: 161.4197568 | M194: 166.5215471 | N194: 171.4953307 | O194: 176.3259166 | P194: EX8
A195: R407F
A196: °C | B196: bar | C196: -45 | D196: -40 | E196: -35 | F196: -30 | G196: -25 | H196: -20 | I196: -15 | J196: -10 | K196: -5 | L196: 0 | M196: 5 | N196: 10 | O196: 15
A197: 30 | B197: 0.1 | C197: 4.116757508 | D197: 4.240793915 | E197: 4.363405787 | F197: 4.484449203 | G197: 4.603765071 | H197: 4.721203211 | I197: 4.836638441 | J197: 4.949969726 | K197: 5.061008217 | L197: 5.17010646 | M197: 5.276127254 | N197: 5.379455194 | O197: 5.479944521 | P197: EX6
A198: 40 | B198: 0.1 | C198: 4.193528862 | D198: 4.331237974 | E198: 4.467420851 | F198: 4.602171356 | G198: 4.73518344 | H198: 4.866313075 | I198: 4.995338437 | J198: 5.122120048 | K198: 5.246492497 | L198: 5.368786467 | M198: 5.487740036 | N198: 5.603828126 | O198: 5.716742308 | P198: EX6
A199: 50 | B199: 0.1 | C199: 4.150062528 | D199: 4.301154108 | E199: 4.451064971 | F199: 4.599562765 | G199: 4.746358058 | H199: 4.891242544 | I199: 5.034018125 | J199: 5.174470441 | K199: 5.312480455 | L199: 5.448243692 | M199: 5.580441446 | N199: 5.709457653 | O199: 5.835130018 | P199: EX6
A200: 60 | B200: 0.1 | C200: 3.93166307 | D200: 4.095401219 | E200: 4.258161817 | F200: 4.419699195 | G200: 4.579673843 | H200: 4.737818372 | I200: 4.893955685 | J200: 5.047722167 | K200: 5.198905923 | L200: 5.3478691 | M200: 5.493031695 | N200: 5.634789107 | O200: 5.772823037 | P200: EX6
A201: 30 | B201: 0.5 | C201: 9.069484632 | D201: 9.341776122 | E201: 9.610913579 | F201: 9.876460838 | G201: 10.13810199 | H201: 10.39550287 | I201: 10.64838353 | J201: 10.89644441 | K201: 11.13946637 | L201: 11.37800947 | M201: 11.60965819 | N201: 11.83523023 | O201: 12.05438881 | P201: EX6
... 373 more rows

Sheet E-HeatRecl-CO2
B1: =INDEX(Language!$B$2:$M$41,2,Language!$A$1) -> Instruction: Select refrigerant and fill yellow fields with operating conditions.
B2: =INDEX(Language!$B$2:$M$41,3,Language!$A$1) -> #N/A error message: operating conditions, refrigerant or product out of range/specification.
E4: =INDEX(Language!$B$2:$M$41,4,Language!$A$1) -> Project:
E5: =INDEX(Language!$B$2:$M$299,87,Language!$A$1) -> Electrical control valves
E6: =INDEX(Language!$B$2:$M$400,353,Language!$A$1) -> Heat reclaim
B7: =INDEX(Language!$B$2:$M$299,5,Language!$A$1) -> Refrigerant | D7: =INDEX('E-Heat-co2-Fun'!$G$5:$G$12,'E-Heat-co2-Fun'!$G$4) -> R744
B8: =INDEX(Language!$B$2:$M$400,260,Language!$A$1) -> Gas cooler pressure | D8: 110 | E8: =INDEX('E-EX-Fun'!$N$5:$P$15,10,'E-EX-Fun'!$D$19) -> bara | F8: max | G8: 110 bar | H8: 1595 psia
F9: min | G9: 80 bar | H9: 1160 psia
B10: =INDEX(Language!$B$2:$M$400,259,Language!$A$1) -> Gas cooler outlet temperature | D10: 32 | E10: =INDEX('E-EX-Fun'!$N$5:$P$15,2,'E-EX-Fun'!$D$19) -> °C | F10: max | G10: 43°C | H10: 109 F
F11: min | G11: 31°C | H11: 88 F
B12: =INDEX(Language!$B$2:$M$400,35,Language!$A$1) -> Required pressure drop across valve | D12: 0.5 | E12: =INDEX('E-EX-Fun'!$N$5:$P$15,5,'E-EX-Fun'!$D$19) -> bar | F12: max | G12: 1 bar | H12: 14.5 psid
F13: min | G13: 0.1 bar | H13: 1.5 psid
B14: =INDEX(Language!$B$2:$M$400,354,Language!$A$1) -> Capacity heat reclaim | D14: 10 | E14: =INDEX('E-EX-Fun'!$N$5:$P$15,4,'E-EX-Fun'!$D$19) -> kW
J15: =TEXT($D$8,"0,0")&$E$8 -> 110bara
L16: Dp= | M16: =TEXT($D$12,"0,0")&$E$12 -> 01bar
E19: TC= | F19: =D10 -> 32 | G19: =E10 -> °C
J22: =$D$14 -> 10 | K22: =$E$14 -> kW
B32: =INDEX(Language!$B$2:$M$41,14,Language!$A$1) -> Your choice
B34: =INDEX(Language!$B$2:$M$41,17,Language!$A$1) -> High performance stepper motor ECV | M34: =CONCATENATE(INDEX(Language!$B$2:$M$41,23,Language!$A$1),E14,")") -> Maximum valve capacity at selected conditions (kW)
D36: =INDEX(Language!$B$2:$M$41,15,Language!$A$1) -> Type | F36: =INDEX(Language!$B$2:$M$41,18,Language!$A$1) -> Part No. | G36: =INDEX(Language!$B$2:$M$41,16,Language!$A$1) -> Ratio | M36: =INDEX(Language!$B$2:$M$41,15,Language!$A$1) -> Type | P36: ='E-Heat-co2-Fun'!$G$31 -> R744
D37: =INDEX('E-Heat-co2-Fun'!$B$25:$B$27,'E-Heat-co2-Fun'!$H$25) -> CX6 | F37: =INDEX('E-Heat-co2-Fun'!$C$25:$C$27,'E-Heat-co2-Fun'!$H$25) -> 801 992 | G37: =TEXT('E-Heat-co2-Fun'!I26,"0%")&" "&IF('E-Heat-co2-Fun'!I26>10%,"OK",INDEX(Language!$B$2:$M$41,36,Language!$A$1)) -> 55% OK | M37: ='E-Heat-co2-Fun'!B25 -> CX7 | P37: ='E-Heat-co2-Fun'!E25 -> 65
M38: ='E-Heat-co2-Fun'!B26 -> CX6 | P38: ='E-Heat-co2-Fun'!E26 -> 18.3
M39: ='E-Heat-co2-Fun'!B27 -> CX5 | P39: ='E-Heat-co2-Fun'!E27 -> 7.9
B42: =INDEX(Language!$B$2:$M$41,19,Language!$A$1) -> Controller for ECV
D43: ='El Ctr-Dat'!$B$70 -> EXD-U01 | F43: ='El Ctr-Dat'!$C$70 -> 804 750 | G43: ='El Ctr-Dat'!$D$70 -> Universal driver
D44: ='El Ctr-Dat'!$B$71 -> K09-U00 | F44: ='El Ctr-Dat'!$C$71 -> 804 559 | G44: ='El Ctr-Dat'!$D$71 -> Terminal kit for EXD-U01
D45: ='E-EX-Dat'!$D$93 -> ECP-024 | F45: ='E-EX-Dat'!$E$93 -> 804 558 | G45: ='El Ctr-Dat'!$D$72 -> Uninterruptible power supply for up to two EXD-U01
D47: ='E-EX-Dat'!$D$94 -> K09-P00 | F47: ='E-EX-Dat'!$E$94 -> 804 560 | G47: ='El Ctr-Dat'!$D$73 -> Terminal kit for ECP-024
D49: =INDEX(Language!$B$2:$M$400,371,Language!$A$1) -> Temperature controllers
D50: =" "&INDEX(Language!$B$2:$M$400,372,Language!$A$1) -> for EX4-8 Series only
D51: =INDEX(Language!$B$2:$M$400,15,Language!$A$1) -> Type | F51: =INDEX(Language!$B$2:$M$41,18,Language!$A$1) -> Part No. | G51: =INDEX(Language!$B$2:$M$400,285,Language!$A$1) -> Description
D52: ='El Ctr-Dat'!$B$127 -> EXD-SH1 | F52: ='El Ctr-Dat'!$C$127 -> 807 855 | G52: ='El Ctr-Dat'!$E$127 -> Controller for single refrigeration circuit
D54: ='El Ctr-Dat'!$B$128 -> EXD-SH2 | F54: ='El Ctr-Dat'!$C$128 -> 807 856 | G54: ='El Ctr-Dat'!$E$128 -> Controller for two independent refrigeration circuits
D56: ='El Ctr-Dat'!$B$129 -> EXD-M03 | F56: ='El Ctr-Dat'!$D$129 -> 807 865 | G56: ='El Ctr-Dat'!$E$129 -> Molex terminal with 3 meter wires
D57: ='El Ctr-Dat'!$B$103 -> ECN-N60 | F57: ='El Ctr-Dat'!$C$103 -> 804 497 | G57: ='El Ctr-Dat'!$D$103 -> Temperature sensor Cable length 6,0 m
B59: =Home!$D$43 -> 
B60: =INDEX(Language!$B$2:$M$251,250,Language!$A$1) -> The Controls Navigator is provided by Emerson Climate Technologies Europe to assist with the selection of mechanical and electronic controls. Emerson Climate Technologies cannot be held liable for issues arising from application of controls using information provided by this software.

Sheet E-Heat-co2-Fun (hidden)
A1: Functions, Formulas, Codes
B3: Languages | E3: Refrigerant Selection | H3: Startzeile in Daten | M3: Convert to °C-bar-kW
B4: 1 | C4: =Language!B$2 -> English | E4: =INDEX(E5:E17,$G4) -> 12 | F4: =INDEX(F5:F17,$G4) -> 12 | G4: 1 | H4: =INDEX(H5:H17,$G4) -> 0 | I4: =INDEX(I5:I17,$G4) -> 0 | O4: tons | P4: tBTU/h
B5: 2 | C5: =Language!C$2 -> Deutsch | E5: 12 | F5: 12 | G5: R744 | H5: 0 | I5: =H5-H$6 -> 0 | N5: Metric | O5: Imperial | P5: Imperial
B6: 3 | C6: =Language!D$2 -> Français | E6: 12 | F6: 12 | G6: R744 | N6: °C | O6: °F | P6: °F
B7: 4 | C7: =Language!E$2 -> Italiano | N7: K | O7: °F | P7: °F
B8: 5 | C8: =Language!F$2 -> Españiol | N8: kW | O8: tons | P8: MBH (tBtu/hr)
B9: 6 | C9: =Language!G$2 -> Nederlands | N9: bar | O9: Psid | P9: Psid
B10: 7 | C10: =Language!H$2 -> Polish | M10: °C | N10: 0 | O10: 32 | P10: 32
B11: 8 | C11: =Language!I$2 -> Czech | M11: K | N11: 1 | O11: 0.5555555556 | P11: 0.5555555556
B12: 9 | C12: =Language!J$2 -> Russian | M12: kW | N12: 1 | O12: 0.284 | P12: =0.94781*3600/1000 -> 3.412116
B13: 10 | C13: =Language!K$2 -> Chinese | M13: bar | N13: 1 | O13: 14.5038 | P13: 14.5038
B14: 11 | C14: =Language!L$2 -> Japanese | N14: bara | O14: Psia | P14: Psia
B15: 12 | C15: =Language!M$2 -> Română | O15: 14.7 | P15: 14.7
B18: Units Conversion
C19: °C-bar-kW | D19: ='E-EX-Fun'!$D$19 -> 1
C20: °F-Psi-tons
C21: °F-Psi-MBH
A23: Valve Data | E23: Metric/imperial
B24: Type | C24: PCN | D24: Capacity | E24: Capacity | F24: =INDEX(Language!$B$2:$M$41,11,Language!$A$1)&" Q0:" -> System cooling capacity Q0: | I24: ='E-HeatRecl-CO2'!$D$14 -> 10 | J24: kW
B25: CX7 | C25: 801 996 | D25: =$L$88 -> 65 | E25: =D25*INDEX('E-Heat-co2-Fun'!$N$5:$P$15,8,'E-Heat-co2-Fun'!$D$19) -> 65 | F25: Nächstes Ventil | H25: =MATCH($I$24,$D$25:$D$27,-1) -> 2 | I25: =INDEX(D25:D27,H25) -> 18.3 | J25: kW
B26: CX6 | C26: 801 992 | D26: =$L$72 -> 18.3 | E26: =D26*INDEX('E-Heat-co2-Fun'!$N$5:$P$15,8,'E-Heat-co2-Fun'!$D$19) -> 18.3 | F26: =INDEX(Language!$B$2:$M$41,16,Language!$A$1) -> Ratio | I26: =I24/I25 -> 0.5464480874
B27: CX5 | C27: 801 991 | D27: =$L$56 -> 7.9 | E27: =D27*INDEX('E-Heat-co2-Fun'!$N$5:$P$15,8,'E-Heat-co2-Fun'!$D$19) -> 7.9
B28: CX4 | C28: 801 990 | D28: -
A31: Expansion Valve Function | F31: Selected Refrigerant | G31: =INDEX($G$5:$G$17,$G$4) -> R744
K32: Hinweis: | L32: Die Leistungsdaten sind untereinander angeordnet
B33: Kondensationstemp.bereiche | F33: Ventilbereiche | I33: Dp | L33: Horizontal Gas cooler temperature 31 ... +43°C
B34: Rel. Startzeile des Bereichs: | F34: Rel. Startsplt des Ber. | L34: Vertikal: alle anderen Daten
B35: 80 | C35: 0 | F35: CX5 | G35: 0 | I35: 0.1 | J35: 0 | K35: Bereich: | L35: 'E-Heat-CO2-Dat'!C6:Q42
B36: =B35+10 -> 90 | C36: 1 | F36: CX6 | G36: 12 | I36: 0.5 | J36: 4
B37: =B36+10 -> 100 | C37: 2 | F37: CX7 | G37: 24 | I37: 1 | J37: 8
B38: =B37+10 -> 110 | C38: 3 | I38: 1.1 | J38: n/a
B39: =B38+10 -> 120 | C39: n/a
I42: =INDEX('E-Heat-CO2-Dat'!C6:P10,2,5) -> 4.6
A44: CX5 | D44: max | E44: 15 | F44: °C | I44: Rel Spalte Gaskühler Temperatur
B45: =INDEX(Language!$B$2:$M$299,259,Language!$A$1) -> Gas cooler outlet temperature | D45: Roundup | E45: =IF(E46<0,ROUNDDOWN(E46,0)/2,ROUNDUP(E46,0)) -> 32 | G45: =MATCH(E45,'E-Heat-CO2-Dat'!C5:O5) -> 2 | K45: =$G$45 -> 2 | O45: =$G$45 -> 2
D46: Value | E46: ='E-HeatRecl-CO2'!$D$10 -> 32 | F46: °C
D47: Rounddown | E47: =IF(E46<0,ROUNDUP(E46,0),ROUNDDOWN(E46,0)) -> 32 | G47: =MATCH(E47,'E-Heat-CO2-Dat'!C5:O5) -> 2 | I47: =$G$47 -> 2 | M47: =$G$47 -> 2
D48: min | E48: 31 | F48: °C
D49: max | E49: 43 | F49: °C | I49: =$G$47 -> 2 | K49: =$G$45 -> 2 | M49: =$G$47 -> 2 | O49: =$G$45 -> 2
B50: =INDEX(Language!$B$2:$M$299,260,Language!$A$1) -> Gas cooler pressure | D50: Roundup | E50: =IF(E51<0,ROUNDDOWN(E51,-1),ROUNDUP(E51,-1)) -> 110 | G50: =MATCH(E50,'E-Heat-CO2-Dat'!A6:A9) -> 4 | H50: =$G50+H$55+$G$35+$I$4 -> 8 | I50: =INDEX(INDIRECT($L$35),$H50,I$49) -> 7.9 | K50: =INDEX(INDIRECT($L$35),$H50,K$49) -> 7.9 | L50: =$G50+L$57+$G$35+$I$4 -> 12 | M50: =INDEX(INDIRECT($L$35),$L50,M$49) -> 11.2 | O50: =INDEX(INDIRECT($L$35),$L50,O$49) -> 11.2
D51: Value | E51: ='E-HeatRecl-CO2'!$D$8 -> 110 | F51: bar | I51: =IF($E52=$E50,I52,I52+((I50-I52)*($E51-$E52)/($E50-$E52))) -> 7.9 | J51: =IF($E47=$E45,I51,I51+((K51-I51)*($E46-$E47)/($E45-$E47))) -> 7.9 | K51: =IF($E52=$E50,K52,K52+((K50-K52)*($E51-$E52)/($E50-$E52))) -> 7.9 | M51: =IF($E52=$E50,M52,M52+((M50-M52)*($E51-$E52)/($E50-$E52))) -> 11.2 | N51: =IF($E47=$E45,M51,M51+((O51-M51)*($E46-$E47)/($E45-$E47))) -> 11.2 | O51: =IF($E52=$E50,O52,O52+((O50-O52)*($E51-$E52)/($E50-$E52))) -> 11.2
D52: Rounddown | E52: =IF(E51<0,ROUNDUP(E51,-1),ROUNDDOWN(E51,-1)) -> 110 | G52: =MATCH(E52,'E-Heat-CO2-Dat'!A6:A9) -> 4 | H52: =$G52+$H$55+$G$35+$I$4 -> 8 | I52: =INDEX(INDIRECT($L$35),$H52,I$49) -> 7.9 | K52: =INDEX(INDIRECT($L$35),$H52,K$49) -> 7.9 | L52: =$G52+L$57+$G$35+$I$4 -> 12 | M52: =INDEX(INDIRECT($L$35),$L52,M$49) -> 11.2 | O52: =INDEX(INDIRECT($L$35),$L52,O$49) -> 11.2
D53: min | E53: 30 | F53: °C
D54: max | E54: 1 | F54: bar
B55: =INDEX(Language!$B$2:$M$400,35,Language!$A$1) -> Required pressure drop across valve | D55: Rounddown | E55: =INDEX($I$35:$I$38,$F55) -> 0.5 | F55: =MATCH($E56,$I$35:$I$38) -> 2 | H55: =INDEX($J$35:$J$38,$F55) -> 4
D56: Value | E56: ='E-HeatRecl-CO2'!$D$12 -> 0.5 | F56: bar | L56: =IF(E57=E55,J51,J51+((N51-J51)*(E56-E55)/(E57-E55))) -> 7.9
D57: Roundup | E57: =IF(E56=E54,E56,INDEX($I$35:$I$38,$F57)) -> 1 | F57: =IF($E56=1,3,MATCH($E56,$I$35:$I$38)+1) -> 3 | H57: =INDEX($J$35:$J$38,$F57) -> 8 | L57: =H57 -> 8 | M57: =INDEX($C$105:$C$109,$F57) -> 0
D58: min | E58: 0.1 | F58: bara
A60: CX6 | D60: max | E60: 15 | F60: °C | I60: Rel Spalte Verdampfungstemperatur
B61: =INDEX(Language!$B$2:$M$299,259,Language!$A$1) -> Gas cooler outlet temperature | D61: Roundup | E61: =IF(E62<0,ROUNDDOWN(E62,0)/2,ROUNDUP(E62,0)) -> 32 | G61: =MATCH(E61,'E-Heat-CO2-Dat'!C5:O5) -> 2 | K61: =$G$45 -> 2 | O61: =$G$45 -> 2
D62: Value | E62: ='E-HeatRecl-CO2'!$D$10 -> 32 | F62: °C
D63: Rounddown | E63: =IF(E62<0,ROUNDUP(E62,0),ROUNDDOWN(E62,0)) -> 32 | G63: =MATCH(E63,'E-Heat-CO2-Dat'!C5:O5) -> 2 | I63: =$G$47 -> 2 | M63: =$G$47 -> 2
D64: min | E64: -45 | F64: °C
D65: max | E65: 60 | F65: °C | I65: =$G$47 -> 2 | K65: =$G$45 -> 2 | M65: =$G$47 -> 2 | O65: =$G$45 -> 2
B66: =INDEX(Language!$B$2:$M$299,260,Language!$A$1) -> Gas cooler pressure | D66: Roundup | E66: =IF(E67<0,ROUNDDOWN(E67,-1),ROUNDUP(E67,-1)) -> 110 | G66: =MATCH(E66,'E-Heat-CO2-Dat'!A6:A9) -> 4 | H66: =$G66+H$55+$G$36+$I$4 -> 20 | I66: =INDEX(INDIRECT($L$35),$H66,I$49) -> 18.3 | K66: =INDEX(INDIRECT($L$35),$H66,K$49) -> 18.3 | L66: =$G66+L$57+$G$36+$I$4 -> 24 | M66: =INDEX(INDIRECT($L$35),$L66,M$49) -> 25.8 | O66: =INDEX(INDIRECT($L$35),$L66,O$49) -> 25.8
D67: Value | E67: ='E-HeatRecl-CO2'!$D$8 -> 110 | F67: bar | I67: =IF($E68=$E66,I68,I68+((I66-I68)*($E67-$E68)/($E66-$E68))) -> 18.3 | J67: =IF($E63=$E61,I67,I67+((K67-I67)*($E62-$E63)/($E61-$E63))) -> 18.3 | K67: =IF($E68=$E66,K68,K68+((K66-K68)*($E67-$E68)/($E66-$E68))) -> 18.3 | M67: =IF($E68=$E66,M68,M68+((M66-M68)*($E67-$E68)/($E66-$E68))) -> 25.8 | N67: =IF($E63=$E61,M67,M67+((O67-M67)*($E62-$E63)/($E61-$E63))) -> 25.8 | O67: =IF($E68=$E66,O68,O68+((O66-O68)*($E67-$E68)/($E66-$E68))) -> 25.8
D68: Rounddown | E68: =IF(E67<0,ROUNDUP(E67,-1),ROUNDDOWN(E67,-1)) -> 110 | G68: =MATCH(E68,'E-Heat-CO2-Dat'!A6:A9) -> 4 | H68: =$G68+$H$55+$G$36+$I$4 -> 20 | I68: =INDEX(INDIRECT($L$35),$H68,I$49) -> 18.3 | K68: =INDEX(INDIRECT($L$35),$H68,K$49) -> 18.3 | L68: =$G68+L$57+$G$36+$I$4 -> 24 | M68: =INDEX(INDIRECT($L$35),$L68,M$49) -> 25.8 | O68: =INDEX(INDIRECT($L$35),$L68,O$49) -> 25.8
D69: min | E69: 30 | F69: °C
D70: max | E70: 1 | F70: bar
B71: =INDEX(Language!$B$2:$M$400,35,Language!$A$1) -> Required pressure drop across valve | D71: Rounddown | E71: =INDEX($I$35:$I$38,$F71) -> 0.5 | F71: =MATCH($E72,$I$35:$I$38) -> 2 | H71: =INDEX($J$35:$J$38,$F71) -> 4
D72: Value | E72: ='E-HeatRecl-CO2'!$D$12 -> 0.5 | F72: bar | L72: =IF(E73=E71,J67,J67+((N67-J67)*(E72-E71)/(E73-E71))) -> 18.3
D73: Roundup | E73: =IF(E72=E70,E72,INDEX($I$35:$I$38,$F73)) -> 1 | F73: =IF($E72=1,3,MATCH($E72,$I$35:$I$38)+1) -> 3 | H73: =INDEX($J$35:$J$38,$F73) -> 8 | L73: =H73 -> 8 | M73: =INDEX($C$105:$C$109,$F73) -> 0
D74: min | E74: 0.1 | F74: bar
A76: CX7 | D76: max | E76: 15 | F76: °C | I76: Rel Spalte Verdampfungstemperatur
B77: =INDEX(Language!$B$2:$M$299,259,Language!$A$1) -> Gas cooler outlet temperature | D77: Roundup | E77: =IF(E78<0,ROUNDDOWN(E78,0)/2,ROUNDUP(E78,0)) -> 32 | G77: =MATCH(E77,'E-Heat-CO2-Dat'!C5:O5) -> 2 | K77: =$G$45 -> 2 | O77: =$G$45 -> 2
D78: Value | E78: ='E-HeatRecl-CO2'!$D$10 -> 32 | F78: °C
D79: Rounddown | E79: =IF(E78<0,ROUNDUP(E78,0),ROUNDDOWN(E78,0)) -> 32 | G79: =MATCH(E79,'E-Heat-CO2-Dat'!C5:O5) -> 2 | I79: =$G$47 -> 2 | M79: =$G$47 -> 2
D80: min | E80: -45 | F80: °C
D81: max | E81: 60 | F81: °C | I81: =$G$47 -> 2 | K81: =$G$45 -> 2 | M81: =$G$47 -> 2 | O81: =$G$45 -> 2
B82: =INDEX(Language!$B$2:$M$299,260,Language!$A$1) -> Gas cooler pressure | D82: Roundup | E82: =IF(E83<0,ROUNDDOWN(E83,-1),ROUNDUP(E83,-1)) -> 110 | G82: =MATCH(E82,'E-Heat-CO2-Dat'!A6:A9) -> 4 | H82: =$G82+H$55+$G$37+$I$4 -> 32 | I82: =INDEX(INDIRECT($L$35),$H82,I$49) -> 65 | K82: =INDEX(INDIRECT($L$35),$H82,K$49) -> 65 | L82: =$G82+L$57+$G$37+$I$4 -> 36 | M82: =INDEX(INDIRECT($L$35),$L82,M$49) -> 91.6 | O82: =INDEX(INDIRECT($L$35),$L82,O$49) -> 91.6
D83: Value | E83: ='E-HeatRecl-CO2'!$D$8 -> 110 | F83: bar | I83: =IF($E84=$E82,I84,I84+((I82-I84)*($E83-$E84)/($E82-$E84))) -> 65 | J83: =IF($E79=$E77,I83,I83+((K83-I83)*($E78-$E79)/($E77-$E79))) -> 65 | K83: =IF($E84=$E82,K84,K84+((K82-K84)*($E83-$E84)/($E82-$E84))) -> 65 | M83: =IF($E84=$E82,M84,M84+((M82-M84)*($E83-$E84)/($E82-$E84))) -> 91.6 | N83: =IF($E79=$E77,M83,M83+((O83-M83)*($E78-$E79)/($E77-$E79))) -> 91.6 | O83: =IF($E84=$E82,O84,O84+((O82-O84)*($E83-$E84)/($E82-$E84))) -> 91.6
D84: Rounddown | E84: =IF(E83<0,ROUNDUP(E83,-1),ROUNDDOWN(E83,-1)) -> 110 | G84: =MATCH(E84,'E-Heat-CO2-Dat'!A6:A9) -> 4 | H84: =$G84+$H$55+$G$37+$I$4 -> 32 | I84: =INDEX(INDIRECT($L$35),$H84,I$49) -> 65 | K84: =INDEX(INDIRECT($L$35),$H84,K$49) -> 65 | L84: =$G84+L$57+$G$37+$I$4 -> 36 | M84: =INDEX(INDIRECT($L$35),$L84,M$49) -> 91.6 | O84: =INDEX(INDIRECT($L$35),$L84,O$49) -> 91.6
D85: min | E85: 30 | F85: °C
D86: max | E86: 1 | F86: bar
B87: =INDEX(Language!$B$2:$M$400,35,Language!$A$1) -> Required pressure drop across valve | D87: Rounddown | E87: =INDEX($I$35:$I$38,$F87) -> 0.5 | F87: =MATCH($E88,$I$35:$I$38) -> 2 | H87: =INDEX($J$35:$J$38,$F87) -> 4
D88: Value | E88: ='E-HeatRecl-CO2'!$D$12 -> 0.5 | F88: bar | L88: =IF(E89=E87,J83,J83+((N83-J83)*(E88-E87)/(E89-E87))) -> 65
D89: Roundup | E89: =IF(E88=E86,E88,INDEX($I$35:$I$38,$F89)) -> 1 | F89: =IF($E88=1,3,MATCH($E88,$I$35:$I$38)+1) -> 3 | H89: =INDEX($J$35:$J$38,$F89) -> 8 | L89: =H89 -> 8 | M89: =INDEX($C$105:$C$109,$F89) -> 0
D90: min | E90: 0.1 | F90: bar

Sheet E-Heat-CO2-Dat (hidden)
A1: Hot Gas Flow / Heat Reclaim
A2: R744 | C2: R744
A3: Gas cooler | B3: press. | C3: Extended Capacity KW | P3: Valve type
A4: Pressure | B4: Drop | C4: Gas cooler temperature, °C
A5: bar | B5: bar | C5: 31 | D5: =C5+1 -> 32 | E5: =D5+1 -> 33 | F5: 34 | G5: 35 | H5: 36 | I5: 37 | J5: 38 | K5: 39 | L5: 40 | M5: =L5+1 -> 41 | N5: 42 | O5: 43
A6: 80 | B6: 0.1 | C6: 4.7 | D6: 4.4 | E6: 4.1 | F6: 3.5 | G6: 2.3 | P6: CX5
A7: 90 | B7: 0.1 | C7: 5.3 | D7: 5.2 | E7: 5 | F7: 4.8 | G7: 4.6 | H7: 4.4 | I7: 4.1 | J7: 3.8 | K7: 3.4 | L7: 2.9 | M7: 2.4 | N7: 2 | P7: CX5
A8: 100 | B8: 0.1 | C8: 5.8 | D8: 5.7 | E8: 5.6 | F8: 5.4 | G8: 5.2 | H8: 5.1 | I8: 4.9 | J8: 4.7 | K8: 4.5 | L8: 4.3 | M8: 4.1 | N8: 3.8 | O8: 3.5 | P8: CX5
A9: 110 | B9: 0.1 | C9: 6.3 | D9: 6.1 | E9: 6 | F9: 5.9 | G9: 5.7 | H9: 5.6 | I9: 5.5 | J9: 5.3 | K9: 5.1 | L9: 5 | M9: 4.8 | N9: 4.6 | O9: 4.4 | P9: CX5
A10: 80 | B10: 0.5 | C10: 6 | D10: 5.7 | E10: 5.2 | F10: 4.4 | G10: 2.8 | H10: 2.1 | I10: 1.7 | J10: 1.3 | K10: 1.1 | L10: 0.8 | M10: 0.6 | N10: 0.4 | O10: 0.3 | P10: CX5
A11: 90 | B11: 0.5 | C11: 6.9 | D11: 6.7 | E11: 6.4 | F11: 6.2 | G11: 5.9 | H11: 5.6 | I11: 5.3 | J11: 4.8 | K11: 4.3 | L11: 3.7 | M11: 3 | N11: 2.5 | O11: 2.1 | P11: CX5
A12: 100 | B12: 0.5 | C12: 7.5 | D12: 7.3 | E12: 7.2 | F12: 7 | G12: 6.8 | H12: 6.6 | I12: 6.3 | J12: 6.1 | K12: 5.8 | L12: 5.5 | M12: 5.2 | N12: 4.9 | O12: 4.5 | P12: CX5
A13: 110 | B13: 0.5 | C13: 8.1 | D13: 7.9 | E13: 7.7 | F13: 7.6 | G13: 7.4 | H13: 7.2 | I13: 7 | J13: 6.8 | K13: 6.6 | L13: 6.4 | M13: 6.2 | N13: 5.9 | O13: 5.7 | P13: CX5
A14: 80 | B14: 1 | C14: 8.4 | D14: 8 | E14: 7.2 | F14: 5.5 | G14: 3.6 | H14: 2.7 | I14: 2.1 | J14: 1.7 | K14: 1.3 | L14: 1 | M14: 0.8 | N14: 0.5 | O14: 0.3 | P14: CX5
A15: 90 | B15: 1 | C15: 9.7 | D15: 9.4 | E15: 9.1 | F15: 8.7 | G15: 8.3 | H15: 7.9 | I15: 7.3 | J15: 6.7 | K15: 5.9 | L15: 4.9 | M15: 4.1 | N15: 3.4 | O15: 2.8 | P15: CX5
A16: 100 | B16: 1 | C16: 10.6 | D16: 10.3 | E16: 10.1 | F16: 9.8 | G16: 9.5 | H16: 9.2 | I16: 8.9 | J16: 8.5 | K16: 8.2 | L16: 7.8 | M16: 7.3 | N16: 6.8 | O16: 6.3 | P16: CX5
A17: 110 | B17: 1 | C17: 11.4 | D17: 11.2 | E17: 10.9 | F17: 10.7 | G17: 10.4 | H17: 10.2 | I17: 9.9 | J17: 9.6 | K17: 9.3 | L17: 9 | M17: 8.7 | N17: 8.3 | O17: 8 | P17: CX5
A18: 80 | B18: 0.1 | C18: 10.8 | D18: 10.2 | E18: 9.5 | F18: 8 | G18: 5.3 | H18: 3.9 | I18: 3.1 | J18: 2.4 | K18: 2 | P18: CX6
A19: 90 | B19: 0.1 | C19: 12.3 | D19: 11.9 | E19: 11.6 | F19: 11.1 | G19: 10.7 | H19: 10.1 | I19: 9.5 | J19: 8.7 | K19: 7.8 | L19: 6.7 | M19: 5.6 | N19: 4.6 | O19: 3.9 | P19: CX6
A20: 100 | B20: 0.1 | C20: 13.5 | D20: 13.1 | E20: 12.8 | F20: 12.5 | G20: 12.1 | H20: 11.7 | I20: 11.3 | J20: 10.9 | K20: 10.5 | L20: 10 | M20: 9.4 | N20: 8.8 | O20: 8.1 | P20: CX6
A21: 110 | B21: 0.1 | C21: 14.5 | D21: 14.2 | E21: 13.9 | F21: 13.6 | G21: 13.3 | H21: 12.9 | I21: 12.6 | J21: 12.2 | K21: 11.9 | L21: 11.5 | M21: 11.1 | N21: 10.7 | O21: 10.2 | P21: CX6
A22: 80 | B22: 0.5 | C22: 13.9 | D22: 13.2 | E22: 12.1 | F22: 10.1 | G22: 6.5 | H22: 4.8 | I22: 3.8 | J22: 3 | K22: 2.4 | L22: 1.9 | M22: 1.4 | N22: 1 | O22: 0.6 | P22: CX6
A23: 90 | B23: 0.5 | C23: 15.8 | D23: 15.4 | E23: 14.9 | F23: 14.3 | G23: 13.7 | H23: 13 | I23: 12.2 | J23: 11.2 | K23: 9.9 | L23: 8.5 | M23: 7 | N23: 5.8 | O23: 4.9 | P23: CX6
A24: 100 | B24: 0.5 | C24: 17.3 | D24: 16.9 | E24: 16.5 | F24: 16.1 | G24: 15.6 | H24: 15.1 | I24: 14.6 | J24: 14.1 | K24: 13.5 | L24: 12.8 | M24: 12.1 | N24: 11.3 | O24: 10.4 | P24: CX6
A25: 110 | B25: 0.5 | C25: 18.7 | D25: 18.3 | E25: 17.9 | F25: 17.5 | G25: 17.1 | H25: 16.7 | I25: 16.2 | J25: 15.8 | K25: 15.3 | L25: 14.8 | M25: 14.3 | N25: 13.7 | O25: 13.2 | P25: CX6
A26: 80 | B26: 1 | C26: 19.5 | D26: 18.4 | E26: 16.7 | F26: 12.7 | G26: 8.2 | H26: 6.2 | I26: 4.9 | J26: 3.9 | K26: 3.1 | L26: 2.4 | M26: 1.8 | N26: 1.2 | O26: 0.7 | P26: CX6
A27: 90 | B27: 1 | C27: 22.3 | D27: 21.6 | E27: 20.9 | F27: 20.1 | G27: 19.2 | H27: 18.2 | I27: 17 | J27: 15.4 | K27: 13.5 | L27: 11.4 | M27: 9.4 | N27: 7.8 | O27: 6.5 | P27: CX6
A28: 100 | B28: 1 | C28: 24.4 | D28: 23.9 | E28: 23.3 | F28: 22.6 | G28: 22 | H28: 21.3 | I28: 20.5 | J28: 19.7 | K28: 18.9 | L28: 17.9 | M28: 16.9 | N28: 15.7 | O28: 14.5 | P28: CX6
A29: 110 | B29: 1 | C29: 26.3 | D29: 25.8 | E29: 25.2 | F29: 24.6 | G29: 24.1 | H29: 23.5 | I29: 22.8 | J29: 22.2 | K29: 21.5 | L29: 20.8 | M29: 20.1 | N29: 19.3 | O29: 18.5 | P29: CX6
A30: 80 | B30: 0.1 | C30: 38.4 | D30: 36.4 | E30: 33.6 | F30: 28.6 | G30: 18.9 | H30: 13.8 | I30: 10.9 | J30: 8.7 | K30: 6.9 | L30: 5.4 | M30: 4.1 | N30: 3 | P30: CX7
A31: 90 | B31: 0.1 | C31: 43.7 | D31: 42.4 | E31: 41.1 | F31: 39.5 | G31: 37.9 | H31: 36 | I31: 33.7 | J31: 31 | K31: 27.6 | L31: 23.7 | M31: 19.8 | N31: 16.5 | O31: 13.7 | P31: CX7
A32: 100 | B32: 0.1 | C32: 47.8 | D32: 46.7 | E32: 45.5 | F32: 44.3 | G32: 43.1 | H32: 41.7 | I32: 40.3 | J32: 38.8 | K32: 37.2 | L32: 35.4 | M32: 33.4 | N32: 31.3 | O32: 29 | P32: CX7
A33: 110 | B33: 0.1 | C33: 51.4 | D33: 50.4 | E33: 49.3 | F33: 48.2 | G33: 47.1 | H33: 45.9 | I33: 44.7 | J33: 43.5 | K33: 42.2 | L33: 40.8 | M33: 39.4 | N33: 37.9 | O33: 36.3 | P33: CX7
A34: 80 | B34: 0.5 | C34: 49.4 | D34: 46.7 | E34: 43 | F34: 35.8 | G34: 23.2 | H34: 17.2 | I34: 13.5 | J34: 10.8 | K34: 8.6 | L34: 6.7 | M34: 5.1 | N34: 3.6 | O34: 2.2 | P34: CX7
A35: 90 | B35: 0.5 | C35: 56.3 | D35: 54.7 | E35: 52.9 | F35: 50.9 | G35: 48.7 | H35: 46.2 | I35: 43.3 | J35: 39.7 | K35: 35.2 | L35: 30 | M35: 25 | N35: 20.8 | O35: 17.3 | P35: CX7
A36: 100 | B36: 0.5 | C36: 61.6 | D36: 60.2 | E36: 58.7 | F36: 57.1 | G36: 55.5 | H36: 53.8 | I36: 51.9 | J36: 49.9 | K36: 47.8 | L36: 45.5 | M36: 43 | N36: 40.2 | O36: 37.1 | P36: CX7
A37: 110 | B37: 0.5 | C37: 66.3 | D37: 65 | E37: 63.6 | F37: 62.2 | G37: 60.7 | H37: 59.2 | I37: 57.6 | J37: 56 | K37: 54.3 | L37: 52.6 | M37: 50.7 | N37: 48.8 | O37: 46.7 | P37: CX7
A38: 80 | B38: 1 | C38: 69.2 | D38: 65.2 | E38: 59.4 | F38: 45.2 | G38: 29.2 | H38: 22.1 | I38: 17.5 | J38: 14 | K38: 11.1 | L38: 8.5 | M38: 6.3 | N38: 4.2 | O38: 2.4 | P38: CX7
A39: 90 | B39: 1 | C39: 79.2 | D39: 76.9 | E39: 74.3 | F39: 71.5 | G39: 68.3 | H39: 64.6 | I39: 60.3 | J39: 54.9 | K39: 48 | L39: 40.5 | M39: 33.4 | N39: 27.7 | O39: 23 | P39: CX7
A40: 100 | B40: 1 | C40: 86.8 | D40: 84.8 | E40: 82.6 | F40: 80.4 | G40: 78.1 | H40: 75.6 | I40: 73 | J40: 70.1 | K40: 67.1 | L40: 63.7 | M40: 60 | N40: 56 | O40: 51.5 | P40: CX7
A41: 110 | B41: 1 | C41: 93.5 | D41: 91.6 | E41: 89.6 | F41: 87.6 | G41: 85.5 | H41: 83.4 | I41: 81.1 | J41: 78.8 | K41: 76.4 | L41: 73.9 | M41: 71.3 | N41: 68.5 | O41: 65.6 | P41: CX7

Sheet El Ctrlr1
E4: =INDEX(Language!$B$2:$M$41,4,Language!$A$1) -> Project:
E5: =INDEX(Language!$B$2:$M$400,315,Language!$A$1) -> Superheat controller
B7: =INDEX(Language!$B$2:$M$400,306,Language!$A$1) -> Superheat/Economizer Controller
B8: =" "&INDEX(Language!$B$2:$M$400,304,Language!$A$1) -> for EXM/L Series
B9: =INDEX(Language!$B$2:$M$400,15,Language!$A$1) -> Type | C9: =INDEX(Language!$B$2:$M$41,18,Language!$A$1) -> Part No. | D9: =INDEX(Language!$B$2:$M$400,285,Language!$A$1) -> Description
B10: ='El Ctr-Dat'!B78 -> EXD-HP1 | C10: ='El Ctr-Dat'!C78 -> 807 836M | D10: ='El Ctr-Dat'!D78 -> Controller for one EXV; 20 pieces
B11: ='El Ctr-Dat'!B79 -> EXD-HP2 | C11: ='El Ctr-Dat'!C79 -> 807 837M | D11: ='El Ctr-Dat'!D79 -> Controller for two EXV; 20 pieces
B12: ='El Ctr-Dat'!B80 -> ECP-P30 | C12: ='El Ctr-Dat'!C80 -> 804 495 | D12: ='El Ctr-Dat'!D80 -> Temperature sensor, 3 meter cable
B15: =INDEX(Language!$B$2:$M$400,315,Language!$A$1) -> Superheat controller
B16: =" "&INDEX(Language!$B$2:$M$400,303,Language!$A$1) -> for EX and FX Series
B17: =INDEX(Language!$B$2:$M$400,15,Language!$A$1) -> Type | C17: =INDEX(Language!$B$2:$M$41,18,Language!$A$1) -> Part No. | D17: =INDEX(Language!$B$2:$M$400,285,Language!$A$1) -> Description
B18: ='El Ctr-Dat'!B94 -> EC3-X32 | C18: ='El Ctr-Dat'!C94 -> 807 782 | D18: ='El Ctr-Dat'!D94 -> Superheat controller TCP/IP interface
B19: ='El Ctr-Dat'!B95 -> K03-X32 | C19: ='El Ctr-Dat'!C95 -> 807 644 | D19: ='El Ctr-Dat'!D95 -> Terminal kit
B20: ='El Ctr-Dat'!B96 -> EC3-X33 | C20: ='El Ctr-Dat'!C96 -> 807 783 | D20: ='El Ctr-Dat'!D96 -> Superheat controller, stand alone
B21: ='El Ctr-Dat'!B97 -> K03-X33 | C21: ='El Ctr-Dat'!C97 -> 807 645 | D21: ='El Ctr-Dat'!D97 -> Terminal kit
B22: ='El Ctr-Dat'!B103 -> ECN-N60 | C22: ='El Ctr-Dat'!C103 -> 804 497 | D22: ='El Ctr-Dat'!D103 -> Temperature sensor Cable length 6,0 m
B25: =INDEX(Language!$B$2:$M$400,318,Language!$A$1) -> Digital superheat controller
B26: =" "&INDEX(Language!$B$2:$M$400,314,Language!$A$1) -> for EX4-6 Series
B27: =INDEX(Language!$B$2:$M$400,15,Language!$A$1) -> Type | C27: =INDEX(Language!$B$2:$M$41,18,Language!$A$1) -> Part No. | D27: =INDEX(Language!$B$2:$M$400,285,Language!$A$1) -> Description
B28: ='El Ctr-Dat'!B98 -> EC3-D72 | C28: ='El Ctr-Dat'!C98 -> 807 805 | D28: ='El Ctr-Dat'!D98 -> Digital superheat controller TCP/IP interface
B29: ='El Ctr-Dat'!B99 -> K03-331 | C29: ='El Ctr-Dat'!C99 -> 807 648 | D29: ='El Ctr-Dat'!D99 -> Terminal kit
B30: ='El Ctr-Dat'!B100 -> EC3-D73 | C30: ='El Ctr-Dat'!C100 -> 807 804 | D30: ='El Ctr-Dat'!D100 -> Digital superheat controller, stand alone
B31: ='El Ctr-Dat'!B101 -> K03-331 | C31: ='El Ctr-Dat'!C101 -> 807 648 | D31: ='El Ctr-Dat'!D101 -> Terminal kit
B32: ='El Ctr-Dat'!B103 -> ECN-N60 | C32: ='El Ctr-Dat'!C103 -> 804 497 | D32: ='El Ctr-Dat'!D103 -> Temperature sensor Cable length 6,0 m
B34: =INDEX(Language!$B$2:$M$400,296,Language!$A$1) -> Display and keyboard
B35: ='El Ctr-Dat'!B108 -> ECD-002 | C35: ='El Ctr-Dat'!C108 -> 807 657 | D35: ='El Ctr-Dat'!D108 -> Display and keyboard
B36: ='El Ctr-Dat'!B110 -> ECC-N10 | C36: ='El Ctr-Dat'!C110 -> 807 860 | D36: ='El Ctr-Dat'!D110 -> Connection cable EC3 - ECD. Length: 1,0 m
B39: =INDEX(Language!$B$2:$M$400,321,Language!$A$1) -> Superheat / Temperature controllers | J39: UPS / Supercap
B40: =" "&INDEX(Language!$B$2:$M$400,313,Language!$A$1) -> for EX, FX and CX Series | J40: for EXD-SH1/SH2 Controllers
B41: =INDEX(Language!$B$2:$M$400,15,Language!$A$1) -> Type | C41: =INDEX(Language!$B$2:$M$41,18,Language!$A$1) -> Part No. | D41: =INDEX(Language!$B$2:$M$400,285,Language!$A$1) -> Description | J41: =INDEX(Language!$B$2:$M$400,15,Language!$A$1) -> Type | K41: =INDEX(Language!$B$2:$M$41,18,Language!$A$1) -> Part No. | L41: =INDEX(Language!$B$2:$M$400,285,Language!$A$1) -> Description
B42: ='El Ctr-Dat'!$B$127 -> EXD-SH1 | C42: ='El Ctr-Dat'!$C$127 -> 807 855 | D42: ='El Ctr-Dat'!$E$127 -> Controller for single refrigeration circuit | J42: ='El Ctr-Dat'!$B$134 -> ECP-024 | K42: ='El Ctr-Dat'!$D$134 -> 804 558 | L42: ='El Ctr-Dat'!$E$134 -> Backup battery with two outputs for two controllers
B44: ='El Ctr-Dat'!$B$128 -> EXD-SH2 | C44: ='El Ctr-Dat'!$C$128 -> 807 856 | D44: ='El Ctr-Dat'!$E$128 -> Controller for two independent refrigeration circuits | J44: ='El Ctr-Dat'!$B135 -> K09-P00 | K44: ='El Ctr-Dat'!$D135 -> 804 560 | L44: ='El Ctr-Dat'!$E135 -> Terminal kit for ECP-024
B46: ='El Ctr-Dat'!$B$129 -> EXD-M03 | C46: ='El Ctr-Dat'!$D$129 -> 807 865 | D46: ='El Ctr-Dat'!$E$129 -> Molex terminal with 3 meter wires | J46: ='El Ctr-Dat'!$B136 -> EXD-PM | K46: ='El Ctr-Dat'!$D136 -> 807 854 | L46: ='El Ctr-Dat'!$E136 -> Super cap for one EXD-SH1
B47: ='El Ctr-Dat'!$B$103 -> ECN-N60 | C47: ='El Ctr-Dat'!$C$103 -> 804 497 | D47: ='El Ctr-Dat'!$D$103 -> Temperature sensor Cable length 6,0 m
L48: ='El Ctr-Dat'!$E137 -> (two pieces of EXD-PM required for one EXD-SH2)
B50: =INDEX(Language!$B$2:$M$400,310,Language!$A$1) -> Pressure Transmitter
B51: =INDEX(Language!$B$2:$M$400,5,Language!$A$1) -> Refrigerant
B52: =INDEX(Language!$B$2:$M$400,15,Language!$A$1) -> Type | C52: =INDEX(Language!$B$2:$M$41,18,Language!$A$1) -> Part No. | D52: =INDEX(Language!$B$2:$M$400,285,Language!$A$1) -> Description | J52: ='El Ctr-Dat'!B116 -> Transformer 230 / 24 VAC
B53: ='El Ctr-Dat'!B82 -> PT5-18M | C53: ='El Ctr-Dat'!D82 -> 802 351 | D53: ='El Ctr-Dat'!E82 -> Pressure transmitter 0 ...18 bar for suction pressure (R410A, R32) | J53: =INDEX(Language!$B$2:$M$400,300,Language!$A$1) -> for DIN rail mounting
J54: =INDEX(Language!$B$2:$M$400,15,Language!$A$1) -> Type | K54: =INDEX(Language!$B$2:$M$41,18,Language!$A$1) -> Part No. | L54: =INDEX(Language!$B$2:$M$400,285,Language!$A$1) -> Description
B55: ='El Ctr-Dat'!B85 -> PT5-30M | C55: ='El Ctr-Dat'!D85 -> 802 352 | D55: ='El Ctr-Dat'!E85 -> Pressure transmitter 0 ...30 bar for economizer pressure | J55: ='El Ctr-Dat'!$B$117 -> ECT-323 | K55: ='El Ctr-Dat'!C117 -> 804 424 | L55: ='El Ctr-Dat'!D117 -> 25VA
J56: ='El Ctr-Dat'!$B$118 -> ECT-623 | K56: ='El Ctr-Dat'!C118 -> 804 421 | L56: ='El Ctr-Dat'!D118 -> 60VA
B57: ='El Ctr-Dat'!B87 -> PT4-M15 | C57: ='El Ctr-Dat'!C87 -> 804 803 | D57: ='El Ctr-Dat'!D87 -> Cable assemblies 1,5 m
B59: =Home!$D$43 -> 
B60: =INDEX(Language!$B$2:$M$251,250,Language!$A$1) -> The Controls Navigator is provided by Emerson Climate Technologies Europe to assist with the selection of mechanical and electronic controls. Emerson Climate Technologies cannot be held liable for issues arising from application of controls using information provided by this software.

Sheet El Ctrlr2
E4: =INDEX(Language!$B$2:$M$41,4,Language!$A$1) -> Project:
E5: =INDEX(Language!$B$2:$M$299,268,Language!$A$1) -> Electronic controllers
B8: =INDEX(Language!$B$2:$M$400,269,Language!$A$1) -> Fan speed controllers
B9: =INDEX(Language!$B$2:$M$400,270,Language!$A$1) -> Fan motor type | D9: =INDEX('El Ctr-Dat'!F5:F6,'El Ctr-Dat'!F4) -> Induction motor
B10: =INDEX(Language!$B$2:$M$299,5,Language!$A$1) -> Refrigerant | C10: =INDEX('E-EX-Fun'!$G$5:$G$15,'E-EX-Fun'!$G$4) -> R410A
B11: =INDEX(Language!$B$2:$M$400,15,Language!$A$1) -> Type | C11: =INDEX(Language!$B$2:$M$41,18,Language!$A$1) -> Part No. | D11: =INDEX(Language!$B$2:$M$400,273,Language!$A$1) -> Setting range | F11: =INDEX(Language!$B$2:$M$400,120,Language!$A$1) -> Pressure connection
B12: =INDEX('El Ctr-Dat'!$F$11:$F$20,'El Ctr-Dat'!$D$4+'El Ctr-Dat'!$H$4) -> FSY-43S | C12: =INDEX('El Ctr-Dat'!$G$11:$G$20,'El Ctr-Dat'!$D$4+'El Ctr-Dat'!$H$4) -> 0 715 537 | D12: =INDEX('El Ctr-Dat'!$H$11:$H$20,'El Ctr-Dat'!$D$4+'El Ctr-Dat'!$H$4)&" bar" -> 9.2 ... 21.2 bar | F12: =INDEX('El Ctr-Dat'!$O$11:$O$20,'El Ctr-Dat'!$D$4+'El Ctr-Dat'!$H$4) -> 7/16"-20 UNF female
B15: ='El Ctr-Dat'!I4 -> Connector cable assembly with EMC filter
B16: =INDEX(Language!$B$2:$M$400,15,Language!$A$1) -> Type | C16: =INDEX(Language!$B$2:$M$41,18,Language!$A$1) -> Part No. | D16: =INDEX(Language!$B$2:$M$400,98,Language!$A$1) -> Cable length
B17: =INDEX('El Ctr-Dat'!R$11:R$20,'El Ctr-Dat'!$R$4+'El Ctr-Dat'!$H$4) -> FSF-N30 | C17: =INDEX('El Ctr-Dat'!S$11:S$20,'El Ctr-Dat'!$R$4+'El Ctr-Dat'!$H$4) -> 804 641 | D17: =INDEX('El Ctr-Dat'!T$11:T$20,'El Ctr-Dat'!$R$4+'El Ctr-Dat'!$H$4) -> 3 m
B21: =INDEX(Language!$B$2:$M$400,276,Language!$A$1) -> Soft starters for 1-ph compressors
B22: =INDEX(Language!$B$2:$M$400,15,Language!$A$1) -> Type | C22: =INDEX(Language!$B$2:$M$41,18,Language!$A$1) -> Part No. | D22: =INDEX(Language!$B$2:$M$41,18,Language!$A$1) -> Part No. | E22: =INDEX(Language!$B$2:$M$400,282,Language!$A$1) -> Starting current | F22: =INDEX(Language!$B$2:$M$400,281,Language!$A$1) -> Nominal current | H22: =INDEX(Language!$B$2:$M$400,283,Language!$A$1) -> Wire Ø
D23: ="20 "&INDEX(Language!$B$2:$M$400,284,Language!$A$1) -> 20 Pieces
B24: =INDEX('El Ctr-Dat'!B$45:B$50,'El Ctr-Dat'!$C$40) -> CSS-32U | C24: =INDEX('El Ctr-Dat'!C$45:C$50,'El Ctr-Dat'!$C$40) -> 805 204 | D24: =INDEX('El Ctr-Dat'!E$45:E$50,'El Ctr-Dat'!$C$40) -> 805 204M | E24: =INDEX('El Ctr-Dat'!P$45:P$50,'El Ctr-Dat'!$C$40) -> 45 A | F24: =INDEX('El Ctr-Dat'!Q$45:Q$50,'El Ctr-Dat'!$C$40) -> 32A max | H24: =INDEX('El Ctr-Dat'!N$45:N$50,'El Ctr-Dat'!$C$40) -> 4 mm
B25: =INDEX('El Ctr-Dat'!B$45:B$50,'El Ctr-Dat'!$C$40+1) -> CSS-32W | C25: =INDEX('El Ctr-Dat'!C$45:C$50,'El Ctr-Dat'!$C$40+1) -> 805 211 | D25: =INDEX('El Ctr-Dat'!E$45:E$50,'El Ctr-Dat'!$C$40+1) -> 805 211M | E25: =INDEX('El Ctr-Dat'!P$45:P$50,'El Ctr-Dat'!$C$40+1) -> 45 A | F25: =INDEX('El Ctr-Dat'!Q$45:Q$50,'El Ctr-Dat'!$C$40+1) -> 32A max | H25: =INDEX('El Ctr-Dat'!N$45:N$50,'El Ctr-Dat'!$C$40+1) -> 6 mm
B26: =INDEX(Language!$B$2:$M$400,279,Language!$A$1) -> Accessories
B27: ='El Ctr-Dat'!B51 -> K00-003 | C27: ='El Ctr-Dat'!C51 -> 807 663 | D27: =INDEX(Language!$B$2:$M$400,280,Language!$A$1) -> Terminal: alarm output
B32: =INDEX(Language!$B$2:$M$400,302,Language!$A$1) -> Universal driver
B33: =INDEX(Language!$B$2:$M$400,377,Language!$A$1) -> for EX4-8/CX4-7
B34: =INDEX(Language!$B$2:$M$400,15,Language!$A$1) -> Type | C34: =INDEX(Language!$B$2:$M$41,18,Language!$A$1) -> Part No. | D34: =INDEX(Language!$B$2:$M$400,285,Language!$A$1) -> Description
B35: ='El Ctr-Dat'!B70 -> EXD-U01 | C35: ='El Ctr-Dat'!C70 -> 804 750 | D35: ='El Ctr-Dat'!D70 -> Universal driver
B36: ='El Ctr-Dat'!B71 -> K09-U00 | C36: ='El Ctr-Dat'!C71 -> 804 559 | D36: ='El Ctr-Dat'!D71 -> Terminal kit for EXD-U01
B37: =INDEX(Language!$B$2:$M$400,279,Language!$A$1) -> Accessories
B38: ='El Ctr-Dat'!B72 -> ECP-024 | C38: ='El Ctr-Dat'!C72 -> 804 558 | D38: ='El Ctr-Dat'!D72 -> Uninterruptible power supply for up to two EXD-U01
B40: ='El Ctr-Dat'!B73 -> K09-P00 | C40: ='El Ctr-Dat'!C73 -> 804 560 | D40: ='El Ctr-Dat'!D73 -> Terminal kit for ECP-024
B45: =INDEX(Language!$B$2:$M$400,279,Language!$A$1) -> Accessories
B46: ='El Ctr-Dat'!B116 -> Transformer 230 / 24 VAC
B47: =INDEX(Language!$B$2:$M$400,300,Language!$A$1) -> for DIN rail mounting
B48: =INDEX(Language!$B$2:$M$400,15,Language!$A$1) -> Type | C48: =INDEX(Language!$B$2:$M$41,18,Language!$A$1) -> Part No. | D48: =INDEX(Language!$B$2:$M$400,285,Language!$A$1) -> Description
B49: ='El Ctr-Dat'!$B$117 -> ECT-323 | C49: ='El Ctr-Dat'!C117 -> 804 424 | D49: ='El Ctr-Dat'!D117 -> 25VA
B50: ='El Ctr-Dat'!$B$118 -> ECT-623 | C50: ='El Ctr-Dat'!C118 -> 804 421 | D50: ='El Ctr-Dat'!D118 -> 60VA
B60: =Home!$D$43 -> 
B61: =INDEX(Language!$B$2:$M$251,250,Language!$A$1) -> The Controls Navigator is provided by Emerson Climate Technologies Europe to assist with the selection of mechanical and electronic controls. Emerson Climate Technologies cannot be held liable for issues arising from application of controls using information provided by this software.

Sheet El Ctrlr3 (hidden)
B1: =INDEX(Language!$B$2:$M$41,2,Language!$A$1) -> Instruction: Select refrigerant and fill yellow fields with operating conditions.
B2: =INDEX(Language!$B$2:$M$41,3,Language!$A$1) -> #N/A error message: operating conditions, refrigerant or product out of range/specification.
D3: =INDEX(Language!$B$2:$M$41,4,Language!$A$1) -> Project:
D4: =INDEX(Language!$B$2:$M$400,331,Language!$A$1) -> Economizer control for tandem compressors
B15: =INDEX(Language!$B$2:$M$400,331,Language!$A$1) -> Economizer control for tandem compressors
D19: =INDEX(Language!$B$2:$M$400,143,Language!$A$1) -> Selection
D20: =INDEX(Language!$B$2:$M$400,33,Language!$A$1) -> Electrical control valve:
B23: =INDEX(Language!$B$2:$M$400,15,Language!$A$1) -> Type | C23: =INDEX(Language!$B$2:$M$400,334,Language!$A$1) -> Single-pack | D23: =INDEX(Language!$B$2:$M$400,335,Language!$A$1) -> Multipack (20 pieces) | E23: =INDEX(Language!$B$2:$M$400,285,Language!$A$1) -> Description
B25: ='El Ctr-Dat'!B121 -> EXD-TEVI | C25: ='El Ctr-Dat'!C121 -> 807 838 | D25: ='El Ctr-Dat'!D121 -> 807 838M | E25: ='El Ctr-Dat'!E121 -> Controller with connectors
B27: ='El Ctr-Dat'!B122 -> ECN-N30 | C27: ='El Ctr-Dat'!C122 -> 804 496 | D27: ='El Ctr-Dat'!E122 -> Injection line temperature sensor 3.0m
B28: ='El Ctr-Dat'!B123 -> ECN-N60 | C28: ='El Ctr-Dat'!C123 -> 804 497 | D28: ='El Ctr-Dat'!E123 -> Injection line temperature sensor 6.0m
B29: ='El Ctr-Dat'!B85 -> PT5-30M | C29: ='El Ctr-Dat'!D85 -> 802 352 | D29: ='El Ctr-Dat'!E85 -> Pressure transmitter 0 ...30 bar for economizer pressure
B30: ='El Ctr-Dat'!B87 -> PT4-M15 | C30: ='El Ctr-Dat'!C87 -> 804 803 | D30: ='El Ctr-Dat'!D87 -> Cable assemblies 1,5 m
E31: =INDEX(Language!$B$2:$M$400,98,Language!$A$1) -> Cable length
B35: =INDEX(Language!$B$2:$M$400,279,Language!$A$1) -> Accessories
B36: ='El Ctr-Dat'!B116 -> Transformer 230 / 24 VAC
B37: =INDEX(Language!$B$2:$M$400,300,Language!$A$1) -> for DIN rail mounting
B38: ='El Ctr-Dat'!$B$117 -> ECT-323 | C38: ='El Ctr-Dat'!C117 -> 804 424 | D38: ='El Ctr-Dat'!D117 -> 25VA
B39: ='El Ctr-Dat'!$B$118 -> ECT-623 | C39: ='El Ctr-Dat'!C118 -> 804 421 | D39: ='El Ctr-Dat'!D118 -> 60VA
B54: =Home!$B$43&" "&TEXT(Home!$D$43,"MMM. JJJJ") -> 
B55: =INDEX(Language!$B$2:$M$251,250,Language!$A$1) -> The Controls Navigator is provided by Emerson Climate Technologies Europe to assist with the selection of mechanical and electronic controls. Emerson Climate Technologies cannot be held liable for issues arising from application of controls using information provided by this software.

Sheet El Ctr-Dat (hidden)
A1: =INDEX(Language!$B$2:$M$400,268,Language!$A$1)&" Product Data" -> Electronic controllers Product Data
B2: =INDEX(Language!$B$2:$M$400,269,Language!$A$1) -> Fan speed controllers
B3: Refrigerant Selection | D3: =INDEX(B$5:B$20,$B$4) -> R410A | F3: =INDEX(Language!$B$2:$M$400,270,Language!$A$1) -> Fan motor type | R3: Kabellänge
B4: 1 | D4: =INDEX(D$5:D$20,$B$4) -> 3 | E4: =INDEX(E$5:E$20,$B$4) -> 2 | F4: 1 | H4: =INDEX(H5:H6,F4) -> 0 | I4: =INDEX(I5:I6,F4) -> Connector cable assembly with EMC filter | R4: 2
B5: R410A | D5: 3 | E5: 2 | F5: =INDEX(Language!$B$2:$M$400,271,Language!$A$1) -> Induction motor | H5: 0 | I5: =INDEX(Language!$B$2:$M$400,274,Language!$A$1) -> Connector cable assembly with EMC filter | R5: 1,5 m
B6: R134a | D6: 1 | E6: 1 | F6: =INDEX(Language!$B$2:$M$400,272,Language!$A$1) -> Electronically commutated EC | H6: 7 | I6: =INDEX(Language!$B$2:$M$400,275,Language!$A$1) -> Connector cable assembly | R6: 3 m
B7: R22 | D7: 2 | E7: 1 | R7: 6 m
B8: R404A | D8: 2 | E8: 1 | F8: Type | G8: Part No. | H8: Pressure range * | J8: Factory | K8: PS | L8: PT | O8: Pressure connection
B9: R507 | D9: 2 | E9: 1 | J9: setting *
B10: R407C | D10: 2 | E10: 1 | H10: bar | J10: bar | K10: bar | L10: bar | R10: Type | S10: Part Nr. | T10: Length
B11: R23 | D11: 2 | E11: 2 | F11: FSY-41S | G11: 0 715 533 | H11: 4.0 ... 12.5 | J11: 8 | K11: 27 | L11: 30 | O11: ="7/16""-20 UNF "&INDEX(Language!$B$2:$M$400,328,Language!$A$1) -> 7/16"-20 UNF female | R11: FSF-N15 | S11: 804 640 | T11: 1,5 m
B12: R124 | D12: 2 | E12: 1 | F12: FSY-42S | G12: 0 715 534 | H12: 4.0 ... 12.5 | J12: 15 | K12: 27 | L12: 30 | O12: ="7/16""-20 UNF "&INDEX(Language!$B$2:$M$400,328,Language!$A$1) -> 7/16"-20 UNF female | R12: FSF-N30 | S12: 804 641 | T12: 3 m
B13: R744 | D13: 3 | E13: 2 | F13: FSY-43S | G13: 0 715 537 | H13: 9.2 ... 21.2 | J13: 21.8 | K13: 32 | L13: 36 | O13: ="7/16""-20 UNF "&INDEX(Language!$B$2:$M$400,328,Language!$A$1) -> 7/16"-20 UNF female | R13: FSF-N60 | S13: 804 642 | T13: 6 m
B14: R407A | D14: 2 | E14: 1
B15: R407F | D15: 2 | E15: 1
B16: R448A | D16: 2 | E16: 1 | F16: Type | G16: Part No. | H16: Adjustment Range Z | J16: Factory set point Z | K16: P-Band | L16: Hysteresis | M16: Test | N16: Weight | O16: Pressure connection
B17: R449A | D17: 2 | E17: 1 | H17: (bar)* | J17: (bar) | K17: (bar) | L17: (bar) | M17: Pressure (bar) | N17: (g) | R17: Type | S17: Part No. | T17: Cable length
B18: R450A | D18: 1 | E18: 1 | F18: FSE-01S | G18: 804 701 | H18: 4 … 12.5 | J18: ~ 7.0 | K18: ~ 2.3 | L18: ~ 1.3 | M18: 30 bar | N18: 125 | O18: ="7/16""-20 UNF "&INDEX(Language!$B$2:$M$400,328,Language!$A$1) -> 7/16"-20 UNF female | R18: PS3-N15 | S18: 804 580 | T18: 1,5 m
B19: R513A | D19: 1 | E19: 1 | F19: FSE-02S | G19: 804 706 | H19: 10 … 21 | J19: ~ 14.5 | K19: ~ 3,6 | L19: ~ 1.3 | M19: 36 bar | N19: 125 | O19: ="7/16""-20 UNF "&INDEX(Language!$B$2:$M$400,328,Language!$A$1) -> 7/16"-20 UNF female | R19: PS3-N30 | S19: 804 581 | T19: 3 m
B20: R1234ze | D20: 1 | E20: 1 | F20: FSE-03S | G20: 804 711 | H20: 12 … 28 | J20: ~ 19.0 | K20: ~ 7.2 | L20: ~ 1.3 | M20: 50 bar | N20: 150 | O20: ="7/16""-20 UNF "&INDEX(Language!$B$2:$M$400,328,Language!$A$1) -> 7/16"-20 UNF female | R20: PS3-N60 | S20: 804 582 | T20: 6 m
F23: Type | G23: Part No. | H23: Pressure range * | J23: Factory | K23: PS | L23: PT | N23: Pressure connection
J24: setting *
H25: bar | J25: bar | K25: bar | L25: bar
F26: FSY-41S | G26: 0 715 533 | H26: 4.0 ... 12.5 | J26: 8.0 | K26: 27 | L26: 30 | N26: 7/16"-20 UNF female
F27: FSY-42A | G27: 0 715 540 | H27: 9.2 ... 21.2 | J27: 15.0 | K27: 32 | L27: 36 | N27: 7/16"-20 UNF male
F28: FSY-42U | G28: 0 715 535 | H28: 9.2 ... 21.2 | J28: 15.0 | K28: 32 | L28: 36 | N28: 6mm - ODF
F29: FSY-42X | G29: 0 715 536 | H29: 9.2 ... 21.2 | J29: 15.0 | K29: 32 | L29: 36 | N29: ¼" - ODF
F30: FSY-43S | G30: 0 715 537 | H30: 9.2 ... 21.2 | J30: 15.0 | K30: 32 | L30: 36 | N30: 7/16"-20 UNF female
F31: FSY-43U | G31: 0 715 538 | H31: 12.4…28.4 | J31: 21.8 | K31: 43 | L31: 48 | N31: 6mm - ODF
F32: FSY-43X | G32: 0 715 539 | H32: 12.4…28.4 | J32: 21.8 | K32: 43 | L32: 48 | N32: ¼" - ODF
F33: Selection Chart Fan Speed Controllers With Min. Speed Mode
F34: FSM-41S | G34: 0 715 520 | H34: 4.0 ... 12.5 | J34: 8.0 | K34: 27 | L34: 30 | N34: 7/16"-20 UNF female
F35: FSM-42S | G35: 0 715 521 | H35: 9.2 ... 21.2 | J35: 15.0 | K35: 32 | L35: 36 | N35: 7/16"-20 UNF female
F36: FSM-43S | G36: 0 715 522 | H36: 12.4…28.4 | J36: 21.8 | K36: 43 | L36: 48 | N36: 7/16"-20 UNF female
B38: =INDEX(Language!$B$2:$M$400,276,Language!$A$1) -> Soft starters for 1-ph compressors
B39: =INDEX(Language!$B$2:$M$400,281,Language!$A$1) -> Nominal current
B40: 1 | C40: =INDEX(C41:C42,B40) -> 1
B41: 32 A | C41: 1
B42: 25 A | C42: 3
B44: Type | C44: Part No. | E44: Part No. 20 pieces | G44: Description | N44: =INDEX(Language!$B$2:$M$400,283,Language!$A$1) -> Wire Ø | P44: Max. Start Current | Q44: Nom. Compr. Current
B45: CSS-32U | C45: 805 204 | D45: CSS-32U | E45: 805 204M | G45: Compressor Soft Starter incl. mounting clip and operating manual | N45: 4 mm | P45: 45 A | Q45: 32A max
B46: CSS-32W | C46: 805 211 | D46: CSS-32W | E46: 805 211M | G46: Compressor Soft Starter incl. mounting clip and operating manual | N46: 6 mm | P46: 45 A | Q46: 32A max
B47: CSS-25U | C47: 805 205 | D47: CSS-25U | E47: 805 205M | G47: Compressor Soft Starter incl. mounting clip and operating manual | N47: 4 mm | P47: 45 A | Q47: 25A max
B48: CSS-25U | C48: 805 209 | D48: CSS-25U | E48: 805 209M | G48: Compressor Soft Starter Im30 incl. mounting clip and operating manual | N48: 4 mm | P48: 30 A | Q48: 25A max
B50: Accessory
B51: K00-003 | C51: 807 663 | G51: 3-pol screw connector to alarm output for wires up to 2.5mm2; bag with 50 pieces
B53: =INDEX(Language!$B$2:$M$400,289,Language!$A$1) -> Drivers for digital Copeland compressors
B54: =INDEX(Language!$B$2:$M$400,292,Language!$A$1) -> Compressor type
B55: 1 | C55: =INDEX(C56:C57,B55) -> 2
B56: =INDEX(Language!$B$2:$M$400,290,Language!$A$1) -> Scroll compressor | C56: 2
B57: =INDEX(Language!$B$2:$M$400,291,Language!$A$1) -> Semi hermetic compressor | C57: 4
B58: Type | C58: Part No. | D58: Description | J58: Type Copeland Part Number
B59: EC3-D13 | C59: 8 404 935 | D59: Driver for digital scroll compressors
B60: EC3-D13 & K03-331 | C60: 3 187 306 | D60: =INDEX(Language!$B$2:$M$400,294,Language!$A$1) -> Driver for digital scroll with terminal kit
B61: EC3-D23 | C61: 3 187 282 | D61: Driver for 4 and 6 cylinder Stream digital semi-hermetic compressors
B62: EC3-D23 & K03-331 | C62: 3 187 317 | D62: =INDEX(Language!$B$2:$M$400,295,Language!$A$1) -> Driver for 4/6 cylinder digital compressors with terminal kit
B63: ECD-002 | C63: 8 403 318 | D63: =INDEX(Language!$B$2:$M$400,296,Language!$A$1) -> Display and keyboard
B64: K03-331 | C64: 8 405 165 | D64: =INDEX(Language!$B$2:$M$400,297,Language!$A$1)&"EC3-D13/-D23" -> Terminal kit for EC3-D13/-D23
B65: ECC-N10 | C65: 8 557 782 | D65: =INDEX(Language!$B$2:$M$400,298,Language!$A$1)&" EC3-D13/23 - ECD-002, 1m" -> Connection cable EC3-D13/23 - ECD-002, 1m
B66: ECT-323 | C66: 8 405 176 | D66: =INDEX(Language!$B$2:$M$400,299,Language!$A$1)&" 25VA, 230V / 24 VAC,"&INDEX(Language!$B$2:$M$400,300,Language!$A$1) -> Transformer 25VA, 230V / 24 VAC,for DIN rail mounting
B68: =INDEX(Language!$B$2:$M$400,302,Language!$A$1) -> Universal driver
B69: Type | C69: Part No. | D69: Description
B70: EXD-U01 | C70: 804 750 | D70: =INDEX(Language!$B$2:$M$400,302,Language!$A$1) -> Universal driver
B71: K09-U00 | C71: 804 559 | D71: =INDEX(Language!$B$2:$M$400,297,Language!$A$1)&B70 -> Terminal kit for EXD-U01
B72: ECP-024 | C72: 804 558 | D72: =INDEX(Language!$B$2:$M$400,305,Language!$A$1)&" "&B70 -> Uninterruptible power supply for up to two EXD-U01
B73: K09-P00 | C73: 804 560 | D73: =INDEX(Language!$B$2:$M$400,297,Language!$A$1)&B72 -> Terminal kit for ECP-024
B77: =INDEX(Language!$B$2:$M$400,306,Language!$A$1) -> Superheat/Economizer Controller
B78: EXD-HP1 | C78: 807 836M | D78: =INDEX(Language!$B$2:$M$400,307,Language!$A$1) -> Controller for one EXV; 20 pieces
B79: EXD-HP2 | C79: 807 837M | D79: =INDEX(Language!$B$2:$M$400,308,Language!$A$1) -> Controller for two EXV; 20 pieces
B80: ECP-P30 | C80: 804 495 | D80: =INDEX(Language!$B$2:$M$400,309,Language!$A$1) -> Temperature sensor, 3 meter cable
B81: =E4 -> 2 | C81: Kältemittel | E81: see chapter Pressure Transmitters
B82: =INDEX(B83:B84,$B$81) -> PT5-18M | C82: =INDEX(C83:C84,$B$81) -> 802 351M | D82: =INDEX(D83:D84,$B$81) -> 802 351 | E82: =INDEX(E83:E84,$B$81) -> Pressure transmitter 0 ...18 bar for suction pressure (R410A, R32)
B83: PT5-07M | C83: 802 350M | D83: 802 350 | E83: =INDEX(Language!$B$2:$M$400,330,Language!$A$1)&" -0.8 …7 bar "&INDEX(Language!$B$2:$M$400,311,Language!$A$1)&" "&J83 -> Pressure transmitter -0.8 …7 bar for suction pressure (R22, R134a, R407C) | J83: (R22, R134a, R407C)
B84: PT5-18M | C84: 802 351M | D84: 802 351 | E84: =INDEX(Language!$B$2:$M$400,330,Language!$A$1)&" 0 ...18 bar "&INDEX(Language!$B$2:$M$400,311,Language!$A$1)&" "&J84 -> Pressure transmitter 0 ...18 bar for suction pressure (R410A, R32) | J84: (R410A, R32)
B85: PT5-30M | C85: 802 352M | D85: 802 352 | E85: =INDEX(Language!$B$2:$M$400,330,Language!$A$1)&" 0 ...30 bar "&INDEX(Language!$B$2:$M$400,312,Language!$A$1) -> Pressure transmitter 0 ...30 bar for economizer pressure
B86: 1 | C86: Kabellänge PT
B87: =INDEX(B$88:B$90,$B$86) -> PT4-M15 | C87: =INDEX(C$88:C$90,$B$86) -> 804 803 | D87: =INDEX(D$88:D$90,$B$86) -> Cable assemblies 1,5 m | I87: =INDEX(I$88:I$90,$B$86) -> 1,5 m
B88: PT4-M15 | C88: 804 803 | D88: =INDEX(Language!$B$2:$M$400,242,Language!$A$1)&" "&I88 -> Cable assemblies 1,5 m | I88: 1,5 m
B89: PT4-M30 | C89: 804 804 | D89: =INDEX(Language!$B$2:$M$400,242,Language!$A$1)&" "&I89 -> Cable assemblies 3,0 m | I89: 3,0 m
B90: PT4-M60 | C90: 804 805 | D90: =INDEX(Language!$B$2:$M$400,242,Language!$A$1)&" "&I90 -> Cable assemblies 6,0 m | I90: 6,0 m
I91: 12,0 m
B92: =INDEX(Language!$B$2:$M$400,315,Language!$A$1) -> Superheat controller
B94: EC3-X32 | C94: 807 782 | D94: =INDEX(Language!$B$2:$M$400,316,Language!$A$1) -> Superheat controller TCP/IP interface | K94: 807 782 807 783
B95: K03-X32 | C95: 807 644 | D95: =INDEX(Language!$B$2:$M$400,243,Language!$A$1) -> Terminal kit
B96: EC3-X33 | C96: 807 783 | D96: =INDEX(Language!$B$2:$M$400,317,Language!$A$1) -> Superheat controller, stand alone | K96: Terminal Kit for EC3-X32/-X33 K03-X32 807 644 K03-X33 807 645
B97: K03-X33 | C97: 807 645 | D97: =INDEX(Language!$B$2:$M$400,243,Language!$A$1) -> Terminal kit
B98: EC3-D72 | C98: 807 805 | D98: =INDEX(Language!$B$2:$M$400,319,Language!$A$1) -> Digital superheat controller TCP/IP interface | K98: 807 805 807 804
B99: K03-331 | C99: 807 648 | D99: =INDEX(Language!$B$2:$M$400,243,Language!$A$1) -> Terminal kit
B100: EC3-D73 | C100: 807 804 | D100: =INDEX(Language!$B$2:$M$400,320,Language!$A$1) -> Digital superheat controller, stand alone | K100: Terminal Kit for EC3-D72/-D73 K03-331 807 648 K03-331 807 648
B101: K03-331 | C101: 807 648 | D101: =INDEX(Language!$B$2:$M$400,243,Language!$A$1) -> Terminal kit
B102: 2 | C102: Kabellänge Temp Sensor
B103: =INDEX(B$104:B$106,$B$102) -> ECN-N60 | C103: =INDEX(C$104:C$106,$B$102) -> 804 497 | D103: =INDEX(D$104:D$106,$B$102) -> Temperature sensor Cable length 6,0 m
B104: ECN-N30 | C104: 804 496 | D104: =INDEX(Language!$B$2:$M$400,182,Language!$A$1)&" "&INDEX(Language!$B$2:$M$400,98,Language!$A$1)&" 3,0 m" -> Temperature sensor Cable length 3,0 m
B105: ECN-N60 | C105: 804 497 | D105: =INDEX(Language!$B$2:$M$400,182,Language!$A$1)&" "&INDEX(Language!$B$2:$M$400,98,Language!$A$1)&" 6,0 m" -> Temperature sensor Cable length 6,0 m
B106: ECN-N99 | C106: 804 499 | D106: =INDEX(Language!$B$2:$M$400,182,Language!$A$1)&" "&INDEX(Language!$B$2:$M$400,98,Language!$A$1)&" 12,0 m" -> Temperature sensor Cable length 12,0 m
B108: ECD-002 | C108: 807 657 | D108: =INDEX(Language!$B$2:$M$400,296,Language!$A$1) -> Display and keyboard
B109: 1 | C109: Kabellänge Connection Cable
B110: =INDEX(B$111:B$113,$B$109) -> ECC-N10 | C110: =INDEX(C$111:C$113,$B$109) -> 807 860 | D110: =INDEX(D$111:D$113,$B$109) -> Connection cable EC3 - ECD. Length: 1,0 m
B111: ECC-N10 | C111: 807 860 | D111: =INDEX(Language!$B$2:$M$400,322,Language!$A$1)&" "&I111 -> Connection cable EC3 - ECD. Length: 1,0 m | I111: 1,0 m
B112: ECC-N30 | C112: 807 861 | D112: =INDEX(Language!$B$2:$M$400,322,Language!$A$1)&" "&I112 -> Connection cable EC3 - ECD. Length: 3,0 m | I112: 3,0 m
B113: ECC-N50 | C113: 807 862 | D113: =INDEX(Language!$B$2:$M$400,322,Language!$A$1)&" "&I113 -> Connection cable EC3 - ECD. Length: 5,0 m | I113: 5,0 m
B115: =INDEX(Language!$B$2:$M$400,279,Language!$A$1) -> Accessories
B116: =INDEX(Language!$B$2:$M$400,299,Language!$A$1)&" 230 / 24 VAC" -> Transformer 230 / 24 VAC
B117: ECT-323 | C117: 804 424 | D117: 25VA
B118: ECT-623 | C118: 804 421 | D118: 60VA
B120: =INDEX(Language!$B$2:$M$400,331,Language!$A$1) -> Economizer control for tandem compressors
B121: EXD-TEVI | C121: 807 838 | D121: 807 838M | E121: =INDEX(Language!$B$2:$M$400,332,Language!$A$1) -> Controller with connectors
B122: ECN-N30 | C122: 804 496 | E122: =INDEX(Language!$B$2:$M$400,333,Language!$A$1)&" 3.0m" -> Injection line temperature sensor 3.0m
